Workbook

Sheet Input
A1: INPUT WORKSHEET | I1: PCC | J1: Restripe | K1: 15 | L1: 2
I2: AC | J2: New Stripe | K2: 15 | L2: 3
A3: 1. General Information
A4: Pavement Surface Type | B4: PCC | I4: No
A5: Restripe/New Stripe | B5: New Stripe
A6: 2. Traffic Options (ADT per Lane)
A7: (5000, 10000, 15000, 20000, and 25000 are defaults)
A8: Additional ADT Value for Analysis (To assign a different ADT, first click No, then Yes again) | B8: No | I8: Default Values for AC
A9: 3. Analysis Options | J9: application only | L9: removal
A10: Minimum Effective Retroreflectivity (white) | B10: 100 | J10: solid | K10: dash | L10: solid | M10: dash
A11: Minimum Effective Retroreflectivity (yellow) | B11: 100 | I11: 40 mil | J11: 1039 | K11: 391 | L11: 0 | M11: 0
A12: Maximum Effective Retroreflectivity | B12: 200 | I12: 90 mil | J12: 2458 | K12: 817 | L12: 0 | M12: 0
A13: Remaining Pavement Service Life (Month) | B13: 100 | I13: tape | J13: 8108 | K13: 3861 | L13: 5250 | M13: 5250
A14: 4. Application/Removal Costs | I14: inverted | J14: 5270 | K14: 2505 | L14: 5250 | M14: 5250
A15: Please Input Cost Values in the Table
A16: Or Use the Provided Default Values | I16: Default Values for PCC
B17: Average Application Cost Per Mile ($) | D17: Average Removal Cost Per Mile ($) | J17: application only | L17: removal
A18: Material | B18: Solid | C18: Dash | D18: Solid | E18: Dash | J18: solid | K18: dash | L18: solid | M18: dash
A19: 40 Mil | B19: 1039 | C19: 391 | D19: 5250 | E19: 5250 | F19: =IF(MIN(MaterialCosts)<0,"Cost should be a positive number !","") ->  | I19: 40 mil | J19: 1039 | K19: 391 | L19: 5250 | M19: 5250
A20: 90 Mil | B20: 2458 | C20: 817 | D20: 5250 | E20: 5250 | F20: =(IF(ISNUMBER(B19)*ISNUMBER(C19)* ISNUMBER(D19)*ISNUMBER(E19)* ISNUMBER(B20)*ISNUMBER(C20)* ISNUMBER(D20)*ISNUMBER(E20)* ISNUMBER(B21)*ISNUMBER(C21)* ISNUMBER(D21)*ISNUMBER(E21)* ISNUMBER(B22)*ISNUMBER(C22)* ISNUMBER(D22)*ISNUMBER(E22)," ","Cost should not be text or left blank ! If the material is not part of the analysis, keep the default values so that graphics will be properly presented.")) ->  | I20: 90 mil | J20: 2458 | K20: 817 | L20: 5250 | M20: 5250
A21: Tape | B21: 8108 | C21: 3861 | D21: 5250 | E21: 5250 | I21: tape | J21: 8108 | K21: 3861 | L21: 5250 | M21: 5250
A22: Inverted | B22: 5270 | C22: 2505 | D22: 5250 | E22: 5250 | I22: inverted | J22: 5270 | K22: 2505 | L22: 5250 | M22: 5250
A23: % Decrease for Off-Peak Application Cost | B23: 15
A24: % Increase for Night Time Application Cost | B24: 15
A25: 5. User Cost Due to Lane Closure
A26: Number of Lanes in One Direction | B26: 2 | I26: ADT/Lane | J26: 2 Lanes | L26: 3 Lanes
A27: Please Input Cost Values in the Table | B27: ADT/Lane | C27: Off-Peak ($/mile) | D27: Night Time ($/mile) | J27: Off-Peak ($/mile) | K27: Night Time ($/mile) | L27: Off-Peak ($/mile) | M27: Night Time ($/mile)
A28: Or Use the Provided Default Values | B28: 5000 | C28: 70.52690376 | D28: 20.228 | F28: =IF(MIN(UserCosts)<0,"Cost should be a positive number !","") ->  | I28: 5000 | J28: =IF(I28<=12500,38.9*EXP(0.119*I28/1000),27.34*EXP(0.306*I28/1000)) -> 70.52690376 | K28: =IF(I28<25000,3.93*I28/1000+0.578,2/(10^14)*EXP(1.516*I28/1000)) -> 20.228 | L28: =IF(I28<=19000,69.37*EXP(0.093*I28/1000),0.48*EXP(0.438*I28/1000)) -> 110.4380243 | M28: =IF(I28<25000,5.675*I28/1000+3.713,2/(10^12)*EXP(1.32*I28/1000)) -> 32.088
B29: 10000 | C29: 127.867459 | D29: 39.878 | F29: =(IF(ISNUMBER(C28)*ISNUMBER(D28)*ISNUMBER(C29)*ISNUMBER(D29)* ISNUMBER(C30)*ISNUMBER(D30)* ISNUMBER(C31)*ISNUMBER(D31)* ISNUMBER(C32)*ISNUMBER(D32)," ", "Cost should not be text or left blank!")) ->  | I29: 10000 | J29: =IF(I29<=12500,38.9*EXP(0.119*I29/1000),27.34*EXP(0.306*I29/1000)) -> 127.867459 | K29: =IF(I29<25000,3.93*I29/1000+0.578,2/(10^14)*EXP(1.516*I29/1000)) -> 39.878 | L29: =IF(I29<=19000,69.37*EXP(0.093*I29/1000),0.48*EXP(0.438*I29/1000)) -> 175.8189017 | M29: =IF(I29<25000,5.675*I29/1000+3.713,2/(10^12)*EXP(1.32*I29/1000)) -> 60.463
B30: 15000 | C30: 2692.837721 | D30: 59.528 | I30: 15000 | J30: =IF(I30<=12500,38.9*EXP(0.119*I30/1000),27.34*EXP(0.306*I30/1000)) -> 2692.837721 | K30: =IF(I30<25000,3.93*I30/1000+0.578,2/(10^14)*EXP(1.516*I30/1000)) -> 59.528 | L30: =IF(I30<=19000,69.37*EXP(0.093*I30/1000),0.48*EXP(0.438*I30/1000)) -> 279.9061861 | M30: =IF(I30<25000,5.675*I30/1000+3.713,2/(10^12)*EXP(1.32*I30/1000)) -> 88.838
B31: 20000 | C31: 12436.00075 | D31: 79.178 | I31: 20000 | J31: =IF(I31<=12500,38.9*EXP(0.119*I31/1000),27.34*EXP(0.306*I31/1000)) -> 12436.00075 | K31: =IF(I31<25000,3.93*I31/1000+0.578,2/(10^14)*EXP(1.516*I31/1000)) -> 79.178 | L31: =IF(I31<=19000,69.37*EXP(0.093*I31/1000),0.48*EXP(0.438*I31/1000)) -> 3059.573557 | M31: =IF(I31<25000,5.675*I31/1000+3.713,2/(10^12)*EXP(1.32*I31/1000)) -> 117.213
B32: 25000 | C32: 57431.65041 | D32: 576.4887808 | I32: 25000 | J32: =IF(I32<=12500,38.9*EXP(0.119*I32/1000),27.34*EXP(0.306*I32/1000)) -> 57431.65041 | K32: =IF(I32<25000,3.93*I32/1000+0.578,2/(10^14)*EXP(1.516*I32/1000)) -> 576.4887808 | L32: =IF(I32<=19000,69.37*EXP(0.093*I32/1000),0.48*EXP(0.438*I32/1000)) -> 27337.94178 | M32: =IF(I32<25000,5.675*I32/1000+3.713,2/(10^12)*EXP(1.32*I32/1000)) -> 429.2871596
B33: =B8 -> No | F33: =IF(ISNUMBER(C33)*ISNUMBER(D33),"", IF(AND(C33="", D33=""),"",IF(AND(ISNUMBER(C33),D33=""),"", IF(AND(ISNUMBER(D33),C33=""),"","Cost for user ADT should not be text !")))) ->  | I33: =IF(B8="No", "No",VALUE(B8)) -> No | J33: =IF(I33="No","",IF(I33<=12500,38.9*EXP(0.119*I33/1000),27.34*EXP(0.306*I33/1000))) ->  | K33: =IF(I33="No","",IF(I33<25000,3.93*I33/1000+0.578,2/(10^14)*EXP(1.516*I33/1000))) ->  | L33: =IF(I33="No","",IF(I33<=19000,69.37*EXP(0.093*I33/1000),0.48*EXP(0.438*I33/1000))) ->  | M33: =IF(I33="No","",IF(I33<25000,5.675*I33/1000+3.713,2/(10^12)*EXP(1.32*I33/1000))) -> 

Sheet Restripe-PCC (hidden)
B1: Restripe-PCC: Marking Benefit/Cost by ADT | P1: Restripe-PCC: Marking and User Delay Costs | AD1: Restripe-PCC: User Benefit and Expected Service Life | AO1: Restripe-PCC: Data Used in the Analysis
B3: Off-peak Application | I3: Nighttime Application | P3: Off-peak Application | W3: Night time Application | AD3: User Benefit | AJ3: Expected Service Life
AP4: Variables
AP5: =Input!A4 -> Pavement Surface Type | AV5: =Input!B4 -> PCC
AP6: =Input!A5 -> Restripe/New Stripe | AV6: =Input!B5 -> New Stripe
AP7: =Input!A8 -> Additional ADT Value for Analysis (To assign a different ADT, first click No, then Yes again) | AV7: =Input!B8 -> No
AP8: =Input!A10 -> Minimum Effective Retroreflectivity (white) | AV8: =Input!B10 -> 100
AP9: =Input!A11 -> Minimum Effective Retroreflectivity (yellow) | AV9: =Input!B11 -> 100
AP10: =Input!A12 -> Maximum Effective Retroreflectivity | AV10: =Input!B12 -> 200
AP11: =Input!A13 -> Remaining Pavement Service Life (Month) | AV11: =Input!B13 -> 100
AP12: =Input!A23 -> % Decrease for Off-Peak Application Cost | AV12: =Input!B23 -> 15
AP13: =Input!A24 -> % Increase for Night Time Application Cost | AV13: =Input!B24 -> 15
AP14: =Input!A26 -> Number of Lanes in One Direction | AV14: =Input!B26 -> 2
AQ18: Application/Removal Costs ($/mile)
AR19: Average Application Costs | AT19: Average Removal Costs
AQ20: =Input!A18 -> Material | AR20: Solid | AS20: Dash | AT20: Solid | AU20: Dash
AQ21: 40 Mil | AR21: =Input!B19 -> 1039 | AS21: =Input!C19 -> 391 | AT21: =Input!D19 -> 5250 | AU21: =Input!E19 -> 5250
AQ22: 90 Mil | AR22: =Input!B20 -> 2458 | AS22: =Input!C20 -> 817 | AT22: =Input!D20 -> 5250 | AU22: =Input!E20 -> 5250
AQ23: Tape | AR23: =Input!B21 -> 8108 | AS23: =Input!C21 -> 3861 | AT23: =Input!D21 -> 5250 | AU23: =Input!E21 -> 5250
AQ24: Inverted | AR24: =Input!B22 -> 5270 | AS24: =Input!C22 -> 2505 | AT24: =Input!D22 -> 5250 | AU24: =Input!E22 -> 5250
AR28: User Costs ($/mile)
AR29: ADT/Lane | AS29: Off-Peak | AT29: Night Time
AR30: =Input!B28 -> 5000 | AS30: =Input!C28 -> 70.52690376 | AT30: =Input!D28 -> 20.228
AR31: =Input!B29 -> 10000 | AS31: =Input!C29 -> 127.867459 | AT31: =Input!D29 -> 39.878
AR32: =Input!B30 -> 15000 | AS32: =Input!C30 -> 2692.837721 | AT32: =Input!D30 -> 59.528
AR33: =Input!B31 -> 20000 | AS33: =Input!C31 -> 12436.00075 | AT33: =Input!D31 -> 79.178
AR34: =Input!B32 -> 25000 | AS34: =Input!C32 -> 57431.65041 | AT34: =Input!D32 -> 576.4887808
AR35: =Input!B33 -> No | AS35: =Input!C33 ->  | AT35: =Input!D33 -> 

Sheet Restripe-AC (hidden)
B1: Restripe-AC: Marking Benefit/Cost by ADT | P1: Restripe-AC: Marking and User Delay Costs | AD1: Restripe-AC: User Benefit and Expected Service Life | AO1: Restripe-AC: Data Used in the Analysis
B3: Off-peak Application | I3: Nighttime Application | P3: Off-peak Application | W3: Night time Application | AD3: User Benefit | AJ3: Expected Service Life
AP4: Variables
AP5: =Input!A4 -> Pavement Surface Type | AV5: =Input!B4 -> PCC
AP6: =Input!A5 -> Restripe/New Stripe | AV6: =Input!B5 -> New Stripe
AP7: =Input!A8 -> Additional ADT Value for Analysis (To assign a different ADT, first click No, then Yes again) | AV7: =Input!B8 -> No
AP8: =Input!A10 -> Minimum Effective Retroreflectivity (white) | AV8: =Input!B10 -> 100
AP9: =Input!A11 -> Minimum Effective Retroreflectivity (yellow) | AV9: =Input!B11 -> 100
AP10: =Input!A12 -> Maximum Effective Retroreflectivity | AV10: =Input!B12 -> 200
AP11: =Input!A13 -> Remaining Pavement Service Life (Month) | AV11: =Input!B13 -> 100
AP12: =Input!A23 -> % Decrease for Off-Peak Application Cost | AV12: =Input!B23 -> 15
AP13: =Input!A24 -> % Increase for Night Time Application Cost | AV13: =Input!B24 -> 15
AP14: =Input!A26 -> Number of Lanes in One Direction | AV14: =Input!B26 -> 2
AQ18: Application/Removal Costs ($/mile)
AR19: Average Application Costs | AT19: Average Removal Costs
AQ20: =Input!A18 -> Material | AR20: Solid | AS20: Dash | AT20: Solid | AU20: Dash
AQ21: 40 Mil | AR21: =Input!B19 -> 1039 | AS21: =Input!C19 -> 391 | AT21: =Input!D19 -> 5250 | AU21: =Input!E19 -> 5250
AQ22: 90 Mil | AR22: =Input!B20 -> 2458 | AS22: =Input!C20 -> 817 | AT22: =Input!D20 -> 5250 | AU22: =Input!E20 -> 5250
AQ23: Tape | AR23: =Input!B21 -> 8108 | AS23: =Input!C21 -> 3861 | AT23: =Input!D21 -> 5250 | AU23: =Input!E21 -> 5250
AQ24: Inverted | AR24: =Input!B22 -> 5270 | AS24: =Input!C22 -> 2505 | AT24: =Input!D22 -> 5250 | AU24: =Input!E22 -> 5250
AR28: User Costs ($/mile)
AR29: ADT/Lane | AS29: Off-Peak | AT29: Night Time
AR30: =Input!B28 -> 5000 | AS30: =Input!C28 -> 70.52690376 | AT30: =Input!D28 -> 20.228
AR31: =Input!B29 -> 10000 | AS31: =Input!C29 -> 127.867459 | AT31: =Input!D29 -> 39.878
AR32: =Input!B30 -> 15000 | AS32: =Input!C30 -> 2692.837721 | AT32: =Input!D30 -> 59.528
AR33: =Input!B31 -> 20000 | AS33: =Input!C31 -> 12436.00075 | AT33: =Input!D31 -> 79.178
AR34: =Input!B32 -> 25000 | AS34: =Input!C32 -> 57431.65041 | AT34: =Input!D32 -> 576.4887808
AR35: =Input!B33 -> No | AS35: =Input!C33 ->  | AT35: =Input!D33 -> 

Sheet New Stripe-PCC (hidden)
B1: New Stripe-PCC: Marking Benefit/Cost by ADT | P1: New Stripe-PCC: Marking and User Delay Costs | AD1: New Stripe-PCC: User Benefit and Expected Service Life | AO1: New Stripe-PCC: Data Used in the Analysis
B3: Off-peak Application | I3: Nighttime Application | P3: Off-peak Application | W3: Night time Application | AD3: User Benefit | AJ3: Expected Service Life
AP4: Variables
AP5: =Input!A4 -> Pavement Surface Type | AV5: =Input!B4 -> PCC
AP6: =Input!A5 -> Restripe/New Stripe | AV6: =Input!B5 -> New Stripe
AP7: =Input!A8 -> Additional ADT Value for Analysis (To assign a different ADT, first click No, then Yes again) | AV7: =Input!B8 -> No
AP8: =Input!A10 -> Minimum Effective Retroreflectivity (white) | AV8: =Input!B10 -> 100
AP9: =Input!A11 -> Minimum Effective Retroreflectivity (yellow) | AV9: =Input!B11 -> 100
AP10: =Input!A12 -> Maximum Effective Retroreflectivity | AV10: =Input!B12 -> 200
AP11: =Input!A13 -> Remaining Pavement Service Life (Month) | AV11: =Input!B13 -> 100
AP12: =Input!A23 -> % Decrease for Off-Peak Application Cost | AV12: =Input!B23 -> 15
AP13: =Input!A24 -> % Increase for Night Time Application Cost | AV13: =Input!B24 -> 15
AP14: =Input!A26 -> Number of Lanes in One Direction | AV14: =Input!B26 -> 2
AQ18: Application/Removal Costs ($/mile)
AR19: Average Application Costs | AT19: Average Removal Costs
AQ20: =Input!A18 -> Material | AR20: Solid | AS20: Dash | AT20: Solid | AU20: Dash
AQ21: 40 Mil | AR21: =Input!B19 -> 1039 | AS21: =Input!C19 -> 391 | AT21: =Input!D19 -> 5250 | AU21: =Input!E19 -> 5250
AQ22: 90 Mil | AR22: =Input!B20 -> 2458 | AS22: =Input!C20 -> 817 | AT22: =Input!D20 -> 5250 | AU22: =Input!E20 -> 5250
AQ23: Tape | AR23: =Input!B21 -> 8108 | AS23: =Input!C21 -> 3861 | AT23: =Input!D21 -> 5250 | AU23: =Input!E21 -> 5250
AQ24: Inverted | AR24: =Input!B22 -> 5270 | AS24: =Input!C22 -> 2505 | AT24: =Input!D22 -> 5250 | AU24: =Input!E22 -> 5250
AQ25: For new stripe, removal costs were not used in the analysis
AR28: User Costs ($/mile)
AR29: ADT/Lane | AS29: Off-Peak | AT29: Night Time
AR30: =Input!B28 -> 5000 | AS30: =Input!C28 -> 70.52690376 | AT30: =Input!D28 -> 20.228
AR31: =Input!B29 -> 10000 | AS31: =Input!C29 -> 127.867459 | AT31: =Input!D29 -> 39.878
AR32: =Input!B30 -> 15000 | AS32: =Input!C30 -> 2692.837721 | AT32: =Input!D30 -> 59.528
AR33: =Input!B31 -> 20000 | AS33: =Input!C31 -> 12436.00075 | AT33: =Input!D31 -> 79.178
AR34: =Input!B32 -> 25000 | AS34: =Input!C32 -> 57431.65041 | AT34: =Input!D32 -> 576.4887808
AR35: =Input!B33 -> No | AS35: =Input!C33 ->  | AT35: =Input!D33 -> 

Sheet New Stripe-AC (hidden)
B1: New Stripe-AC: Marking Benefit/Cost by ADT | P1: New Stripe-AC: Marking and User Delay Costs | AD1: New Stripe-AC: User Benefit and Expected Service Life | AO1: New Stripe-AC: Data Used in the Analysis
B3: Off-peak Application | I3: Nighttime Application | P3: Off-peak Application | W3: Night time Application | AD3: User Benefit | AJ3: Expected Service Life
AP4: Variables
AP5: =Input!A4 -> Pavement Surface Type | AV5: =Input!B4 -> PCC
AP6: =Input!A5 -> Restripe/New Stripe | AV6: =Input!B5 -> New Stripe
AP7: =Input!A8 -> Additional ADT Value for Analysis (To assign a different ADT, first click No, then Yes again) | AV7: =Input!B8 -> No
AP8: =Input!A10 -> Minimum Effective Retroreflectivity (white) | AV8: =Input!B10 -> 100
AP9: =Input!A11 -> Minimum Effective Retroreflectivity (yellow) | AV9: =Input!B11 -> 100
AP10: =Input!A12 -> Maximum Effective Retroreflectivity | AV10: =Input!B12 -> 200
AP11: =Input!A13 -> Remaining Pavement Service Life (Month) | AV11: =Input!B13 -> 100
AP12: =Input!A23 -> % Decrease for Off-Peak Application Cost | AV12: =Input!B23 -> 15
AP13: =Input!A24 -> % Increase for Night Time Application Cost | AV13: =Input!B24 -> 15
AP14: =Input!A26 -> Number of Lanes in One Direction | AV14: =Input!B26 -> 2
AQ18: Application/Removal Costs ($/mile)
AR19: Average Application Costs | AT19: Average Removal Costs
AQ20: =Input!A18 -> Material | AR20: Solid | AS20: Dash | AT20: Solid | AU20: Dash
AQ21: 40 Mil | AR21: =Input!B19 -> 1039 | AS21: =Input!C19 -> 391 | AT21: =Input!D19 -> 5250 | AU21: =Input!E19 -> 5250
AQ22: 90 Mil | AR22: =Input!B20 -> 2458 | AS22: =Input!C20 -> 817 | AT22: =Input!D20 -> 5250 | AU22: =Input!E20 -> 5250
AQ23: Tape | AR23: =Input!B21 -> 8108 | AS23: =Input!C21 -> 3861 | AT23: =Input!D21 -> 5250 | AU23: =Input!E21 -> 5250
AQ24: Inverted | AR24: =Input!B22 -> 5270 | AS24: =Input!C22 -> 2505 | AT24: =Input!D22 -> 5250 | AU24: =Input!E22 -> 5250
AQ25: for new stripe, removal costs were not used in the alanlysis
AR28: User Costs ($/mile)
AR29: ADT/Lane | AS29: Off-Peak | AT29: Night Time
AR30: =Input!B28 -> 5000 | AS30: =Input!C28 -> 70.52690376 | AT30: =Input!D28 -> 20.228
AR31: =Input!B29 -> 10000 | AS31: =Input!C29 -> 127.867459 | AT31: =Input!D29 -> 39.878
AR32: =Input!B30 -> 15000 | AS32: =Input!C30 -> 2692.837721 | AT32: =Input!D30 -> 59.528
AR33: =Input!B31 -> 20000 | AS33: =Input!C31 -> 12436.00075 | AT33: =Input!D31 -> 79.178
AR34: =Input!B32 -> 25000 | AS34: =Input!C32 -> 57431.65041 | AT34: =Input!D32 -> 576.4887808
AR35: =Input!B33 -> No | AS35: =Input!C33 ->  | AT35: =Input!D33 -> 

Sheet Results (hidden)
S1: Restripe-PCC | AG1: Restripe-AC
E2: Restriping Benefit/Cost | S2: off-peak application | Z2: night time application | AG2: off-peak application | AN2: night time application
A3: Marking Type | B3: Pavement Type | C3: Line Type | E3: Off-Peak Application | L3: Night Time Application
E4: ADT Per Lane | J4: User Specified | L4: ADT Per Lane | Q4: User Specified
E5: 5000 | F5: 10000 | G5: 15000 | H5: 20000 | I5: 25000 | J5: =IF(Input!$B$33="No","",Input!$B$33) ->  | L5: 5000 | M5: 10000 | N5: 15000 | O5: 20000 | P5: 25000 | Q5: =IF(Input!$B$33="No","",Input!$B$33) -> 
A6: Thermo (40 mil) | B6: PCC | C6: Yellow Edge | D6: 40 mil | E6: =MAX(0,'thermoplastic (40 mil)'!BN15) -> 461.5801966 | F6: =MAX(0,'thermoplastic (40 mil)'!BO15) -> 908.0179332 | G6: =MAX(0,'thermoplastic (40 mil)'!BP15) -> 906.8240125 | H6: =MAX(0,'thermoplastic (40 mil)'!BQ15) -> 530.6045985 | I6: =MAX(0,'thermoplastic (40 mil)'!BR15) -> 181.7365237 | J6: =MAX(0,'thermoplastic (40 mil)'!BS15) -> 0 | K6: 40 mil | L6: =MAX(0,'thermoplastic (40 mil)'!BT15) -> 344.7050139 | M6: =MAX(0,'thermoplastic (40 mil)'!BU15) -> 683.4290688 | N6: =MAX(0,'thermoplastic (40 mil)'!BV15) -> 999.6730182 | O6: =MAX(0,'thermoplastic (40 mil)'!BW15) -> 1290.431447 | P6: =MAX(0,'thermoplastic (40 mil)'!BX15) -> 1461.027519 | Q6: =MAX(0,'thermoplastic (40 mil)'!BY15) -> 0
C7: White Edge | D7: 40 mil | E7: =MAX(0,'thermoplastic (40 mil)'!BN16) -> 461.5801966 | F7: =MAX(0,'thermoplastic (40 mil)'!BO16) -> 913.4893672 | G7: =MAX(0,'thermoplastic (40 mil)'!BP16) -> 933.0113151 | H7: =MAX(0,'thermoplastic (40 mil)'!BQ16) -> 562.3774835 | I7: =MAX(0,'thermoplastic (40 mil)'!BR16) -> 199.1165583 | J7: =MAX(0,'thermoplastic (40 mil)'!BS16) -> 0 | K7: 40 mil | L7: =MAX(0,'thermoplastic (40 mil)'!BT16) -> 344.7050139 | M7: =MAX(0,'thermoplastic (40 mil)'!BU16) -> 687.5472001 | N7: =MAX(0,'thermoplastic (40 mil)'!BV16) -> 1028.541618 | O7: =MAX(0,'thermoplastic (40 mil)'!BW16) -> 1367.703167 | P7: =MAX(0,'thermoplastic (40 mil)'!BX16) -> 1600.750169 | Q7: =MAX(0,'thermoplastic (40 mil)'!BY16) -> 0
C8: White Lane | D8: 40 mil | E8: =MAX(0,'thermoplastic (40 mil)'!BN17) -> 513.8348065 | F8: =MAX(0,'thermoplastic (40 mil)'!BO17) -> 1015.699162 | G8: =MAX(0,'thermoplastic (40 mil)'!BP17) -> 1001.644337 | H8: =MAX(0,'thermoplastic (40 mil)'!BQ17) -> 580.3543973 | I8: =MAX(0,'thermoplastic (40 mil)'!BR17) -> 200.8790454 | J8: =MAX(0,'thermoplastic (40 mil)'!BS17) -> 0 | K8: 40 mil | L8: =MAX(0,'thermoplastic (40 mil)'!BT17) -> 384.1793115 | M8: =MAX(0,'thermoplastic (40 mil)'!BU17) -> 766.0454345 | N8: =MAX(0,'thermoplastic (40 mil)'!BV17) -> 1145.619198 | O8: =MAX(0,'thermoplastic (40 mil)'!BW17) -> 1522.921182 | P8: =MAX(0,'thermoplastic (40 mil)'!BX17) -> 1769.626164 | Q8: =MAX(0,'thermoplastic (40 mil)'!BY17) -> 0
B9: AC | C9: Yellow Edge | D9: 40 mil | E9: =MAX(0,'thermoplastic (40 mil)'!BN18) -> 461.5801966 | F9: =MAX(0,'thermoplastic (40 mil)'!BO18) -> 809.6482262 | G9: =MAX(0,'thermoplastic (40 mil)'!BP18) -> 520.2241175 | H9: =MAX(0,'thermoplastic (40 mil)'!BQ18) -> 160.9077494 | I9: =MAX(0,'thermoplastic (40 mil)'!BR18) -> 12.34024279 | J9: =MAX(0,'thermoplastic (40 mil)'!BS18) -> 0 | K9: 40 mil | L9: =MAX(0,'thermoplastic (40 mil)'!BT18) -> 344.7050139 | M9: =MAX(0,'thermoplastic (40 mil)'!BU18) -> 609.3900936 | N9: =MAX(0,'thermoplastic (40 mil)'!BV18) -> 573.4894606 | O9: =MAX(0,'thermoplastic (40 mil)'!BW18) -> 391.327969 | P9: =MAX(0,'thermoplastic (40 mil)'!BX18) -> 99.20644421 | Q9: =MAX(0,'thermoplastic (40 mil)'!BY18) -> 0
C10: White Edge | D10: 40 mil | E10: =MAX(0,'thermoplastic (40 mil)'!BN19) -> 461.5801966 | F10: =MAX(0,'thermoplastic (40 mil)'!BO19) -> 913.4893672 | G10: =MAX(0,'thermoplastic (40 mil)'!BP19) -> 933.0113151 | H10: =MAX(0,'thermoplastic (40 mil)'!BQ19) -> 543.8545914 | I10: =MAX(0,'thermoplastic (40 mil)'!BR19) -> 126.207155 | J10: =MAX(0,'thermoplastic (40 mil)'!BS19) -> 0 | K10: 40 mil | L10: =MAX(0,'thermoplastic (40 mil)'!BT19) -> 344.7050139 | M10: =MAX(0,'thermoplastic (40 mil)'!BU19) -> 687.5472001 | N10: =MAX(0,'thermoplastic (40 mil)'!BV19) -> 1028.541618 | O10: =MAX(0,'thermoplastic (40 mil)'!BW19) -> 1322.655456 | P10: =MAX(0,'thermoplastic (40 mil)'!BX19) -> 1014.612378 | Q10: =MAX(0,'thermoplastic (40 mil)'!BY19) -> 0
C11: White Lane | D11: 40 mil | E11: =MAX(0,'thermoplastic (40 mil)'!BN20) -> 513.8348065 | F11: =MAX(0,'thermoplastic (40 mil)'!BO20) -> 1015.699162 | G11: =MAX(0,'thermoplastic (40 mil)'!BP20) -> 1001.644337 | H11: =MAX(0,'thermoplastic (40 mil)'!BQ20) -> 561.2394039 | I11: =MAX(0,'thermoplastic (40 mil)'!BR20) -> 127.324282 | J11: =MAX(0,'thermoplastic (40 mil)'!BS20) -> 0 | K11: 40 mil | L11: =MAX(0,'thermoplastic (40 mil)'!BT20) -> 384.1793115 | M11: =MAX(0,'thermoplastic (40 mil)'!BU20) -> 766.0454345 | N11: =MAX(0,'thermoplastic (40 mil)'!BV20) -> 1145.619198 | O11: =MAX(0,'thermoplastic (40 mil)'!BW20) -> 1472.761093 | P11: =MAX(0,'thermoplastic (40 mil)'!BX20) -> 1121.651988 | Q11: =MAX(0,'thermoplastic (40 mil)'!BY20) -> 0
A12: Thermo (90 mil) | B12: PCC | C12: Yellow Edge | D12: 90 mil | E12: =MAX(0,'thermoplastic (90 mil)'!BN15) -> 377.510811 | F12: =MAX(0,'thermoplastic (90 mil)'!BO15) -> 748.5402575 | G12: =MAX(0,'thermoplastic (90 mil)'!BP15) -> 811.2811152 | H12: =MAX(0,'thermoplastic (90 mil)'!BQ15) -> 526.653936 | I12: =MAX(0,'thermoplastic (90 mil)'!BR15) -> 195.3630184 | J12: =MAX(0,'thermoplastic (90 mil)'!BS15) -> 0 | K12: 90 mil | L12: =MAX(0,'thermoplastic (90 mil)'!BT15) -> 281.3912162 | M12: =MAX(0,'thermoplastic (90 mil)'!BU15) -> 561.5404537 | N12: =MAX(0,'thermoplastic (90 mil)'!BV15) -> 840.4559171 | O12: =MAX(0,'thermoplastic (90 mil)'!BW15) -> 1118.145739 | P12: =MAX(0,'thermoplastic (90 mil)'!BX15) -> 1324.055934 | Q12: =MAX(0,'thermoplastic (90 mil)'!BY15) -> 0
C13: White Edge | D13: 90 mil | E13: =MAX(0,'thermoplastic (90 mil)'!BN16) -> 377.510811 | F13: =MAX(0,'thermoplastic (90 mil)'!BO16) -> 748.5402575 | G13: =MAX(0,'thermoplastic (90 mil)'!BP16) -> 811.2811152 | H13: =MAX(0,'thermoplastic (90 mil)'!BQ16) -> 526.653936 | I13: =MAX(0,'thermoplastic (90 mil)'!BR16) -> 195.3630184 | J13: =MAX(0,'thermoplastic (90 mil)'!BS16) -> 0 | K13: 90 mil | L13: =MAX(0,'thermoplastic (90 mil)'!BT16) -> 281.3912162 | M13: =MAX(0,'thermoplastic (90 mil)'!BU16) -> 561.5404537 | N13: =MAX(0,'thermoplastic (90 mil)'!BV16) -> 840.4559171 | O13: =MAX(0,'thermoplastic (90 mil)'!BW16) -> 1118.145739 | P13: =MAX(0,'thermoplastic (90 mil)'!BX16) -> 1324.055934 | Q13: =MAX(0,'thermoplastic (90 mil)'!BY16) -> 0
C14: White Lane | D14: 90 mil | E14: =MAX(0,'thermoplastic (90 mil)'!BN17) -> 478.2421895 | F14: =MAX(0,'thermoplastic (90 mil)'!BO17) -> 946.1064718 | G14: =MAX(0,'thermoplastic (90 mil)'!BP17) -> 955.4398497 | H14: =MAX(0,'thermoplastic (90 mil)'!BQ17) -> 568.4094808 | I14: =MAX(0,'thermoplastic (90 mil)'!BR17) -> 199.71688 | J14: =MAX(0,'thermoplastic (90 mil)'!BS17) -> 0 | K14: 90 mil | L14: =MAX(0,'thermoplastic (90 mil)'!BT17) -> 357.2817887 | M14: =MAX(0,'thermoplastic (90 mil)'!BU17) -> 712.5625345 | N14: =MAX(0,'thermoplastic (90 mil)'!BV17) -> 1065.859001 | O14: =MAX(0,'thermoplastic (90 mil)'!BW17) -> 1417.187767 | P14: =MAX(0,'thermoplastic (90 mil)'!BX17) -> 1654.853488 | Q14: =MAX(0,'thermoplastic (90 mil)'!BY17) -> 0
B15: AC | C15: Yellow Edge | D15: 90 mil | E15: =MAX(0,'thermoplastic (90 mil)'!BN18) -> 377.510811 | F15: =MAX(0,'thermoplastic (90 mil)'!BO18) -> 748.5402575 | G15: =MAX(0,'thermoplastic (90 mil)'!BP18) -> 811.2811152 | H15: =MAX(0,'thermoplastic (90 mil)'!BQ18) -> 526.653936 | I15: =MAX(0,'thermoplastic (90 mil)'!BR18) -> 195.3630184 | J15: =MAX(0,'thermoplastic (90 mil)'!BS18) -> 0 | K15: 90 mil | L15: =MAX(0,'thermoplastic (90 mil)'!BT18) -> 281.3912162 | M15: =MAX(0,'thermoplastic (90 mil)'!BU18) -> 561.5404537 | N15: =MAX(0,'thermoplastic (90 mil)'!BV18) -> 840.4559171 | O15: =MAX(0,'thermoplastic (90 mil)'!BW18) -> 1118.145739 | P15: =MAX(0,'thermoplastic (90 mil)'!BX18) -> 1324.055934 | Q15: =MAX(0,'thermoplastic (90 mil)'!BY18) -> 0
C16: White Edge | D16: 90 mil | E16: =MAX(0,'thermoplastic (90 mil)'!BN19) -> 377.510811 | F16: =MAX(0,'thermoplastic (90 mil)'!BO19) -> 748.5402575 | G16: =MAX(0,'thermoplastic (90 mil)'!BP19) -> 811.2811152 | H16: =MAX(0,'thermoplastic (90 mil)'!BQ19) -> 526.653936 | I16: =MAX(0,'thermoplastic (90 mil)'!BR19) -> 195.3630184 | J16: =MAX(0,'thermoplastic (90 mil)'!BS19) -> 0 | K16: 90 mil | L16: =MAX(0,'thermoplastic (90 mil)'!BT19) -> 281.3912162 | M16: =MAX(0,'thermoplastic (90 mil)'!BU19) -> 561.5404537 | N16: =MAX(0,'thermoplastic (90 mil)'!BV19) -> 840.4559171 | O16: =MAX(0,'thermoplastic (90 mil)'!BW19) -> 1118.145739 | P16: =MAX(0,'thermoplastic (90 mil)'!BX19) -> 1324.055934 | Q16: =MAX(0,'thermoplastic (90 mil)'!BY19) -> 0
C17: White Lane | D17: 90 mil | E17: =MAX(0,'thermoplastic (90 mil)'!BN20) -> 478.2421895 | F17: =MAX(0,'thermoplastic (90 mil)'!BO20) -> 946.1064718 | G17: =MAX(0,'thermoplastic (90 mil)'!BP20) -> 955.4398497 | H17: =MAX(0,'thermoplastic (90 mil)'!BQ20) -> 568.4094808 | I17: =MAX(0,'thermoplastic (90 mil)'!BR20) -> 199.71688 | J17: =MAX(0,'thermoplastic (90 mil)'!BS20) -> 0 | K17: 90 mil | L17: =MAX(0,'thermoplastic (90 mil)'!BT20) -> 357.2817887 | M17: =MAX(0,'thermoplastic (90 mil)'!BU20) -> 712.5625345 | N17: =MAX(0,'thermoplastic (90 mil)'!BV20) -> 1065.859001 | O17: =MAX(0,'thermoplastic (90 mil)'!BW20) -> 1417.187767 | P17: =MAX(0,'thermoplastic (90 mil)'!BX20) -> 1654.853488 | Q17: =MAX(0,'thermoplastic (90 mil)'!BY20) -> 0
A18: Tape | B18: PCC | C18: Yellow Edge | D18: tape | E18: =MAX(0,tape!BN15) -> 218.821696 | F18: =MAX(0,tape!BO15) -> 435.4578539 | G18: =MAX(0,tape!BP15) -> 533.9165992 | H18: =MAX(0,tape!BQ15) -> 420.3393688 | I18: =MAX(0,tape!BR15) -> 181.723156 | J18: =MAX(0,tape!BS15) -> 0 | K18: tape | L18: =MAX(0,tape!BT15) -> 162.5283905 | M18: =MAX(0,tape!BU15) -> 324.6420594 | N18: =MAX(0,tape!BV15) -> 486.3425922 | O18: =MAX(0,tape!BW15) -> 647.631566 | P18: =MAX(0,tape!BX15) -> 784.2798308 | Q18: =MAX(0,tape!BY15) -> 0
C19: White Edge | D19: tape | E19: =MAX(0,tape!BN16) -> 218.821696 | F19: =MAX(0,tape!BO16) -> 435.4578539 | G19: =MAX(0,tape!BP16) -> 533.9165992 | H19: =MAX(0,tape!BQ16) -> 420.3393688 | I19: =MAX(0,tape!BR16) -> 181.723156 | J19: =MAX(0,tape!BS16) -> 0 | K19: tape | L19: =MAX(0,tape!BT16) -> 162.5283905 | M19: =MAX(0,tape!BU16) -> 324.6420594 | N19: =MAX(0,tape!BV16) -> 486.3425922 | O19: =MAX(0,tape!BW16) -> 647.631566 | P19: =MAX(0,tape!BX16) -> 784.2798308 | Q19: =MAX(0,tape!BY16) -> 0
C20: White Lane | D20: tape | E20: =MAX(0,tape!BN17) -> 319.9026716 | F20: =MAX(0,tape!BO17) -> 635.1450561 | G20: =MAX(0,tape!BP17) -> 718.5843736 | H20: =MAX(0,tape!BQ17) -> 495.5315259 | I20: =MAX(0,tape!BR17) -> 191.7883871 | J20: =MAX(0,tape!BS17) -> 0 | K20: tape | L20: =MAX(0,tape!BT17) -> 238.1433657 | M20: =MAX(0,tape!BU17) -> 475.3968803 | N20: =MAX(0,tape!BV17) -> 711.765522 | O20: =MAX(0,tape!BW17) -> 947.254232 | P20: =MAX(0,tape!BX17) -> 1130.798179 | Q20: =MAX(0,tape!BY17) -> 0
B21: AC | C21: Yellow Edge | D21: tape | E21: =MAX(0,tape!BN18) -> 218.821696 | F21: =MAX(0,tape!BO18) -> 435.4578539 | G21: =MAX(0,tape!BP18) -> 533.9165992 | H21: =MAX(0,tape!BQ18) -> 420.3393688 | I21: =MAX(0,tape!BR18) -> 181.723156 | J21: =MAX(0,tape!BS18) -> 0 | K21: tape | L21: =MAX(0,tape!BT18) -> 162.5283905 | M21: =MAX(0,tape!BU18) -> 324.6420594 | N21: =MAX(0,tape!BV18) -> 486.3425922 | O21: =MAX(0,tape!BW18) -> 647.631566 | P21: =MAX(0,tape!BX18) -> 784.2798308 | Q21: =MAX(0,tape!BY18) -> 0
C22: White Edge | D22: tape | E22: =MAX(0,tape!BN19) -> 218.821696 | F22: =MAX(0,tape!BO19) -> 435.4578539 | G22: =MAX(0,tape!BP19) -> 533.9165992 | H22: =MAX(0,tape!BQ19) -> 420.3393688 | I22: =MAX(0,tape!BR19) -> 181.723156 | J22: =MAX(0,tape!BS19) -> 0 | K22: tape | L22: =MAX(0,tape!BT19) -> 162.5283905 | M22: =MAX(0,tape!BU19) -> 324.6420594 | N22: =MAX(0,tape!BV19) -> 486.3425922 | O22: =MAX(0,tape!BW19) -> 647.631566 | P22: =MAX(0,tape!BX19) -> 784.2798308 | Q22: =MAX(0,tape!BY19) -> 0
C23: White Lane | D23: tape | E23: =MAX(0,tape!BN20) -> 319.9026716 | F23: =MAX(0,tape!BO20) -> 635.1450561 | G23: =MAX(0,tape!BP20) -> 718.5843736 | H23: =MAX(0,tape!BQ20) -> 495.5315259 | I23: =MAX(0,tape!BR20) -> 191.7883871 | J23: =MAX(0,tape!BS20) -> 0 | K23: tape | L23: =MAX(0,tape!BT20) -> 238.1433657 | M23: =MAX(0,tape!BU20) -> 475.3968803 | N23: =MAX(0,tape!BV20) -> 711.765522 | O23: =MAX(0,tape!BW20) -> 947.254232 | P23: =MAX(0,tape!BX20) -> 1130.798179 | Q23: =MAX(0,tape!BY20) -> 0
A24: Inverted | B24: PCC | C24: Yellow Edge | D24: inverted | E24: =MAX(0,inverted!BN15) -> 277.3916823 | F24: =MAX(0,inverted!BO15) -> 551.2759721 | G24: =MAX(0,inverted!BP15) -> 644.6157806 | H24: =MAX(0,inverted!BQ15) -> 467.7705889 | I24: =MAX(0,inverted!BR15) -> 188.3277464 | J24: =MAX(0,inverted!BS15) -> 0 | K24: inverted | L24: =MAX(0,inverted!BT15) -> 206.3007892 | M24: =MAX(0,inverted!BU15) -> 411.9336181 | N24: =MAX(0,inverted!BV15) -> 616.9017254 | O24: =MAX(0,inverted!BW15) -> 821.2083292 | P24: =MAX(0,inverted!BX15) -> 986.2330715 | Q24: =MAX(0,inverted!BY15) -> 0
C25: White Edge | D25: inverted | E25: =MAX(0,inverted!BN16) -> 277.3916823 | F25: =MAX(0,inverted!BO16) -> 551.2759721 | G25: =MAX(0,inverted!BP16) -> 644.6157806 | H25: =MAX(0,inverted!BQ16) -> 379.1252717 | I25: =MAX(0,inverted!BR16) -> 79.34992339 | J25: =MAX(0,inverted!BS16) -> 0 | K25: inverted | L25: =MAX(0,inverted!BT16) -> 206.3007892 | M25: =MAX(0,inverted!BU16) -> 411.9336181 | N25: =MAX(0,inverted!BV16) -> 616.9017254 | O25: =MAX(0,inverted!BW16) -> 665.5844517 | P25: =MAX(0,inverted!BX16) -> 415.5389749 | Q25: =MAX(0,inverted!BY16) -> 0
C26: White Lane | D26: inverted | E26: =MAX(0,inverted!BN17) -> 375.2470869 | F26: =MAX(0,inverted!BO17) -> 744.0899769 | G26: =MAX(0,inverted!BP17) -> 807.7903107 | H26: =MAX(0,inverted!BQ17) -> 425.9536742 | I26: =MAX(0,inverted!BR17) -> 82.26279831 | J26: =MAX(0,inverted!BS17) -> 0 | K26: inverted | L26: =MAX(0,inverted!BT17) -> 279.6896742 | M26: =MAX(0,inverted!BU17) -> 558.1523283 | N26: =MAX(0,inverted!BV17) -> 835.3960189 | O26: =MAX(0,inverted!BW17) -> 900.8063574 | P26: =MAX(0,inverted!BX17) -> 554.7013137 | Q26: =MAX(0,inverted!BY17) -> 0
B27: AC | C27: Yellow Edge | D27: inverted | E27: =MAX(0,inverted!BN18) -> 0 | F27: =MAX(0,inverted!BO18) -> 0 | G27: =MAX(0,inverted!BP18) -> 0 | H27: =MAX(0,inverted!BQ18) -> 0 | I27: =MAX(0,inverted!BR18) -> 0 | J27: =MAX(0,inverted!BS18) -> 0 | K27: inverted | L27: =MAX(0,inverted!BT18) -> 0 | M27: =MAX(0,inverted!BU18) -> 0 | N27: =MAX(0,inverted!BV18) -> 0 | O27: =MAX(0,inverted!BW18) -> 0 | P27: =MAX(0,inverted!BX18) -> 0 | Q27: =MAX(0,inverted!BY18) -> 0
C28: White Edge | D28: inverted | E28: =MAX(0,inverted!BN19) -> 0 | F28: =MAX(0,inverted!BO19) -> 0 | G28: =MAX(0,inverted!BP19) -> 0 | H28: =MAX(0,inverted!BQ19) -> 0 | I28: =MAX(0,inverted!BR19) -> 0 | J28: =MAX(0,inverted!BS19) -> 0 | K28: inverted | L28: =MAX(0,inverted!BT19) -> 0 | M28: =MAX(0,inverted!BU19) -> 0 | N28: =MAX(0,inverted!BV19) -> 0 | O28: =MAX(0,inverted!BW19) -> 0 | P28: =MAX(0,inverted!BX19) -> 0 | Q28: =MAX(0,inverted!BY19) -> 0
C29: White Lane | D29: inverted | E29: =MAX(0,inverted!BN20) -> 0 | F29: =MAX(0,inverted!BO20) -> 0 | G29: =MAX(0,inverted!BP20) -> 0 | H29: =MAX(0,inverted!BQ20) -> 0 | I29: =MAX(0,inverted!BR20) -> 0 | J29: =MAX(0,inverted!BS20) -> 0 | K29: inverted | L29: =MAX(0,inverted!BT20) -> 0 | M29: =MAX(0,inverted!BU20) -> 0 | N29: =MAX(0,inverted!BV20) -> 0 | O29: =MAX(0,inverted!BW20) -> 0 | P29: =MAX(0,inverted!BX20) -> 0 | Q29: =MAX(0,inverted!BY20) -> 0
S43: New Stripe-PCC | AG43: New Stripe-AC
S44: off-peak application | Z44: night time application | AG44: off-peak application | AN44: night time application
E47: New Striping Benefit/Cost
A48: Marking Type | B48: Pavement Type | C48: Line Type | E48: Off-Peak Application | L48: Night Time Application
E49: ADT Per Lane | J49: User Specified | L49: ADT Per Lane | Q49: User Specified
E50: 5000 | F50: 10000 | G50: 15000 | H50: 20000 | I50: 25000 | J50: =IF(Input!$B$33="No","",Input!$B$33) ->  | L50: 5000 | M50: =F50 -> 10000 | N50: =G50 -> 15000 | O50: =H50 -> 20000 | P50: =I50 -> 25000 | Q50: =IF(Input!$B$33="No","",Input!$B$33) -> 
A51: Thermo (40 mil) | B51: PCC | C51: Yellow Edge | D51: 40 mil | E51: =MAX(0,'thermoplastic (40 mil)'!BN9) -> 2621.432888 | F51: =MAX(0,'thermoplastic (40 mil)'!BO9) -> 4915.891379 | G51: =MAX(0,'thermoplastic (40 mil)'!BP9) -> 2038.456018 | H51: =MAX(0,'thermoplastic (40 mil)'!BQ9) -> 708.3804242 | I51: =MAX(0,'thermoplastic (40 mil)'!BR9) -> 195.6437862 | J51: =MAX(0,'thermoplastic (40 mil)'!BS9) -> 0 | K51: 40 mil | L51: =MAX(0,'thermoplastic (40 mil)'!BT9) -> 2057.481084 | M51: =MAX(0,'thermoplastic (40 mil)'!BU9) -> 4025.220138 | N51: =MAX(0,'thermoplastic (40 mil)'!BV9) -> 5811.241658 | O51: =MAX(0,'thermoplastic (40 mil)'!BW9) -> 7405.665854 | P51: =MAX(0,'thermoplastic (40 mil)'!BX9) -> 6440.850542 | Q51: =MAX(0,'thermoplastic (40 mil)'!BY9) -> 0
C52: White Edge | D52: 40 mil | E52: =MAX(0,'thermoplastic (40 mil)'!BN10) -> 2621.432888 | F52: =MAX(0,'thermoplastic (40 mil)'!BO10) -> 4945.513013 | G52: =MAX(0,'thermoplastic (40 mil)'!BP10) -> 2097.322638 | H52: =MAX(0,'thermoplastic (40 mil)'!BQ10) -> 750.7986199 | I52: =MAX(0,'thermoplastic (40 mil)'!BR10) -> 214.353816 | J52: =MAX(0,'thermoplastic (40 mil)'!BS10) -> 0 | K52: 40 mil | L52: =MAX(0,'thermoplastic (40 mil)'!BT10) -> 2057.481084 | M52: =MAX(0,'thermoplastic (40 mil)'!BU10) -> 4049.474864 | N52: =MAX(0,'thermoplastic (40 mil)'!BV10) -> 5979.058944 | O52: =MAX(0,'thermoplastic (40 mil)'!BW10) -> 7849.121055 | P52: =MAX(0,'thermoplastic (40 mil)'!BX10) -> 7056.80931 | Q52: =MAX(0,'thermoplastic (40 mil)'!BY10) -> 0
C53: White Lane | D53: 40 mil | E53: =MAX(0,'thermoplastic (40 mil)'!BN11) -> 6205.369374 | F53: =MAX(0,'thermoplastic (40 mil)'!BO11) -> 10864.4292 | G53: =MAX(0,'thermoplastic (40 mil)'!BP11) -> 2479.184994 | H53: =MAX(0,'thermoplastic (40 mil)'!BQ11) -> 783.1865053 | I53: =MAX(0,'thermoplastic (40 mil)'!BR11) -> 216.3977548 | J53: =MAX(0,'thermoplastic (40 mil)'!BS11) -> 0 | K53: 40 mil | L53: =MAX(0,'thermoplastic (40 mil)'!BT11) -> 5320.53001 | M53: =MAX(0,'thermoplastic (40 mil)'!BU11) -> 10213.92035 | N53: =MAX(0,'thermoplastic (40 mil)'!BV11) -> 14729.62304 | O53: =MAX(0,'thermoplastic (40 mil)'!BW11) -> 18909.74003 | P53: =MAX(0,'thermoplastic (40 mil)'!BX11) -> 12181.58814 | Q53: =MAX(0,'thermoplastic (40 mil)'!BY11) -> 0
B54: AC | C54: Yellow Edge | D54: 40 mil | E54: =MAX(0,'thermoplastic (40 mil)'!BN12) -> 2621.432888 | F54: =MAX(0,'thermoplastic (40 mil)'!BO12) -> 4383.330537 | G54: =MAX(0,'thermoplastic (40 mil)'!BP12) -> 1169.41542 | H54: =MAX(0,'thermoplastic (40 mil)'!BQ12) -> 214.8189067 | I54: =MAX(0,'thermoplastic (40 mil)'!BR12) -> 13.28457138 | J54: =MAX(0,'thermoplastic (40 mil)'!BS12) -> 0 | K54: 40 mil | L54: =MAX(0,'thermoplastic (40 mil)'!BT12) -> 2057.481084 | M54: =MAX(0,'thermoplastic (40 mil)'!BU12) -> 3589.149757 | N54: =MAX(0,'thermoplastic (40 mil)'!BV12) -> 3333.775928 | O54: =MAX(0,'thermoplastic (40 mil)'!BW12) -> 2245.794757 | P54: =MAX(0,'thermoplastic (40 mil)'!BX12) -> 437.3455475 | Q54: =MAX(0,'thermoplastic (40 mil)'!BY12) -> 0
C55: White Edge | D55: 40 mil | E55: =MAX(0,'thermoplastic (40 mil)'!BN13) -> 2621.432888 | F55: =MAX(0,'thermoplastic (40 mil)'!BO13) -> 4945.513013 | G55: =MAX(0,'thermoplastic (40 mil)'!BP13) -> 2097.322638 | H55: =MAX(0,'thermoplastic (40 mil)'!BQ13) -> 726.0697461 | I55: =MAX(0,'thermoplastic (40 mil)'!BR13) -> 135.8650707 | J55: =MAX(0,'thermoplastic (40 mil)'!BS13) -> 0 | K55: 40 mil | L55: =MAX(0,'thermoplastic (40 mil)'!BT13) -> 2057.481084 | M55: =MAX(0,'thermoplastic (40 mil)'!BU13) -> 4049.474864 | N55: =MAX(0,'thermoplastic (40 mil)'!BV13) -> 5979.058944 | O55: =MAX(0,'thermoplastic (40 mil)'!BW13) -> 7590.59644 | P55: =MAX(0,'thermoplastic (40 mil)'!BX13) -> 4472.856672 | Q55: =MAX(0,'thermoplastic (40 mil)'!BY13) -> 0
C56: White Lane | D56: 40 mil | E56: =MAX(0,'thermoplastic (40 mil)'!BN14) -> 6205.369374 | F56: =MAX(0,'thermoplastic (40 mil)'!BO14) -> 10864.4292 | G56: =MAX(0,'thermoplastic (40 mil)'!BP14) -> 2479.184994 | H56: =MAX(0,'thermoplastic (40 mil)'!BQ14) -> 757.3908794 | I56: =MAX(0,'thermoplastic (40 mil)'!BR14) -> 137.1605918 | J56: =MAX(0,'thermoplastic (40 mil)'!BS14) -> 0 | K56: 40 mil | L56: =MAX(0,'thermoplastic (40 mil)'!BT14) -> 5320.53001 | M56: =MAX(0,'thermoplastic (40 mil)'!BU14) -> 10213.92035 | N56: =MAX(0,'thermoplastic (40 mil)'!BV14) -> 14729.62304 | O56: =MAX(0,'thermoplastic (40 mil)'!BW14) -> 18286.91446 | P56: =MAX(0,'thermoplastic (40 mil)'!BX14) -> 7721.123723 | Q56: =MAX(0,'thermoplastic (40 mil)'!BY14) -> 0
A57: Thermo (90 mil) | B57: PCC | C57: Yellow Edge | D57: 90 mil | E57: =MAX(0,'thermoplastic (90 mil)'!BN9) -> 1157.500166 | F57: =MAX(0,'thermoplastic (90 mil)'!BO9) -> 2255.129616 | G57: =MAX(0,'thermoplastic (90 mil)'!BP9) -> 1568.336263 | H57: =MAX(0,'thermoplastic (90 mil)'!BQ9) -> 688.4539036 | I57: =MAX(0,'thermoplastic (90 mil)'!BR9) -> 210.0100874 | J57: =MAX(0,'thermoplastic (90 mil)'!BS9) -> 0 | K57: 90 mil | L57: =MAX(0,'thermoplastic (90 mil)'!BT9) -> 878.1395244 | M57: =MAX(0,'thermoplastic (90 mil)'!BU9) -> 1744.239996 | N57: =MAX(0,'thermoplastic (90 mil)'!BV9) -> 2598.547308 | O57: =MAX(0,'thermoplastic (90 mil)'!BW9) -> 3441.300702 | P57: =MAX(0,'thermoplastic (90 mil)'!BX9) -> 3673.025743 | Q57: =MAX(0,'thermoplastic (90 mil)'!BY9) -> 0
C58: White Edge | D58: 90 mil | E58: =MAX(0,'thermoplastic (90 mil)'!BN10) -> 1157.500166 | F58: =MAX(0,'thermoplastic (90 mil)'!BO10) -> 2255.129616 | G58: =MAX(0,'thermoplastic (90 mil)'!BP10) -> 1568.336263 | H58: =MAX(0,'thermoplastic (90 mil)'!BQ10) -> 688.4539036 | I58: =MAX(0,'thermoplastic (90 mil)'!BR10) -> 210.0100874 | J58: =MAX(0,'thermoplastic (90 mil)'!BS10) -> 0 | K58: 90 mil | L58: =MAX(0,'thermoplastic (90 mil)'!BT10) -> 878.1395244 | M58: =MAX(0,'thermoplastic (90 mil)'!BU10) -> 1744.239996 | N58: =MAX(0,'thermoplastic (90 mil)'!BV10) -> 2598.547308 | O58: =MAX(0,'thermoplastic (90 mil)'!BW10) -> 3441.300702 | P58: =MAX(0,'thermoplastic (90 mil)'!BX10) -> 3673.025743 | Q58: =MAX(0,'thermoplastic (90 mil)'!BY10) -> 0
C59: White Lane | D59: 90 mil | E59: =MAX(0,'thermoplastic (90 mil)'!BN11) -> 3268.072523 | F59: =MAX(0,'thermoplastic (90 mil)'!BO11) -> 6080.3768 | G59: =MAX(0,'thermoplastic (90 mil)'!BP11) -> 2214.160892 | H59: =MAX(0,'thermoplastic (90 mil)'!BQ11) -> 761.588478 | I59: =MAX(0,'thermoplastic (90 mil)'!BR11) -> 215.0496921 | J59: =MAX(0,'thermoplastic (90 mil)'!BS11) -> 0 | K59: 90 mil | L59: =MAX(0,'thermoplastic (90 mil)'!BT11) -> 2604.76902 | M59: =MAX(0,'thermoplastic (90 mil)'!BU11) -> 5105.020481 | N59: =MAX(0,'thermoplastic (90 mil)'!BV11) -> 7506.921382 | O59: =MAX(0,'thermoplastic (90 mil)'!BW11) -> 9816.162901 | P59: =MAX(0,'thermoplastic (90 mil)'!BX11) -> 8245.171666 | Q59: =MAX(0,'thermoplastic (90 mil)'!BY11) -> 0
B60: AC | C60: Yellow Edge | D60: 90 mil | E60: =MAX(0,'thermoplastic (90 mil)'!BN12) -> 1157.500166 | F60: =MAX(0,'thermoplastic (90 mil)'!BO12) -> 2255.129616 | G60: =MAX(0,'thermoplastic (90 mil)'!BP12) -> 1568.336263 | H60: =MAX(0,'thermoplastic (90 mil)'!BQ12) -> 688.4539036 | I60: =MAX(0,'thermoplastic (90 mil)'!BR12) -> 210.0100874 | J60: =MAX(0,'thermoplastic (90 mil)'!BS12) -> 0 | K60: 90 mil | L60: =MAX(0,'thermoplastic (90 mil)'!BT12) -> 878.1395244 | M60: =MAX(0,'thermoplastic (90 mil)'!BU12) -> 1744.239996 | N60: =MAX(0,'thermoplastic (90 mil)'!BV12) -> 2598.547308 | O60: =MAX(0,'thermoplastic (90 mil)'!BW12) -> 3441.300702 | P60: =MAX(0,'thermoplastic (90 mil)'!BX12) -> 3673.025743 | Q60: =MAX(0,'thermoplastic (90 mil)'!BY12) -> 0
C61: White Edge | D61: 90 mil | E61: =MAX(0,'thermoplastic (90 mil)'!BN13) -> 1157.500166 | F61: =MAX(0,'thermoplastic (90 mil)'!BO13) -> 2255.129616 | G61: =MAX(0,'thermoplastic (90 mil)'!BP13) -> 1568.336263 | H61: =MAX(0,'thermoplastic (90 mil)'!BQ13) -> 688.4539036 | I61: =MAX(0,'thermoplastic (90 mil)'!BR13) -> 210.0100874 | J61: =MAX(0,'thermoplastic (90 mil)'!BS13) -> 0 | K61: 90 mil | L61: =MAX(0,'thermoplastic (90 mil)'!BT13) -> 878.1395244 | M61: =MAX(0,'thermoplastic (90 mil)'!BU13) -> 1744.239996 | N61: =MAX(0,'thermoplastic (90 mil)'!BV13) -> 2598.547308 | O61: =MAX(0,'thermoplastic (90 mil)'!BW13) -> 3441.300702 | P61: =MAX(0,'thermoplastic (90 mil)'!BX13) -> 3673.025743 | Q61: =MAX(0,'thermoplastic (90 mil)'!BY13) -> 0
C62: White Lane | D62: 90 mil | E62: =MAX(0,'thermoplastic (90 mil)'!BN14) -> 3268.072523 | F62: =MAX(0,'thermoplastic (90 mil)'!BO14) -> 6080.3768 | G62: =MAX(0,'thermoplastic (90 mil)'!BP14) -> 2214.160892 | H62: =MAX(0,'thermoplastic (90 mil)'!BQ14) -> 761.588478 | I62: =MAX(0,'thermoplastic (90 mil)'!BR14) -> 215.0496921 | J62: =MAX(0,'thermoplastic (90 mil)'!BS14) -> 0 | K62: 90 mil | L62: =MAX(0,'thermoplastic (90 mil)'!BT14) -> 2604.76902 | M62: =MAX(0,'thermoplastic (90 mil)'!BU14) -> 5105.020481 | N62: =MAX(0,'thermoplastic (90 mil)'!BV14) -> 7506.921382 | O62: =MAX(0,'thermoplastic (90 mil)'!BW14) -> 9816.162901 | P62: =MAX(0,'thermoplastic (90 mil)'!BX14) -> 8245.171666 | Q62: =MAX(0,'thermoplastic (90 mil)'!BY14) -> 0
A63: Tape | B63: PCC | C63: Yellow Edge | D63: tape | E63: =MAX(0,tape!BN9) -> 359.0753543 | F63: =MAX(0,tape!BO9) -> 712.2844535 | G63: =MAX(0,tape!BP9) -> 782.5021893 | H63: =MAX(0,tape!BQ9) -> 517.3894397 | I63: =MAX(0,tape!BR9) -> 194.3303713 | J63: =MAX(0,tape!BS9) -> 0 | K63: tape | L63: =MAX(0,tape!BT9) -> 267.5391153 | M63: =MAX(0,tape!BU9) -> 533.9553985 | N63: =MAX(0,tape!BV9) -> 799.2559034 | O63: =MAX(0,tape!BW9) -> 1063.447625 | P63: =MAX(0,tape!BX9) -> 1262.538423 | Q63: =MAX(0,tape!BY9) -> 0
C64: White Edge | D64: tape | E64: =MAX(0,tape!BN10) -> 359.0753543 | F64: =MAX(0,tape!BO10) -> 712.2844535 | G64: =MAX(0,tape!BP10) -> 782.5021893 | H64: =MAX(0,tape!BQ10) -> 517.3894397 | I64: =MAX(0,tape!BR10) -> 194.3303713 | J64: =MAX(0,tape!BS10) -> 0 | K64: tape | L64: =MAX(0,tape!BT10) -> 267.5391153 | M64: =MAX(0,tape!BU10) -> 533.9553985 | N64: =MAX(0,tape!BV10) -> 799.2559034 | O64: =MAX(0,tape!BW10) -> 1063.447625 | P64: =MAX(0,tape!BX10) -> 1262.538423 | Q64: =MAX(0,tape!BY10) -> 0
C65: White Lane | D65: tape | E65: =MAX(0,tape!BN11) -> 745.739537 | F65: =MAX(0,tape!BO11) -> 1466.397161 | G65: =MAX(0,tape!BP11) -> 1255.295733 | H65: =MAX(0,tape!BQ11) -> 636.2193 | I65: =MAX(0,tape!BR11) -> 205.8850159 | J65: =MAX(0,tape!BS11) -> 0 | K65: tape | L65: =MAX(0,tape!BT11) -> 560.4906131 | M65: =MAX(0,tape!BU11) -> 1116.064453 | N65: =MAX(0,tape!BV11) -> 1666.785934 | O65: =MAX(0,tape!BW11) -> 2212.718351 | P65: =MAX(0,tape!BX11) -> 2491.708203 | Q65: =MAX(0,tape!BY11) -> 0
B66: AC | C66: Yellow Edge | D66: tape | E66: =MAX(0,tape!BN12) -> 359.0753543 | F66: =MAX(0,tape!BO12) -> 712.2844535 | G66: =MAX(0,tape!BP12) -> 782.5021893 | H66: =MAX(0,tape!BQ12) -> 517.3894397 | I66: =MAX(0,tape!BR12) -> 194.3303713 | J66: =MAX(0,tape!BS12) -> 0 | K66: tape | L66: =MAX(0,tape!BT12) -> 267.5391153 | M66: =MAX(0,tape!BU12) -> 533.9553985 | N66: =MAX(0,tape!BV12) -> 799.2559034 | O66: =MAX(0,tape!BW12) -> 1063.447625 | P66: =MAX(0,tape!BX12) -> 1262.538423 | Q66: =MAX(0,tape!BY12) -> 0
C67: White Edge | D67: tape | E67: =MAX(0,tape!BN13) -> 359.0753543 | F67: =MAX(0,tape!BO13) -> 712.2844535 | G67: =MAX(0,tape!BP13) -> 782.5021893 | H67: =MAX(0,tape!BQ13) -> 517.3894397 | I67: =MAX(0,tape!BR13) -> 194.3303713 | J67: =MAX(0,tape!BS13) -> 0 | K67: tape | L67: =MAX(0,tape!BT13) -> 267.5391153 | M67: =MAX(0,tape!BU13) -> 533.9553985 | N67: =MAX(0,tape!BV13) -> 799.2559034 | O67: =MAX(0,tape!BW13) -> 1063.447625 | P67: =MAX(0,tape!BX13) -> 1262.538423 | Q67: =MAX(0,tape!BY13) -> 0
C68: White Lane | D68: tape | E68: =MAX(0,tape!BN14) -> 745.739537 | F68: =MAX(0,tape!BO14) -> 1466.397161 | G68: =MAX(0,tape!BP14) -> 1255.295733 | H68: =MAX(0,tape!BQ14) -> 636.2193 | I68: =MAX(0,tape!BR14) -> 205.8850159 | J68: =MAX(0,tape!BS14) -> 0 | K68: tape | L68: =MAX(0,tape!BT14) -> 560.4906131 | M68: =MAX(0,tape!BU14) -> 1116.064453 | N68: =MAX(0,tape!BV14) -> 1666.785934 | O68: =MAX(0,tape!BW14) -> 2212.718351 | P68: =MAX(0,tape!BX14) -> 2491.708203 | Q68: =MAX(0,tape!BY14) -> 0
A69: Inverted | B69: PCC | C69: Yellow Edge | D69: inverted | E69: =MAX(0,inverted!BN9) -> 549.4473006 | F69: =MAX(0,inverted!BO9) -> 1085.218413 | G69: =MAX(0,inverted!BP9) -> 1045.684168 | H69: =MAX(0,inverted!BQ9) -> 591.1737494 | I69: =MAX(0,inverted!BR9) -> 201.9022408 | J69: =MAX(0,inverted!BS9) -> 0 | K69: inverted | L69: =MAX(0,inverted!BT9) -> 411.1349825 | M69: =MAX(0,inverted!BU9) -> 819.6213415 | N69: =MAX(0,inverted!BV9) -> 1225.484589 | O69: =MAX(0,inverted!BW9) -> 1628.749912 | P69: =MAX(0,inverted!BX9) -> 1883.384229 | Q69: =MAX(0,inverted!BY9) -> 0
C70: White Edge | D70: inverted | E70: =MAX(0,inverted!BN10) -> 549.4473006 | F70: =MAX(0,inverted!BO10) -> 1085.218413 | G70: =MAX(0,inverted!BP10) -> 1045.684168 | H70: =MAX(0,inverted!BQ10) -> 479.1427971 | I70: =MAX(0,inverted!BR10) -> 85.06939445 | J70: =MAX(0,inverted!BS10) -> 0 | K70: inverted | L70: =MAX(0,inverted!BT10) -> 411.1349825 | M70: =MAX(0,inverted!BU10) -> 819.6213415 | N70: =MAX(0,inverted!BV10) -> 1225.484589 | O70: =MAX(0,inverted!BW10) -> 1320.092087 | P70: =MAX(0,inverted!BX10) -> 793.5442185 | Q70: =MAX(0,inverted!BY10) -> 0
C71: White Lane | D71: inverted | E71: =MAX(0,inverted!BN11) -> 1136.478884 | F71: =MAX(0,inverted!BO11) -> 2215.2148 | G71: =MAX(0,inverted!BP11) -> 1555.342921 | H71: =MAX(0,inverted!BQ11) -> 556.4573163 | I71: =MAX(0,inverted!BR11) -> 88.42619971 | J71: =MAX(0,inverted!BS11) -> 0 | K71: inverted | L71: =MAX(0,inverted!BT11) -> 861.7783382 | M71: =MAX(0,inverted!BU11) -> 1711.960578 | N71: =MAX(0,inverted!BV11) -> 2550.779212 | O71: =MAX(0,inverted!BW11) -> 2738.222127 | P71: =MAX(0,inverted!BX11) -> 1523.3961 | Q71: =MAX(0,inverted!BY11) -> 0
B72: AC | C72: Yellow Edge | D72: inverted | E72: =MAX(0,inverted!BN12) -> 0 | F72: =MAX(0,inverted!BO12) -> 0 | G72: =MAX(0,inverted!BP12) -> 0 | H72: =MAX(0,inverted!BQ12) -> 0 | I72: =MAX(0,inverted!BR12) -> 0 | J72: =MAX(0,inverted!BS12) -> 0 | K72: inverted | L72: =MAX(0,inverted!BT12) -> 0 | M72: =MAX(0,inverted!BU12) -> 0 | N72: =MAX(0,inverted!BV12) -> 0 | O72: =MAX(0,inverted!BW12) -> 0 | P72: =MAX(0,inverted!BX12) -> 0 | Q72: =MAX(0,inverted!BY12) -> 0
C73: White Edge | D73: inverted | E73: =MAX(0,inverted!BN13) -> 0 | F73: =MAX(0,inverted!BO13) -> 0 | G73: =MAX(0,inverted!BP13) -> 0 | H73: =MAX(0,inverted!BQ13) -> 0 | I73: =MAX(0,inverted!BR13) -> 0 | J73: =MAX(0,inverted!BS13) -> 0 | K73: inverted | L73: =MAX(0,inverted!BT13) -> 0 | M73: =MAX(0,inverted!BU13) -> 0 | N73: =MAX(0,inverted!BV13) -> 0 | O73: =MAX(0,inverted!BW13) -> 0 | P73: =MAX(0,inverted!BX13) -> 0 | Q73: =MAX(0,inverted!BY13) -> 0
C74: White Lane | D74: inverted | E74: =MAX(0,inverted!BN14) -> 0 | F74: =MAX(0,inverted!BO14) -> 0 | G74: =MAX(0,inverted!BP14) -> 0 | H74: =MAX(0,inverted!BQ14) -> 0 | I74: =MAX(0,inverted!BR14) -> 0 | J74: =MAX(0,inverted!BS14) -> 0 | K74: inverted | L74: =MAX(0,inverted!BT14) -> 0 | M74: =MAX(0,inverted!BU14) -> 0 | N74: =MAX(0,inverted!BV14) -> 0 | O74: =MAX(0,inverted!BW14) -> 0 | P74: =MAX(0,inverted!BX14) -> 0 | Q74: =MAX(0,inverted!BY14) -> 0
A98: Marking Type | B98: Pavement Type | C98: Line Type | E98: PM Costs | M98: User Cost
E99: Average Costs | H99: Off-Peak Application | K99: Night Time Application | M99: Off-Peak Application | S99: Night Time Application
E100: Application | F100: Removal | H100: Application | I100: Removal | K100: Application | L100: Removal | M100: 5000 | N100: 10000 | O100: 15000 | P100: 20000 | Q100: 25000 | R100: =IF(Input!$B$33="No","",Input!$B$33) ->  | S100: 5000 | T100: 10000 | U100: 15000 | V100: 20000 | W100: 25000 | X100: =IF(Input!$B$33="No","",Input!$B$33) -> 
A101: Thermo (40 mil) | B101: PCC | C101: Yellow Edge | D101: 40 mil | E101: =Input!$B19 -> 1039 | F101: =Input!$D19 -> 5250 | G101: 40 mil | H101: =E101*(1-Input!$B$23/100) -> 883.15 | I101: =F101*(1-Input!$B$23/100) -> 4462.5 | J101: 40 mil | K101: =E101*(1+Input!$B$24/100) -> 1194.85 | L101: =F101*(1+Input!$B$24/100) -> 6037.5 | M101: =Input!C28 -> 70.52690376 | N101: =Input!C29 -> 127.867459 | O101: =Input!C30 -> 2692.837721 | P101: =Input!C31 -> 12436.00075 | Q101: =Input!C32 -> 57431.65041 | R101: =Input!C33 ->  | S101: =Input!D28 -> 20.228 | T101: =Input!D29 -> 39.878 | U101: =Input!D30 -> 59.528 | V101: =Input!D31 -> 79.178 | W101: =Input!D32 -> 576.4887808 | X101: =Input!D33 -> 
C102: White Edge | D102: 40 mil | E102: =Input!$B19 -> 1039 | F102: =Input!$D19 -> 5250 | G102: 40 mil | H102: =E102*(1-Input!$B$23/100) -> 883.15 | I102: =F102*(1-Input!$B$23/100) -> 4462.5 | J102: 40 mil | K102: =E102*(1+Input!$B$24/100) -> 1194.85 | L102: =F102*(1+Input!$B$24/100) -> 6037.5
C103: White Lane | D103: 40 mil | E103: =Input!$C19 -> 391 | F103: =Input!$E19 -> 5250 | G103: 40 mil | H103: =E103*(1-Input!$B$23/100) -> 332.35 | I103: =F103*(1-Input!$B$23/100) -> 4462.5 | J103: 40 mil | K103: =E103*(1+Input!$B$24/100) -> 449.65 | L103: =F103*(1+Input!$B$24/100) -> 6037.5
B104: AC | C104: Yellow Edge | D104: 40 mil | E104: =Input!$B19 -> 1039 | F104: =Input!$D19 -> 5250 | G104: 40 mil | H104: =E104*(1-Input!$B$23/100) -> 883.15 | I104: =F104*(1-Input!$B$23/100) -> 4462.5 | J104: 40 mil | K104: =E104*(1+Input!$B$24/100) -> 1194.85 | L104: =F104*(1+Input!$B$24/100) -> 6037.5
C105: White Edge | D105: 40 mil | E105: =Input!$B19 -> 1039 | F105: =Input!$D19 -> 5250 | G105: 40 mil | H105: =E105*(1-Input!$B$23/100) -> 883.15 | I105: =F105*(1-Input!$B$23/100) -> 4462.5 | J105: 40 mil | K105: =E105*(1+Input!$B$24/100) -> 1194.85 | L105: =F105*(1+Input!$B$24/100) -> 6037.5
C106: White Lane | D106: 40 mil | E106: =Input!$C19 -> 391 | F106: =Input!$E19 -> 5250 | G106: 40 mil | H106: =E106*(1-Input!$B$23/100) -> 332.35 | I106: =F106*(1-Input!$B$23/100) -> 4462.5 | J106: 40 mil | K106: =E106*(1+Input!$B$24/100) -> 449.65 | L106: =F106*(1+Input!$B$24/100) -> 6037.5
A107: Thermo (90 mil) | B107: PCC | C107: Yellow Edge | D107: 90 mil | E107: =Input!$B20 -> 2458 | F107: =Input!$D20 -> 5250 | G107: 90 mil | H107: =E107*(1-Input!$B$23/100) -> 2089.3 | I107: =F107*(1-Input!$B$23/100) -> 4462.5 | J107: 90 mil | K107: =E107*(1+Input!$B$24/100) -> 2826.7 | L107: =F107*(1+Input!$B$24/100) -> 6037.5
C108: White Edge | D108: 90 mil | E108: =Input!$B20 -> 2458 | F108: =Input!$D20 -> 5250 | G108: 90 mil | H108: =E108*(1-Input!$B$23/100) -> 2089.3 | I108: =F108*(1-Input!$B$23/100) -> 4462.5 | J108: 90 mil | K108: =E108*(1+Input!$B$24/100) -> 2826.7 | L108: =F108*(1+Input!$B$24/100) -> 6037.5
C109: White Lane | D109: 90 mil | E109: =Input!$C20 -> 817 | F109: =Input!$E20 -> 5250 | G109: 90 mil | H109: =E109*(1-Input!$B$23/100) -> 694.45 | I109: =F109*(1-Input!$B$23/100) -> 4462.5 | J109: 90 mil | K109: =E109*(1+Input!$B$24/100) -> 939.55 | L109: =F109*(1+Input!$B$24/100) -> 6037.5
B110: AC | C110: Yellow Edge | D110: 90 mil | E110: =Input!$B20 -> 2458 | F110: =Input!$D20 -> 5250 | G110: 90 mil | H110: =E110*(1-Input!$B$23/100) -> 2089.3 | I110: =F110*(1-Input!$B$23/100) -> 4462.5 | J110: 90 mil | K110: =E110*(1+Input!$B$24/100) -> 2826.7 | L110: =F110*(1+Input!$B$24/100) -> 6037.5
C111: White Edge | D111: 90 mil | E111: =Input!$B20 -> 2458 | F111: =Input!$D20 -> 5250 | G111: 90 mil | H111: =E111*(1-Input!$B$23/100) -> 2089.3 | I111: =F111*(1-Input!$B$23/100) -> 4462.5 | J111: 90 mil | K111: =E111*(1+Input!$B$24/100) -> 2826.7 | L111: =F111*(1+Input!$B$24/100) -> 6037.5
C112: White Lane | D112: 90 mil | E112: =Input!$C20 -> 817 | F112: =Input!$E20 -> 5250 | G112: 90 mil | H112: =E112*(1-Input!$B$23/100) -> 694.45 | I112: =F112*(1-Input!$B$23/100) -> 4462.5 | J112: 90 mil | K112: =E112*(1+Input!$B$24/100) -> 939.55 | L112: =F112*(1+Input!$B$24/100) -> 6037.5
A113: Tape | B113: PCC | C113: Yellow Edge | D113: tape | E113: =Input!$B21 -> 8108 | F113: =Input!$D21 -> 5250 | G113: tape | H113: =E113*(1-Input!$B$23/100) -> 6891.8 | I113: =F113*(1-Input!$B$23/100) -> 4462.5 | J113: tape | K113: =E113*(1+Input!$B$24/100) -> 9324.2 | L113: =F113*(1+Input!$B$24/100) -> 6037.5
C114: White Edge | D114: tape | E114: =Input!$B21 -> 8108 | F114: =Input!$D21 -> 5250 | G114: tape | H114: =E114*(1-Input!$B$23/100) -> 6891.8 | I114: =F114*(1-Input!$B$23/100) -> 4462.5 | J114: tape | K114: =E114*(1+Input!$B$24/100) -> 9324.2 | L114: =F114*(1+Input!$B$24/100) -> 6037.5
C115: White Lane | D115: tape | E115: =Input!$C21 -> 3861 | F115: =Input!$E21 -> 5250 | G115: tape | H115: =E115*(1-Input!$B$23/100) -> 3281.85 | I115: =F115*(1-Input!$B$23/100) -> 4462.5 | J115: tape | K115: =E115*(1+Input!$B$24/100) -> 4440.15 | L115: =F115*(1+Input!$B$24/100) -> 6037.5
B116: AC | C116: Yellow Edge | D116: tape | E116: =Input!$B21 -> 8108 | F116: =Input!$D21 -> 5250 | G116: tape | H116: =E116*(1-Input!$B$23/100) -> 6891.8 | I116: =F116*(1-Input!$B$23/100) -> 4462.5 | J116: tape | K116: =E116*(1+Input!$B$24/100) -> 9324.2 | L116: =F116*(1+Input!$B$24/100) -> 6037.5
C117: White Edge | D117: tape | E117: =Input!$B21 -> 8108 | F117: =Input!$D21 -> 5250 | G117: tape | H117: =E117*(1-Input!$B$23/100) -> 6891.8 | I117: =F117*(1-Input!$B$23/100) -> 4462.5 | J117: tape | K117: =E117*(1+Input!$B$24/100) -> 9324.2 | L117: =F117*(1+Input!$B$24/100) -> 6037.5
C118: White Lane | D118: tape | E118: =Input!$C21 -> 3861 | F118: =Input!$E21 -> 5250 | G118: tape | H118: =E118*(1-Input!$B$23/100) -> 3281.85 | I118: =F118*(1-Input!$B$23/100) -> 4462.5 | J118: tape | K118: =E118*(1+Input!$B$24/100) -> 4440.15 | L118: =F118*(1+Input!$B$24/100) -> 6037.5
A119: Inverted | B119: PCC | C119: Yellow Edge | D119: inverted | E119: =Input!$B22 -> 5270 | F119: =Input!$D22 -> 5250 | G119: inverted | H119: =E119*(1-Input!$B$23/100) -> 4479.5 | I119: =F119*(1-Input!$B$23/100) -> 4462.5 | J119: inverted | K119: =E119*(1+Input!$B$24/100) -> 6060.5 | L119: =F119*(1+Input!$B$24/100) -> 6037.5
C120: White Edge | D120: inverted | E120: =Input!$B22 -> 5270 | F120: =Input!$D22 -> 5250 | G120: inverted | H120: =E120*(1-Input!$B$23/100) -> 4479.5 | I120: =F120*(1-Input!$B$23/100) -> 4462.5 | J120: inverted | K120: =E120*(1+Input!$B$24/100) -> 6060.5 | L120: =F120*(1+Input!$B$24/100) -> 6037.5
C121: White Lane | D121: inverted | E121: =Input!$C22 -> 2505 | F121: =Input!$E22 -> 5250 | G121: inverted | H121: =E121*(1-Input!$B$23/100) -> 2129.25 | I121: =F121*(1-Input!$B$23/100) -> 4462.5 | J121: inverted | K121: =E121*(1+Input!$B$24/100) -> 2880.75 | L121: =F121*(1+Input!$B$24/100) -> 6037.5
B122: AC | C122: Yellow Edge | D122: inverted | G122: inverted | J122: inverted
C123: White Edge | D123: inverted | G123: inverted | J123: inverted
C124: White Lane | D124: inverted | G124: inverted | J124: inverted
A162: Marking Type | B162: Pavement Type | C162: Line Type
E163: Utility | L163: Marking Service Life (month retro reaches 100)
E164: 5000 | F164: 10000 | G164: 15000 | H164: 20000 | I164: 25000 | J164: =IF(Input!$B$33="No","",Input!$B$33) ->  | L164: 5000 | M164: 10000 | N164: 15000 | O164: 20000 | P164: 25000 | Q164: =IF(Input!$B$33="No","",Input!$B$33) -> 
A165: Thermo (40 mil) | B165: PCC | C165: Yellow Edge | D165: 40 mil | E165: ='thermoplastic (40 mil)'!CA9 -> 2500000 | F165: ='thermoplastic (40 mil)'!CB9 -> 4970052.01 | G165: ='thermoplastic (40 mil)'!CC9 -> 7289493.689 | H165: ='thermoplastic (40 mil)'!CD9 -> 9435025.656 | I165: ='thermoplastic (40 mil)'!CE9 -> 11408928.35 | J165: ='thermoplastic (40 mil)'!CF9 -> 0 | K165: 40 mil | L165: ='thermoplastic (40 mil)'!AZ10 -> 48.45746478 | M165: ='thermoplastic (40 mil)'!BA10 -> 31.98742659 | N165: ='thermoplastic (40 mil)'!BB10 -> 23.87323594 | O165: ='thermoplastic (40 mil)'!BC10 -> 19.04270787 | P165: ='thermoplastic (40 mil)'!BD10 -> 15.83802938 | Q165: ='thermoplastic (40 mil)'!BE10 -> 0
C166: White Edge | D166: 40 mil | E166: ='thermoplastic (40 mil)'!CA10 -> 2500000 | F166: ='thermoplastic (40 mil)'!CB10 -> 5000000 | G166: ='thermoplastic (40 mil)'!CC10 -> 7500000 | H166: ='thermoplastic (40 mil)'!CD10 -> 10000000 | I166: ='thermoplastic (40 mil)'!CE10 -> 12500000 | J166: ='thermoplastic (40 mil)'!CF10 -> 0 | K166: 40 mil | L166: ='thermoplastic (40 mil)'!AZ9 -> 74.905116 | M166: ='thermoplastic (40 mil)'!BA9 -> 49.44587815 | N166: ='thermoplastic (40 mil)'!BB9 -> 36.90303476 | O166: ='thermoplastic (40 mil)'!BC9 -> 29.43604764 | P166: ='thermoplastic (40 mil)'!BD9 -> 24.48228428 | Q166: ='thermoplastic (40 mil)'!BE9 -> 0
C167: White Lane | D167: 40 mil | E167: ='thermoplastic (40 mil)'!CA11 -> 2500000 | F167: ='thermoplastic (40 mil)'!CB11 -> 5000000 | G167: ='thermoplastic (40 mil)'!CC11 -> 7500000 | H167: ='thermoplastic (40 mil)'!CD11 -> 10000000 | I167: ='thermoplastic (40 mil)'!CE11 -> 12500000 | J167: ='thermoplastic (40 mil)'!CF11 -> 0 | K167: 40 mil | L167: ='thermoplastic (40 mil)'!AZ9 -> 74.905116 | M167: ='thermoplastic (40 mil)'!BA9 -> 49.44587815 | N167: ='thermoplastic (40 mil)'!BB9 -> 36.90303476 | O167: ='thermoplastic (40 mil)'!BC9 -> 29.43604764 | P167: ='thermoplastic (40 mil)'!BD9 -> 24.48228428 | Q167: ='thermoplastic (40 mil)'!BE9 -> 0
B168: AC | C168: Yellow Edge | D168: 40 mil | E168: ='thermoplastic (40 mil)'!CA12 -> 2500000 | F168: ='thermoplastic (40 mil)'!CB12 -> 4431623.702 | G168: ='thermoplastic (40 mil)'!CC12 -> 4181815.181 | H168: ='thermoplastic (40 mil)'!CD12 -> 2861205.402 | I168: ='thermoplastic (40 mil)'!CE12 -> 774687.1289 | J168: ='thermoplastic (40 mil)'!CF12 -> 0 | K168: 40 mil | L168: ='thermoplastic (40 mil)'!AZ12 -> 52.51695842 | M168: ='thermoplastic (40 mil)'!BA12 -> 40.91089782 | N168: ='thermoplastic (40 mil)'!BB12 -> 29.30483721 | O168: ='thermoplastic (40 mil)'!BC12 -> 17.69877661 | P168: ='thermoplastic (40 mil)'!BD12 -> 6.092716001 | Q168: ='thermoplastic (40 mil)'!BE12 -> 0
C169: White Edge | D169: 40 mil | E169: ='thermoplastic (40 mil)'!CA13 -> 2500000 | F169: ='thermoplastic (40 mil)'!CB13 -> 5000000 | G169: ='thermoplastic (40 mil)'!CC13 -> 7500000 | H169: ='thermoplastic (40 mil)'!CD13 -> 9670632.402 | I169: ='thermoplastic (40 mil)'!CE13 -> 7922944.484 | J169: ='thermoplastic (40 mil)'!CF13 -> 0 | K169: 40 mil | L169: ='thermoplastic (40 mil)'!AZ11 -> 78.62604933 | M169: ='thermoplastic (40 mil)'!BA11 -> 67.01998873 | N169: ='thermoplastic (40 mil)'!BB11 -> 55.41392812 | O169: ='thermoplastic (40 mil)'!BC11 -> 43.80786752 | P169: ='thermoplastic (40 mil)'!BD11 -> 32.20180691 | Q169: ='thermoplastic (40 mil)'!BE11 -> 0
C170: White Lane | D170: 40 mil | E170: ='thermoplastic (40 mil)'!CA14 -> 2500000 | F170: ='thermoplastic (40 mil)'!CB14 -> 5000000 | G170: ='thermoplastic (40 mil)'!CC14 -> 7500000 | H170: ='thermoplastic (40 mil)'!CD14 -> 9670632.402 | I170: ='thermoplastic (40 mil)'!CE14 -> 7922944.484 | J170: ='thermoplastic (40 mil)'!CF14 -> 0 | K170: 40 mil | L170: ='thermoplastic (40 mil)'!AZ11 -> 78.62604933 | M170: ='thermoplastic (40 mil)'!BA11 -> 67.01998873 | N170: ='thermoplastic (40 mil)'!BB11 -> 55.41392812 | O170: ='thermoplastic (40 mil)'!BC11 -> 43.80786752 | P170: ='thermoplastic (40 mil)'!BD11 -> 32.20180691 | Q170: ='thermoplastic (40 mil)'!BE11 -> 0
A171: Thermo (90 mil) | B171: PCC | C171: Yellow Edge | D171: 90 mil | E171: ='thermoplastic (90 mil)'!CA9 -> 2500000 | F171: ='thermoplastic (90 mil)'!CB9 -> 5000000 | G171: ='thermoplastic (90 mil)'!CC9 -> 7500000 | H171: ='thermoplastic (90 mil)'!CD9 -> 10000000 | I171: ='thermoplastic (90 mil)'!CE9 -> 12500000 | J171: ='thermoplastic (90 mil)'!CF9 -> 0 | K171: 90 mil | L171: ='thermoplastic (90 mil)'!AZ10 -> 83.42759806 | M171: ='thermoplastic (90 mil)'!BA10 -> 81.44998612 | N171: ='thermoplastic (90 mil)'!BB10 -> 79.47237418 | O171: ='thermoplastic (90 mil)'!BC10 -> 77.49476224 | P171: ='thermoplastic (90 mil)'!BD10 -> 75.5171503 | Q171: ='thermoplastic (90 mil)'!BE10 -> 0
C172: White Edge | D172: 90 mil | E172: ='thermoplastic (90 mil)'!CA10 -> 2500000 | F172: ='thermoplastic (90 mil)'!CB10 -> 5000000 | G172: ='thermoplastic (90 mil)'!CC10 -> 7500000 | H172: ='thermoplastic (90 mil)'!CD10 -> 10000000 | I172: ='thermoplastic (90 mil)'!CE10 -> 12500000 | J172: ='thermoplastic (90 mil)'!CF10 -> 0 | K172: 90 mil | L172: ='thermoplastic (90 mil)'!AZ9 -> 122.4296967 | M172: ='thermoplastic (90 mil)'!BA9 -> 100.9277663 | N172: ='thermoplastic (90 mil)'!BB9 -> 84.97472118 | O172: ='thermoplastic (90 mil)'!BC9 -> 72.66808638 | P172: ='thermoplastic (90 mil)'!BD9 -> 62.88588949 | Q172: ='thermoplastic (90 mil)'!BE9 -> 0
C173: White Lane | D173: 90 mil | E173: ='thermoplastic (90 mil)'!CA11 -> 2500000 | F173: ='thermoplastic (90 mil)'!CB11 -> 5000000 | G173: ='thermoplastic (90 mil)'!CC11 -> 7500000 | H173: ='thermoplastic (90 mil)'!CD11 -> 10000000 | I173: ='thermoplastic (90 mil)'!CE11 -> 12500000 | J173: ='thermoplastic (90 mil)'!CF11 -> 0 | K173: 90 mil | L173: ='thermoplastic (90 mil)'!AZ9 -> 122.4296967 | M173: ='thermoplastic (90 mil)'!BA9 -> 100.9277663 | N173: ='thermoplastic (90 mil)'!BB9 -> 84.97472118 | O173: ='thermoplastic (90 mil)'!BC9 -> 72.66808638 | P173: ='thermoplastic (90 mil)'!BD9 -> 62.88588949 | Q173: ='thermoplastic (90 mil)'!BE9 -> 0
B174: AC | C174: Yellow Edge | D174: 90 mil | E174: ='thermoplastic (90 mil)'!CA12 -> 2500000 | F174: ='thermoplastic (90 mil)'!CB12 -> 5000000 | G174: ='thermoplastic (90 mil)'!CC12 -> 7500000 | H174: ='thermoplastic (90 mil)'!CD12 -> 10000000 | I174: ='thermoplastic (90 mil)'!CE12 -> 12500000 | J174: ='thermoplastic (90 mil)'!CF12 -> 0 | K174: 90 mil | L174: ='thermoplastic (90 mil)'!AZ12 -> 110.8845285 | M174: ='thermoplastic (90 mil)'!BA12 -> 103.5208922 | N174: ='thermoplastic (90 mil)'!BB12 -> 96.15725582 | O174: ='thermoplastic (90 mil)'!BC12 -> 88.79361946 | P174: ='thermoplastic (90 mil)'!BD12 -> 81.42998309 | Q174: ='thermoplastic (90 mil)'!BE12 -> 0
C175: White Edge | D175: 90 mil | E175: ='thermoplastic (90 mil)'!CA13 -> 2500000 | F175: ='thermoplastic (90 mil)'!CB13 -> 5000000 | G175: ='thermoplastic (90 mil)'!CC13 -> 7500000 | H175: ='thermoplastic (90 mil)'!CD13 -> 10000000 | I175: ='thermoplastic (90 mil)'!CE13 -> 12500000 | J175: ='thermoplastic (90 mil)'!CF13 -> 0 | K175: 90 mil | L175: ='thermoplastic (90 mil)'!AZ11 -> 116.001936 | M175: ='thermoplastic (90 mil)'!BA11 -> 107.7876503 | N175: ='thermoplastic (90 mil)'!BB11 -> 99.57336455 | O175: ='thermoplastic (90 mil)'!BC11 -> 91.35907883 | P175: ='thermoplastic (90 mil)'!BD11 -> 83.14479312 | Q175: ='thermoplastic (90 mil)'!BE11 -> 0
C176: White Lane | D176: 90 mil | E176: ='thermoplastic (90 mil)'!CA14 -> 2500000 | F176: ='thermoplastic (90 mil)'!CB14 -> 5000000 | G176: ='thermoplastic (90 mil)'!CC14 -> 7500000 | H176: ='thermoplastic (90 mil)'!CD14 -> 10000000 | I176: ='thermoplastic (90 mil)'!CE14 -> 12500000 | J176: ='thermoplastic (90 mil)'!CF14 -> 0 | K176: 90 mil | L176: ='thermoplastic (90 mil)'!AZ11 -> 116.001936 | M176: ='thermoplastic (90 mil)'!BA11 -> 107.7876503 | N176: ='thermoplastic (90 mil)'!BB11 -> 99.57336455 | O176: ='thermoplastic (90 mil)'!BC11 -> 91.35907883 | P176: ='thermoplastic (90 mil)'!BD11 -> 83.14479312 | Q176: ='thermoplastic (90 mil)'!BE11 -> 0
A177: Tape | B177: PCC | C177: Yellow Edge | D177: tape | E177: =tape!CA9 -> 2500000 | F177: =tape!CB9 -> 5000000 | G177: =tape!CC9 -> 7500000 | H177: =tape!CD9 -> 10000000 | I177: =tape!CE9 -> 12500000 | J177: =tape!CF9 -> 0 | K177: tape | L177: =tape!AZ10 -> 96.77286245 | M177: =tape!BA10 -> 93.7675433 | N177: =tape!BB10 -> 90.76222415 | O177: =tape!BC10 -> 87.756905 | P177: =tape!BD10 -> 84.75158585 | Q177: =tape!BE10 -> 0
C178: White Edge | D178: tape | E178: =tape!CA10 -> 2500000 | F178: =tape!CB10 -> 5000000 | G178: =tape!CC10 -> 7500000 | H178: =tape!CD10 -> 10000000 | I178: =tape!CE10 -> 12500000 | J178: =tape!CF10 -> 0 | K178: tape | L178: =tape!AZ9 -> 119.7622241 | M178: =tape!BA9 -> 116.756905 | N178: =tape!BB9 -> 113.7515859 | O178: =tape!BC9 -> 110.7462667 | P178: =tape!BD9 -> 107.7409476 | Q178: =tape!BE9 -> 0
C179: White Lane | D179: tape | E179: =tape!CA11 -> 2500000 | F179: =tape!CB11 -> 5000000 | G179: =tape!CC11 -> 7500000 | H179: =tape!CD11 -> 10000000 | I179: =tape!CE11 -> 12500000 | J179: =tape!CF11 -> 0 | K179: tape | L179: =tape!AZ9 -> 119.7622241 | M179: =tape!BA9 -> 116.756905 | N179: =tape!BB9 -> 113.7515859 | O179: =tape!BC9 -> 110.7462667 | P179: =tape!BD9 -> 107.7409476 | Q179: =tape!BE9 -> 0
B180: AC | C180: Yellow Edge | D180: tape | E180: =tape!CA12 -> 2500000 | F180: =tape!CB12 -> 5000000 | G180: =tape!CC12 -> 7500000 | H180: =tape!CD12 -> 10000000 | I180: =tape!CE12 -> 12500000 | J180: =tape!CF12 -> 0 | K180: tape | L180: =tape!AZ12 -> 61.47879158 | M180: =tape!BA12 -> 54.21613335 | N180: =tape!BB12 -> 46.95347513 | O180: =tape!BC12 -> 39.6908169 | P180: =tape!BD12 -> 32.42815867 | Q180: =tape!BE12 -> 0
C181: White Edge | D181: tape | E181: =tape!CA13 -> 2500000 | F181: =tape!CB13 -> 5000000 | G181: =tape!CC13 -> 7500000 | H181: =tape!CD13 -> 10000000 | I181: =tape!CE13 -> 12500000 | J181: =tape!CF13 -> 0 | K181: tape | L181: =tape!AZ11 -> 75.11170298 | M181: =tape!BA11 -> 67.84904475 | N181: =tape!BB11 -> 60.58638652 | O181: =tape!BC11 -> 53.32372829 | P181: =tape!BD11 -> 46.06107006 | Q181: =tape!BE11 -> 0
C182: White Lane | D182: tape | E182: =tape!CA14 -> 2500000 | F182: =tape!CB14 -> 5000000 | G182: =tape!CC14 -> 7500000 | H182: =tape!CD14 -> 10000000 | I182: =tape!CE14 -> 12500000 | J182: =tape!CF14 -> 0 | K182: tape | L182: =tape!AZ11 -> 75.11170298 | M182: =tape!BA11 -> 67.84904475 | N182: =tape!BB11 -> 60.58638652 | O182: =tape!BC11 -> 53.32372829 | P182: =tape!BD11 -> 46.06107006 | Q182: =tape!BE11 -> 0
A183: Inverted | B183: PCC | C183: Yellow Edge | D183: inverted | E183: =inverted!CA9 -> 2500000 | F183: =inverted!CB9 -> 5000000 | G183: =inverted!CC9 -> 7500000 | H183: =inverted!CD9 -> 10000000 | I183: =inverted!CE9 -> 12500000 | J183: =inverted!CF9 -> 0 | K183: inverted | L183: =inverted!AZ10 -> 58.65705164 | M183: =inverted!BA10 -> 58.65705164 | N183: =inverted!BB10 -> 58.65705164 | O183: =inverted!BC10 -> 58.65705164 | P183: =inverted!BD10 -> 58.65705164 | Q183: =inverted!BE10 -> 0
C184: White Edge | D184: inverted | E184: =inverted!CA10 -> 2500000 | F184: =inverted!CB10 -> 5000000 | G184: =inverted!CC10 -> 7500000 | H184: =inverted!CD10 -> 8104940.343 | I184: =inverted!CE10 -> 5266744.075 | J184: =inverted!CF10 -> 0 | K184: inverted | L184: =inverted!AZ9 -> 104.7542491 | M184: =inverted!BA9 -> 85.99455923 | N184: =inverted!BB9 -> 67.2348693 | O184: =inverted!BC9 -> 48.47517938 | P184: =inverted!BD9 -> 29.71548946 | Q184: =inverted!BE9 -> 0
C185: White Lane | D185: inverted | E185: =inverted!CA11 -> 2500000 | F185: =inverted!CB11 -> 5000000 | G185: =inverted!CC11 -> 7500000 | H185: =inverted!CD11 -> 8104940.343 | I185: =inverted!CE11 -> 5266744.075 | J185: =inverted!CF11 -> 0 | K185: inverted | L185: =inverted!AZ9 -> 104.7542491 | M185: =inverted!BA9 -> 85.99455923 | N185: =inverted!BB9 -> 67.2348693 | O185: =inverted!BC9 -> 48.47517938 | P185: =inverted!BD9 -> 29.71548946 | Q185: =inverted!BE9 -> 0
B186: AC | C186: Yellow Edge | D186: inverted | E186: =inverted!CA12 -> 0 | F186: =inverted!CB12 -> 0 | G186: =inverted!CC12 -> 0 | H186: =inverted!CD12 -> 0 | I186: =inverted!CE12 -> 0 | J186: =inverted!CF12 -> 0 | K186: inverted | L186: =inverted!AZ12 -> 0 | M186: =inverted!BA12 -> 0 | N186: =inverted!BB12 -> 0 | O186: =inverted!BC12 -> 0 | P186: =inverted!BD12 -> 0 | Q186: =inverted!BE12 -> 0
C187: White Edge | D187: inverted | E187: =inverted!CA13 -> 0 | F187: =inverted!CB13 -> 0 | G187: =inverted!CC13 -> 0 | H187: =inverted!CD13 -> 0 | I187: =inverted!CE13 -> 0 | J187: =inverted!CF13 -> 0 | K187: inverted | L187: =inverted!AZ11 -> 0 | M187: =inverted!BA11 -> 0 | N187: =inverted!BB11 -> 0 | O187: =inverted!BC11 -> 0 | P187: =inverted!BD11 -> 0 | Q187: =inverted!BE11 -> 0
C188: White Lane | D188: inverted | E188: =inverted!CA14 -> 0 | F188: =inverted!CB14 -> 0 | G188: =inverted!CC14 -> 0 | H188: =inverted!CD14 -> 0 | I188: =inverted!CE14 -> 0 | J188: =inverted!CF14 -> 0 | K188: inverted | L188: =inverted!AZ11 -> 0 | M188: =inverted!BA11 -> 0 | N188: =inverted!BB11 -> 0 | O188: =inverted!BC11 -> 0 | P188: =inverted!BD11 -> 0 | Q188: =inverted!BE11 -> 0
A191: PCC Utility | F191: AC Utility | L191: PCC PM Service Life | S191: AC PM Service Life

Sheet tape (hidden)
A1: Input Values | B1: Marking Material Type | C1: Material | D1: Tape
B2: Marking Color | C2: Color
B3: Initial Retroreflectivity | C3: R(initial)
B4: Retroreflectivity Decay Rate | C4: R(decay)
B5: Minimum Effective Retroreflectivity (white) | C5: R(min) (white) | D5: =Input!B10 -> 100 | AV5: use this as criteria
B6: Minimum Effective Retroreflectivity (yellow) | C6: R(min) (yellow) | D6: =Input!B11 -> 100 | AR6: Cost | AV6: Life Time Utility/Cost | AZ6: Expected PM Life Time | BJ6: Application Type | BK6: Pavement Type | BL6: Line Type | BM6: utility /cost | BN6: Off-Peak Application | BT6: Night Time Application | BZ6: Utility
B7: Maximum Effectove Retroreflectivity | C7: R(max) | D7: =Input!B12 -> 200 | U7: Material | V7: Pavement | W7: Color | X7: Initial Retro | Y7: Month (R=min) | Z7: Month (R=max) | AA7: Retro [M(max)] | AB7: utility has 5 scenarios, now identify them | AG7: Utility has 5 equations based on the values of M(s), M(max), ,M(min), and initial retro value | AM7: Simplified Kansas Utility | AQ7: Over Estimate Utility | AR7: New Stripe | AT7: Restripe | AV7: New Stripe | AX7: Restripe | AZ7: ADT Per Lane | BE7: User Specify | BN7: ADT Per Lane | BS7: User Specify | BT7: ADT Per Lane | BY7: User Specify | BZ7: Utility | CA7: ADT Per Lane
B8: Maximum Pavement Remaining Service Life in Month | C8: M(max) | D8: =Input!B13 -> 100 | AB8: test cases 1, 2, 3 | AC8: test cases 4, 5 | AD8: for cases 1, 2, 3 | AE8: for cases 4, 5 | AF8: final case | AG8: case 1 | AH8: case 2 | AI8: case 3 | AJ8: case 4 | AK8: case 5 | AL8: final utililty | AM8: Average Retro | AN8: Average Useful Retro | AO8: Service Years | AP8: Utility | AR8: Solid | AS8: Dash | AT8: Solid | AU8: Dash | AV8: Solid | AW8: Dash | AX8: Solid | AY8: Dash | AZ8: 5000 | BA8: 10000 | BB8: 15000 | BC8: 20000 | BD8: 25000 | BE8: =Input!B33 -> No | BN8: 5000 | BO8: 10000 | BP8: 15000 | BQ8: 20000 | BR8: 25000 | BS8: =Input!B33 -> No | BT8: 5000 | BU8: 10000 | BV8: 15000 | BW8: 20000 | BX8: 25000 | BY8: =Input!B33 -> No | CA8: 5000 | CB8: 10000 | CC8: 15000 | CD8: 20000 | CE8: 25000 | CF8: =Input!B33 -> No
B9: ADT Per Lane | C9: ADT | D9: No | E9: average costs | F9: % less for off-peak | G9: % more for night time | U9: Tape | V9: PCC | W9: White | X9: =EXP(6.9132)*EXP(-0.0113*D9/1000) ->  | Y9: =(LN($D$5)-6.9132+0.0113*$D$9/1000)/(-0.0188) ->  | Z9: =(LN($D$7)-6.9132+0.0113*$D$9/1000)/(-0.0188) ->  | AA9: =EXP(6.9132-0.0113*$D$9/1000-0.0188*$D$8) ->  | AB9: =IF(Z9>=0, "cases 1, 2, 3","") ->  | AC9: =IF(Z9<0, "cases 4, 5","") ->  | AD9: =IF(AB9="","",IF($D$8<=Z9,1,IF($D$8>=Y9,3,2))) ->  | AE9: =IF(AC9="","",IF($D$8<Y9,4,5)) ->  | AF9: =IF(AD9<>"",AD9,AE9) ->  | AG9: =IF(AF9=1,($D$7-$D$5)*$D$8*$D$9,"") ->  | AH9: =IF(AF9=2,(($D$7-$D$5)*Z9+0.5*(AA9-$D$5+$D$7-$D$5)*($D$8-Z9))*$D$9,"") ->  | AI9: =IF(AF9=3,(($D$7-$D$5)*Z9+0.5*($D$7-$D$5)*(Y9-Z9))*$D$9,"") ->  | AJ9: =IF(AF9=4,0.5*$D$8*(X9-$D$5+AA9-$D$5)*$D$9,"") ->  | AK9: =IF(AF9=5,0.5*Y9*(X9-$D$5)*$D$9,"") ->  | AL9: =IF(AG9<>"",AG9,IF(AH9<>"",AH9,IF(AI9<>"",AI9,IF(AJ9<>"",AJ9,IF(AK9<>"",AK9))))) ->  | AM9: =($D$5+X9)/2 ->  | AN9: =AM9-$D$5 ->  | AO9: =MIN(Y9,$D$8) ->  | AP9: =AN9*AO9*$D$9 ->  | AQ9: =AP9/AL9 ->  | AR9: =($D$11+$D$10) ->  | AS9: =($D$12+$D$10) ->  | AT9: =($D$10+$D$11+$D$13) ->  | AU9: =($D$10+$D$12+$D$14) ->  | AV9: =$AL9/AR9 ->  | AZ9: 119.7622241 | BA9: 116.756905 | BB9: 113.7515859 | BC9: 110.7462667 | BD9: 107.7409476 | BJ9: New Stripe | BK9: PCC | BL9: Yellow Edge | BM9: =AV10 ->  | BN9: 359.0753543 | BO9: 712.2844535 | BP9: 782.5021893 | BQ9: 517.3894397 | BR9: 194.3303713 | BT9: 267.5391153 | BU9: 533.9553985 | BV9: 799.2559034 | BW9: 1063.447625 | BX9: 1262.538423 | BZ9: =AL10 ->  | CA9: 2500000 | CB9: 5000000 | CC9: 7500000 | CD9: 10000000 | CE9: 12500000
B10: User Cost/Mile Due to Application | C10: User Cost | F10: =Input!B23/100 -> 0.15 | G10: =Input!B24/100 -> 0.15 | W10: Yellow | X10: =EXP(6.481)*EXP(-0.0113*D9/1000) ->  | Y10: =(LN($D$6)-6.481+0.0113*$D$9/1000)/(-0.0188) ->  | Z10: =(LN($D$7)-6.481+0.0113*$D$9/1000)/(-0.0188) ->  | AA10: =EXP(6.481-0.0113*$D$9/1000-0.0188*$D$8) ->  | AB10: =IF(Z10>=0, "cases 1, 2, 3","") ->  | AC10: =IF(Z10<0, "cases 4, 5","") ->  | AD10: =IF(AB10="","",IF($D$8<=Z10,1,IF($D$8>=Y10,3,2))) ->  | AE10: =IF(AC10="","",IF($D$8<Y10,4,5)) ->  | AF10: =IF(AD10<>"",AD10,AE10) ->  | AG10: =IF(AF10=1,($D$7-$D$6)*$D$8*$D$9,"") ->  | AH10: =IF(AF10=2,(($D$7-$D$6)*Z10+0.5*(AA10-$D$6+$D$7-$D$6)*($D$8-Z10))*$D$9,"") ->  | AI10: =IF(AF10=3,(($D$7-$D$6)*Z10+0.5*($D$7-$D$6)*(Y10-Z10))*$D$9,"") ->  | AJ10: =IF(AF10=4,0.5*$D$8*(X10-$D$6+AA10-$D$6)*$D$9,"") ->  | AK10: =IF(AF10=5,0.5*Y10*(X10-$D$6)*$D$9,"") ->  | AL10: =IF(AG10<>"",AG10,IF(AH10<>"",AH10,IF(AI10<>"",AI10,IF(AJ10<>"",AJ10,IF(AK10<>"",AK10))))) ->  | AM10: =($D$6+X10)/2 ->  | AN10: =AM10-$D$6 ->  | AO10: =MIN(Y10,$D$8) ->  | AP10: =AN10*AO10*$D$9 ->  | AQ10: =AP10/AL10 ->  | AR10: =($D$11+$D$10) ->  | AS10: =($D$12+$D$10) ->  | AT10: =($D$10+$D$11+$D$13) ->  | AU10: =($D$10+$D$12+$D$14) ->  | AZ10: 96.77286245 | BA10: 93.7675433 | BB10: 90.76222415 | BC10: 87.756905 | BD10: 84.75158585 | BL10: White Edge | BM10: =AV9 ->  | BN10: 359.0753543 | BO10: 712.2844535 | BP10: 782.5021893 | BQ10: 517.3894397 | BR10: 194.3303713 | BT10: 267.5391153 | BU10: 533.9553985 | BV10: 799.2559034 | BW10: 1063.447625 | BX10: 1262.538423 | BZ10: =AL9 ->  | CA10: 2500000 | CB10: 5000000 | CC10: 7500000 | CD10: 10000000 | CE10: 12500000
B11: Application Cost/Mile (Solid) | C11: Solid | D11: 9324.2 | E11: =Input!B21 -> 8108 | F11: =(1-$F$10)*E11 -> 6891.8 | G11: =(1+$G$10)*E11 -> 9324.2 | V11: AC | W11: White | X11: =EXP(7.2082)*EXP(-0.0459*D9/1000) ->  | Y11: =(LN($D$5)-7.2082+0.0459*$D$9/1000)/(-0.0316) ->  | Z11: =(LN($D$7)-7.2082+0.0459*$D$9/1000)/(-0.0316) ->  | AA11: =EXP(7.2082-0.0459*$D$9/1000-0.0316*$D$8) ->  | AB11: =IF(Z11>=0, "cases 1, 2, 3","") ->  | AC11: =IF(Z11<0, "cases 4, 5","") ->  | AD11: =IF(AB11="","",IF($D$8<=Z11,1,IF($D$8>=Y11,3,2))) ->  | AE11: =IF(AC11="","",IF($D$8<Y11,4,5)) ->  | AF11: =IF(AD11<>"",AD11,AE11) ->  | AG11: =IF(AF11=1,($D$7-$D$5)*$D$8*$D$9,"") ->  | AH11: =IF(AF11=2,(($D$7-$D$5)*Z11+0.5*(AA11-$D$5+$D$7-$D$5)*($D$8-Z11))*$D$9,"") ->  | AI11: =IF(AF11=3,(($D$7-$D$5)*Z11+0.5*($D$7-$D$5)*(Y11-Z11))*$D$9,"") ->  | AJ11: =IF(AF11=4,0.5*$D$8*(X11-$D$5+AA11-$D$5)*$D$9,"") ->  | AK11: =IF(AF11=5,0.5*Y11*(X11-$D$5)*$D$9,"") ->  | AL11: =IF(AG11<>"",AG11,IF(AH11<>"",AH11,IF(AI11<>"",AI11,IF(AJ11<>"",AJ11,IF(AK11<>"",AK11))))) ->  | AM11: =($D$5+X11)/2 ->  | AN11: =AM11-$D$5 ->  | AO11: =MIN(Y11,$D$8) ->  | AP11: =AN11*AO11*$D$9 ->  | AQ11: =AP11/AL11 ->  | AR11: =($D$11+$D$10) ->  | AS11: =($D$12+$D$10) ->  | AT11: =($D$10+$D$11+$D$13) ->  | AU11: =($D$10+$D$12+$D$14) ->  | AZ11: 75.11170298 | BA11: 67.84904475 | BB11: 60.58638652 | BC11: 53.32372829 | BD11: 46.06107006 | BL11: White Lane | BM11: =AW9 ->  | BN11: 745.739537 | BO11: 1466.397161 | BP11: 1255.295733 | BQ11: 636.2193 | BR11: 205.8850159 | BT11: 560.4906131 | BU11: 1116.064453 | BV11: 1666.785934 | BW11: 2212.718351 | BX11: 2491.708203 | BZ11: =AL9 ->  | CA11: 2500000 | CB11: 5000000 | CC11: 7500000 | CD11: 10000000 | CE11: 12500000
B12: Application Cost/Mile (Dash) | C12: Dash | D12: 4440.15 | E12: =Input!C21 -> 3861 | F12: =(1-$F$10)*E12 -> 3281.85 | G12: =(1+$G$10)*E12 -> 4440.15 | W12: Yellow | X12: =EXP(6.7774)*EXP(-0.0459*D9/1000) ->  | Y12: =(LN($D$6)-6.7774+0.0459*$D$9/1000)/(-0.0316) ->  | Z12: =(LN($D$7)-6.7774+0.0459*$D$9/1000)/(-0.0316) ->  | AA12: =EXP(6.7774-0.0459*$D$9/1000-0.0316*$D$8) ->  | AB12: =IF(Z12>=0, "cases 1, 2, 3","") ->  | AC12: =IF(Z12<0, "cases 4, 5","") ->  | AD12: =IF(AB12="","",IF($D$8<=Z12,1,IF($D$8>=Y12,3,2))) ->  | AE12: =IF(AC12="","",IF($D$8<Y12,4,5)) ->  | AF12: =IF(AD12<>"",AD12,AE12) ->  | AG12: =IF(AF12=1,($D$7-$D$6)*$D$8*$D$9,"") ->  | AH12: =IF(AF12=2,(($D$7-$D$6)*Z12+0.5*(AA12-$D$6+$D$7-$D$6)*($D$8-Z12))*$D$9,"") ->  | AI12: =IF(AF12=3,(($D$7-$D$6)*Z12+0.5*($D$7-$D$6)*(Y12-Z12))*$D$9,"") ->  | AJ12: =IF(AF12=4,0.5*$D$8*(X12-$D$6+AA12-$D$6)*$D$9,"") ->  | AK12: =IF(AF12=5,0.5*Y12*(X12-$D$6)*$D$9,"") ->  | AL12: =IF(AG12<>"",AG12,IF(AH12<>"",AH12,IF(AI12<>"",AI12,IF(AJ12<>"",AJ12,IF(AK12<>"",AK12))))) ->  | AM12: =($D$6+X12)/2 ->  | AN12: =AM12-$D$6 ->  | AO12: =MIN(Y12,$D$8) ->  | AP12: =AN12*AO12*$D$9 ->  | AQ12: =AP12/AL12 ->  | AR12: =($D$11+$D$10) ->  | AS12: =($D$12+$D$10) ->  | AT12: =($D$10+$D$11+$D$13) ->  | AU12: =($D$10+$D$12+$D$14) ->  | AZ12: 61.47879158 | BA12: 54.21613335 | BB12: 46.95347513 | BC12: 39.6908169 | BD12: 32.42815867 | BK12: AC | BL12: Yellow Edge | BM12: =AV12 ->  | BN12: 359.0753543 | BO12: 712.2844535 | BP12: 782.5021893 | BQ12: 517.3894397 | BR12: 194.3303713 | BT12: 267.5391153 | BU12: 533.9553985 | BV12: 799.2559034 | BW12: 1063.447625 | BX12: 1262.538423 | BZ12: =AL12 ->  | CA12: 2500000 | CB12: 5000000 | CC12: 7500000 | CD12: 10000000 | CE12: 12500000
B13: Removal Cost/Mile (Solid) | C13: Solid | D13: 6037.5 | E13: =Input!D21 -> 5250 | F13: =(1-$F$10)*E13 -> 4462.5 | G13: =(1+$G$10)*E13 -> 6037.5 | BL13: White Edge | BM13: =AV11 ->  | BN13: 359.0753543 | BO13: 712.2844535 | BP13: 782.5021893 | BQ13: 517.3894397 | BR13: 194.3303713 | BT13: 267.5391153 | BU13: 533.9553985 | BV13: 799.2559034 | BW13: 1063.447625 | BX13: 1262.538423 | BZ13: =AL11 ->  | CA13: 2500000 | CB13: 5000000 | CC13: 7500000 | CD13: 10000000 | CE13: 12500000
B14: Removal Cost/Mile (Dash) | C14: Dash | D14: 6037.5 | E14: =Input!E21 -> 5250 | F14: =(1-$F$10)*E14 -> 4462.5 | G14: =(1+$G$10)*E14 -> 6037.5 | BL14: White Lane | BM14: =AW11 ->  | BN14: 745.739537 | BO14: 1466.397161 | BP14: 1255.295733 | BQ14: 636.2193 | BR14: 205.8850159 | BT14: 560.4906131 | BU14: 1116.064453 | BV14: 1666.785934 | BW14: 2212.718351 | BX14: 2491.708203 | BZ14: =AL11 ->  | CA14: 2500000 | CB14: 5000000 | CC14: 7500000 | CD14: 10000000 | CE14: 12500000
BJ15: Restripe | BK15: PCC | BL15: Yellow Edge | BM15: =AX10 ->  | BN15: 218.821696 | BO15: 435.4578539 | BP15: 533.9165992 | BQ15: 420.3393688 | BR15: 181.723156 | BT15: 162.5283905 | BU15: 324.6420594 | BV15: 486.3425922 | BW15: 647.631566 | BX15: 784.2798308 | BZ15: =AL10 ->  | CA15: 2500000 | CB15: 5000000 | CC15: 7500000 | CD15: 10000000 | CE15: 12500000
BL16: White Edge | BM16: =AX9 ->  | BN16: 218.821696 | BO16: 435.4578539 | BP16: 533.9165992 | BQ16: 420.3393688 | BR16: 181.723156 | BT16: 162.5283905 | BU16: 324.6420594 | BV16: 486.3425922 | BW16: 647.631566 | BX16: 784.2798308 | BZ16: =AL9 ->  | CA16: 2500000 | CB16: 5000000 | CC16: 7500000 | CD16: 10000000 | CE16: 12500000
BL17: White Lane | BM17: =AY9 ->  | BN17: 319.9026716 | BO17: 635.1450561 | BP17: 718.5843736 | BQ17: 495.5315259 | BR17: 191.7883871 | BT17: 238.1433657 | BU17: 475.3968803 | BV17: 711.765522 | BW17: 947.254232 | BX17: 1130.798179 | BZ17: =AL9 ->  | CA17: 2500000 | CB17: 5000000 | CC17: 7500000 | CD17: 10000000 | CE17: 12500000
BK18: AC | BL18: Yellow Edge | BM18: =AX12 ->  | BN18: 218.821696 | BO18: 435.4578539 | BP18: 533.9165992 | BQ18: 420.3393688 | BR18: 181.723156 | BT18: 162.5283905 | BU18: 324.6420594 | BV18: 486.3425922 | BW18: 647.631566 | BX18: 784.2798308 | BZ18: =AL12 ->  | CA18: 2500000 | CB18: 5000000 | CC18: 7500000 | CD18: 10000000 | CE18: 12500000
BL19: White Edge | BM19: =AX11 ->  | BN19: 218.821696 | BO19: 435.4578539 | BP19: 533.9165992 | BQ19: 420.3393688 | BR19: 181.723156 | BT19: 162.5283905 | BU19: 324.6420594 | BV19: 486.3425922 | BW19: 647.631566 | BX19: 784.2798308 | BZ19: =AL11 ->  | CA19: 2500000 | CB19: 5000000 | CC19: 7500000 | CD19: 10000000 | CE19: 12500000
BL20: White Lane | BM20: =AY11 ->  | BN20: 319.9026716 | BO20: 635.1450561 | BP20: 718.5843736 | BQ20: 495.5315259 | BR20: 191.7883871 | BT20: 238.1433657 | BU20: 475.3968803 | BV20: 711.765522 | BW20: 947.254232 | BX20: 1130.798179 | BZ20: =AL11 ->  | CA20: 2500000 | CB20: 5000000 | CC20: 7500000 | CD20: 10000000 | CE20: 12500000
B24: 1. no cost differences between PCC and AC? | D24: YES
B25: 2. no cost differences between yellow and white?
B26: 3. removal only incurred to PCC with center tape and thermo edge lines
B27: however, in this calculation, we will apply to all PCC tape and thermo
E31: urban/rural off peak user costs
C32: ADT/Lane | D32: 5000 | E32: 10000 | F32: 15000 | G32: 20000 | H32: 25000 | I32: =Input!B33 -> No
C33: User Cost | D33: =Input!C28 -> 70.52690376 | E33: =Input!C29 -> 127.867459 | F33: =Input!C30 -> 2692.837721 | G33: =Input!C31 -> 12436.00075 | H33: =Input!C32 -> 57431.65041 | I33: =Input!C33 -> 
E37: urban night user costs
C38: ADT/Lane | D38: 5000 | E38: 10000 | F38: 15000 | G38: 20000 | H38: 25000 | I38: =Input!B33 -> No
C39: User Cost | D39: =Input!D28 -> 20.228 | E39: =Input!D29 -> 39.878 | F39: =Input!D30 -> 59.528 | G39: =Input!D31 -> 79.178 | H39: =Input!D32 -> 576.4887808 | I39: =Input!D33 -> 
CH59: Calculating…Tape

Sheet thermoplastic (90 mil) (hidden)
A1: Input Values | B1: Marking Material Type | C1: Material | D1: Tape
B2: Marking Color | C2: Color
B3: Initial Retroreflectivity | C3: R(initial)
B4: Retroreflectivity Decay Rate | C4: R(decay)
B5: Minimum Effective Retroreflectivity (white) | C5: R(min) (white) | D5: =Input!B10 -> 100 | AV5: use this as criteria
B6: Minimum Effective Retroreflectivity (yellow) | C6: R(min) (yellow) | D6: =Input!B11 -> 100 | AR6: Cost | AV6: Life Time Utility/Cost | AZ6: Expected PM Life Time | BJ6: Application Type | BK6: Pavement Type | BL6: Line Type | BM6: utility /cost | BN6: Off-Peak Application | BT6: Night Time Application | BZ6: Utility
B7: Maximum Effectove Retroreflectivity | C7: R(max) | D7: =Input!B12 -> 200 | U7: Material | V7: Pavement | W7: Color | X7: Initial Retro | Y7: Month (R=min) | Z7: Month (R=max) | AA7: Retro [M(max)] | AB7: utility has 5 scenarios, now identify them | AG7: Utility has 5 equations based on the values of M(s), M(max), ,M(min), and initial retro value | AM7: Simplified Kansas Utility | AQ7: Over Estimate Utility | AR7: New Stripe | AT7: Restripe | AV7: New Stripe | AX7: Restripe | AZ7: ADT Per Lane | BE7: User Specify | BN7: ADT Per Lane | BT7: ADT Per Lane | BZ7: Utility | CA7: ADT Per Lane
B8: Maximum Pavement Remaining Service Life in Month | C8: M(max) | D8: =Input!B13 -> 100 | AB8: test cases 1, 2, 3 | AC8: test cases 4, 5 | AD8: for cases 1, 2, 3 | AE8: for cases 4, 5 | AF8: final case | AG8: case 1 | AH8: case 2 | AI8: case 3 | AJ8: case 4 | AK8: case 5 | AL8: final utililty | AM8: Average Retro | AN8: Average Useful Retro | AO8: Service Years | AP8: Utility | AR8: Solid | AS8: Dash | AT8: Solid | AU8: Dash | AV8: Solid | AW8: Dash | AX8: Solid | AY8: Dash | AZ8: 5000 | BA8: 10000 | BB8: 15000 | BC8: 20000 | BD8: 25000 | BE8: =Input!B33 -> No | BN8: 5000 | BO8: 10000 | BP8: 15000 | BQ8: 20000 | BR8: 25000 | BS8: =I32 -> No | BT8: 5000 | BU8: =BO8 -> 10000 | BV8: =BP8 -> 15000 | BW8: =BQ8 -> 20000 | BX8: =BR8 -> 25000 | BY8: =I38 -> No | CA8: 5000 | CB8: 10000 | CC8: 15000 | CD8: 20000 | CE8: 25000 | CF8: =Input!B33 -> No
B9: ADT Per Lane | C9: ADT | D9: No | E9: average costs | F9: % less for off-peak | G9: % more for night time | U9: Thermo (90 mil) | V9: PCC | W9: White | X9: =EXP(6.3492)*EXP(-0.0109*D9/1000) ->  | Y9: =(LN($D$5)-6.3492+0.0109*$D$9/1000)/(-0.0114-0.016*30/1000000*$D$9) ->  | Z9: =(LN($D$7)-6.3492+0.0109*$D$9/1000)/(-0.0114-0.016*30/1000000*$D$9) ->  | AA9: =EXP(6.3492-0.0114*$D$8-0.016*30*$D$9*$D$8/1000000-0.0109*$D$9/1000) ->  | AB9: =IF(Z9>=0, "cases 1, 2, 3","") ->  | AC9: =IF(Z9<0, "cases 4, 5","") ->  | AD9: =IF(AB9="","",IF($D$8<=Z9,1,IF($D$8>=Y9,3,2))) ->  | AE9: =IF(AC9="","",IF($D$8<Y9,4,5)) ->  | AF9: =IF(AD9<>"",AD9,AE9) ->  | AG9: =IF(AF9=1,($D$7-$D$5)*$D$8*$D$9,"") ->  | AH9: =IF(AF9=2,(($D$7-$D$5)*Z9+0.5*(AA9-$D$5+$D$7-$D$5)*($D$8-Z9))*$D$9,"") ->  | AI9: =IF(AF9=3,(($D$7-$D$5)*Z9+0.5*($D$7-$D$5)*(Y9-Z9))*$D$9,"") ->  | AJ9: =IF(AF9=4,0.5*$D$8*(X9-$D$5+AA9-$D$5)*$D$9,"") ->  | AK9: =IF(AF9=5,0.5*Y9*(X9-$D$5)*$D$9,"") ->  | AL9: =IF(AG9<>"",AG9,IF(AH9<>"",AH9,IF(AI9<>"",AI9,IF(AJ9<>"",AJ9,IF(AK9<>"",AK9))))) ->  | AM9: =($D$5+X9)/2 ->  | AN9: =AM9-$D$5 ->  | AO9: =MIN(Y9,$D$8) ->  | AP9: =AN9*AO9*$D$9 ->  | AQ9: =AP9/AL9 ->  | AR9: =($D$11+$D$10) ->  | AS9: =($D$12+$D$10) ->  | AT9: =($D$10+$D$11+$D$13) ->  | AU9: =($D$10+$D$12+$D$14) ->  | AV9: =$AL9/AR9 ->  | AZ9: 122.4296967 | BA9: 100.9277663 | BB9: 84.97472118 | BC9: 72.66808638 | BD9: 62.88588949 | BJ9: New Stripe | BK9: PCC | BL9: Yellow Edge | BM9: =AV10 ->  | BN9: 1157.500166 | BO9: 2255.129616 | BP9: 1568.336263 | BQ9: 688.4539036 | BR9: 210.0100874 | BT9: 878.1395244 | BU9: 1744.239996 | BV9: 2598.547308 | BW9: 3441.300702 | BX9: 3673.025743 | BZ9: =AL10 ->  | CA9: 2500000 | CB9: 5000000 | CC9: 7500000 | CD9: 10000000 | CE9: 12500000
B10: User Cost/Mile Due to Application | C10: User Cost | F10: =Input!B23/100 -> 0.15 | G10: =Input!B24/100 -> 0.15 | W10: Yellow | X10: =EXP(5.7496)*EXP(-0.0053*D9/1000) ->  | Y10: =(LN($D$6)-5.7496+0.0053*$D$9/1000)/(-0.0134) ->  | Z10: =(LN($D$7)-5.7496+0.0053*$D$9/1000)/(-0.0134) ->  | AA10: =EXP(5.7496-0.0053*$D$9/1000-0.0134*$D$8) ->  | AB10: =IF(Z10>=0, "cases 1, 2, 3","") ->  | AC10: =IF(Z10<0, "cases 4, 5","") ->  | AD10: =IF(AB10="","",IF($D$8<=Z10,1,IF($D$8>=Y10,3,2))) ->  | AE10: =IF(AC10="","",IF($D$8<Y10,4,5)) ->  | AF10: =IF(AD10<>"",AD10,AE10) ->  | AG10: =IF(AF10=1,($D$7-$D$6)*$D$8*$D$9,"") ->  | AH10: =IF(AF10=2,(($D$7-$D$6)*Z10+0.5*(AA10-$D$6+$D$7-$D$6)*($D$8-Z10))*$D$9,"") ->  | AI10: =IF(AF10=3,(($D$7-$D$6)*Z10+0.5*($D$7-$D$6)*(Y10-Z10))*$D$9,"") ->  | AJ10: =IF(AF10=4,0.5*$D$8*(X10-$D$6+AA10-$D$6)*$D$9,"") ->  | AK10: =IF(AF10=5,0.5*Y10*(X10-$D$6)*$D$9,"") ->  | AL10: =IF(AG10<>"",AG10,IF(AH10<>"",AH10,IF(AI10<>"",AI10,IF(AJ10<>"",AJ10,IF(AK10<>"",AK10))))) ->  | AM10: =($D$6+X10)/2 ->  | AN10: =AM10-$D$6 ->  | AO10: =MIN(Y10,$D$8) ->  | AP10: =AN10*AO10*$D$9 ->  | AQ10: =AP10/AL10 ->  | AR10: =($D$11+$D$10) ->  | AS10: =($D$12+$D$10) ->  | AT10: =($D$10+$D$11+$D$13) ->  | AU10: =($D$10+$D$12+$D$14) ->  | AZ10: 83.42759806 | BA10: 81.44998612 | BB10: 79.47237418 | BC10: 77.49476224 | BD10: 75.5171503 | BL10: White Edge | BM10: =AV9 ->  | BN10: 1157.500166 | BO10: 2255.129616 | BP10: 1568.336263 | BQ10: 688.4539036 | BR10: 210.0100874 | BT10: 878.1395244 | BU10: 1744.239996 | BV10: 2598.547308 | BW10: 3441.300702 | BX10: 3673.025743 | BZ10: =AL9 ->  | CA10: 2500000 | CB10: 5000000 | CC10: 7500000 | CD10: 10000000 | CE10: 12500000
B11: Application Cost/Mile (Solid) | C11: Solid | D11: 2826.7 | E11: =Input!B20 -> 2458 | F11: =(1-$F$10)*E11 -> 2089.3 | G11: =(1+$G$10)*E11 -> 2826.7 | V11: AC | W11: White | X11: =EXP(6.5181)*EXP(-0.0253*D9/1000) ->  | Y11: =(LN($D$5)-6.5181+0.0253*$D$9/1000)/(-0.0154) ->  | Z11: =(LN($D$7)-6.5181+0.0253*$D$9/1000)/(-0.0154) ->  | AA11: =EXP(6.5181-0.0253*$D$9/1000-0.0154*$D$8) ->  | AB11: =IF(Z11>=0, "cases 1, 2, 3","") ->  | AC11: =IF(Z11<0, "cases 4, 5","") ->  | AD11: =IF(AB11="","",IF($D$8<=Z11,1,IF($D$8>=Y11,3,2))) ->  | AE11: =IF(AC11="","",IF($D$8<Y11,4,5)) ->  | AF11: =IF(AD11<>"",AD11,AE11) ->  | AG11: =IF(AF11=1,($D$7-$D$5)*$D$8*$D$9,"") ->  | AH11: =IF(AF11=2,(($D$7-$D$5)*Z11+0.5*(AA11-$D$5+$D$7-$D$5)*($D$8-Z11))*$D$9,"") ->  | AI11: =IF(AF11=3,(($D$7-$D$5)*Z11+0.5*($D$7-$D$5)*(Y11-Z11))*$D$9,"") ->  | AJ11: =IF(AF11=4,0.5*$D$8*(X11-$D$5+AA11-$D$5)*$D$9,"") ->  | AK11: =IF(AF11=5,0.5*Y11*(X11-$D$5)*$D$9,"") ->  | AL11: =IF(AG11<>"",AG11,IF(AH11<>"",AH11,IF(AI11<>"",AI11,IF(AJ11<>"",AJ11,IF(AK11<>"",AK11))))) ->  | AM11: =($D$5+X11)/2 ->  | AN11: =AM11-$D$5 ->  | AO11: =MIN(Y11,$D$8) ->  | AP11: =AN11*AO11*$D$9 ->  | AQ11: =AP11/AL11 ->  | AR11: =($D$11+$D$10) ->  | AS11: =($D$12+$D$10) ->  | AT11: =($D$10+$D$11+$D$13) ->  | AU11: =($D$10+$D$12+$D$14) ->  | AZ11: 116.001936 | BA11: 107.7876503 | BB11: 99.57336455 | BC11: 91.35907883 | BD11: 83.14479312 | BL11: White Lane | BM11: =AW9 ->  | BN11: 3268.072523 | BO11: 6080.3768 | BP11: 2214.160892 | BQ11: 761.588478 | BR11: 215.0496921 | BT11: 2604.76902 | BU11: 5105.020481 | BV11: 7506.921382 | BW11: 9816.162901 | BX11: 8245.171666 | BZ11: =AL9 ->  | CA11: 2500000 | CB11: 5000000 | CC11: 7500000 | CD11: 10000000 | CE11: 12500000
B12: Application Cost/Mile (Dash) | C12: Dash | D12: 939.55 | E12: =Input!C20 -> 817 | F12: =(1-$F$10)*E12 -> 694.45 | G12: =(1+$G$10)*E12 -> 939.55 | W12: Yellow | X12: =EXP(5.9059)*EXP(-0.0162*D9/1000) ->  | Y12: =(LN($D$6)-5.9059+0.0162*$D$9/1000)/(-0.011) ->  | Z12: =(LN($D$7)-5.9059+0.0162*$D$9/1000)/(-0.011) ->  | AA12: =EXP(5.9059-0.0162*$D$9/1000-0.011*$D$8) ->  | AB12: =IF(Z12>=0, "cases 1, 2, 3","") ->  | AC12: =IF(Z12<0, "cases 4, 5","") ->  | AD12: =IF(AB12="","",IF($D$8<=Z12,1,IF($D$8>=Y12,3,2))) ->  | AE12: =IF(AC12="","",IF($D$8<Y12,4,5)) ->  | AF12: =IF(AD12<>"",AD12,AE12) ->  | AG12: =IF(AF12=1,($D$7-$D$6)*$D$8*$D$9,"") ->  | AH12: =IF(AF12=2,(($D$7-$D$6)*Z12+0.5*(AA12-$D$6+$D$7-$D$6)*($D$8-Z12))*$D$9,"") ->  | AI12: =IF(AF12=3,(($D$7-$D$6)*Z12+0.5*($D$7-$D$6)*(Y12-Z12))*$D$9,"") ->  | AJ12: =IF(AF12=4,0.5*$D$8*(X12-$D$6+AA12-$D$6)*$D$9,"") ->  | AK12: =IF(AF12=5,0.5*Y12*(X12-$D$6)*$D$9,"") ->  | AL12: =IF(AG12<>"",AG12,IF(AH12<>"",AH12,IF(AI12<>"",AI12,IF(AJ12<>"",AJ12,IF(AK12<>"",AK12))))) ->  | AM12: =($D$6+X12)/2 ->  | AN12: =AM12-$D$6 ->  | AO12: =MIN(Y12,$D$8) ->  | AP12: =AN12*AO12*$D$9 ->  | AQ12: =AP12/AL12 ->  | AR12: =($D$11+$D$10) ->  | AS12: =($D$12+$D$10) ->  | AT12: =($D$10+$D$11+$D$13) ->  | AU12: =($D$10+$D$12+$D$14) ->  | AZ12: 110.8845285 | BA12: 103.5208922 | BB12: 96.15725582 | BC12: 88.79361946 | BD12: 81.42998309 | BK12: AC | BL12: Yellow Edge | BM12: =AV12 ->  | BN12: 1157.500166 | BO12: 2255.129616 | BP12: 1568.336263 | BQ12: 688.4539036 | BR12: 210.0100874 | BT12: 878.1395244 | BU12: 1744.239996 | BV12: 2598.547308 | BW12: 3441.300702 | BX12: 3673.025743 | BZ12: =AL12 ->  | CA12: 2500000 | CB12: 5000000 | CC12: 7500000 | CD12: 10000000 | CE12: 12500000
B13: Removal Cost/Mile (Dolid) | C13: Removal | D13: 6037.5 | E13: =Input!D20 -> 5250 | F13: =(1-$F$10)*E13 -> 4462.5 | G13: =(1+$G$10)*E13 -> 6037.5 | BL13: White Edge | BM13: =AV11 ->  | BN13: 1157.500166 | BO13: 2255.129616 | BP13: 1568.336263 | BQ13: 688.4539036 | BR13: 210.0100874 | BT13: 878.1395244 | BU13: 1744.239996 | BV13: 2598.547308 | BW13: 3441.300702 | BX13: 3673.025743 | BZ13: =AL11 ->  | CA13: 2500000 | CB13: 5000000 | CC13: 7500000 | CD13: 10000000 | CE13: 12500000
B14: Removal Cost/Mile (Dash) | C14: Dash | D14: 6037.5 | E14: =Input!E20 -> 5250 | F14: =(1-$F$10)*E14 -> 4462.5 | G14: =(1+$G$10)*E14 -> 6037.5 | BL14: White Lane | BM14: =AW11 ->  | BN14: 3268.072523 | BO14: 6080.3768 | BP14: 2214.160892 | BQ14: 761.588478 | BR14: 215.0496921 | BT14: 2604.76902 | BU14: 5105.020481 | BV14: 7506.921382 | BW14: 9816.162901 | BX14: 8245.171666 | BZ14: =AL11 ->  | CA14: 2500000 | CB14: 5000000 | CC14: 7500000 | CD14: 10000000 | CE14: 12500000
BJ15: Restripe | BK15: PCC | BL15: Yellow Edge | BM15: =AX10 ->  | BN15: 377.510811 | BO15: 748.5402575 | BP15: 811.2811152 | BQ15: 526.653936 | BR15: 195.3630184 | BT15: 281.3912162 | BU15: 561.5404537 | BV15: 840.4559171 | BW15: 1118.145739 | BX15: 1324.055934 | BZ15: =AL10 ->  | CA15: 2500000 | CB15: 5000000 | CC15: 7500000 | CD15: 10000000 | CE15: 12500000
BL16: White Edge | BM16: =AX9 ->  | BN16: 377.510811 | BO16: 748.5402575 | BP16: 811.2811152 | BQ16: 526.653936 | BR16: 195.3630184 | BT16: 281.3912162 | BU16: 561.5404537 | BV16: 840.4559171 | BW16: 1118.145739 | BX16: 1324.055934 | BZ16: =AL9 ->  | CA16: 2500000 | CB16: 5000000 | CC16: 7500000 | CD16: 10000000 | CE16: 12500000
BL17: White Lane | BM17: =AY9 ->  | BN17: 478.2421895 | BO17: 946.1064718 | BP17: 955.4398497 | BQ17: 568.4094808 | BR17: 199.71688 | BT17: 357.2817887 | BU17: 712.5625345 | BV17: 1065.859001 | BW17: 1417.187767 | BX17: 1654.853488 | BZ17: =AL9 ->  | CA17: 2500000 | CB17: 5000000 | CC17: 7500000 | CD17: 10000000 | CE17: 12500000
BK18: AC | BL18: Yellow Edge | BM18: =AX12 ->  | BN18: 377.510811 | BO18: 748.5402575 | BP18: 811.2811152 | BQ18: 526.653936 | BR18: 195.3630184 | BT18: 281.3912162 | BU18: 561.5404537 | BV18: 840.4559171 | BW18: 1118.145739 | BX18: 1324.055934 | BZ18: =AL12 ->  | CA18: 2500000 | CB18: 5000000 | CC18: 7500000 | CD18: 10000000 | CE18: 12500000
BL19: White Edge | BM19: =AX11 ->  | BN19: 377.510811 | BO19: 748.5402575 | BP19: 811.2811152 | BQ19: 526.653936 | BR19: 195.3630184 | BT19: 281.3912162 | BU19: 561.5404537 | BV19: 840.4559171 | BW19: 1118.145739 | BX19: 1324.055934 | BZ19: =AL11 ->  | CA19: 2500000 | CB19: 5000000 | CC19: 7500000 | CD19: 10000000 | CE19: 12500000
BL20: White Lane | BM20: =AY11 ->  | BN20: 478.2421895 | BO20: 946.1064718 | BP20: 955.4398497 | BQ20: 568.4094808 | BR20: 199.71688 | BT20: 357.2817887 | BU20: 712.5625345 | BV20: 1065.859001 | BW20: 1417.187767 | BX20: 1654.853488 | BZ20: =AL11 ->  | CA20: 2500000 | CB20: 5000000 | CC20: 7500000 | CD20: 10000000 | CE20: 12500000
E31: urban/rural off peak user costs
C32: ADT/Lane | D32: 5000 | E32: 10000 | F32: 15000 | G32: 20000 | H32: 25000 | I32: =Input!B33 -> No
C33: User Cost | D33: =Input!C28 -> 70.52690376 | E33: =Input!C29 -> 127.867459 | F33: =Input!C30 -> 2692.837721 | G33: =Input!C31 -> 12436.00075 | H33: =Input!C32 -> 57431.65041 | I33: =Input!C33 -> 
E37: urban night user costs
C38: ADT/Lane | D38: 5000 | E38: 10000 | F38: 15000 | G38: 20000 | H38: 25000 | I38: =Input!B33 -> No
C39: User Cost | D39: =Input!D28 -> 20.228 | E39: =Input!D29 -> 39.878 | F39: =Input!D30 -> 59.528 | G39: =Input!D31 -> 79.178 | H39: =Input!D32 -> 576.4887808 | I39: =Input!D33 -> 
CH59: Calculating…Thermo 90

Sheet thermoplastic (40 mil) (hidden)
A1: Input Values | B1: Marking Material Type | C1: Material | D1: Tape
B2: Marking Color | C2: Color
B3: Initial Retroreflectivity | C3: R(initial)
B4: Retroreflectivity Decay Rate | C4: R(decay) | BS4: we can assume a 10 or 20% increase in application/removal cost?
B5: Minimum Effective Retroreflectivity (white) | C5: R(min) (white) | D5: =Input!B10 -> 100 | AV5: use this as criteria
B6: Minimum Effective Retroreflectivity (yellow) | C6: R(min) (yellow) | D6: =Input!B11 -> 100 | AR6: Cost | AV6: Life Time Utility/Cost | AZ6: Expected PM Life Time | BJ6: Application Type | BK6: Pavement Type | BL6: Line Type | BM6: utility /cost | BN6: Off-Peak Application | BT6: Night Time Application | BZ6: Utility
B7: Maximum Effectove Retroreflectivity | C7: R(max) | D7: =Input!B12 -> 200 | U7: Material | V7: Pavement | W7: Color | X7: Initial Retro | Y7: Month (R=min) | Z7: Month (R=max) | AA7: Retro [M(max)] | AB7: utility has 5 scenarios, now identify them | AG7: Utility has 5 equations based on the values of M(s), M(max), ,M(min), and initial retro value | AM7: Simplified Kansas Utility | AQ7: Over Estimate Utility | AR7: New Stripe | AT7: Restripe | AV7: New Stripe | AX7: Restripe | AZ7: ADT Per Lane | BE7: User Specify | BN7: ADT Per Lane | BT7: ADT Per Lane | BZ7: Utility | CA7: ADT Per Lane
B8: Maximum Pavement Remaining Service Life in Month | C8: M(max) | D8: =Input!B13 -> 100 | AB8: test cases 1, 2, 3 | AC8: test cases 4, 5 | AD8: for cases 1, 2, 3 | AE8: for cases 4, 5 | AF8: final case | AG8: case 1 | AH8: case 2 | AI8: case 3 | AJ8: case 4 | AK8: case 5 | AL8: final utililty | AM8: Average Retro | AN8: Average Useful Retro | AO8: Service Years | AP8: Utility | AR8: Solid | AS8: Dash | AT8: Solid | AU8: Dash | AV8: Solid | AW8: Dash | AX8: Solid | AY8: Dash | AZ8: 5000 | BA8: 10000 | BB8: 15000 | BC8: 20000 | BD8: 25000 | BE8: =Input!B33 -> No | BN8: 5000 | BO8: 10000 | BP8: 15000 | BQ8: 20000 | BR8: 25000 | BS8: =Input!B33 -> No | BT8: 5000 | BU8: =BO8 -> 10000 | BV8: =BP8 -> 15000 | BW8: =BQ8 -> 20000 | BX8: =BR8 -> 25000 | BY8: =Input!B33 -> No | CA8: 5000 | CB8: 10000 | CC8: 15000 | CD8: 20000 | CE8: 25000 | CF8: =Input!B33 -> No
B9: ADT Per Lane | C9: ADT | D9: No | E9: average costs | F9: % less for off-peak | G9: % more for night time | U9: Thermo (40 mil) | V9: PCC | W9: White | X9: =EXP(5.825) -> 338.6611331 | Y9: =(LN($D$5)-5.825)/(-0.0079-0.0559*30/1000000*$D$9) ->  | Z9: =(LN($D$7)-5.825)/(-0.0079-0.0559*30/1000000*$D$9) ->  | AA9: =EXP(5.825-0.0079*$D$8-0.0559*30*$D$8*$D$9/1000000) ->  | AB9: =IF(Z9>=0, "cases 1, 2, 3","") ->  | AC9: =IF(Z9<0, "cases 4, 5","") ->  | AD9: =IF(AB9="","",IF($D$8<=Z9,1,IF($D$8>=Y9,3,2))) ->  | AE9: =IF(AC9="","",IF($D$8<Y9,4,5)) ->  | AF9: =IF(AD9<>"",AD9,AE9) ->  | AG9: =IF(AF9=1,($D$7-$D$5)*$D$8*$D$9,"") ->  | AH9: =IF(AF9=2,(($D$7-$D$5)*Z9+0.5*(AA9-$D$5+$D$7-$D$5)*($D$8-Z9))*$D$9,"") ->  | AI9: =IF(AF9=3,(($D$7-$D$5)*Z9+0.5*($D$7-$D$5)*(Y9-Z9))*$D$9,"") ->  | AJ9: =IF(AF9=4,0.5*$D$8*(X9-$D$5+AA9-$D$5)*$D$9,"") ->  | AK9: =IF(AF9=5,0.5*Y9*(X9-$D$5)*$D$9,"") ->  | AL9: =IF(AG9<>"",AG9,IF(AH9<>"",AH9,IF(AI9<>"",AI9,IF(AJ9<>"",AJ9,IF(AK9<>"",AK9))))) ->  | AM9: =($D$5+X9)/2 -> 219.3305665 | AN9: =AM9-$D$5 -> 119.3305665 | AO9: =MIN(Y9,$D$8) ->  | AP9: =AN9*AO9*$D$9 ->  | AQ9: =AP9/AL9 ->  | AR9: =($D$11+$D$10) ->  | AS9: =($D$12+$D$10) ->  | AT9: =($D$10+$D$11+$D$13) ->  | AU9: =($D$10+$D$12+$D$14) ->  | AV9: =$AL9/AR9 ->  | AZ9: 74.905116 | BA9: 49.44587815 | BB9: 36.90303476 | BC9: 29.43604764 | BD9: 24.48228428 | BJ9: New Stripe | BK9: PCC | BL9: Yellow Edge | BM9: =AV10 ->  | BN9: 2621.432888 | BO9: 4915.891379 | BP9: 2038.456018 | BQ9: 708.3804242 | BR9: 195.6437862 | BT9: 2057.481084 | BU9: 4025.220138 | BV9: 5811.241658 | BW9: 7405.665854 | BX9: 6440.850542 | BZ9: =AL10 ->  | CA9: 2500000 | CB9: 4970052.01 | CC9: 7289493.689 | CD9: 9435025.656 | CE9: 11408928.35
B10: User Cost/Mile Due to Application | C10: User Cost | F10: =Input!B23/100 -> 0.15 | G10: =Input!B24/100 -> 0.15 | W10: Yellow | X10: =EXP(5.3943) -> 220.1479896 | Y10: =(LN($D$6)-5.3943)/(-0.0079-0.0559*30/1000000*$D$9) ->  | Z10: =(LN($D$7)-5.3943)/(-0.0079-0.0559*30/1000000*$D$9) ->  | AA10: =EXP(5.3943-0.0079*$D$8-0.0559*30*$D$8*$D$9/1000000) ->  | AB10: =IF(Z10>=0, "cases 1, 2, 3","") ->  | AC10: =IF(Z10<0, "cases 4, 5","") ->  | AD10: =IF(AB10="","",IF($D$8<=Z10,1,IF($D$8>=Y10,3,2))) ->  | AE10: =IF(AC10="","",IF($D$8<Y10,4,5)) ->  | AF10: =IF(AD10<>"",AD10,AE10) ->  | AG10: =IF(AF10=1,($D$7-$D$6)*$D$8*$D$9,"") ->  | AH10: =IF(AF10=2,(($D$7-$D$6)*Z10+0.5*(AA10-$D$6+$D$7-$D$6)*($D$8-Z10))*$D$9,"") ->  | AI10: =IF(AF10=3,(($D$7-$D$6)*Z10+0.5*($D$7-$D$6)*(Y10-Z10))*$D$9,"") ->  | AJ10: =IF(AF10=4,0.5*$D$8*(X10-$D$6+AA10-$D$6)*$D$9,"") ->  | AK10: =IF(AF10=5,0.5*Y10*(X10-$D$6)*$D$9,"") ->  | AL10: =IF(AG10<>"",AG10,IF(AH10<>"",AH10,IF(AI10<>"",AI10,IF(AJ10<>"",AJ10,IF(AK10<>"",AK10))))) ->  | AM10: =($D$6+X10)/2 -> 160.0739948 | AN10: =AM10-$D$6 -> 60.07399478 | AO10: =MIN(Y10,$D$8) ->  | AP10: =AN10*AO10*$D$9 ->  | AQ10: =AP10/AL10 ->  | AR10: =($D$11+$D$10) ->  | AS10: =($D$12+$D$10) ->  | AT10: =($D$10+$D$11+$D$13) ->  | AU10: =($D$10+$D$12+$D$14) ->  | AZ10: 48.45746478 | BA10: 31.98742659 | BB10: 23.87323594 | BC10: 19.04270787 | BD10: 15.83802938 | BL10: White Edge | BM10: =AV9 ->  | BN10: 2621.432888 | BO10: 4945.513013 | BP10: 2097.322638 | BQ10: 750.7986199 | BR10: 214.353816 | BT10: 2057.481084 | BU10: 4049.474864 | BV10: 5979.058944 | BW10: 7849.121055 | BX10: 7056.80931 | BZ10: =AL9 ->  | CA10: 2500000 | CB10: 5000000 | CC10: 7500000 | CD10: 10000000 | CE10: 12500000
B11: Application Cost/Mile (Solid) | C11: Solid | D11: 1194.85 | E11: =Input!B19 -> 1039 | F11: =(1-$F$10)*E11 -> 883.15 | G11: =(1+$G$10)*E11 -> 1194.85 | V11: AC | W11: White | X11: =EXP(6.094)*EXP(-0.0383*D9/1000) ->  | Y11: =(LN($D$5)-6.094+0.0383*$D$9/1000)/(-0.0165) ->  | Z11: =(LN($D$7)-6.094+0.0383*$D$9/1000)/(-0.0165) ->  | AA11: =EXP(6.094-0.0383*$D$9/1000-0.0165*$D$8) ->  | AB11: =IF(Z11>=0, "cases 1, 2, 3","") ->  | AC11: =IF(Z11<0, "cases 4, 5","") ->  | AD11: =IF(AB11="","",IF($D$8<=Z11,1,IF($D$8>=Y11,3,2))) ->  | AE11: =IF(AC11="","",IF($D$8<Y11,4,5)) ->  | AF11: =IF(AD11<>"",AD11,AE11) ->  | AG11: =IF(AF11=1,($D$7-$D$5)*$D$8*$D$9,"") ->  | AH11: =IF(AF11=2,(($D$7-$D$5)*Z11+0.5*(AA11-$D$5+$D$7-$D$5)*($D$8-Z11))*$D$9,"") ->  | AI11: =IF(AF11=3,(($D$7-$D$5)*Z11+0.5*($D$7-$D$5)*(Y11-Z11))*$D$9,"") ->  | AJ11: =IF(AF11=4,0.5*$D$8*(X11-$D$5+AA11-$D$5)*$D$9,"") ->  | AK11: =IF(AF11=5,0.5*Y11*(X11-$D$5)*$D$9,"") ->  | AL11: =IF(AG11<>"",AG11,IF(AH11<>"",AH11,IF(AI11<>"",AI11,IF(AJ11<>"",AJ11,IF(AK11<>"",AK11))))) ->  | AM11: =($D$5+X11)/2 ->  | AN11: =AM11-$D$5 ->  | AO11: =MIN(Y11,$D$8) ->  | AP11: =AN11*AO11*$D$9 ->  | AQ11: =AP11/AL11 ->  | AR11: =($D$11+$D$10) ->  | AS11: =($D$12+$D$10) ->  | AT11: =($D$10+$D$11+$D$13) ->  | AU11: =($D$10+$D$12+$D$14) ->  | AZ11: 78.62604933 | BA11: 67.01998873 | BB11: 55.41392812 | BC11: 43.80786752 | BD11: 32.20180691 | BL11: White Lane | BM11: =AW9 ->  | BN11: 6205.369374 | BO11: 10864.4292 | BP11: 2479.184994 | BQ11: 783.1865053 | BR11: 216.3977548 | BT11: 5320.53001 | BU11: 10213.92035 | BV11: 14729.62304 | BW11: 18909.74003 | BX11: 12181.58814 | BZ11: =AL9 ->  | CA11: 2500000 | CB11: 5000000 | CC11: 7500000 | CD11: 10000000 | CE11: 12500000
B12: Application Cost/Mile (Dash) | C12: Dash | D12: 449.65 | E12: =Input!C19 -> 391 | F12: =(1-$F$10)*E12 -> 332.35 | G12: =(1+$G$10)*E12 -> 449.65 | W12: Yellow | X12: =EXP(5.6632)*EXP(-0.0383*D9/1000) ->  | Y12: =(LN($D$6)-5.6632+0.0383*$D$9/1000)/(-0.0165) ->  | Z12: =(LN($D$7)-5.6632+0.0383*$D$9/1000)/(-0.0165) ->  | AA12: =EXP(5.6632-0.0383*$D$9/1000-0.0165*$D$8) ->  | AB12: =IF(Z12>=0, "cases 1, 2, 3","") ->  | AC12: =IF(Z12<0, "cases 4, 5","") ->  | AD12: =IF(AB12="","",IF($D$8<=Z12,1,IF($D$8>=Y12,3,2))) ->  | AE12: =IF(AC12="","",IF($D$8<Y12,4,5)) ->  | AF12: =IF(AD12<>"",AD12,AE12) ->  | AG12: =IF(AF12=1,($D$7-$D$6)*$D$8*$D$9,"") ->  | AH12: =IF(AF12=2,(($D$7-$D$6)*Z12+0.5*(AA12-$D$6+$D$7-$D$6)*($D$8-Z12))*$D$9,"") ->  | AI12: =IF(AF12=3,(($D$7-$D$6)*Z12+0.5*($D$7-$D$6)*(Y12-Z12))*$D$9,"") ->  | AJ12: =IF(AF12=4,0.5*$D$8*(X12-$D$6+AA12-$D$6)*$D$9,"") ->  | AK12: =IF(AF12=5,0.5*Y12*(X12-$D$6)*$D$9,"") ->  | AL12: =IF(AG12<>"",AG12,IF(AH12<>"",AH12,IF(AI12<>"",AI12,IF(AJ12<>"",AJ12,IF(AK12<>"",AK12))))) ->  | AM12: =($D$6+X12)/2 ->  | AN12: =AM12-$D$6 ->  | AO12: =MIN(Y12,$D$8) ->  | AP12: =AN12*AO12*$D$9 ->  | AQ12: =AP12/AL12 ->  | AR12: =($D$11+$D$10) ->  | AS12: =($D$12+$D$10) ->  | AT12: =($D$10+$D$11+$D$13) ->  | AU12: =($D$10+$D$12+$D$14) ->  | AZ12: 52.51695842 | BA12: 40.91089782 | BB12: 29.30483721 | BC12: 17.69877661 | BD12: 6.092716001 | BK12: AC | BL12: Yellow Edge | BM12: =AV12 ->  | BN12: 2621.432888 | BO12: 4383.330537 | BP12: 1169.41542 | BQ12: 214.8189067 | BR12: 13.28457138 | BT12: 2057.481084 | BU12: 3589.149757 | BV12: 3333.775928 | BW12: 2245.794757 | BX12: 437.3455475 | BZ12: =AL12 ->  | CA12: 2500000 | CB12: 4431623.702 | CC12: 4181815.181 | CD12: 2861205.402 | CE12: 774687.1289
B13: Removal Cost/Mile (Solid) | C13: Solid | D13: 6037.5 | E13: =Input!D19 -> 5250 | F13: =(1-$F$10)*E13 -> 4462.5 | G13: =(1+$G$10)*E13 -> 6037.5 | BL13: White Edge | BM13: =AV11 ->  | BN13: 2621.432888 | BO13: 4945.513013 | BP13: 2097.322638 | BQ13: 726.0697461 | BR13: 135.8650707 | BT13: 2057.481084 | BU13: 4049.474864 | BV13: 5979.058944 | BW13: 7590.59644 | BX13: 4472.856672 | BZ13: =AL11 ->  | CA13: 2500000 | CB13: 5000000 | CC13: 7500000 | CD13: 9670632.402 | CE13: 7922944.484
B14: Removal Cost/Mile (Dash) | C14: Dash | D14: 6037.5 | E14: =Input!E19 -> 5250 | F14: =(1-$F$10)*E14 -> 4462.5 | G14: =(1+$G$10)*E14 -> 6037.5 | BL14: White Lane | BM14: =AW11 ->  | BN14: 6205.369374 | BO14: 10864.4292 | BP14: 2479.184994 | BQ14: 757.3908794 | BR14: 137.1605918 | BT14: 5320.53001 | BU14: 10213.92035 | BV14: 14729.62304 | BW14: 18286.91446 | BX14: 7721.123723 | BZ14: =AL11 ->  | CA14: 2500000 | CB14: 5000000 | CC14: 7500000 | CD14: 9670632.402 | CE14: 7922944.484
BJ15: Restripe | BK15: PCC | BL15: Yellow Edge | BM15: =AX10 ->  | BN15: 461.5801966 | BO15: 908.0179332 | BP15: 906.8240125 | BQ15: 530.6045985 | BR15: 181.7365237 | BT15: 344.7050139 | BU15: 683.4290688 | BV15: 999.6730182 | BW15: 1290.431447 | BX15: 1461.027519 | BZ15: =AL10 ->  | CA15: 2500000 | CB15: 4970052.01 | CC15: 7289493.689 | CD15: 9435025.656 | CE15: 11408928.35
BL16: White Edge | BM16: =AX9 ->  | BN16: 461.5801966 | BO16: 913.4893672 | BP16: 933.0113151 | BQ16: 562.3774835 | BR16: 199.1165583 | BT16: 344.7050139 | BU16: 687.5472001 | BV16: 1028.541618 | BW16: 1367.703167 | BX16: 1600.750169 | BZ16: =AL9 ->  | CA16: 2500000 | CB16: 5000000 | CC16: 7500000 | CD16: 10000000 | CE16: 12500000
BL17: White Lane | BM17: =AY9 ->  | BN17: 513.8348065 | BO17: 1015.699162 | BP17: 1001.644337 | BQ17: 580.3543973 | BR17: 200.8790454 | BT17: 384.1793115 | BU17: 766.0454345 | BV17: 1145.619198 | BW17: 1522.921182 | BX17: 1769.626164 | BZ17: =AL9 ->  | CA17: 2500000 | CB17: 5000000 | CC17: 7500000 | CD17: 10000000 | CE17: 12500000
BK18: AC | BL18: Yellow Edge | BM18: =AX12 ->  | BN18: 461.5801966 | BO18: 809.6482262 | BP18: 520.2241175 | BQ18: 160.9077494 | BR18: 12.34024279 | BT18: 344.7050139 | BU18: 609.3900936 | BV18: 573.4894606 | BW18: 391.327969 | BX18: 99.20644421 | BZ18: =AL12 ->  | CA18: 2500000 | CB18: 4431623.702 | CC18: 4181815.181 | CD18: 2861205.402 | CE18: 774687.1289
BL19: White Edge | BM19: =AX11 ->  | BN19: 461.5801966 | BO19: 913.4893672 | BP19: 933.0113151 | BQ19: 543.8545914 | BR19: 126.207155 | BT19: 344.7050139 | BU19: 687.5472001 | BV19: 1028.541618 | BW19: 1322.655456 | BX19: 1014.612378 | BZ19: =AL11 ->  | CA19: 2500000 | CB19: 5000000 | CC19: 7500000 | CD19: 9670632.402 | CE19: 7922944.484
BL20: White Lane | BM20: =AY11 ->  | BN20: 513.8348065 | BO20: 1015.699162 | BP20: 1001.644337 | BQ20: 561.2394039 | BR20: 127.324282 | BT20: 384.1793115 | BU20: 766.0454345 | BV20: 1145.619198 | BW20: 1472.761093 | BX20: 1121.651988 | BZ20: =AL11 ->  | CA20: 2500000 | CB20: 5000000 | CC20: 7500000 | CD20: 9670632.402 | CE20: 7922944.484
E31: urban/rural off peak user costs
C32: ADT/Lane | D32: 5000 | E32: 10000 | F32: 15000 | G32: 20000 | H32: 25000 | I32: =Input!B33 -> No
C33: User Cost | D33: =Input!C28 -> 70.52690376 | E33: =Input!C29 -> 127.867459 | F33: =Input!C30 -> 2692.837721 | G33: =Input!C31 -> 12436.00075 | H33: =Input!C32 -> 57431.65041 | I33: =Input!C33 -> 
E37: urban night user costs
C38: ADT/Lane | D38: 5000 | E38: 10000 | F38: 15000 | G38: 20000 | H38: 25000 | I38: =Input!B33 -> No
C39: User Cost | D39: =Input!D28 -> 20.228 | E39: =Input!D29 -> 39.878 | F39: =Input!D30 -> 59.528 | G39: =Input!D31 -> 79.178 | H39: =Input!D32 -> 576.4887808 | I39: =Input!D33 -> 
CH59: Calculating…Thermo 40

Sheet inverted (hidden)
A1: Input Values | B1: Marking Material Type | C1: Material | D1: Tape
B2: Marking Color | C2: Color
B3: Initial Retroreflectivity | C3: R(initial)
B4: Retroreflectivity Decay Rate | C4: R(decay)
B5: Minimum Effective Retroreflectivity (white) | C5: R(min) (white) | D5: =Input!B10 -> 100 | AV5: use this as criteria
B6: Minimum Effective Retroreflectivity (yellow) | C6: R(min) (yellow) | D6: =Input!B11 -> 100 | AR6: Cost | AV6: Life Time Utility/Cost | AZ6: Expected PM Life Time | BJ6: Application Type | BK6: Pavement Type | BL6: Line Type | BM6: utility /cost | BN6: Off-Peak Application | BT6: Night Time Application | BZ6: Utility
B7: Maximum Effectove Retroreflectivity | C7: R(max) | D7: =Input!B12 -> 200 | U7: Material | V7: Pavement | W7: Color | X7: Initial Retro | Y7: Month (R=min) | Z7: Month (R=max) | AA7: Retro [M(max)] | AB7: utility has 5 scenarios, now identify them | AG7: Utility has 5 equations based on the values of M(s), M(max), ,M(min), and initial retro value | AM7: Simplified Kansas Utility | AQ7: Over Estimate Utility | AR7: New Stripe | AT7: Restripe | AV7: New Stripe | AX7: Restripe | AZ7: ADT Per Lane | BE7: User Specify | BN7: ADT Per Lane | BT7: ADT Per Lane | BZ7: Utility | CA7: ADT Per Lane
B8: Maximum Pavement Remaining Service Life in Month | C8: M(max) | D8: =Input!B13 -> 100 | AB8: test cases 1, 2, 3 | AC8: test cases 4, 5 | AD8: for cases 1, 2, 3 | AE8: for cases 4, 5 | AF8: final case | AG8: case 1 | AH8: case 2 | AI8: case 3 | AJ8: case 4 | AK8: case 5 | AL8: final utililty | AM8: Average Retro | AN8: Average Useful Retro | AO8: Service Years | AP8: Utility | AR8: Solid | AS8: Dash | AT8: Solid | AU8: Dash | AV8: Solid | AW8: Dash | AX8: Solid | AY8: Dash | AZ8: 5000 | BA8: 10000 | BB8: 15000 | BC8: 20000 | BD8: 25000 | BE8: =Input!B33 -> No | BN8: 5000 | BO8: 10000 | BP8: 15000 | BQ8: 20000 | BR8: 25000 | BS8: =Input!B33 -> No | BT8: 5000 | BU8: =BO8 -> 10000 | BV8: =BP8 -> 15000 | BW8: =BQ8 -> 20000 | BX8: =BR8 -> 25000 | BY8: =Input!B33 -> No | CA8: 5000 | CB8: 10000 | CC8: 15000 | CD8: 20000 | CE8: 25000 | CF8: =Input!B33 -> No
B9: ADT Per Lane | C9: ADT | D9: No | E9: average costs | F9: % less for off-peak | G9: % more for night time | U9: Inverted | V9: PCC | W9: White | X9: =EXP(6.1985)*EXP(-0.0484*D9/1000) ->  | Y9: =(LN($D$5)-6.1985+0.0484*$D$9/1000)/(-0.0129) ->  | Z9: =(LN($D$7)-6.1985+0.0484*$D$9/1000)/(-0.0129) ->  | AA9: =EXP(6.1985-0.0484*$D$9/1000-0.0129*$D$8) ->  | AB9: =IF(Z9>=0, "cases 1, 2, 3","") ->  | AC9: =IF(Z9<0, "cases 4, 5","") ->  | AD9: =IF(AB9="","",IF($D$8<=Z9,1,IF($D$8>=Y9,3,2))) ->  | AE9: =IF(AC9="","",IF($D$8<Y9,4,5)) ->  | AF9: =IF(AD9<>"",AD9,AE9) ->  | AG9: =IF(AF9=1,($D$7-$D$5)*$D$8*$D$9,"") ->  | AH9: =IF(AF9=2,(($D$7-$D$5)*Z9+0.5*(AA9-$D$5+$D$7-$D$5)*($D$8-Z9))*$D$9,"") ->  | AI9: =IF(AF9=3,(($D$7-$D$5)*Z9+0.5*($D$7-$D$5)*(Y9-Z9))*$D$9,"") ->  | AJ9: =IF(AF9=4,0.5*$D$8*(X9-$D$5+AA9-$D$5)*$D$9,"") ->  | AK9: =IF(AF9=5,0.5*Y9*(X9-$D$5)*$D$9,"") ->  | AL9: =IF(AG9<>"",AG9,IF(AH9<>"",AH9,IF(AI9<>"",AI9,IF(AJ9<>"",AJ9,IF(AK9<>"",AK9))))) ->  | AM9: =($D$5+X9)/2 ->  | AN9: =AM9-$D$5 ->  | AO9: =MIN(Y9,$D$8) ->  | AP9: =AN9*AO9*$D$9 ->  | AQ9: =AP9/AL9 ->  | AR9: =($D$11+$D$10) ->  | AS9: =($D$12+$D$10) ->  | AT9: =($D$10+$D$11+$D$13) ->  | AU9: =($D$10+$D$12+$D$14) ->  | AV9: =$AL9/AR9 ->  | AZ9: 104.7542491 | BA9: 85.99455923 | BB9: 67.2348693 | BC9: 48.47517938 | BD9: 29.71548946 | BJ9: New Stripe | BK9: PCC | BL9: Yellow Edge | BM9: =AV10 ->  | BN9: 549.4473006 | BO9: 1085.218413 | BP9: 1045.684168 | BQ9: 591.1737494 | BR9: 201.9022408 | BT9: 411.1349825 | BU9: 819.6213415 | BV9: 1225.484589 | BW9: 1628.749912 | BX9: 1883.384229 | BZ9: =AL10 ->  | CA9: 2500000 | CB9: 5000000 | CC9: 7500000 | CD9: 10000000 | CE9: 12500000
B10: User Cost/Mile Due to Application | C10: User Cost | F10: =Input!B23/100 -> 0.15 | G10: =Input!B24/100 -> 0.15 | U10: Inverted | V10: PCC | W10: Yellow | X10: =EXP(5.6434) -> 282.4213204 | Y10: =(LN($D$6)-5.6434)/(-0.0177) -> 58.65705164 | Z10: =(LN($D$7)-5.6434)/(-0.0177) -> 19.49619398 | AA10: =EXP(5.6434-0.0177*$D$8) -> 48.10566761 | AB10: =IF(Z10>=0, "cases 1, 2, 3","") -> cases 1, 2, 3 | AC10: =IF(Z10<0, "cases 4, 5","") ->  | AD10: =IF(AB10="","",IF($D$8<=Z10,1,IF($D$8>=Y10,3,2))) -> 3 | AE10: =IF(AC10="","",IF($D$8<Y10,4,5)) ->  | AF10: =IF(AD10<>"",AD10,AE10) -> 3 | AG10: =IF(AF10=1,($D$7-$D$6)*$D$8*$D$9,"") ->  | AH10: =IF(AF10=2,(($D$7-$D$6)*Z10+0.5*(AA10-$D$6+$D$7-$D$6)*($D$8-Z10))*$D$9,"") ->  | AI10: =IF(AF10=3,(($D$7-$D$6)*Z10+0.5*($D$7-$D$6)*(Y10-Z10))*$D$9,"") ->  | AJ10: =IF(AF10=4,0.5*$D$8*(X10-$D$6+AA10-$D$6)*$D$9,"") ->  | AK10: =IF(AF10=5,0.5*Y10*(X10-$D$6)*$D$9,"") ->  | AL10: =IF(AG10<>"",AG10,IF(AH10<>"",AH10,IF(AI10<>"",AI10,IF(AJ10<>"",AJ10,IF(AK10<>"",AK10))))) ->  | AM10: =($D$5+X10)/2 -> 191.2106602 | AN10: =AM10-$D$5 -> 91.21066021 | AO10: =MIN(Y10,$D$8) -> 58.65705164 | AP10: =AN10*AO10*$D$9 ->  | AQ10: =AP10/AL10 ->  | AR10: =($D$11+$D$10) ->  | AS10: =($D$12+$D$10) ->  | AT10: =($D$10+$D$11+$D$13) ->  | AU10: =($D$10+$D$12+$D$14) ->  | AZ10: 58.65705164 | BA10: 58.65705164 | BB10: 58.65705164 | BC10: 58.65705164 | BD10: 58.65705164 | BL10: White Edge | BM10: =AV9 ->  | BN10: 549.4473006 | BO10: 1085.218413 | BP10: 1045.684168 | BQ10: 479.1427971 | BR10: 85.06939445 | BT10: 411.1349825 | BU10: 819.6213415 | BV10: 1225.484589 | BW10: 1320.092087 | BX10: 793.5442185 | BZ10: =AL9 ->  | CA10: 2500000 | CB10: 5000000 | CC10: 7500000 | CD10: 8104940.343 | CE10: 5266744.075
B11: Application Cost/Mile (Solid) | C11: Solid | D11: 6060.5 | E11: =Input!B22 -> 5270 | F11: =(1-$F$10)*E11 -> 4479.5 | G11: =(1+$G$10)*E11 -> 6060.5 | U11: Inverted | V11: AC | W11: White | AB11: =IF(Z11>=0, "cases 1, 2, 3","") -> cases 1, 2, 3 | AC11: =IF(Z11<0, "cases 4, 5","") ->  | AD11: =IF(AB11="","",IF($D$8<=Z11,1,IF($D$8>=Y11,3,2))) -> 3 | AE11: =IF(AC11="","",IF($D$8<Y11,4,5)) ->  | AF11: =IF(AD11<>"",AD11,AE11) -> 3 | AG11: =IF(AF11=1,($D$7-$D$5)*$D$8*$D$9,"") ->  | AH11: =IF(AF11=2,(($D$7-$D$5)*Z11+0.5*(AA11-$D$5+$D$7-$D$5)*($D$8-Z11))*$D$9,"") ->  | AI11: =IF(AF11=3,(($D$7-$D$5)*Z11+0.5*($D$7-$D$5)*(Y11-Z11))*$D$9,"") ->  | AJ11: =IF(AF11=4,0.5*$D$8*(X11-$D$5+AA11-$D$5)*$D$9,"") ->  | AK11: =IF(AF11=5,0.5*Y11*(X11-$D$5)*$D$9,"") ->  | AL11: =IF(AG11<>"",AG11,IF(AH11<>"",AH11,IF(AI11<>"",AI11,IF(AJ11<>"",AJ11,IF(AK11<>"",AK11))))) ->  | AM11: =($D$6+X11)/2 -> 50 | AN11: =AM11-$D$6 -> -50 | AO11: =MIN(Y11,$D$8) -> 100 | AP11: =AN11*AO11*$D$9 ->  | BL11: White Lane | BM11: =AW9 ->  | BN11: 1136.478884 | BO11: 2215.2148 | BP11: 1555.342921 | BQ11: 556.4573163 | BR11: 88.42619971 | BT11: 861.7783382 | BU11: 1711.960578 | BV11: 2550.779212 | BW11: 2738.222127 | BX11: 1523.3961 | BZ11: =AL9 ->  | CA11: 2500000 | CB11: 5000000 | CC11: 7500000 | CD11: 8104940.343 | CE11: 5266744.075
B12: Application Cost/Mile (Dash) | C12: Dash | D12: 2880.75 | E12: =Input!C22 -> 2505 | F12: =(1-$F$10)*E12 -> 2129.25 | G12: =(1+$G$10)*E12 -> 2880.75 | U12: Inverted | V12: PCC | W12: Yellow | AB12: =IF(Z12>=0, "cases 1, 2, 3","") -> cases 1, 2, 3 | AC12: =IF(Z12<0, "cases 4, 5","") ->  | AD12: =IF(AB12="","",IF($D$8<=Z12,1,IF($D$8>=Y12,3,2))) -> 3 | AE12: =IF(AC12="","",IF($D$8<Y12,4,5)) ->  | AF12: =IF(AD12<>"",AD12,AE12) -> 3 | AG12: =IF(AF12=1,($D$7-$D$6)*$D$8*$D$9,"") ->  | AH12: =IF(AF12=2,(($D$7-$D$6)*Z12+0.5*(AA12-$D$6+$D$7-$D$6)*($D$8-Z12))*$D$9,"") ->  | AI12: =IF(AF12=3,(($D$7-$D$6)*Z12+0.5*($D$7-$D$6)*(Y12-Z12))*$D$9,"") ->  | AJ12: =IF(AF12=4,0.5*$D$8*(X12-$D$6+AA12-$D$6)*$D$9,"") ->  | AK12: =IF(AF12=5,0.5*Y12*(X12-$D$6)*$D$9,"") ->  | AL12: =IF(AG12<>"",AG12,IF(AH12<>"",AH12,IF(AI12<>"",AI12,IF(AJ12<>"",AJ12,IF(AK12<>"",AK12))))) ->  | AM12: =($D$6+X12)/2 -> 50 | AN12: =AM12-$D$6 -> -50 | AO12: =MIN(Y12,$D$8) -> 100 | AP12: =AN12*AO12*$D$9 ->  | BK12: AC | BL12: Yellow Edge
B13: Removal Cost/Mile (Dolid) | C13: Removal | D13: 6037.5 | E13: =Input!D22 -> 5250 | F13: =(1-$F$10)*E13 -> 4462.5 | G13: =(1+$G$10)*E13 -> 6037.5 | BL13: White Edge
B14: Removal Cost/Mile (Dash) | C14: Dash | D14: 6037.5 | E14: =Input!E22 -> 5250 | F14: =(1-$F$10)*E14 -> 4462.5 | G14: =(1+$G$10)*E14 -> 6037.5 | BL14: White Lane
BJ15: Restripe | BK15: PCC | BL15: Yellow Edge | BM15: =AX10 ->  | BN15: 277.3916823 | BO15: 551.2759721 | BP15: 644.6157806 | BQ15: 467.7705889 | BR15: 188.3277464 | BT15: 206.3007892 | BU15: 411.9336181 | BV15: 616.9017254 | BW15: 821.2083292 | BX15: 986.2330715 | BZ15: =AL10 ->  | CA15: 2500000 | CB15: 5000000 | CC15: 7500000 | CD15: 10000000 | CE15: 12500000
BL16: White Edge | BM16: =AX9 ->  | BN16: 277.3916823 | BO16: 551.2759721 | BP16: 644.6157806 | BQ16: 379.1252717 | BR16: 79.34992339 | BT16: 206.3007892 | BU16: 411.9336181 | BV16: 616.9017254 | BW16: 665.5844517 | BX16: 415.5389749 | BZ16: =AL9 ->  | CA16: 2500000 | CB16: 5000000 | CC16: 7500000 | CD16: 8104940.343 | CE16: 5266744.075
BL17: White Lane | BM17: =AY9 ->  | BN17: 375.2470869 | BO17: 744.0899769 | BP17: 807.7903107 | BQ17: 425.9536742 | BR17: 82.26279831 | BT17: 279.6896742 | BU17: 558.1523283 | BV17: 835.3960189 | BW17: 900.8063574 | BX17: 554.7013137 | BZ17: =AL9 ->  | CA17: 2500000 | CB17: 5000000 | CC17: 7500000 | CD17: 8104940.343 | CE17: 5266744.075
BK18: AC | BL18: Yellow Edge
BL19: White Edge
BL20: White Lane
E31: urban/rural off peak user costs
C32: ADT/Lane | D32: 5000 | E32: 10000 | F32: 15000 | G32: 20000 | H32: 25000 | I32: =Input!B33 -> No
C33: User Cost | D33: =Input!C28 -> 70.52690376 | E33: =Input!C29 -> 127.867459 | F33: =Input!C30 -> 2692.837721 | G33: =Input!C31 -> 12436.00075 | H33: =Input!C32 -> 57431.65041 | I33: =Input!C33 -> 
E37: urban night user costs
C38: ADT/Lane | D38: 5000 | E38: 10000 | F38: 15000 | G38: 20000 | H38: 25000 | I38: =Input!B33 -> No
C39: User Cost | D39: =Input!D28 -> 20.228 | E39: =Input!D29 -> 39.878 | F39: =Input!D30 -> 59.528 | G39: =Input!D31 -> 79.178 | H39: =Input!D32 -> 576.4887808 | I39: =Input!D33 -> 
CH59: Calculating…Inverted

Sheet Factor Results (hidden)
A1: Calcluating Factors for Restripe
AE2: Factors for Restripe
B3: Marking Type | C3: Pavement Type | D3: Line Type | F3: PM Costs | L3: User Cost | AE3: Off-Peak Application | AK3: Night Time Application
F4: Average Costs | H4: Off-Peak Application | J4: Night Time Application | L4: Off-Peak Application | R4: Night Time Application | X4: Benefit | AE4: Factors by Different References (40, 90, tape, and inverted) | AU4: Factors by Different References (40, 90, tape, and inverted)
F5: Application | G5: Removal | H5: Application | I5: Removal | J5: Application | K5: Removal | L5: 5000 | M5: 10000 | N5: 15000 | O5: 20000 | P5: 25000 | Q5: =IF(Input!$B$33="No","",Input!$B$33) ->  | R5: 5000 | S5: 10000 | T5: 15000 | U5: 20000 | V5: 25000 | W5: =IF(Input!$B$33="No","",Input!$B$33) ->  | X5: 5000 | Y5: 10000 | Z5: 15000 | AA5: 20000 | AB5: 25000 | AC5: =IF(Input!$B$33="No","",Input!$B$33) ->  | AE5: 5000 | AF5: 10000 | AG5: 15000 | AH5: 20000 | AI5: 25000 | AJ5: =IF(Input!$B$33="No","",Input!$B$33) ->  | AU5: 5000 | AV5: 10000 | AW5: 15000 | AX5: 20000 | AY5: 25000 | AZ5: =IF(Input!$B$33="No","",Input!$B$33) -> 
B6: Thermo (40 mil) | C6: PCC | D6: Yellow Edge | E6: 40 mil | F6: =Input!$B19 -> 1039 | G6: =Input!$D19 -> 5250 | H6: =F6*(1-Input!$B$23/100) -> 883.15 | I6: =G6*(1-Input!$B$23/100) -> 4462.5 | J6: =F6*(1+Input!$B$24/100) -> 1194.85 | K6: =G6*(1+Input!$B$24/100) -> 6037.5 | L6: =Input!C28 -> 70.52690376 | M6: =Input!C29 -> 127.867459 | N6: =Input!C30 -> 2692.837721 | O6: =Input!C31 -> 12436.00075 | P6: =Input!C32 -> 57431.65041 | Q6: =Input!C33 ->  | R6: =Input!D28 -> 20.228 | S6: =Input!D29 -> 39.878 | T6: =Input!D30 -> 59.528 | U6: =Input!D31 -> 79.178 | V6: =Input!D32 -> 576.4887808 | W6: =Input!D33 ->  | X6: ='thermoplastic (40 mil)'!CA9 -> 2500000 | Y6: ='thermoplastic (40 mil)'!CB9 -> 4970052.01 | Z6: ='thermoplastic (40 mil)'!CC9 -> 7289493.689 | AA6: ='thermoplastic (40 mil)'!CD9 -> 9435025.656 | AB6: ='thermoplastic (40 mil)'!CE9 -> 11408928.35 | AC6: ='thermoplastic (40 mil)'!CF9 -> 0 | AD6: 40 mil | AE6: 1 | AF6: 1 | AG6: 1 | AH6: 1 | AI6: 1 | AJ6: 1 | AT6: 40 mil | AU6: 1 | AV6: 1 | AW6: 1 | AX6: 1 | AY6: 1 | AZ6: 1
D7: White Edge | E7: 40 mil | F7: =Input!$B19 -> 1039 | G7: =Input!$D19 -> 5250 | H7: =F7*(1-Input!$B$23/100) -> 883.15 | I7: =G7*(1-Input!$B$23/100) -> 4462.5 | J7: =F7*(1+Input!$B$24/100) -> 1194.85 | K7: =G7*(1+Input!$B$24/100) -> 6037.5 | L7: =L6 -> 70.52690376 | M7: =M6 -> 127.867459 | N7: =N6 -> 2692.837721 | O7: =O6 -> 12436.00075 | P7: =P6 -> 57431.65041 | Q7: =Q6 ->  | R7: =R6 -> 20.228 | S7: =S6 -> 39.878 | T7: =T6 -> 59.528 | U7: =U6 -> 79.178 | V7: =V6 -> 576.4887808 | W7: =W6 ->  | X7: ='thermoplastic (40 mil)'!CA10 -> 2500000 | Y7: ='thermoplastic (40 mil)'!CB10 -> 5000000 | Z7: ='thermoplastic (40 mil)'!CC10 -> 7500000 | AA7: ='thermoplastic (40 mil)'!CD10 -> 10000000 | AB7: ='thermoplastic (40 mil)'!CE10 -> 12500000 | AC7: ='thermoplastic (40 mil)'!CF10 -> 0 | AE7: 1 | AF7: 1 | AG7: 1 | AH7: 1 | AI7: 1 | AJ7: 1 | AU7: 1 | AV7: 1 | AW7: 1 | AX7: 1 | AY7: 1 | AZ7: 1
D8: White Lane | E8: 40 mil | F8: =Input!$C19 -> 391 | G8: =Input!$E19 -> 5250 | H8: =F8*(1-Input!$B$23/100) -> 332.35 | I8: =G8*(1-Input!$B$23/100) -> 4462.5 | J8: =F8*(1+Input!$B$24/100) -> 449.65 | K8: =G8*(1+Input!$B$24/100) -> 6037.5 | L8: 70.52690376 | M8: 127.867459 | N8: 2692.837721 | O8: 12436.00075 | P8: 57431.65041 | R8: 20.228 | S8: 39.878 | T8: 59.528 | U8: 79.178 | V8: 576.4887808 | X8: ='thermoplastic (40 mil)'!CA11 -> 2500000 | Y8: ='thermoplastic (40 mil)'!CB11 -> 5000000 | Z8: ='thermoplastic (40 mil)'!CC11 -> 7500000 | AA8: ='thermoplastic (40 mil)'!CD11 -> 10000000 | AB8: ='thermoplastic (40 mil)'!CE11 -> 12500000 | AC8: ='thermoplastic (40 mil)'!CF11 -> 0 | AE8: 1 | AF8: 1 | AG8: 1 | AH8: 1 | AI8: 1 | AJ8: 1 | AU8: 1 | AV8: 1 | AW8: 1 | AX8: 1 | AY8: 1 | AZ8: 1
C9: AC | D9: Yellow Edge | E9: 40 mil | F9: =Input!$B19 -> 1039 | G9: =Input!$D19 -> 5250 | H9: =F9*(1-Input!$B$23/100) -> 883.15 | I9: =G9*(1-Input!$B$23/100) -> 4462.5 | J9: =F9*(1+Input!$B$24/100) -> 1194.85 | K9: =G9*(1+Input!$B$24/100) -> 6037.5 | L9: 70.52690376 | M9: 127.867459 | N9: 2692.837721 | O9: 12436.00075 | P9: 57431.65041 | R9: 20.228 | S9: 39.878 | T9: 59.528 | U9: 79.178 | V9: 576.4887808 | X9: ='thermoplastic (40 mil)'!CA12 -> 2500000 | Y9: ='thermoplastic (40 mil)'!CB12 -> 4431623.702 | Z9: ='thermoplastic (40 mil)'!CC12 -> 4181815.181 | AA9: ='thermoplastic (40 mil)'!CD12 -> 2861205.402 | AB9: ='thermoplastic (40 mil)'!CE12 -> 774687.1289 | AC9: ='thermoplastic (40 mil)'!CF12 -> 0 | AE9: 1 | AF9: 1 | AG9: 1 | AH9: 1 | AI9: 1 | AJ9: 1 | AU9: 1 | AV9: 1 | AW9: 1 | AX9: 1 | AY9: 1 | AZ9: 1
D10: White Edge | E10: 40 mil | F10: =Input!$B19 -> 1039 | G10: =Input!$D19 -> 5250 | H10: =F10*(1-Input!$B$23/100) -> 883.15 | I10: =G10*(1-Input!$B$23/100) -> 4462.5 | J10: =F10*(1+Input!$B$24/100) -> 1194.85 | K10: =G10*(1+Input!$B$24/100) -> 6037.5 | L10: 70.52690376 | M10: 127.867459 | N10: 2692.837721 | O10: 12436.00075 | P10: 57431.65041 | R10: 20.228 | S10: 39.878 | T10: 59.528 | U10: 79.178 | V10: 576.4887808 | X10: ='thermoplastic (40 mil)'!CA13 -> 2500000 | Y10: ='thermoplastic (40 mil)'!CB13 -> 5000000 | Z10: ='thermoplastic (40 mil)'!CC13 -> 7500000 | AA10: ='thermoplastic (40 mil)'!CD13 -> 9670632.402 | AB10: ='thermoplastic (40 mil)'!CE13 -> 7922944.484 | AC10: ='thermoplastic (40 mil)'!CF13 -> 0 | AE10: 1 | AF10: 1 | AG10: 1 | AH10: 1 | AI10: 1 | AJ10: 1 | AU10: 1 | AV10: 1 | AW10: 1 | AX10: 1 | AY10: 1 | AZ10: 1
D11: White Lane | E11: 40 mil | F11: =Input!$C19 -> 391 | G11: =Input!$E19 -> 5250 | H11: =F11*(1-Input!$B$23/100) -> 332.35 | I11: =G11*(1-Input!$B$23/100) -> 4462.5 | J11: =F11*(1+Input!$B$24/100) -> 449.65 | K11: =G11*(1+Input!$B$24/100) -> 6037.5 | L11: 70.52690376 | M11: 127.867459 | N11: 2692.837721 | O11: 12436.00075 | P11: 57431.65041 | R11: 20.228 | S11: 39.878 | T11: 59.528 | U11: 79.178 | V11: 576.4887808 | X11: ='thermoplastic (40 mil)'!CA14 -> 2500000 | Y11: ='thermoplastic (40 mil)'!CB14 -> 5000000 | Z11: ='thermoplastic (40 mil)'!CC14 -> 7500000 | AA11: ='thermoplastic (40 mil)'!CD14 -> 9670632.402 | AB11: ='thermoplastic (40 mil)'!CE14 -> 7922944.484 | AC11: ='thermoplastic (40 mil)'!CF14 -> 0 | AE11: 1 | AF11: 1 | AG11: 1 | AH11: 1 | AI11: 1 | AJ11: 1 | AU11: 1 | AV11: 1 | AW11: 1 | AX11: 1 | AY11: 1 | AZ11: 1
B12: Thermo (90 mil) | C12: PCC | D12: Yellow Edge | E12: 90 mil | F12: =Input!$B20 -> 2458 | G12: =Input!$D20 -> 5250 | H12: =F12*(1-Input!$B$23/100) -> 2089.3 | I12: =G12*(1-Input!$B$23/100) -> 4462.5 | J12: =F12*(1+Input!$B$24/100) -> 2826.7 | K12: =G12*(1+Input!$B$24/100) -> 6037.5 | L12: 70.52690376 | M12: 127.867459 | N12: 2692.837721 | O12: 12436.00075 | P12: 57431.65041 | R12: 20.228 | S12: 39.878 | T12: 59.528 | U12: 79.178 | V12: 576.4887808 | X12: ='thermoplastic (90 mil)'!CA9 -> 2500000 | Y12: ='thermoplastic (90 mil)'!CB9 -> 5000000 | Z12: ='thermoplastic (90 mil)'!CC9 -> 7500000 | AA12: ='thermoplastic (90 mil)'!CD9 -> 10000000 | AB12: ='thermoplastic (90 mil)'!CE9 -> 12500000 | AC12: ='thermoplastic (90 mil)'!CF9 -> 0 | AE12: =X6/(X12+(X12-X6)*L12/($H6+$I6)) -> 1 | AF12: =Y6/(Y12+(Y12-Y6)*M12/($H6+$I6)) -> 0.99386801 | AG12: 0.958382089 | AH12: 0.8338995095 | AI12: 0.4710139005 | AU12: =X6/(X12+(X12-X6)*R12/($J6+$K6)) -> 1 | AV12: =Y6/(Y12+(Y12-Y6)*S12/($J6+$K6)) -> 0.9939775753 | AW12: 0.9717080099 | AX12: 0.942919351 | AY12: 0.9064079133
D13: White Edge | E13: 90 mil | F13: =Input!$B20 -> 2458 | G13: =Input!$D20 -> 5250 | H13: =F13*(1-Input!$B$23/100) -> 2089.3 | I13: =G13*(1-Input!$B$23/100) -> 4462.5 | J13: =F13*(1+Input!$B$24/100) -> 2826.7 | K13: =G13*(1+Input!$B$24/100) -> 6037.5 | L13: 70.52690376 | M13: 127.867459 | N13: 2692.837721 | O13: 12436.00075 | P13: 57431.65041 | R13: 20.228 | S13: 39.878 | T13: 59.528 | U13: 79.178 | V13: 576.4887808 | X13: ='thermoplastic (90 mil)'!CA10 -> 2500000 | Y13: ='thermoplastic (90 mil)'!CB10 -> 5000000 | Z13: ='thermoplastic (90 mil)'!CC10 -> 7500000 | AA13: ='thermoplastic (90 mil)'!CD10 -> 10000000 | AB13: ='thermoplastic (90 mil)'!CE10 -> 12500000 | AC13: ='thermoplastic (90 mil)'!CF10 -> 0 | AE13: =X7/(X13+(X13-X7)*L13/($H7+$I7)) -> 1 | AF13: 1 | AG13: 1 | AH13: 1 | AI13: 1 | AU13: 1 | AV13: =Y7/(Y13+(Y13-Y7)*S13/($J7+$K7)) -> 1 | AW13: 1 | AX13: 1 | AY13: 1
D14: White Lane | E14: 90 mil | F14: =Input!$C20 -> 817 | G14: =Input!$E20 -> 5250 | H14: =F14*(1-Input!$B$23/100) -> 694.45 | I14: =G14*(1-Input!$B$23/100) -> 4462.5 | J14: =F14*(1+Input!$B$24/100) -> 939.55 | K14: =G14*(1+Input!$B$24/100) -> 6037.5 | L14: 70.52690376 | M14: 127.867459 | N14: 2692.837721 | O14: 12436.00075 | P14: 57431.65041 | R14: 20.228 | S14: 39.878 | T14: 59.528 | U14: 79.178 | V14: 576.4887808 | X14: ='thermoplastic (90 mil)'!CA11 -> 2500000 | Y14: ='thermoplastic (90 mil)'!CB11 -> 5000000 | Z14: ='thermoplastic (90 mil)'!CC11 -> 7500000 | AA14: ='thermoplastic (90 mil)'!CD11 -> 10000000 | AB14: ='thermoplastic (90 mil)'!CE11 -> 12500000 | AC14: ='thermoplastic (90 mil)'!CF11 -> 0 | AE14: 1 | AF14: 1 | AG14: 1 | AH14: 1 | AI14: 1 | AU14: 1 | AV14: =Y8/(Y14+(Y14-Y8)*S14/($J8+$K8)) -> 1 | AW14: 1 | AX14: 1 | AY14: 1
C15: AC | D15: Yellow Edge | E15: 90 mil | F15: =Input!$B20 -> 2458 | G15: =Input!$D20 -> 5250 | H15: =F15*(1-Input!$B$23/100) -> 2089.3 | I15: =G15*(1-Input!$B$23/100) -> 4462.5 | J15: =F15*(1+Input!$B$24/100) -> 2826.7 | K15: =G15*(1+Input!$B$24/100) -> 6037.5 | L15: 70.52690376 | M15: 127.867459 | N15: 2692.837721 | O15: 12436.00075 | P15: 57431.65041 | R15: 20.228 | S15: 39.878 | T15: 59.528 | U15: 79.178 | V15: 576.4887808 | X15: ='thermoplastic (90 mil)'!CA12 -> 2500000 | Y15: ='thermoplastic (90 mil)'!CB12 -> 5000000 | Z15: ='thermoplastic (90 mil)'!CC12 -> 7500000 | AA15: ='thermoplastic (90 mil)'!CD12 -> 10000000 | AB15: ='thermoplastic (90 mil)'!CE12 -> 12500000 | AC15: ='thermoplastic (90 mil)'!CF12 -> 0 | AE15: 1 | AF15: 0.8839212684 | AG15: 0.4559568685 | AH15: 0.1075336627 | AI15: 0.005594525932 | AU15: 1 | AV15: =Y9/(Y15+(Y15-Y9)*S15/($J9+$K9)) -> 0.8857695516 | AW15: 0.5555523097 | AX15: 0.2839017408 | AY15: 0.0576634866
D16: White Edge | E16: 90 mil | F16: =Input!$B20 -> 2458 | G16: =Input!$D20 -> 5250 | H16: =F16*(1-Input!$B$23/100) -> 2089.3 | I16: =G16*(1-Input!$B$23/100) -> 4462.5 | J16: =F16*(1+Input!$B$24/100) -> 2826.7 | K16: =G16*(1+Input!$B$24/100) -> 6037.5 | L16: 70.52690376 | M16: 127.867459 | N16: 2692.837721 | O16: 12436.00075 | P16: 57431.65041 | R16: 20.228 | S16: 39.878 | T16: 59.528 | U16: 79.178 | V16: 576.4887808 | X16: ='thermoplastic (90 mil)'!CA13 -> 2500000 | Y16: ='thermoplastic (90 mil)'!CB13 -> 5000000 | Z16: ='thermoplastic (90 mil)'!CC13 -> 7500000 | AA16: ='thermoplastic (90 mil)'!CD13 -> 10000000 | AB16: ='thermoplastic (90 mil)'!CE13 -> 12500000 | AC16: ='thermoplastic (90 mil)'!CF13 -> 0 | AE16: 1 | AF16: 1 | AG16: 1 | AH16: 0.8982372963 | AI16: 0.1284645691 | AU16: 1 | AV16: =Y10/(Y16+(Y16-Y10)*S16/($J10+$K10)) -> 1 | AW16: 1 | AX16: 0.9667146587 | AY16: 0.6158605151
D17: White Lane | E17: 90 mil | F17: =Input!$C20 -> 817 | G17: =Input!$E20 -> 5250 | H17: =F17*(1-Input!$B$23/100) -> 694.45 | I17: =G17*(1-Input!$B$23/100) -> 4462.5 | J17: =F17*(1+Input!$B$24/100) -> 939.55 | K17: =G17*(1+Input!$B$24/100) -> 6037.5 | L17: 70.52690376 | M17: 127.867459 | N17: 2692.837721 | O17: 12436.00075 | P17: 57431.65041 | R17: 20.228 | S17: 39.878 | T17: 59.528 | U17: 79.178 | V17: 576.4887808 | X17: ='thermoplastic (90 mil)'!CA14 -> 2500000 | Y17: ='thermoplastic (90 mil)'!CB14 -> 5000000 | Z17: ='thermoplastic (90 mil)'!CC14 -> 7500000 | AA17: ='thermoplastic (90 mil)'!CD14 -> 10000000 | AB17: ='thermoplastic (90 mil)'!CE14 -> 12500000 | AC17: ='thermoplastic (90 mil)'!CF14 -> 0 | AE17: 1 | AF17: 1 | AG17: 1 | AH17: 0.8909532762 | AI17: 0.1176856293 | AU17: 1 | AV17: =Y11/(Y17+(Y17-Y11)*S17/($J11+$K11)) -> 1 | AW17: 1 | AX17: 0.9666746321 | AY17: 0.6138607356
B18: Tape | C18: PCC | D18: Yellow Edge | E18: tape | F18: =Input!$B21 -> 8108 | G18: =Input!$D21 -> 5250 | H18: =F18*(1-Input!$B$23/100) -> 6891.8 | I18: =G18*(1-Input!$B$23/100) -> 4462.5 | J18: =F18*(1+Input!$B$24/100) -> 9324.2 | K18: =G18*(1+Input!$B$24/100) -> 6037.5 | L18: 70.52690376 | M18: 127.867459 | N18: 2692.837721 | O18: 12436.00075 | P18: 57431.65041 | R18: 20.228 | S18: 39.878 | T18: 59.528 | U18: 79.178 | V18: 576.4887808 | X18: =tape!CA9 -> 2500000 | Y18: =tape!CB9 -> 5000000 | Z18: =tape!CC9 -> 7500000 | AA18: =tape!CD9 -> 10000000 | AB18: =tape!CE9 -> 12500000 | AC18: =tape!CF9 -> 0 | AE18: =X6/(X18+(X18-X6)*L18/($H6+$I6)) -> 1 | AF18: =Y6/(Y18+(Y18-Y6)*M18/($H6+$I6)) -> 0.99386801 | AG18: 0.958382089 | AH18: 0.8338995095 | AI18: 0.4710139005 | AU18: =X6/(X18+(X18-X6)*R18/($J6+$K6)) -> 1 | AV18: =Y6/(Y18+(Y18-Y6)*S18/($J6+$K6)) -> 0.9939775753 | AW18: 0.9717080099 | AX18: 0.942919351 | AY18: 0.9064079133
D19: White Edge | E19: tape | F19: =Input!$B21 -> 8108 | G19: =Input!$D21 -> 5250 | H19: =F19*(1-Input!$B$23/100) -> 6891.8 | I19: =G19*(1-Input!$B$23/100) -> 4462.5 | J19: =F19*(1+Input!$B$24/100) -> 9324.2 | K19: =G19*(1+Input!$B$24/100) -> 6037.5 | L19: 70.52690376 | M19: 127.867459 | N19: 2692.837721 | O19: 12436.00075 | P19: 57431.65041 | R19: 20.228 | S19: 39.878 | T19: 59.528 | U19: 79.178 | V19: 576.4887808 | X19: =tape!CA10 -> 2500000 | Y19: =tape!CB10 -> 5000000 | Z19: =tape!CC10 -> 7500000 | AA19: =tape!CD10 -> 10000000 | AB19: =tape!CE10 -> 12500000 | AC19: =tape!CF10 -> 0 | AE19: =X7/(X19+(X19-X7)*L19/($H7+$I7)) -> 1 | AF19: 1 | AG19: 1 | AH19: 1 | AI19: 1 | AU19: 1 | AV19: =Y7/(Y19+(Y19-Y7)*S19/($J7+$K7)) -> 1 | AW19: 1 | AX19: 1 | AY19: 1
D20: White Lane | E20: tape | F20: =Input!$C21 -> 3861 | G20: =Input!$E21 -> 5250 | H20: =F20*(1-Input!$B$23/100) -> 3281.85 | I20: =G20*(1-Input!$B$23/100) -> 4462.5 | J20: =F20*(1+Input!$B$24/100) -> 4440.15 | K20: =G20*(1+Input!$B$24/100) -> 6037.5 | L20: 70.52690376 | M20: 127.867459 | N20: 2692.837721 | O20: 12436.00075 | P20: 57431.65041 | R20: 20.228 | S20: 39.878 | T20: 59.528 | U20: 79.178 | V20: 576.4887808 | X20: =tape!CA11 -> 2500000 | Y20: =tape!CB11 -> 5000000 | Z20: =tape!CC11 -> 7500000 | AA20: =tape!CD11 -> 10000000 | AB20: =tape!CE11 -> 12500000 | AC20: =tape!CF11 -> 0 | AE20: 1 | AF20: 1 | AG20: 1 | AH20: 1 | AI20: 1 | AU20: 1 | AV20: =Y8/(Y20+(Y20-Y8)*S20/($J8+$K8)) -> 1 | AW20: 1 | AX20: 1 | AY20: 1
C21: AC | D21: Yellow Edge | E21: tape | F21: =Input!$B21 -> 8108 | G21: =Input!$D21 -> 5250 | H21: =F21*(1-Input!$B$23/100) -> 6891.8 | I21: =G21*(1-Input!$B$23/100) -> 4462.5 | J21: =F21*(1+Input!$B$24/100) -> 9324.2 | K21: =G21*(1+Input!$B$24/100) -> 6037.5 | L21: 70.52690376 | M21: 127.867459 | N21: 2692.837721 | O21: 12436.00075 | P21: 57431.65041 | R21: 20.228 | S21: 39.878 | T21: 59.528 | U21: 79.178 | V21: 576.4887808 | X21: =tape!CA12 -> 2500000 | Y21: =tape!CB12 -> 5000000 | Z21: =tape!CC12 -> 7500000 | AA21: =tape!CD12 -> 10000000 | AB21: =tape!CE12 -> 12500000 | AC21: =tape!CF12 -> 0 | AE21: 1 | AF21: 0.8839212684 | AG21: 0.4559568685 | AH21: 0.1075336627 | AI21: 0.005594525932 | AU21: 1 | AV21: =Y9/(Y21+(Y21-Y9)*S21/($J9+$K9)) -> 0.8857695516 | AW21: 0.5555523097 | AX21: 0.2839017408 | AY21: 0.0576634866
D22: White Edge | E22: tape | F22: =Input!$B21 -> 8108 | G22: =Input!$D21 -> 5250 | H22: =F22*(1-Input!$B$23/100) -> 6891.8 | I22: =G22*(1-Input!$B$23/100) -> 4462.5 | J22: =F22*(1+Input!$B$24/100) -> 9324.2 | K22: =G22*(1+Input!$B$24/100) -> 6037.5 | L22: 70.52690376 | M22: 127.867459 | N22: 2692.837721 | O22: 12436.00075 | P22: 57431.65041 | R22: 20.228 | S22: 39.878 | T22: 59.528 | U22: 79.178 | V22: 576.4887808 | X22: =tape!CA13 -> 2500000 | Y22: =tape!CB13 -> 5000000 | Z22: =tape!CC13 -> 7500000 | AA22: =tape!CD13 -> 10000000 | AB22: =tape!CE13 -> 12500000 | AC22: =tape!CF13 -> 0 | AE22: 1 | AF22: 1 | AG22: 1 | AH22: 0.8982372963 | AI22: 0.1284645691 | AU22: 1 | AV22: =Y10/(Y22+(Y22-Y10)*S22/($J10+$K10)) -> 1 | AW22: 1 | AX22: 0.9667146587 | AY22: 0.6158605151
D23: White Lane | E23: tape | F23: =Input!$C21 -> 3861 | G23: =Input!$E21 -> 5250 | H23: =F23*(1-Input!$B$23/100) -> 3281.85 | I23: =G23*(1-Input!$B$23/100) -> 4462.5 | J23: =F23*(1+Input!$B$24/100) -> 4440.15 | K23: =G23*(1+Input!$B$24/100) -> 6037.5 | L23: 70.52690376 | M23: 127.867459 | N23: 2692.837721 | O23: 12436.00075 | P23: 57431.65041 | R23: 20.228 | S23: 39.878 | T23: 59.528 | U23: 79.178 | V23: 576.4887808 | X23: =tape!CA14 -> 2500000 | Y23: =tape!CB14 -> 5000000 | Z23: =tape!CC14 -> 7500000 | AA23: =tape!CD14 -> 10000000 | AB23: =tape!CE14 -> 12500000 | AC23: =tape!CF14 -> 0 | AE23: 1 | AF23: 1 | AG23: 1 | AH23: 0.8909532762 | AI23: 0.1176856293 | AU23: 1 | AV23: =Y11/(Y23+(Y23-Y11)*S23/($J11+$K11)) -> 1 | AW23: 1 | AX23: 0.9666746321 | AY23: 0.6138607356
B24: Inverted | C24: PCC | D24: Yellow Edge | E24: inverted | F24: =Input!$B22 -> 5270 | G24: =Input!$D22 -> 5250 | H24: =F24*(1-Input!$B$23/100) -> 4479.5 | I24: =G24*(1-Input!$B$23/100) -> 4462.5 | J24: =F24*(1+Input!$B$24/100) -> 6060.5 | K24: =G24*(1+Input!$B$24/100) -> 6037.5 | L24: 70.52690376 | M24: 127.867459 | N24: 2692.837721 | O24: 12436.00075 | P24: 57431.65041 | R24: 20.228 | S24: 39.878 | T24: 59.528 | U24: 79.178 | V24: 576.4887808 | X24: =inverted!CA9 -> 2500000 | Y24: =inverted!CB9 -> 5000000 | Z24: =inverted!CC9 -> 7500000 | AA24: =inverted!CD9 -> 10000000 | AB24: =inverted!CE9 -> 12500000 | AC24: =inverted!CF9 -> 0 | AE24: =X6/(X24+(X24-X6)*L24/($H6+$I6)) -> 1 | AF24: =Y6/(Y24+(Y24-Y6)*M24/($H6+$I6)) -> 0.99386801 | AG24: 0.958382089 | AH24: 0.8338995095 | AI24: 0.4710139005 | AU24: =X6/(X24+(X24-X6)*R24/($J6+$K6)) -> 1 | AV24: =Y6/(Y24+(Y24-Y6)*S24/($J6+$K6)) -> 0.9939775753 | AW24: 0.9717080099 | AX24: 0.942919351 | AY24: 0.9064079133
D25: White Edge | E25: inverted | F25: =Input!$B22 -> 5270 | G25: =Input!$D22 -> 5250 | H25: =F25*(1-Input!$B$23/100) -> 4479.5 | I25: =G25*(1-Input!$B$23/100) -> 4462.5 | J25: =F25*(1+Input!$B$24/100) -> 6060.5 | K25: =G25*(1+Input!$B$24/100) -> 6037.5 | L25: 70.52690376 | M25: 127.867459 | N25: 2692.837721 | O25: 12436.00075 | P25: 57431.65041 | R25: 20.228 | S25: 39.878 | T25: 59.528 | U25: 79.178 | V25: 576.4887808 | X25: =inverted!CA10 -> 2500000 | Y25: =inverted!CB10 -> 5000000 | Z25: =inverted!CC10 -> 7500000 | AA25: =inverted!CD10 -> 8104940.343 | AB25: =inverted!CE10 -> 5266744.075 | AC25: =inverted!CF10 -> 0 | AE25: =X7/(X25+(X25-X7)*L25/($H7+$I7)) -> 1 | AF25: 1 | AG25: 1 | AH25: 2.705396482 | AI25: -0.1725455619 | AU25: =X7/(X25+(X25-X7)*R25/($J7+$K7)) -> 1 | AV25: =Y7/(Y25+(Y25-Y7)*S25/($J7+$K7)) -> 1 | AW25: 1 | AX25: 1.236981742 | AY25: 2.665141163
D26: White Lane | E26: inverted | F26: =Input!$C22 -> 2505 | G26: =Input!$E22 -> 5250 | H26: =F26*(1-Input!$B$23/100) -> 2129.25 | I26: =G26*(1-Input!$B$23/100) -> 4462.5 | J26: =F26*(1+Input!$B$24/100) -> 2880.75 | K26: =G26*(1+Input!$B$24/100) -> 6037.5 | L26: 70.52690376 | M26: 127.867459 | N26: 2692.837721 | O26: 12436.00075 | P26: 57431.65041 | R26: 20.228 | S26: 39.878 | T26: 59.528 | U26: 79.178 | V26: 576.4887808 | X26: =inverted!CA11 -> 2500000 | Y26: =inverted!CB11 -> 5000000 | Z26: =inverted!CC11 -> 7500000 | AA26: =inverted!CD11 -> 8104940.343 | AB26: =inverted!CE11 -> 5266744.075 | AC26: =inverted!CF11 -> 0 | AE26: 1 | AF26: 1 | AG26: 1 | AH26: 3.134911344 | AI26: -0.1536162645 | AU26: =X8/(X26+(X26-X8)*R26/($J8+$K8)) -> 1 | AV26: =Y8/(Y26+(Y26-Y8)*S26/($J8+$K8)) -> 1 | AW26: 1 | AX26: 1.237346514 | AY26: 2.703315465
C27: AC | D27: Yellow Edge | E27: inverted | X27: =inverted!CA12 -> 0 | Y27: =inverted!CB12 -> 0 | Z27: =inverted!CC12 -> 0 | AA27: =inverted!CD12 -> 0 | AB27: =inverted!CE12 -> 0 | AC27: =inverted!CF12 -> 0
D28: White Edge | E28: inverted | X28: =inverted!CA13 -> 0 | Y28: =inverted!CB13 -> 0 | Z28: =inverted!CC13 -> 0 | AA28: =inverted!CD13 -> 0 | AB28: =inverted!CE13 -> 0 | AC28: =inverted!CF13 -> 0
D29: White Lane | E29: inverted | X29: =inverted!CA14 -> 0 | Y29: =inverted!CB14 -> 0 | Z29: =inverted!CC14 -> 0 | AA29: =inverted!CD14 -> 0 | AB29: =inverted!CE14 -> 0 | AC29: =inverted!CF14 -> 0
AD30: 90 mil | AE30: =X12/(X6+(X6-X12)*L6/($H12+$I12)) -> 1 | AF30: =Y12/(Y6+(Y6-Y12)*M6/($H12+$I12)) -> 1.006144012 | AG30: 1.04123657 | AH30: 1.195793866 | AI30: 6.775684359 | AN30: 5000 | AO30: 10000 | AP30: 15000 | AQ30: 20000 | AR30: 25000 | AS30: =IF(Input!$B$33="No","",Input!$B$33) ->  | AT30: 90 mil | AU30: =X12/(X6+(X6-X12)*R6/($J12+$K12)) -> 1 | AV30: =Y12/(Y6+(Y6-Y12)*S6/($J12+$K12)) -> 1.006052962 | AW30: 1.029077614 | AX30: 1.060447736 | AY30: 1.102490146
U31: Finding Min Benefit/Cost | V31: PCC | W31: Yellow Edge | X31: =MIN(Results!E6,Results!E12,Results!E18,Results!E24) -> 218.821696 | Y31: =MIN(Results!F6,Results!F12,Results!F18,Results!F24) -> 435.4578539 | Z31: =MIN(Results!G6,Results!G12,Results!G18,Results!G24) -> 533.9165992 | AA31: =MIN(Results!H6,Results!H12,Results!H18,Results!H24) -> 420.3393688 | AB31: =MIN(Results!I6,Results!I12,Results!I18,Results!I24) -> 181.723156 | AC31: =MIN(Results!J6,Results!J12,Results!J18,Results!J24) -> 0 | AE31: =X13/(X7+(X7-X13)*L7/($H13+$I13)) -> 1 | AF31: 1 | AG31: 1 | AH31: 1 | AI31: 1 | AK31: Finding Min Benefit/Cost | AL31: PCC | AM31: Yellow Edge | AN31: =MIN(Results!L6,Results!L12,Results!L18,Results!L24) -> 162.5283905 | AO31: =MIN(Results!M6,Results!M12,Results!M18,Results!M24) -> 324.6420594 | AP31: =MIN(Results!N6,Results!N12,Results!N18,Results!N24) -> 486.3425922 | AQ31: =MIN(Results!O6,Results!O12,Results!O18,Results!O24) -> 647.631566 | AR31: =MIN(Results!P6,Results!P12,Results!P18,Results!P24) -> 784.2798308 | AS31: =MIN(Results!Q6,Results!Q12,Results!Q18,Results!Q24) -> 0 | AU31: 1 | AV31: =Y13/(Y7+(Y7-Y13)*S7/($J13+$K13)) -> 1 | AW31: 1 | AX31: 1 | AY31: 1
W32: White Edge | X32: =MIN(Results!E7,Results!E13,Results!E19,Results!E25) -> 218.821696 | Y32: =MIN(Results!F7,Results!F13,Results!F19,Results!F25) -> 435.4578539 | Z32: =MIN(Results!G7,Results!G13,Results!G19,Results!G25) -> 533.9165992 | AA32: =MIN(Results!H7,Results!H13,Results!H19,Results!H25) -> 379.1252717 | AB32: =MIN(Results!I7,Results!I13,Results!I19,Results!I25) -> 79.34992339 | AC32: =MIN(Results!J7,Results!J13,Results!J19,Results!J25) -> 0 | AE32: 1 | AF32: 1 | AG32: 1 | AH32: 1 | AI32: 1 | AM32: White Edge | AN32: =MIN(Results!L7,Results!L13,Results!L19,Results!L25) -> 162.5283905 | AO32: =MIN(Results!M7,Results!M13,Results!M19,Results!M25) -> 324.6420594 | AP32: =MIN(Results!N7,Results!N13,Results!N19,Results!N25) -> 486.3425922 | AQ32: =MIN(Results!O7,Results!O13,Results!O19,Results!O25) -> 647.631566 | AR32: =MIN(Results!P7,Results!P13,Results!P19,Results!P25) -> 415.5389749 | AS32: =MIN(Results!Q7,Results!Q13,Results!Q19,Results!Q25) -> 0 | AU32: 1 | AV32: =Y14/(Y8+(Y8-Y14)*S8/($J14+$K14)) -> 1 | AW32: 1 | AX32: 1 | AY32: 1
W33: White Lane | X33: =MIN(Results!E8,Results!E14,Results!E20,Results!E26) -> 319.9026716 | Y33: =MIN(Results!F8,Results!F14,Results!F20,Results!F26) -> 635.1450561 | Z33: =MIN(Results!G8,Results!G14,Results!G20,Results!G26) -> 718.5843736 | AA33: =MIN(Results!H8,Results!H14,Results!H20,Results!H26) -> 425.9536742 | AB33: =MIN(Results!I8,Results!I14,Results!I20,Results!I26) -> 82.26279831 | AC33: =MIN(Results!J8,Results!J14,Results!J20,Results!J26) -> 0 | AE33: 1 | AF33: 1.131085823 | AG33: 2.661446021 | AH33: -0.9355436258 | AI33: -0.1225407911 | AM33: White Lane | AN33: =MIN(Results!L8,Results!L14,Results!L20,Results!L26) -> 238.1433657 | AO33: =MIN(Results!M8,Results!M14,Results!M20,Results!M26) -> 475.3968803 | AP33: =MIN(Results!N8,Results!N14,Results!N20,Results!N26) -> 711.765522 | AQ33: =MIN(Results!O8,Results!O14,Results!O20,Results!O26) -> 900.8063574 | AR33: =MIN(Results!P8,Results!P14,Results!P20,Results!P26) -> 554.7013137 | AS33: =MIN(Results!Q8,Results!Q14,Results!Q20,Results!Q26) -> 0 | AU33: 1 | AV33: =Y15/(Y9+(Y9-Y15)*S9/($J15+$K15)) -> 1.128906004 | AW33: 1.803087577 | AX33: 3.57469776 | AY33: 1031.005525
V34: AC | W34: Yellow Edge | X34: =MIN(Results!E9,Results!E15,Results!E21) -> 218.821696 | Y34: =MIN(Results!F9,Results!F15,Results!F21) -> 435.4578539 | Z34: =MIN(Results!G9,Results!G15,Results!G21) -> 520.2241175 | AA34: =MIN(Results!H9,Results!H15,Results!H21) -> 160.9077494 | AB34: =MIN(Results!I9,Results!I15,Results!I21) -> 12.34024279 | AC34: =MIN(Results!J9,Results!J15,Results!J21) -> 0 | AE34: 1 | AF34: 1 | AG34: 1 | AH34: 1.10552718 | AI34: -0.3882165252 | AL34: AC | AM34: Yellow Edge | AN34: =MIN(Results!L9,Results!L15,Results!L21) -> 162.5283905 | AO34: =MIN(Results!M9,Results!M15,Results!M21) -> 324.6420594 | AP34: =MIN(Results!N9,Results!N15,Results!N21) -> 486.3425922 | AQ34: =MIN(Results!O9,Results!O15,Results!O21) -> 391.327969 | AR34: =MIN(Results!P9,Results!P15,Results!P21) -> 99.20644421 | AS34: =MIN(Results!Q9,Results!Q15,Results!Q21) -> 0 | AU34: 1 | AV34: =Y16/(Y10+(Y10-Y16)*S10/($J16+$K16)) -> 1 | AW34: 1 | AX34: 1.034373217 | AY34: 1.639285609
W35: White Edge | X35: =MIN(Results!E10,Results!E16,Results!E22) -> 218.821696 | Y35: =MIN(Results!F10,Results!F16,Results!F22) -> 435.4578539 | Z35: =MIN(Results!G10,Results!G16,Results!G22) -> 533.9165992 | AA35: =MIN(Results!H10,Results!H16,Results!H22) -> 420.3393688 | AB35: =MIN(Results!I10,Results!I16,Results!I22) -> 126.207155 | AC35: =MIN(Results!J10,Results!J16,Results!J22) -> 0 | AE35: 1 | AF35: 1 | AG35: 1 | AH35: 1.126587744 | AI35: -0.2903562192 | AM35: White Edge | AN35: =MIN(Results!L10,Results!L16,Results!L22) -> 162.5283905 | AO35: =MIN(Results!M10,Results!M16,Results!M22) -> 324.6420594 | AP35: =MIN(Results!N10,Results!N16,Results!N22) -> 486.3425922 | AQ35: =MIN(Results!O10,Results!O16,Results!O22) -> 647.631566 | AR35: =MIN(Results!P10,Results!P16,Results!P22) -> 784.2798308 | AS35: =MIN(Results!Q10,Results!Q16,Results!Q22) -> 0 | AU35: 1 | AV35: =Y17/(Y11+(Y11-Y17)*S11/($J17+$K17)) -> 1 | AW35: 1 | AX35: 1.034458364 | AY35: 1.656779296
W36: White Lane | X36: =MIN(Results!E11,Results!E17,Results!E23) -> 319.9026716 | Y36: =MIN(Results!F11,Results!F17,Results!F23) -> 635.1450561 | Z36: =MIN(Results!G11,Results!G17,Results!G23) -> 718.5843736 | AA36: =MIN(Results!H11,Results!H17,Results!H23) -> 495.5315259 | AB36: =MIN(Results!I11,Results!I17,Results!I23) -> 127.324282 | AC36: =MIN(Results!J11,Results!J17,Results!J23) -> 0 | AE36: 1 | AF36: 1 | AG36: 1 | AH36: 1 | AI36: 1 | AJ36: 1 | AM36: White Lane | AN36: =MIN(Results!L11,Results!L17,Results!L23) -> 238.1433657 | AO36: =MIN(Results!M11,Results!M17,Results!M23) -> 475.3968803 | AP36: =MIN(Results!N11,Results!N17,Results!N23) -> 711.765522 | AQ36: =MIN(Results!O11,Results!O17,Results!O23) -> 947.254232 | AR36: =MIN(Results!P11,Results!P17,Results!P23) -> 1121.651988 | AS36: =MIN(Results!Q11,Results!Q17,Results!Q23) -> 0 | AU36: 1 | AV36: 1 | AW36: 1 | AX36: 1 | AY36: 1 | AZ36: 1
U37: found min Benefit/Cost | V37: PCC | W37: Yellow Edge | X37: =IF(X31=Results!E6,"40 mil",IF(X31=Results!E12,"90 mil",IF(X31=Results!E18,"Tape","Inverted"))) -> Tape | Y37: =IF(Y31=Results!F6,"40 mil",IF(Y31=Results!F12,"90 mil",IF(Y31=Results!F18,"Tape","Inverted"))) -> Tape | Z37: =IF(Z31=Results!G6,"40 mil",IF(Z31=Results!G12,"90 mil",IF(Z31=Results!G18,"Tape","Inverted"))) -> Tape | AA37: =IF(AA31=Results!H6,"40 mil",IF(AA31=Results!H12,"90 mil",IF(AA31=Results!H18,"Tape","Inverted"))) -> Tape | AB37: =IF(AB31=Results!I6,"40 mil",IF(AB31=Results!I12,"90 mil",IF(AB31=Results!I18,"Tape","Inverted"))) -> Tape | AC37: =IF(AC31=Results!J6,"40 mil",IF(AC31=Results!J12,"90 mil",IF(AC31=Results!J18,"Tape","Inverted"))) -> 40 mil | AE37: 1 | AF37: 1 | AG37: 1 | AH37: 1 | AI37: 1 | AJ37: 1 | AK37: found min Benefit/Cost | AL37: PCC | AM37: Yellow Edge | AN37: =IF(AN31=Results!L6,"40 mil",IF(AN31=Results!L12,"90 mil",IF(AN31=Results!L18,"Tape","Inverted"))) -> Tape | AO37: =IF(AO31=Results!M6,"40 mil",IF(AO31=Results!M12,"90 mil",IF(AO31=Results!M18,"Tape","Inverted"))) -> Tape | AP37: =IF(AP31=Results!N6,"40 mil",IF(AP31=Results!N12,"90 mil",IF(AP31=Results!N18,"Tape","Inverted"))) -> Tape | AQ37: =IF(AQ31=Results!O6,"40 mil",IF(AQ31=Results!O12,"90 mil",IF(AQ31=Results!O18,"Tape","Inverted"))) -> Tape | AR37: =IF(AR31=Results!P6,"40 mil",IF(AR31=Results!P12,"90 mil",IF(AR31=Results!P18,"Tape","Inverted"))) -> Tape | AS37: =IF(AS31=Results!Q6,"40 mil",IF(AS31=Results!Q12,"90 mil",IF(AS31=Results!Q18,"Tape","Inverted"))) -> 40 mil | AU37: 1 | AV37: 1 | AW37: 1 | AX37: 1 | AY37: 1 | AZ37: 1
W38: White Edge | X38: =IF(X32=Results!E7,"40 mil",IF(X32=Results!E13,"90 mil",IF(X32=Results!E19,"Tape","Inverted"))) -> Tape | Y38: =IF(Y32=Results!F7,"40 mil",IF(Y32=Results!F13,"90 mil",IF(Y32=Results!F19,"Tape","Inverted"))) -> Tape | Z38: =IF(Z32=Results!G7,"40 mil",IF(Z32=Results!G13,"90 mil",IF(Z32=Results!G19,"Tape","Inverted"))) -> Tape | AA38: =IF(AA32=Results!H7,"40 mil",IF(AA32=Results!H13,"90 mil",IF(AA32=Results!H19,"Tape","Inverted"))) -> Inverted | AB38: =IF(AB32=Results!I7,"40 mil",IF(AB32=Results!I13,"90 mil",IF(AB32=Results!I19,"Tape","Inverted"))) -> Inverted | AC38: =IF(AC32=Results!J7,"40 mil",IF(AC32=Results!J13,"90 mil",IF(AC32=Results!J19,"Tape","Inverted"))) -> 40 mil | AE38: 1 | AF38: 1 | AG38: 1 | AH38: 1 | AI38: 1 | AJ38: 1 | AM38: White Edge | AN38: =IF(AN32=Results!L7,"40 mil",IF(AN32=Results!L13,"90 mil",IF(AN32=Results!L19,"Tape","Inverted"))) -> Tape | AO38: =IF(AO32=Results!M7,"40 mil",IF(AO32=Results!M13,"90 mil",IF(AO32=Results!M19,"Tape","Inverted"))) -> Tape | AP38: =IF(AP32=Results!N7,"40 mil",IF(AP32=Results!N13,"90 mil",IF(AP32=Results!N19,"Tape","Inverted"))) -> Tape | AQ38: =IF(AQ32=Results!O7,"40 mil",IF(AQ32=Results!O13,"90 mil",IF(AQ32=Results!O19,"Tape","Inverted"))) -> Tape | AR38: =IF(AR32=Results!P7,"40 mil",IF(AR32=Results!P13,"90 mil",IF(AR32=Results!P19,"Tape","Inverted"))) -> Inverted | AS38: =IF(AS32=Results!Q7,"40 mil",IF(AS32=Results!Q13,"90 mil",IF(AS32=Results!Q19,"Tape","Inverted"))) -> 40 mil | AU38: 1 | AV38: 1 | AW38: 1 | AX38: 1 | AY38: 1 | AZ38: 1
W39: White Lane | X39: =IF(X33=Results!E8,"40 mil",IF(X33=Results!E14,"90 mil",IF(X33=Results!E20,"Tape","Inverted"))) -> Tape | Y39: =IF(Y33=Results!F8,"40 mil",IF(Y33=Results!F14,"90 mil",IF(Y33=Results!F20,"Tape","Inverted"))) -> Tape | Z39: =IF(Z33=Results!G8,"40 mil",IF(Z33=Results!G14,"90 mil",IF(Z33=Results!G20,"Tape","Inverted"))) -> Tape | AA39: =IF(AA33=Results!H8,"40 mil",IF(AA33=Results!H14,"90 mil",IF(AA33=Results!H20,"Tape","Inverted"))) -> Inverted | AB39: =IF(AB33=Results!I8,"40 mil",IF(AB33=Results!I14,"90 mil",IF(AB33=Results!I20,"Tape","Inverted"))) -> Inverted | AC39: =IF(AC33=Results!J8,"40 mil",IF(AC33=Results!J14,"90 mil",IF(AC33=Results!J20,"Tape","Inverted"))) -> 40 mil | AE39: 1 | AF39: 1 | AG39: 1 | AH39: 1 | AI39: 1 | AJ39: 1 | AM39: White Lane | AN39: =IF(AN33=Results!L8,"40 mil",IF(AN33=Results!L14,"90 mil",IF(AN33=Results!L20,"Tape","Inverted"))) -> Tape | AO39: =IF(AO33=Results!M8,"40 mil",IF(AO33=Results!M14,"90 mil",IF(AO33=Results!M20,"Tape","Inverted"))) -> Tape | AP39: =IF(AP33=Results!N8,"40 mil",IF(AP33=Results!N14,"90 mil",IF(AP33=Results!N20,"Tape","Inverted"))) -> Tape | AQ39: =IF(AQ33=Results!O8,"40 mil",IF(AQ33=Results!O14,"90 mil",IF(AQ33=Results!O20,"Tape","Inverted"))) -> Inverted | AR39: =IF(AR33=Results!P8,"40 mil",IF(AR33=Results!P14,"90 mil",IF(AR33=Results!P20,"Tape","Inverted"))) -> Inverted | AS39: =IF(AS33=Results!Q8,"40 mil",IF(AS33=Results!Q14,"90 mil",IF(AS33=Results!Q20,"Tape","Inverted"))) -> 40 mil | AU39: 1 | AV39: 1 | AW39: 1 | AX39: 1 | AY39: 1 | AZ39: 1
V40: AC | W40: Yellow Edge | X40: =IF(X34=Results!E9,"40 mil",IF(X34=Results!E15,"90 mil","Tape")) -> Tape | Y40: =IF(Y34=Results!F9,"40 mil",IF(Y34=Results!F15,"90 mil","Tape")) -> Tape | Z40: =IF(Z34=Results!G9,"40 mil",IF(Z34=Results!G15,"90 mil","Tape")) -> 40 mil | AA40: =IF(AA34=Results!H9,"40 mil",IF(AA34=Results!H15,"90 mil","Tape")) -> 40 mil | AB40: =IF(AB34=Results!I9,"40 mil",IF(AB34=Results!I15,"90 mil","Tape")) -> 40 mil | AC40: =IF(AC34=Results!J9,"40 mil",IF(AC34=Results!J15,"90 mil","Tape")) -> 40 mil | AE40: 1 | AF40: 1 | AG40: 1 | AH40: 1 | AI40: 1 | AJ40: 1 | AL40: AC | AM40: Yellow Edge | AN40: =IF(AN34=Results!L9,"40 mil",IF(AN34=Results!L15,"90 mil","Tape")) -> Tape | AO40: =IF(AO34=Results!M9,"40 mil",IF(AO34=Results!M15,"90 mil","Tape")) -> Tape | AP40: =IF(AP34=Results!N9,"40 mil",IF(AP34=Results!N15,"90 mil","Tape")) -> Tape | AQ40: =IF(AQ34=Results!O9,"40 mil",IF(AQ34=Results!O15,"90 mil","Tape")) -> 40 mil | AR40: =IF(AR34=Results!P9,"40 mil",IF(AR34=Results!P15,"90 mil","Tape")) -> 40 mil | AS40: =IF(AS34=Results!Q9,"40 mil",IF(AS34=Results!Q15,"90 mil","Tape")) -> 40 mil | AU40: 1 | AV40: 1 | AW40: 1 | AX40: 1 | AY40: 1 | AZ40: 1
W41: White Edge | X41: =IF(X35=Results!E10,"40 mil",IF(X35=Results!E16,"90 mil","Tape")) -> Tape | Y41: =IF(Y35=Results!F10,"40 mil",IF(Y35=Results!F16,"90 mil","Tape")) -> Tape | Z41: =IF(Z35=Results!G10,"40 mil",IF(Z35=Results!G16,"90 mil","Tape")) -> Tape | AA41: =IF(AA35=Results!H10,"40 mil",IF(AA35=Results!H16,"90 mil","Tape")) -> Tape | AB41: =IF(AB35=Results!I10,"40 mil",IF(AB35=Results!I16,"90 mil","Tape")) -> 40 mil | AC41: =IF(AC35=Results!J10,"40 mil",IF(AC35=Results!J16,"90 mil","Tape")) -> 40 mil | AE41: 1 | AF41: 1 | AG41: 1 | AH41: 1 | AI41: 1 | AJ41: 1 | AM41: White Edge | AN41: =IF(AN35=Results!L10,"40 mil",IF(AN35=Results!L16,"90 mil","Tape")) -> Tape | AO41: =IF(AO35=Results!M10,"40 mil",IF(AO35=Results!M16,"90 mil","Tape")) -> Tape | AP41: =IF(AP35=Results!N10,"40 mil",IF(AP35=Results!N16,"90 mil","Tape")) -> Tape | AQ41: =IF(AQ35=Results!O10,"40 mil",IF(AQ35=Results!O16,"90 mil","Tape")) -> Tape | AR41: =IF(AR35=Results!P10,"40 mil",IF(AR35=Results!P16,"90 mil","Tape")) -> Tape | AS41: =IF(AS35=Results!Q10,"40 mil",IF(AS35=Results!Q16,"90 mil","Tape")) -> 40 mil | AU41: 1 | AV41: 1 | AW41: 1 | AX41: 1 | AY41: 1 | AZ41: 1
W42: White Lane | X42: =IF(X36=Results!E11,"40 mil",IF(X36=Results!E17,"90 mil","Tape")) -> Tape | Y42: =IF(Y36=Results!F11,"40 mil",IF(Y36=Results!F17,"90 mil","Tape")) -> Tape | Z42: =IF(Z36=Results!G11,"40 mil",IF(Z36=Results!G17,"90 mil","Tape")) -> Tape | AA42: =IF(AA36=Results!H11,"40 mil",IF(AA36=Results!H17,"90 mil","Tape")) -> Tape | AB42: =IF(AB36=Results!I11,"40 mil",IF(AB36=Results!I17,"90 mil","Tape")) -> 40 mil | AC42: =IF(AC36=Results!J11,"40 mil",IF(AC36=Results!J17,"90 mil","Tape")) -> 40 mil | AE42: =X12/(X18+(X18-X12)*L18/($H12+$I12)) -> 1 | AF42: =Y12/(Y18+(Y18-Y12)*M18/($H12+$I12)) -> 1 | AG42: 1 | AH42: 1 | AI42: 1 | AM42: White Lane | AN42: =IF(AN36=Results!L11,"40 mil",IF(AN36=Results!L17,"90 mil","Tape")) -> Tape | AO42: =IF(AO36=Results!M11,"40 mil",IF(AO36=Results!M17,"90 mil","Tape")) -> Tape | AP42: =IF(AP36=Results!N11,"40 mil",IF(AP36=Results!N17,"90 mil","Tape")) -> Tape | AQ42: =IF(AQ36=Results!O11,"40 mil",IF(AQ36=Results!O17,"90 mil","Tape")) -> Tape | AR42: =IF(AR36=Results!P11,"40 mil",IF(AR36=Results!P17,"90 mil","Tape")) -> 40 mil | AS42: =IF(AS36=Results!Q11,"40 mil",IF(AS36=Results!Q17,"90 mil","Tape")) -> 40 mil | AU42: =X12/(X18+(X18-X12)*R18/($J12+$K12)) -> 1 | AV42: =Y12/(Y18+(Y18-Y12)*S18/($J12+$K12)) -> 1 | AW42: 1 | AX42: 1 | AY42: 1
AE43: =X13/(X19+(X19-X13)*L19/($H13+$I13)) -> 1 | AF43: 1 | AG43: 1 | AH43: 1 | AI43: 1 | AU43: 1 | AV43: =Y13/(Y19+(Y19-Y13)*S19/($J13+$K13)) -> 1 | AW43: 1 | AX43: 1 | AY43: 1
AE44: 1 | AF44: 1 | AG44: 1 | AH44: 1 | AI44: 1 | AU44: 1 | AV44: =Y14/(Y20+(Y20-Y14)*S20/($J14+$K14)) -> 1 | AW44: 1 | AX44: 1 | AY44: 1
AE45: 1 | AF45: 1 | AG45: 1 | AH45: 1 | AI45: 1 | AU45: 1 | AV45: =Y15/(Y21+(Y21-Y15)*S21/($J15+$K15)) -> 1 | AW45: 1 | AX45: 1 | AY45: 1
AE46: 1 | AF46: 1 | AG46: 1 | AH46: 1 | AI46: 1 | AU46: 1 | AV46: =Y16/(Y22+(Y22-Y16)*S22/($J16+$K16)) -> 1 | AW46: 1 | AX46: 1 | AY46: 1
AE47: 1 | AF47: 1 | AG47: 1 | AH47: 1 | AI47: 1 | AU47: 1 | AV47: =Y17/(Y23+(Y23-Y17)*S23/($J17+$K17)) -> 1 | AW47: 1 | AX47: 1 | AY47: 1
AE48: =X12/(X24+(X24-X12)*L24/($H12+$I12)) -> 1 | AF48: =Y12/(Y24+(Y24-Y12)*M24/($H12+$I12)) -> 1 | AG48: 1 | AH48: 1 | AI48: 1 | AU48: =X12/(X24+(X24-X12)*R24/($J12+$K12)) -> 1 | AV48: =Y12/(Y24+(Y24-Y12)*S24/($J12+$K12)) -> 1 | AW48: 1 | AX48: 1 | AY48: 1
AE49: =X13/(X25+(X25-X13)*L25/($H13+$I13)) -> 1 | AF49: 1 | AG49: 1 | AH49: 2.218318391 | AI49: -0.2150041954 | AU49: =X13/(X25+(X25-X13)*R25/($J13+$K13)) -> 1 | AV49: =Y13/(Y25+(Y25-Y13)*S25/($J13+$K13)) -> 1 | AW49: 1 | AX49: 1.236397612 | AY49: 2.60616214
AE50: 1 | AF50: 1 | AG50: 1 | AH50: 2.828855783 | AI50: -0.1660286709 | AU50: =X14/(X26+(X26-X14)*R26/($J14+$K14)) -> 1 | AV50: =Y14/(Y26+(Y26-Y14)*S26/($J14+$K14)) -> 1 | AW50: 1 | AX50: 1.237097912 | AY50: 2.677183551
AD54: tape | AE54: =X18/(X6+(X6-X18)*L6/($H18+$I18)) -> 1 | AF54: =Y18/(Y6+(Y6-Y18)*M6/($H18+$I18)) -> 1.006093962 | AG54: 1.035973267 | AH54: 1.134272017 | AI54: 2.122192779 | AT54: tape | AU54: =X18/(X6+(X6-X18)*R6/($J18+$K18)) -> 1 | AV54: =Y18/(Y6+(Y6-Y18)*S6/($J18+$K18)) -> 1.006041426 | AW54: 1.028993192 | AX54: 1.060207752 | AY54: 1.099579409
AE55: =X19/(X7+(X7-X19)*L7/($H19+$I19)) -> 1 | AF55: 1 | AG55: 1 | AH55: 1 | AI55: 1 | AU55: 1 | AV55: =Y19/(Y7+(Y7-Y19)*S7/($J19+$K19)) -> 1 | AW55: 1 | AX55: 1 | AY55: 1
AE56: 1 | AF56: 1 | AG56: 1 | AH56: 1 | AI56: 1 | AU56: 1 | AV56: =Y20/(Y8+(Y8-Y20)*S8/($J20+$K20)) -> 1 | AW56: 1 | AX56: 1 | AY56: 1
AE57: 1 | AF57: 1.129886592 | AG57: 2.209222638 | AH57: -2.017069476 | AI57: -0.2135525626 | AU57: 1 | AV57: =Y21/(Y9+(Y9-Y21)*S9/($J21+$K21)) -> 1.128630406 | AW57: 1.799011159 | AX57: 3.540562091 | AY57: 37.35095352
AE58: 1 | AF58: 1 | AG58: 1 | AH58: 1.074126936 | AI58: -0.8208321846 | AU58: 1 | AV58: =Y22/(Y10+(Y10-Y22)*S10/($J22+$K22)) -> 1 | AW58: 1 | AX58: 1.034240095 | AY58: 1.612658047
AE59: 1 | AF59: 1 | AG59: 1 | AH59: 1.093885016 | AI59: -0.4803953769 | AU59: 1 | AV59: =Y23/(Y11+(Y11-Y23)*S11/($J23+$K23)) -> 1 | AW59: 1 | AX59: 1.034324747 | AY59: 1.629490135
AE60: =X18/(X12+(X12-X18)*L12/($H18+$I18)) -> 1 | AF60: =Y18/(Y12+(Y12-Y18)*M12/($H18+$I18)) -> 1 | AG60: 1 | AH60: 1 | AI60: 1 | AU60: =X18/(X12+(X12-X18)*R12/($J18+$K18)) -> 1 | AV60: =Y18/(Y12+(Y12-Y18)*S12/($J18+$K18)) -> 1 | AW60: 1 | AX60: 1 | AY60: 1
AE61: =X19/(X13+(X13-X19)*L13/($H19+$I19)) -> 1 | AF61: 1 | AG61: 1 | AH61: 1 | AI61: 1 | AU61: 1 | AV61: =Y19/(Y13+(Y13-Y19)*S13/($J19+$K19)) -> 1 | AW61: 1 | AX61: 1 | AY61: 1
AE62: 1 | AF62: 1 | AG62: 1 | AH62: 1 | AI62: 1 | AU62: 1 | AV62: =Y20/(Y14+(Y14-Y20)*S14/($J20+$K20)) -> 1 | AW62: 1 | AX62: 1 | AY62: 1
AE63: 1 | AF63: 1 | AG63: 1 | AH63: 1 | AI63: 1 | AU63: 1 | AV63: =Y21/(Y15+(Y15-Y21)*S15/($J21+$K21)) -> 1 | AW63: 1 | AX63: 1 | AY63: 1
AA64: =(Y16*(H22+I22)+(Y16-Y22)*M16)/Y22/(H16+I16) -> 1.73300467 | AE64: 1 | AF64: 1 | AG64: 1 | AH64: 1 | AI64: 1 | AU64: 1 | AV64: =Y22/(Y16+(Y16-Y22)*S16/($J22+$K22)) -> 1 | AW64: 1 | AX64: 1 | AY64: 1
AE65: 1 | AF65: 1 | AG65: 1 | AH65: 1 | AI65: 1 | AU65: 1 | AV65: =Y23/(Y17+(Y17-Y23)*S17/($J23+$K23)) -> 1 | AW65: 1 | AX65: 1 | AY65: 1
AE66: 1 | AF66: 1 | AG66: 1 | AH66: 1 | AI66: 1 | AJ66: 1 | AU66: 1 | AV66: 1 | AW66: 1 | AX66: 1 | AY66: 1 | AZ66: 1
AE67: 1 | AF67: 1 | AG67: 1 | AH67: 1 | AI67: 1 | AJ67: 1 | AU67: 1 | AV67: 1 | AW67: 1 | AX67: 1 | AY67: 1 | AZ67: 1
AE68: 1 | AF68: 1 | AG68: 1 | AH68: 1 | AI68: 1 | AJ68: 1 | AU68: 1 | AV68: 1 | AW68: 1 | AX68: 1 | AY68: 1 | AZ68: 1
AE69: 1 | AF69: 1 | AG69: 1 | AH69: 1 | AI69: 1 | AJ69: 1 | AU69: 1 | AV69: 1 | AW69: 1 | AX69: 1 | AY69: 1 | AZ69: 1
AE70: 1 | AF70: 1 | AG70: 1 | AH70: 1 | AI70: 1 | AJ70: 1 | AU70: 1 | AV70: 1 | AW70: 1 | AX70: 1 | AY70: 1 | AZ70: 1
AE71: 1 | AF71: 1 | AG71: 1 | AH71: 1 | AI71: 1 | AJ71: 1 | AU71: 1 | AV71: 1 | AW71: 1 | AX71: 1 | AY71: 1 | AZ71: 1
AE72: =X18/(X24+(X24-X18)*L24/($H18+$I18)) -> 1 | AF72: =Y18/(Y24+(Y24-Y18)*M24/($H18+$I18)) -> 1 | AG72: 1 | AH72: 1 | AI72: 1 | AU72: =X18/(X24+(X24-X18)*R24/($J18+$K18)) -> 1 | AV72: =Y18/(Y24+(Y24-Y18)*S24/($J18+$K18)) -> 1 | AW72: 1 | AX72: 1 | AY72: 1
AE73: =X19/(X25+(X25-X19)*L25/($H19+$I19)) -> 1 | AF73: 1 | AG73: 1 | AH73: 1.658555705 | AI73: -0.3991049281 | AU73: =X19/(X25+(X25-X19)*R25/($J19+$K19)) -> 1 | AV73: =Y19/(Y25+(Y25-Y19)*S25/($J19+$K19)) -> 1 | AW73: 1 | AX73: 1.235304091 | AY73: 2.502353791
AE74: 1 | AF74: 1 | AG74: 1 | AH74: 1.975572707 | AI74: -0.2583997366 | AU74: =X20/(X26+(X26-X20)*R26/($J20+$K20)) -> 1 | AV74: =Y20/(Y26+(Y26-Y20)*S26/($J20+$K20)) -> 1 | AW74: 1 | AX74: 1.23599927 | AY74: 2.567386459
AD78: Inverted | AE78: =X24/(X6+(X6-X24)*L6/($H24+$I24)) -> 1 | AF78: =Y24/(Y6+(Y6-Y24)*M6/($H24+$I24)) -> 1.006112381 | AG78: 1.037904151 | AH78: 1.156163861 | AI78: 2.840057937 | AT78: Inverted | AU78: =X24/(X6+(X6-X24)*R6/($J24+$K24)) -> 1 | AV78: =Y24/(Y6+(Y6-Y24)*S6/($J24+$K24)) -> 1.006045672 | AW78: 1.029024261 | AX78: 1.060296062 | AY78: 1.100648875
AE79: =X25/(X7+(X7-X25)*L7/($H25+$I25)) -> 1 | AF79: 1 | AG79: 1 | AH79: 0.6414401663 | AI79: 0.08933206833 | AU79: =X25/(X7+(X7-X25)*R7/($J25+$K25)) -> 1 | AV79: =Y25/(Y7+(Y7-Y25)*S7/($J25+$K25)) -> 1 | AW79: 1 | AX79: 0.8094900536 | AY79: 0.4100332351
AE80: 1 | AF80: 1 | AG80: 1 | AH80: 0.5970392907 | AI80: 0.06973892136 | AU80: =X26/(X8+(X8-X26)*R8/($J26+$K26)) -> 1 | AV80: =Y26/(Y8+(Y8-Y26)*S8/($J26+$K26)) -> 1 | AW80: 1 | AX80: 0.8091326914 | AY80: 0.4061473946
AE84: =X24/(X12+(X12-X24)*L12/($H24+$I24)) -> 1 | AF84: =Y24/(Y12+(Y12-Y24)*M12/($H24+$I24)) -> 1 | AG84: 1 | AH84: 1 | AI84: 1 | AU84: =X24/(X12+(X12-X24)*R12/($J24+$K24)) -> 1 | AV84: =Y24/(Y12+(Y12-Y24)*S12/($J24+$K24)) -> 1 | AW84: 1 | AX84: 1 | AY84: 1
AE85: =X25/(X13+(X13-X25)*L13/($H25+$I25)) -> 1 | AF85: 1 | AG85: 1 | AH85: 0.6414401663 | AI85: 0.08933206833 | AU85: =X25/(X13+(X13-X25)*R13/($J25+$K25)) -> 1 | AV85: =Y25/(Y13+(Y13-Y25)*S13/($J25+$K25)) -> 1 | AW85: 1 | AX85: 0.8094900536 | AY85: 0.4100332351
AE86: 1 | AF86: 1 | AG86: 1 | AH86: 0.5970392907 | AI86: 0.06973892136 | AU86: =X26/(X14+(X14-X26)*R14/($J26+$K26)) -> 1 | AV86: =Y26/(Y14+(Y14-Y26)*S14/($J26+$K26)) -> 1 | AW86: 1 | AX86: 0.8091326914 | AY86: 0.4061473946
AE90: =X24/(X18+(X18-X24)*L18/($H24+$I24)) -> 1 | AF90: =Y24/(Y18+(Y18-Y24)*M18/($H24+$I24)) -> 1 | AG90: 1 | AH90: 1 | AI90: 1 | AU90: =X24/(X18+(X18-X24)*R18/($J24+$K24)) -> 1 | AV90: =Y24/(Y18+(Y18-Y24)*S18/($J24+$K24)) -> 1 | AW90: 1 | AX90: 1 | AY90: 1
AE91: =X25/(X19+(X19-X25)*L19/($H25+$I25)) -> 1 | AF91: 1 | AG91: 1 | AH91: 0.6414401663 | AI91: 0.08933206833 | AU91: =X25/(X19+(X19-X25)*R19/($J25+$K25)) -> 1 | AV91: =Y25/(Y19+(Y19-Y25)*S19/($J25+$K25)) -> 1 | AW91: 1 | AX91: 0.8094900536 | AY91: 0.4100332351
AE92: 1 | AF92: 1 | AG92: 1 | AH92: 0.5970392907 | AI92: 0.06973892136 | AU92: =X26/(X20+(X20-X26)*R20/($J26+$K26)) -> 1 | AV92: =Y26/(Y20+(Y20-Y26)*S20/($J26+$K26)) -> 1 | AW92: 1 | AX92: 0.8091326914 | AY92: 0.4061473946
AE96: 1 | AF96: 1 | AG96: 1 | AH96: 1 | AI96: 1 | AJ96: 1 | AU96: 1 | AV96: 1 | AW96: 1 | AX96: 1 | AY96: 1 | AZ96: 1
AE97: 1 | AF97: 1 | AG97: 1 | AH97: 1 | AI97: 1 | AJ97: 1 | AU97: 1 | AV97: 1 | AW97: 1 | AX97: 1 | AY97: 1 | AZ97: 1
AE98: 1 | AF98: 1 | AG98: 1 | AH98: 1 | AI98: 1 | AJ98: 1 | AU98: 1 | AV98: 1 | AW98: 1 | AX98: 1 | AY98: 1 | AZ98: 1
A111: Calcluating Factors for New Stripe
AE112: Factors for New Stripe
B113: Marking Type | C113: Pavement Type | D113: Line Type | F113: PM Costs | L113: User Cost | AE113: Off-Peak Application | AK113: Night Time Application
F114: Average Costs | H114: Off-Peak Application | J114: Night Time Application | L114: Off-Peak Application | R114: Night Time Application | X114: Benefit | AE114: Factors by Different References (40, 90, tape, and inverted) | AU114: Factors by Different References (40, 90, tape, and inverted)
F115: Application | G115: Removal | H115: Application | I115: Removal | J115: Application | K115: Removal | L115: 5000 | M115: 10000 | N115: 15000 | O115: 20000 | P115: 25000 | Q115: =IF(Input!$B$33="No","",Input!$B$33) ->  | R115: 5000 | S115: 10000 | T115: 15000 | U115: 20000 | V115: 25000 | W115: =IF(Input!$B$33="No","",Input!$B$33) ->  | X115: 5000 | Y115: 10000 | Z115: 15000 | AA115: 20000 | AB115: 25000 | AC115: =IF(Input!$B$33="No","",Input!$B$33) ->  | AE115: 5000 | AF115: 10000 | AG115: 15000 | AH115: 20000 | AI115: 25000 | AJ115: =IF(Input!$B$33="No","",Input!$B$33) ->  | AU115: 5000 | AV115: 10000 | AW115: 15000 | AX115: 20000 | AY115: 25000 | AZ115: =IF(Input!$B$33="No","",Input!$B$33) -> 
B116: Thermo (40 mil) | C116: PCC | D116: Yellow Edge | E116: 40 mil | F116: =Input!$B19 -> 1039 | G116: =Input!$D19 -> 5250 | H116: =F116*(1-Input!$B$23/100) -> 883.15 | J116: =F116*(1+Input!$B$24/100) -> 1194.85 | L116: =Input!C28 -> 70.52690376 | M116: =Input!C29 -> 127.867459 | N116: =Input!C30 -> 2692.837721 | O116: =Input!C31 -> 12436.00075 | P116: =Input!C32 -> 57431.65041 | Q116: =Input!C33 ->  | R116: =Input!D28 -> 20.228 | S116: =Input!D29 -> 39.878 | T116: =Input!D30 -> 59.528 | U116: =Input!D31 -> 79.178 | V116: =Input!D32 -> 576.4887808 | W116: =Input!D33 ->  | X116: ='thermoplastic (40 mil)'!CA9 -> 2500000 | Y116: ='thermoplastic (40 mil)'!CB9 -> 4970052.01 | Z116: ='thermoplastic (40 mil)'!CC9 -> 7289493.689 | AA116: ='thermoplastic (40 mil)'!CD9 -> 9435025.656 | AB116: ='thermoplastic (40 mil)'!CE9 -> 11408928.35 | AC116: ='thermoplastic (40 mil)'!CF9 -> 0 | AD116: 40 mil | AE116: 1 | AF116: 1 | AG116: 1 | AH116: 1 | AI116: 1 | AJ116: 1 | AT116: 40 mil | AU116: 1 | AV116: 1 | AW116: 1 | AX116: 1 | AY116: 1 | AZ116: 1
D117: White Edge | E117: 40 mil | F117: =Input!$B19 -> 1039 | G117: =Input!$D19 -> 5250 | H117: =F117*(1-Input!$B$23/100) -> 883.15 | J117: =F117*(1+Input!$B$24/100) -> 1194.85 | L117: =L116 -> 70.52690376 | M117: =M116 -> 127.867459 | N117: =N116 -> 2692.837721 | O117: =O116 -> 12436.00075 | P117: =P116 -> 57431.65041 | Q117: =Q116 ->  | R117: =R116 -> 20.228 | S117: =S116 -> 39.878 | T117: =T116 -> 59.528 | U117: =U116 -> 79.178 | V117: =V116 -> 576.4887808 | W117: =W116 ->  | X117: ='thermoplastic (40 mil)'!CA10 -> 2500000 | Y117: ='thermoplastic (40 mil)'!CB10 -> 5000000 | Z117: ='thermoplastic (40 mil)'!CC10 -> 7500000 | AA117: ='thermoplastic (40 mil)'!CD10 -> 10000000 | AB117: ='thermoplastic (40 mil)'!CE10 -> 12500000 | AC117: ='thermoplastic (40 mil)'!CF10 -> 0 | AE117: 1 | AF117: 1 | AG117: 1 | AH117: 1 | AI117: 1 | AJ117: 1 | AU117: 1 | AV117: 1 | AW117: 1 | AX117: 1 | AY117: 1 | AZ117: 1
D118: White Lane | E118: 40 mil | F118: =Input!$C19 -> 391 | G118: =Input!$E19 -> 5250 | H118: =F118*(1-Input!$B$23/100) -> 332.35 | J118: =F118*(1+Input!$B$24/100) -> 449.65 | L118: 70.52690376 | M118: 127.867459 | N118: 2692.837721 | O118: 12436.00075 | P118: 57431.65041 | R118: 20.228 | S118: 39.878 | T118: 59.528 | U118: 79.178 | V118: 576.4887808 | X118: ='thermoplastic (40 mil)'!CA11 -> 2500000 | Y118: ='thermoplastic (40 mil)'!CB11 -> 5000000 | Z118: ='thermoplastic (40 mil)'!CC11 -> 7500000 | AA118: ='thermoplastic (40 mil)'!CD11 -> 10000000 | AB118: ='thermoplastic (40 mil)'!CE11 -> 12500000 | AC118: ='thermoplastic (40 mil)'!CF11 -> 0 | AE118: 1 | AF118: 1 | AG118: 1 | AH118: 1 | AI118: 1 | AJ118: 1 | AU118: 1 | AV118: 1 | AW118: 1 | AX118: 1 | AY118: 1 | AZ118: 1
C119: AC | D119: Yellow Edge | E119: 40 mil | F119: =Input!$B19 -> 1039 | G119: =Input!$D19 -> 5250 | H119: =F119*(1-Input!$B$23/100) -> 883.15 | J119: =F119*(1+Input!$B$24/100) -> 1194.85 | L119: 70.52690376 | M119: 127.867459 | N119: 2692.837721 | O119: 12436.00075 | P119: 57431.65041 | R119: 20.228 | S119: 39.878 | T119: 59.528 | U119: 79.178 | V119: 576.4887808 | X119: ='thermoplastic (40 mil)'!CA12 -> 2500000 | Y119: ='thermoplastic (40 mil)'!CB12 -> 4431623.702 | Z119: ='thermoplastic (40 mil)'!CC12 -> 4181815.181 | AA119: ='thermoplastic (40 mil)'!CD12 -> 2861205.402 | AB119: ='thermoplastic (40 mil)'!CE12 -> 774687.1289 | AC119: ='thermoplastic (40 mil)'!CF12 -> 0 | AE119: 1 | AF119: 1 | AG119: 1 | AH119: 1 | AI119: 1 | AJ119: 1 | AU119: 1 | AV119: 1 | AW119: 1 | AX119: 1 | AY119: 1 | AZ119: 1
D120: White Edge | E120: 40 mil | F120: =Input!$B19 -> 1039 | G120: =Input!$D19 -> 5250 | H120: =F120*(1-Input!$B$23/100) -> 883.15 | J120: =F120*(1+Input!$B$24/100) -> 1194.85 | L120: 70.52690376 | M120: 127.867459 | N120: 2692.837721 | O120: 12436.00075 | P120: 57431.65041 | R120: 20.228 | S120: 39.878 | T120: 59.528 | U120: 79.178 | V120: 576.4887808 | X120: ='thermoplastic (40 mil)'!CA13 -> 2500000 | Y120: ='thermoplastic (40 mil)'!CB13 -> 5000000 | Z120: ='thermoplastic (40 mil)'!CC13 -> 7500000 | AA120: ='thermoplastic (40 mil)'!CD13 -> 9670632.402 | AB120: ='thermoplastic (40 mil)'!CE13 -> 7922944.484 | AC120: ='thermoplastic (40 mil)'!CF13 -> 0 | AE120: 1 | AF120: 1 | AG120: 1 | AH120: 1 | AI120: 1 | AJ120: 1 | AU120: 1 | AV120: 1 | AW120: 1 | AX120: 1 | AY120: 1 | AZ120: 1
D121: White Lane | E121: 40 mil | F121: =Input!$C19 -> 391 | G121: =Input!$E19 -> 5250 | H121: =F121*(1-Input!$B$23/100) -> 332.35 | J121: =F121*(1+Input!$B$24/100) -> 449.65 | L121: 70.52690376 | M121: 127.867459 | N121: 2692.837721 | O121: 12436.00075 | P121: 57431.65041 | R121: 20.228 | S121: 39.878 | T121: 59.528 | U121: 79.178 | V121: 576.4887808 | X121: ='thermoplastic (40 mil)'!CA14 -> 2500000 | Y121: ='thermoplastic (40 mil)'!CB14 -> 5000000 | Z121: ='thermoplastic (40 mil)'!CC14 -> 7500000 | AA121: ='thermoplastic (40 mil)'!CD14 -> 9670632.402 | AB121: ='thermoplastic (40 mil)'!CE14 -> 7922944.484 | AC121: ='thermoplastic (40 mil)'!CF14 -> 0 | AE121: 1 | AF121: 1 | AG121: 1 | AH121: 1 | AI121: 1 | AJ121: 1 | AU121: 1 | AV121: 1 | AW121: 1 | AX121: 1 | AY121: 1 | AZ121: 1
B122: Thermo (90 mil) | C122: PCC | D122: Yellow Edge | E122: 90 mil | F122: =Input!$B20 -> 2458 | G122: =Input!$D20 -> 5250 | H122: =F122*(1-Input!$B$23/100) -> 2089.3 | J122: =F122*(1+Input!$B$24/100) -> 2826.7 | L122: 70.52690376 | M122: 127.867459 | N122: 2692.837721 | O122: 12436.00075 | P122: 57431.65041 | R122: 20.228 | S122: 39.878 | T122: 59.528 | U122: 79.178 | V122: 576.4887808 | X122: ='thermoplastic (90 mil)'!CA9 -> 2500000 | Y122: ='thermoplastic (90 mil)'!CB9 -> 5000000 | Z122: ='thermoplastic (90 mil)'!CC9 -> 7500000 | AA122: ='thermoplastic (90 mil)'!CD9 -> 10000000 | AB122: ='thermoplastic (90 mil)'!CE9 -> 12500000 | AC122: ='thermoplastic (90 mil)'!CF9 -> 0 | AE122: =X116/(X122+(X122-X116)*L122/($H116+$I116)) -> 1 | AF122: =Y116/(Y122+(Y122-Y116)*M122/($H116+$I116)) -> 0.9931491353 | AG122: =Z116/(Z122+(Z122-Z116)*N122/($H116+$I116)) -> 0.8953105314 | AH122: =AA116/(AA122+(AA122-AA116)*O122/($H116+$I116)) -> 0.5254631362 | AI122: =AB116/(AB122+(AB122-AB116)*P122/($H116+$I116)) -> 0.1367110018 | AJ122: =AC116/(AC122+(AC122-AC116)*Q122/($H116+$I116)) ->  | AU122: =X116/(X122+(X122-X116)*R122/($J116+$K116)) -> 1 | AV122: =Y116/(Y122+(Y122-Y116)*S122/($J116+$K116)) -> 0.9938117369 | AW122: 0.9705753008 | AX122: 0.9399833972 | AY122: 0.8758300503
D123: White Edge | E123: 90 mil | F123: =Input!$B20 -> 2458 | G123: =Input!$D20 -> 5250 | H123: =F123*(1-Input!$B$23/100) -> 2089.3 | J123: =F123*(1+Input!$B$24/100) -> 2826.7 | L123: 70.52690376 | M123: 127.867459 | N123: 2692.837721 | O123: 12436.00075 | P123: 57431.65041 | R123: 20.228 | S123: 39.878 | T123: 59.528 | U123: 79.178 | V123: 576.4887808 | X123: ='thermoplastic (90 mil)'!CA10 -> 2500000 | Y123: ='thermoplastic (90 mil)'!CB10 -> 5000000 | Z123: ='thermoplastic (90 mil)'!CC10 -> 7500000 | AA123: ='thermoplastic (90 mil)'!CD10 -> 10000000 | AB123: ='thermoplastic (90 mil)'!CE10 -> 12500000 | AC123: ='thermoplastic (90 mil)'!CF10 -> 0 | AE123: =X117/(X123+(X123-X117)*L123/($H117+$I117)) -> 1 | AF123: 1 | AG123: 1 | AH123: 1 | AI123: 1 | AU123: 1 | AV123: =Y117/(Y123+(Y123-Y117)*S123/($J117+$K117)) -> 1 | AW123: 1 | AX123: 1 | AY123: 1
D124: White Lane | E124: 90 mil | F124: =Input!$C20 -> 817 | G124: =Input!$E20 -> 5250 | H124: =F124*(1-Input!$B$23/100) -> 694.45 | J124: =F124*(1+Input!$B$24/100) -> 939.55 | L124: 70.52690376 | M124: 127.867459 | N124: 2692.837721 | O124: 12436.00075 | P124: 57431.65041 | R124: 20.228 | S124: 39.878 | T124: 59.528 | U124: 79.178 | V124: 576.4887808 | X124: ='thermoplastic (90 mil)'!CA11 -> 2500000 | Y124: ='thermoplastic (90 mil)'!CB11 -> 5000000 | Z124: ='thermoplastic (90 mil)'!CC11 -> 7500000 | AA124: ='thermoplastic (90 mil)'!CD11 -> 10000000 | AB124: ='thermoplastic (90 mil)'!CE11 -> 12500000 | AC124: ='thermoplastic (90 mil)'!CF11 -> 0 | AE124: 1 | AF124: 1 | AG124: 1 | AH124: 1 | AI124: 1 | AU124: 1 | AV124: =Y118/(Y124+(Y124-Y118)*S124/($J118+$K118)) -> 1 | AW124: 1 | AX124: 1 | AY124: 1
C125: AC | D125: Yellow Edge | E125: 90 mil | F125: =Input!$B20 -> 2458 | G125: =Input!$D20 -> 5250 | H125: =F125*(1-Input!$B$23/100) -> 2089.3 | J125: =F125*(1+Input!$B$24/100) -> 2826.7 | L125: 70.52690376 | M125: 127.867459 | N125: 2692.837721 | O125: 12436.00075 | P125: 57431.65041 | R125: 20.228 | S125: 39.878 | T125: 59.528 | U125: 79.178 | V125: 576.4887808 | X125: ='thermoplastic (90 mil)'!CA12 -> 2500000 | Y125: ='thermoplastic (90 mil)'!CB12 -> 5000000 | Z125: ='thermoplastic (90 mil)'!CC12 -> 7500000 | AA125: ='thermoplastic (90 mil)'!CD12 -> 10000000 | AB125: ='thermoplastic (90 mil)'!CE12 -> 12500000 | AC125: ='thermoplastic (90 mil)'!CF12 -> 0 | AE125: 1 | AF125: 0.8719733256 | AG125: 0.2373661539 | AH125: 0.02588756349 | AI125: 0.0009995930899 | AU125: 1 | AV125: =Y119/(Y125+(Y125-Y119)*S125/($J119+$K119)) -> 0.8829748217 | AW125: 0.5455504395 | AX125: 0.273196703 | AY125: 0.04266554965
D126: White Edge | E126: 90 mil | F126: =Input!$B20 -> 2458 | G126: =Input!$D20 -> 5250 | H126: =F126*(1-Input!$B$23/100) -> 2089.3 | J126: =F126*(1+Input!$B$24/100) -> 2826.7 | L126: 70.52690376 | M126: 127.867459 | N126: 2692.837721 | O126: 12436.00075 | P126: 57431.65041 | R126: 20.228 | S126: 39.878 | T126: 59.528 | U126: 79.178 | V126: 576.4887808 | X126: ='thermoplastic (90 mil)'!CA13 -> 2500000 | Y126: ='thermoplastic (90 mil)'!CB13 -> 5000000 | Z126: ='thermoplastic (90 mil)'!CC13 -> 7500000 | AA126: ='thermoplastic (90 mil)'!CD13 -> 10000000 | AB126: ='thermoplastic (90 mil)'!CE13 -> 12500000 | AC126: ='thermoplastic (90 mil)'!CF13 -> 0 | AE126: 1 | AF126: 1 | AG126: 1 | AH126: 0.6606543132 | AI126: 0.02554568745 | AU126: 1 | AV126: =Y120/(Y126+(Y126-Y120)*S126/($J120+$K120)) -> 1 | AW126: 1 | AX126: 0.9649571351 | AY126: 0.5386706282
D127: White Lane | E127: 90 mil | F127: =Input!$C20 -> 817 | G127: =Input!$E20 -> 5250 | H127: =F127*(1-Input!$B$23/100) -> 694.45 | J127: =F127*(1+Input!$B$24/100) -> 939.55 | L127: 70.52690376 | M127: 127.867459 | N127: 2692.837721 | O127: 12436.00075 | P127: 57431.65041 | R127: 20.228 | S127: 39.878 | T127: 59.528 | U127: 79.178 | V127: 576.4887808 | X127: ='thermoplastic (90 mil)'!CA14 -> 2500000 | Y127: ='thermoplastic (90 mil)'!CB14 -> 5000000 | Z127: ='thermoplastic (90 mil)'!CC14 -> 7500000 | AA127: ='thermoplastic (90 mil)'!CD14 -> 10000000 | AB127: ='thermoplastic (90 mil)'!CE14 -> 12500000 | AC127: ='thermoplastic (90 mil)'!CF14 -> 0 | AE127: 1 | AF127: 1 | AG127: 1 | AH127: 0.4331865864 | AI127: 0.009861316136 | AU127: 1 | AV127: =Y121/(Y127+(Y127-Y121)*S127/($J121+$K121)) -> 1 | AW127: 1 | AX127: 0.9614868372 | AY127: 0.4313410595
B128: Tape | C128: PCC | D128: Yellow Edge | E128: tape | F128: =Input!$B21 -> 8108 | G128: =Input!$D21 -> 5250 | H128: =F128*(1-Input!$B$23/100) -> 6891.8 | J128: =F128*(1+Input!$B$24/100) -> 9324.2 | L128: 70.52690376 | M128: 127.867459 | N128: 2692.837721 | O128: 12436.00075 | P128: 57431.65041 | R128: 20.228 | S128: 39.878 | T128: 59.528 | U128: 79.178 | V128: 576.4887808 | X128: =tape!CA9 -> 2500000 | Y128: =tape!CB9 -> 5000000 | Z128: =tape!CC9 -> 7500000 | AA128: =tape!CD9 -> 10000000 | AB128: =tape!CE9 -> 12500000 | AC128: =tape!CF9 -> 0 | AE128: =X116/(X128+(X128-X116)*L128/($H116+$I116)) -> 1 | AF128: =Y116/(Y128+(Y128-Y116)*M128/($H116+$I116)) -> 0.9931491353 | AG128: =Z116/(Z128+(Z128-Z116)*N128/($H116+$I116)) -> 0.8953105314 | AH128: =AA116/(AA128+(AA128-AA116)*O128/($H116+$I116)) -> 0.5254631362 | AI128: =AB116/(AB128+(AB128-AB116)*P128/($H116+$I116)) -> 0.1367110018 | AJ128: =AC116/(AC128+(AC128-AC116)*Q128/($H116+$I116)) ->  | AU128: =X116/(X128+(X128-X116)*R128/($J116+$K116)) -> 1 | AV128: =Y116/(Y128+(Y128-Y116)*S128/($J116+$K116)) -> 0.9938117369 | AW128: 0.9705753008 | AX128: 0.9399833972 | AY128: 0.8758300503
D129: White Edge | E129: tape | F129: =Input!$B21 -> 8108 | G129: =Input!$D21 -> 5250 | H129: =F129*(1-Input!$B$23/100) -> 6891.8 | J129: =F129*(1+Input!$B$24/100) -> 9324.2 | L129: 70.52690376 | M129: 127.867459 | N129: 2692.837721 | O129: 12436.00075 | P129: 57431.65041 | R129: 20.228 | S129: 39.878 | T129: 59.528 | U129: 79.178 | V129: 576.4887808 | X129: =tape!CA10 -> 2500000 | Y129: =tape!CB10 -> 5000000 | Z129: =tape!CC10 -> 7500000 | AA129: =tape!CD10 -> 10000000 | AB129: =tape!CE10 -> 12500000 | AC129: =tape!CF10 -> 0 | AE129: =X117/(X129+(X129-X117)*L129/($H117+$I117)) -> 1 | AF129: 1 | AG129: 1 | AH129: 1 | AI129: 1 | AU129: 1 | AV129: =Y117/(Y129+(Y129-Y117)*S129/($J117+$K117)) -> 1 | AW129: 1 | AX129: 1 | AY129: 1
D130: White Lane | E130: tape | F130: =Input!$C21 -> 3861 | G130: =Input!$E21 -> 5250 | H130: =F130*(1-Input!$B$23/100) -> 3281.85 | J130: =F130*(1+Input!$B$24/100) -> 4440.15 | L130: 70.52690376 | M130: 127.867459 | N130: 2692.837721 | O130: 12436.00075 | P130: 57431.65041 | R130: 20.228 | S130: 39.878 | T130: 59.528 | U130: 79.178 | V130: 576.4887808 | X130: =tape!CA11 -> 2500000 | Y130: =tape!CB11 -> 5000000 | Z130: =tape!CC11 -> 7500000 | AA130: =tape!CD11 -> 10000000 | AB130: =tape!CE11 -> 12500000 | AC130: =tape!CF11 -> 0 | AE130: 1 | AF130: 1 | AG130: 1 | AH130: 1 | AI130: 1 | AU130: 1 | AV130: =Y118/(Y130+(Y130-Y118)*S130/($J118+$K118)) -> 1 | AW130: 1 | AX130: 1 | AY130: 1
C131: AC | D131: Yellow Edge | E131: tape | F131: =Input!$B21 -> 8108 | G131: =Input!$D21 -> 5250 | H131: =F131*(1-Input!$B$23/100) -> 6891.8 | J131: =F131*(1+Input!$B$24/100) -> 9324.2 | L131: 70.52690376 | M131: 127.867459 | N131: 2692.837721 | O131: 12436.00075 | P131: 57431.65041 | R131: 20.228 | S131: 39.878 | T131: 59.528 | U131: 79.178 | V131: 576.4887808 | X131: =tape!CA12 -> 2500000 | Y131: =tape!CB12 -> 5000000 | Z131: =tape!CC12 -> 7500000 | AA131: =tape!CD12 -> 10000000 | AB131: =tape!CE12 -> 12500000 | AC131: =tape!CF12 -> 0 | AE131: 1 | AF131: 0.8719733256 | AG131: 0.2373661539 | AH131: 0.02588756349 | AI131: 0.0009995930899 | AU131: 1 | AV131: =Y119/(Y131+(Y131-Y119)*S131/($J119+$K119)) -> 0.8829748217 | AW131: 0.5455504395 | AX131: 0.273196703 | AY131: 0.04266554965
D132: White Edge | E132: tape | F132: =Input!$B21 -> 8108 | G132: =Input!$D21 -> 5250 | H132: =F132*(1-Input!$B$23/100) -> 6891.8 | J132: =F132*(1+Input!$B$24/100) -> 9324.2 | L132: 70.52690376 | M132: 127.867459 | N132: 2692.837721 | O132: 12436.00075 | P132: 57431.65041 | R132: 20.228 | S132: 39.878 | T132: 59.528 | U132: 79.178 | V132: 576.4887808 | X132: =tape!CA13 -> 2500000 | Y132: =tape!CB13 -> 5000000 | Z132: =tape!CC13 -> 7500000 | AA132: =tape!CD13 -> 10000000 | AB132: =tape!CE13 -> 12500000 | AC132: =tape!CF13 -> 0 | AE132: 1 | AF132: 1 | AG132: 1 | AH132: 0.6606543132 | AI132: 0.02554568745 | AU132: 1 | AV132: =Y120/(Y132+(Y132-Y120)*S132/($J120+$K120)) -> 1 | AW132: 1 | AX132: 0.9649571351 | AY132: 0.5386706282
D133: White Lane | E133: tape | F133: =Input!$C21 -> 3861 | G133: =Input!$E21 -> 5250 | H133: =F133*(1-Input!$B$23/100) -> 3281.85 | J133: =F133*(1+Input!$B$24/100) -> 4440.15 | L133: 70.52690376 | M133: 127.867459 | N133: 2692.837721 | O133: 12436.00075 | P133: 57431.65041 | R133: 20.228 | S133: 39.878 | T133: 59.528 | U133: 79.178 | V133: 576.4887808 | X133: =tape!CA14 -> 2500000 | Y133: =tape!CB14 -> 5000000 | Z133: =tape!CC14 -> 7500000 | AA133: =tape!CD14 -> 10000000 | AB133: =tape!CE14 -> 12500000 | AC133: =tape!CF14 -> 0 | AE133: 1 | AF133: 1 | AG133: 1 | AH133: 0.4331865864 | AI133: 0.009861316136 | AU133: 1 | AV133: =Y121/(Y133+(Y133-Y121)*S133/($J121+$K121)) -> 1 | AW133: 1 | AX133: 0.9614868372 | AY133: 0.4313410595
B134: Inverted | C134: PCC | D134: Yellow Edge | E134: inverted | F134: =Input!$B22 -> 5270 | G134: =Input!$D22 -> 5250 | H134: =F134*(1-Input!$B$23/100) -> 4479.5 | J134: =F134*(1+Input!$B$24/100) -> 6060.5 | L134: 70.52690376 | M134: 127.867459 | N134: 2692.837721 | O134: 12436.00075 | P134: 57431.65041 | R134: 20.228 | S134: 39.878 | T134: 59.528 | U134: 79.178 | V134: 576.4887808 | X134: =inverted!CA9 -> 2500000 | Y134: =inverted!CB9 -> 5000000 | Z134: =inverted!CC9 -> 7500000 | AA134: =inverted!CD9 -> 10000000 | AB134: =inverted!CE9 -> 12500000 | AC134: =inverted!CF9 -> 0 | AE134: =X116/(X134+(X134-X116)*L134/($H116+$I116)) -> 1 | AF134: =Y116/(Y134+(Y134-Y116)*M134/($H116+$I116)) -> 0.9931491353 | AG134: =Z116/(Z134+(Z134-Z116)*N134/($H116+$I116)) -> 0.8953105314 | AH134: =AA116/(AA134+(AA134-AA116)*O134/($H116+$I116)) -> 0.5254631362 | AI134: =AB116/(AB134+(AB134-AB116)*P134/($H116+$I116)) -> 0.1367110018 | AJ134: =AC116/(AC134+(AC134-AC116)*Q134/($H116+$I116)) ->  | AU134: =X116/(X134+(X134-X116)*R134/($J116+$K116)) -> 1 | AV134: =Y116/(Y134+(Y134-Y116)*S134/($J116+$K116)) -> 0.9938117369 | AW134: 0.9705753008 | AX134: 0.9399833972 | AY134: 0.8758300503
D135: White Edge | E135: inverted | F135: =Input!$B22 -> 5270 | G135: =Input!$D22 -> 5250 | H135: =F135*(1-Input!$B$23/100) -> 4479.5 | J135: =F135*(1+Input!$B$24/100) -> 6060.5 | L135: 70.52690376 | M135: 127.867459 | N135: 2692.837721 | O135: 12436.00075 | P135: 57431.65041 | R135: 20.228 | S135: 39.878 | T135: 59.528 | U135: 79.178 | V135: 576.4887808 | X135: =inverted!CA10 -> 2500000 | Y135: =inverted!CB10 -> 5000000 | Z135: =inverted!CC10 -> 7500000 | AA135: =inverted!CD10 -> 8104940.343 | AB135: =inverted!CE10 -> 5266744.075 | AC135: =inverted!CF10 -> 0 | AE135: =X117/(X135+(X135-X117)*L135/($H117+$I117)) -> 1 | AF135: 1 | AG135: 1 | AH135: -0.5382079418 | AI135: -0.02687506158 | AU135: =X117/(X135+(X135-X117)*R135/($J117+$K117)) -> 1 | AV135: =Y117/(Y135+(Y135-Y117)*S135/($J117+$K117)) -> 1 | AW135: 1 | AX135: 1.253232995 | AY135: 7.034891373
D136: White Lane | E136: inverted | F136: =Input!$C22 -> 2505 | G136: =Input!$E22 -> 5250 | H136: =F136*(1-Input!$B$23/100) -> 2129.25 | J136: =F136*(1+Input!$B$24/100) -> 2880.75 | L136: 70.52690376 | M136: 127.867459 | N136: 2692.837721 | O136: 12436.00075 | P136: 57431.65041 | R136: 20.228 | S136: 39.878 | T136: 59.528 | U136: 79.178 | V136: 576.4887808 | X136: =inverted!CA11 -> 2500000 | Y136: =inverted!CB11 -> 5000000 | Z136: =inverted!CC11 -> 7500000 | AA136: =inverted!CD11 -> 8104940.343 | AB136: =inverted!CE11 -> 5266744.075 | AC136: =inverted!CF11 -> 0 | AE136: 1 | AF136: 1 | AG136: 1 | AH136: -0.1592226513 | AI136: -0.01004278985 | AU136: =X118/(X136+(X136-X118)*R136/($J118+$K118)) -> 1 | AV136: =Y118/(Y136+(Y136-Y118)*S136/($J118+$K118)) -> 1 | AW136: 1 | AX136: 1.286795441 | AY136: -3.119624145
C137: AC | D137: Yellow Edge | E137: inverted | X137: =inverted!CA12 -> 0 | Y137: =inverted!CB12 -> 0 | Z137: =inverted!CC12 -> 0 | AA137: =inverted!CD12 -> 0 | AB137: =inverted!CE12 -> 0 | AC137: =inverted!CF12 -> 0
D138: White Edge | E138: inverted | X138: =inverted!CA13 -> 0 | Y138: =inverted!CB13 -> 0 | Z138: =inverted!CC13 -> 0 | AA138: =inverted!CD13 -> 0 | AB138: =inverted!CE13 -> 0 | AC138: =inverted!CF13 -> 0
D139: White Lane | E139: inverted | X139: =inverted!CA14 -> 0 | Y139: =inverted!CB14 -> 0 | Z139: =inverted!CC14 -> 0 | AA139: =inverted!CD14 -> 0 | AB139: =inverted!CE14 -> 0 | AC139: =inverted!CF14 -> 0 | AK139: Finding Min Benefit/Cost as reference
AD140: 90 mil | AE140: =X122/(X116+(X116-X122)*L116/($H122+$I122)) -> 1 | AF140: =Y122/(Y116+(Y116-Y122)*M116/($H122+$I122)) -> 1.006396827 | AG140: =Z122/(Z116+(Z116-Z122)*N116/($H122+$I122)) -> 1.068653392 | AH140: =AA122/(AA116+(AA116-AA122)*O116/($H122+$I122)) -> 1.646858627 | AI140: =AB122/(AB116+(AB116-AB122)*P116/($H122+$I122)) -> -0.6726593666 | AJ140: =AC122/(AC116+(AC116-AC122)*Q116/($H122+$I122)) ->  | AN140: 5000 | AO140: 10000 | AP140: 15000 | AQ140: 20000 | AR140: 25000 | AS140: =IF(Input!$B$33="No","",Input!$B$33) ->  | AT140: 90 mil | AU140: =X122/(X116+(X116-X122)*R116/($J122+$K122)) -> 1 | AV140: =Y122/(Y116+(Y116-Y122)*S116/($J122+$K122)) -> 1.006111217 | AW140: 1.029504134 | AX140: 1.061661254 | AY140: 1.117427235
U141: Finding Min Benefit/Cost | V141: PCC | W141: Yellow Edge | X141: =MIN(Results!E51,Results!E57,Results!E63,Results!E69) -> 359.0753543 | Y141: =MIN(Results!F51,Results!F57,Results!F63,Results!F69) -> 712.2844535 | Z141: =MIN(Results!G51,Results!G57,Results!G63,Results!G69) -> 782.5021893 | AA141: =MIN(Results!H51,Results!H57,Results!H63,Results!H69) -> 517.3894397 | AB141: =MIN(Results!I51,Results!I57,Results!I63,Results!I69) -> 194.3303713 | AC141: =MIN(Results!J51,Results!J57,Results!J63,Results!J69) -> 0 | AE141: =X123/(X117+(X117-X123)*L117/($H123+$I123)) -> 1 | AF141: 1 | AG141: 1 | AH141: 1 | AI141: 1 | AK141: Finding Min Benefit/Cost | AL141: PCC | AM141: Yellow Edge | AN141: =MIN(Results!L51,Results!L57,Results!L63,Results!L69) -> 267.5391153 | AO141: =MIN(Results!M51,Results!M57,Results!M63,Results!M69) -> 533.9553985 | AP141: =MIN(Results!N51,Results!N57,Results!N63,Results!N69) -> 799.2559034 | AQ141: =MIN(Results!O51,Results!O57,Results!O63,Results!O69) -> 1063.447625 | AR141: =MIN(Results!P51,Results!P57,Results!P63,Results!P69) -> 1262.538423 | AS141: =MIN(Results!Q51,Results!Q57,Results!Q63,Results!Q69) -> 0 | AU141: 1 | AV141: =Y123/(Y117+(Y117-Y123)*S117/($J123+$K123)) -> 1 | AW141: 1 | AX141: 1 | AY141: 1
W142: White Edge | X142: =MIN(Results!E52,Results!E58,Results!E64,Results!E70) -> 359.0753543 | Y142: =MIN(Results!F52,Results!F58,Results!F64,Results!F70) -> 712.2844535 | Z142: =MIN(Results!G52,Results!G58,Results!G64,Results!G70) -> 782.5021893 | AA142: =MIN(Results!H52,Results!H58,Results!H64,Results!H70) -> 479.1427971 | AB142: =MIN(Results!I52,Results!I58,Results!I64,Results!I70) -> 85.06939445 | AC142: =MIN(Results!J52,Results!J58,Results!J64,Results!J70) -> 0 | AE142: 1 | AF142: 1 | AG142: 1 | AH142: 1 | AI142: 1 | AM142: White Edge | AN142: =MIN(Results!L52,Results!L58,Results!L64,Results!L70) -> 267.5391153 | AO142: =MIN(Results!M52,Results!M58,Results!M64,Results!M70) -> 533.9553985 | AP142: =MIN(Results!N52,Results!N58,Results!N64,Results!N70) -> 799.2559034 | AQ142: =MIN(Results!O52,Results!O58,Results!O64,Results!O70) -> 1063.447625 | AR142: =MIN(Results!P52,Results!P58,Results!P64,Results!P70) -> 793.5442185 | AS142: =MIN(Results!Q52,Results!Q58,Results!Q64,Results!Q70) -> 0 | AU142: 1 | AV142: =Y124/(Y118+(Y118-Y124)*S118/($J124+$K124)) -> 1 | AW142: 1 | AX142: 1 | AY142: 1
W143: White Lane | X143: =MIN(Results!E53,Results!E59,Results!E65,Results!E71) -> 745.739537 | Y143: =MIN(Results!F53,Results!F59,Results!F65,Results!F71) -> 1466.397161 | Z143: =MIN(Results!G53,Results!G59,Results!G65,Results!G71) -> 1255.295733 | AA143: =MIN(Results!H53,Results!H59,Results!H65,Results!H71) -> 556.4573163 | AB143: =MIN(Results!I53,Results!I59,Results!I65,Results!I71) -> 88.42619971 | AC143: =MIN(Results!J53,Results!J59,Results!J65,Results!J71) -> 0 | AE143: 1 | AF143: 1.13718074 | AG143: -79.03366041 | AH143: -0.2523304958 | AI143: -0.03887587538 | AM143: White Lane | AN143: =MIN(Results!L53,Results!L59,Results!L65,Results!L71) -> 560.4906131 | AO143: =MIN(Results!M53,Results!M59,Results!M65,Results!M71) -> 1116.064453 | AP143: =MIN(Results!N53,Results!N59,Results!N65,Results!N71) -> 1666.785934 | AQ143: =MIN(Results!O53,Results!O59,Results!O65,Results!O71) -> 2212.718351 | AR143: =MIN(Results!P53,Results!P59,Results!P65,Results!P71) -> 1523.3961 | AS143: =MIN(Results!Q53,Results!Q59,Results!Q65,Results!Q71) -> 0 | AU143: 1 | AV143: =Y125/(Y119+(Y119-Y125)*S119/($J125+$K125)) -> 1.130299766 | AW143: 1.823957946 | AX143: 3.757643453 | AY143: -7.732176105
V144: AC | W144: Yellow Edge | X144: =MIN(Results!E54,Results!E60,Results!E66) -> 359.0753543 | Y144: =MIN(Results!F54,Results!F60,Results!F66) -> 712.2844535 | Z144: =MIN(Results!G54,Results!G60,Results!G66) -> 782.5021893 | AA144: =MIN(Results!H54,Results!H60,Results!H66) -> 214.8189067 | AB144: =MIN(Results!I54,Results!I60,Results!I66) -> 13.28457138 | AC144: =MIN(Results!J54,Results!J60,Results!J66) -> 0 | AE144: 1 | AF144: 1 | AG144: 1 | AH144: 1.296990003 | AI144: -0.1060280897 | AL144: AC | AM144: Yellow Edge | AN144: =MIN(Results!L54,Results!L60,Results!L66) -> 267.5391153 | AO144: =MIN(Results!M54,Results!M60,Results!M66) -> 533.9553985 | AP144: =MIN(Results!N54,Results!N60,Results!N66) -> 799.2559034 | AQ144: =MIN(Results!O54,Results!O60,Results!O66) -> 1063.447625 | AR144: =MIN(Results!P54,Results!P60,Results!P66) -> 437.3455475 | AS144: =MIN(Results!Q54,Results!Q60,Results!Q66) -> 0 | AU144: 1 | AV144: =Y126/(Y120+(Y120-Y126)*S120/($J126+$K126)) -> 1 | AW144: 1 | AX144: 1.035045977 | AY144: 1.788401736
W145: White Edge | X145: =MIN(Results!E55,Results!E61,Results!E67) -> 359.0753543 | Y145: =MIN(Results!F55,Results!F61,Results!F67) -> 712.2844535 | Z145: =MIN(Results!G55,Results!G61,Results!G67) -> 782.5021893 | AA145: =MIN(Results!H55,Results!H61,Results!H67) -> 517.3894397 | AB145: =MIN(Results!I55,Results!I61,Results!I67) -> 135.8650707 | AC145: =MIN(Results!J55,Results!J61,Results!J67) -> 0 | AE145: 1 | AF145: 1 | AG145: 1 | AH145: 2.650820429 | AI145: -0.03372874807 | AM145: White Edge | AN145: =MIN(Results!L55,Results!L61,Results!L67) -> 267.5391153 | AO145: =MIN(Results!M55,Results!M61,Results!M67) -> 533.9553985 | AP145: =MIN(Results!N55,Results!N61,Results!N67) -> 799.2559034 | AQ145: =MIN(Results!O55,Results!O61,Results!O67) -> 1063.447625 | AR145: =MIN(Results!P55,Results!P61,Results!P67) -> 1262.538423 | AS145: =MIN(Results!Q55,Results!Q61,Results!Q67) -> 0 | AU145: 1 | AV145: =Y127/(Y121+(Y121-Y127)*S121/($J127+$K127)) -> 1 | AW145: 1 | AX145: 1.037035025 | AY145: 2.44400479
W146: White Lane | X146: =MIN(Results!E56,Results!E62,Results!E68) -> 745.739537 | Y146: =MIN(Results!F56,Results!F62,Results!F68) -> 1466.397161 | Z146: =MIN(Results!G56,Results!G62,Results!G68) -> 1255.295733 | AA146: =MIN(Results!H56,Results!H62,Results!H68) -> 636.2193 | AB146: =MIN(Results!I56,Results!I62,Results!I68) -> 137.1605918 | AC146: =MIN(Results!J56,Results!J62,Results!J68) -> 0 | AE146: 1 | AF146: 1 | AG146: 1 | AH146: 1 | AI146: 1 | AJ146: 1 | AM146: White Lane | AN146: =MIN(Results!L56,Results!L62,Results!L68) -> 560.4906131 | AO146: =MIN(Results!M56,Results!M62,Results!M68) -> 1116.064453 | AP146: =MIN(Results!N56,Results!N62,Results!N68) -> 1666.785934 | AQ146: =MIN(Results!O56,Results!O62,Results!O68) -> 2212.718351 | AR146: =MIN(Results!P56,Results!P62,Results!P68) -> 2491.708203 | AS146: =MIN(Results!Q56,Results!Q62,Results!Q68) -> 0 | AU146: 1 | AV146: 1 | AW146: 1 | AX146: 1 | AY146: 1 | AZ146: 1
U147: found min Benefit/Cost | V147: PCC | W147: Yellow Edge | X147: =IF(X141=Results!E51,"40 mil",IF(X141=Results!E57,"90 mil",IF(X141=Results!E63,"Tape","Inverted"))) -> Tape | Y147: =IF(Y141=Results!F51,"40 mil",IF(Y141=Results!F57,"90 mil",IF(Y141=Results!F63,"Tape","Inverted"))) -> Tape | Z147: =IF(Z141=Results!G51,"40 mil",IF(Z141=Results!G57,"90 mil",IF(Z141=Results!G63,"Tape","Inverted"))) -> Tape | AA147: =IF(AA141=Results!H51,"40 mil",IF(AA141=Results!H57,"90 mil",IF(AA141=Results!H63,"Tape","Inverted"))) -> Tape | AB147: =IF(AB141=Results!I51,"40 mil",IF(AB141=Results!I57,"90 mil",IF(AB141=Results!I63,"Tape","Inverted"))) -> Tape | AC147: =IF(AC141=Results!J51,"40 mil",IF(AC141=Results!J57,"90 mil",IF(AC141=Results!J63,"Tape","Inverted"))) -> 40 mil | AE147: 1 | AF147: 1 | AG147: 1 | AH147: 1 | AI147: 1 | AJ147: 1 | AK147: found min Benefit/Cost | AL147: PCC | AM147: Yellow Edge | AN147: =IF(AN141=Results!L51,"40 mil",IF(AN141=Results!L57,"90 mil",IF(AN141=Results!L63,"Tape","Inverted"))) -> Tape | AO147: =IF(AO141=Results!M51,"40 mil",IF(AO141=Results!M57,"90 mil",IF(AO141=Results!M63,"Tape","Inverted"))) -> Tape | AP147: =IF(AP141=Results!N51,"40 mil",IF(AP141=Results!N57,"90 mil",IF(AP141=Results!N63,"Tape","Inverted"))) -> Tape | AQ147: =IF(AQ141=Results!O51,"40 mil",IF(AQ141=Results!O57,"90 mil",IF(AQ141=Results!O63,"Tape","Inverted"))) -> Tape | AR147: =IF(AR141=Results!P51,"40 mil",IF(AR141=Results!P57,"90 mil",IF(AR141=Results!P63,"Tape","Inverted"))) -> Tape | AS147: =IF(AS141=Results!Q51,"40 mil",IF(AS141=Results!Q57,"90 mil",IF(AS141=Results!Q63,"Tape","Inverted"))) -> 40 mil | AU147: 1 | AV147: 1 | AW147: 1 | AX147: 1 | AY147: 1 | AZ147: 1
W148: White Edge | X148: =IF(X142=Results!E52,"40 mil",IF(X142=Results!E58,"90 mil",IF(X142=Results!E64,"Tape","Inverted"))) -> Tape | Y148: =IF(Y142=Results!F52,"40 mil",IF(Y142=Results!F58,"90 mil",IF(Y142=Results!F64,"Tape","Inverted"))) -> Tape | Z148: =IF(Z142=Results!G52,"40 mil",IF(Z142=Results!G58,"90 mil",IF(Z142=Results!G64,"Tape","Inverted"))) -> Tape | AA148: =IF(AA142=Results!H52,"40 mil",IF(AA142=Results!H58,"90 mil",IF(AA142=Results!H64,"Tape","Inverted"))) -> Inverted | AB148: =IF(AB142=Results!I52,"40 mil",IF(AB142=Results!I58,"90 mil",IF(AB142=Results!I64,"Tape","Inverted"))) -> Inverted | AC148: =IF(AC142=Results!J52,"40 mil",IF(AC142=Results!J58,"90 mil",IF(AC142=Results!J64,"Tape","Inverted"))) -> 40 mil | AE148: 1 | AF148: 1 | AG148: 1 | AH148: 1 | AI148: 1 | AJ148: 1 | AM148: White Edge | AN148: =IF(AN142=Results!L52,"40 mil",IF(AN142=Results!L58,"90 mil",IF(AN142=Results!L64,"Tape","Inverted"))) -> Tape | AO148: =IF(AO142=Results!M52,"40 mil",IF(AO142=Results!M58,"90 mil",IF(AO142=Results!M64,"Tape","Inverted"))) -> Tape | AP148: =IF(AP142=Results!N52,"40 mil",IF(AP142=Results!N58,"90 mil",IF(AP142=Results!N64,"Tape","Inverted"))) -> Tape | AQ148: =IF(AQ142=Results!O52,"40 mil",IF(AQ142=Results!O58,"90 mil",IF(AQ142=Results!O64,"Tape","Inverted"))) -> Tape | AR148: =IF(AR142=Results!P52,"40 mil",IF(AR142=Results!P58,"90 mil",IF(AR142=Results!P64,"Tape","Inverted"))) -> Inverted | AS148: =IF(AS142=Results!Q52,"40 mil",IF(AS142=Results!Q58,"90 mil",IF(AS142=Results!Q64,"Tape","Inverted"))) -> 40 mil | AU148: 1 | AV148: 1 | AW148: 1 | AX148: 1 | AY148: 1 | AZ148: 1
W149: White Lane | X149: =IF(X143=Results!E53,"40 mil",IF(X143=Results!E59,"90 mil",IF(X143=Results!E65,"Tape","Inverted"))) -> Tape | Y149: =IF(Y143=Results!F53,"40 mil",IF(Y143=Results!F59,"90 mil",IF(Y143=Results!F65,"Tape","Inverted"))) -> Tape | Z149: =IF(Z143=Results!G53,"40 mil",IF(Z143=Results!G59,"90 mil",IF(Z143=Results!G65,"Tape","Inverted"))) -> Tape | AA149: =IF(AA143=Results!H53,"40 mil",IF(AA143=Results!H59,"90 mil",IF(AA143=Results!H65,"Tape","Inverted"))) -> Inverted | AB149: =IF(AB143=Results!I53,"40 mil",IF(AB143=Results!I59,"90 mil",IF(AB143=Results!I65,"Tape","Inverted"))) -> Inverted | AC149: =IF(AC143=Results!J53,"40 mil",IF(AC143=Results!J59,"90 mil",IF(AC143=Results!J65,"Tape","Inverted"))) -> 40 mil | AE149: 1 | AF149: 1 | AG149: 1 | AH149: 1 | AI149: 1 | AJ149: 1 | AM149: White Lane | AN149: =IF(AN143=Results!L53,"40 mil",IF(AN143=Results!L59,"90 mil",IF(AN143=Results!L65,"Tape","Inverted"))) -> Tape | AO149: =IF(AO143=Results!M53,"40 mil",IF(AO143=Results!M59,"90 mil",IF(AO143=Results!M65,"Tape","Inverted"))) -> Tape | AP149: =IF(AP143=Results!N53,"40 mil",IF(AP143=Results!N59,"90 mil",IF(AP143=Results!N65,"Tape","Inverted"))) -> Tape | AQ149: =IF(AQ143=Results!O53,"40 mil",IF(AQ143=Results!O59,"90 mil",IF(AQ143=Results!O65,"Tape","Inverted"))) -> Tape | AR149: =IF(AR143=Results!P53,"40 mil",IF(AR143=Results!P59,"90 mil",IF(AR143=Results!P65,"Tape","Inverted"))) -> Inverted | AS149: =IF(AS143=Results!Q53,"40 mil",IF(AS143=Results!Q59,"90 mil",IF(AS143=Results!Q65,"Tape","Inverted"))) -> 40 mil | AU149: 1 | AV149: 1 | AW149: 1 | AX149: 1 | AY149: 1 | AZ149: 1
V150: AC | W150: Yellow Edge | X150: =IF(X144=Results!E54,"40 mil",IF(X144=Results!E60,"90 mil","Tape")) -> Tape | Y150: =IF(Y144=Results!F54,"40 mil",IF(Y144=Results!F60,"90 mil","Tape")) -> Tape | Z150: =IF(Z144=Results!G54,"40 mil",IF(Z144=Results!G60,"90 mil","Tape")) -> Tape | AA150: =IF(AA144=Results!H54,"40 mil",IF(AA144=Results!H60,"90 mil","Tape")) -> 40 mil | AB150: =IF(AB144=Results!I54,"40 mil",IF(AB144=Results!I60,"90 mil","Tape")) -> 40 mil | AC150: =IF(AC144=Results!J54,"40 mil",IF(AC144=Results!J60,"90 mil","Tape")) -> 40 mil | AE150: 1 | AF150: 1 | AG150: 1 | AH150: 1 | AI150: 1 | AJ150: 1 | AL150: AC | AM150: Yellow Edge | AN150: =IF(AN144=Results!L54,"40 mil",IF(AN144=Results!L60,"90 mil","Tape")) -> Tape | AO150: =IF(AO144=Results!M54,"40 mil",IF(AO144=Results!M60,"90 mil","Tape")) -> Tape | AP150: =IF(AP144=Results!N54,"40 mil",IF(AP144=Results!N60,"90 mil","Tape")) -> Tape | AQ150: =IF(AQ144=Results!O54,"40 mil",IF(AQ144=Results!O60,"90 mil","Tape")) -> Tape | AR150: =IF(AR144=Results!P54,"40 mil",IF(AR144=Results!P60,"90 mil","Tape")) -> 40 mil | AS150: =IF(AS144=Results!Q54,"40 mil",IF(AS144=Results!Q60,"90 mil","Tape")) -> 40 mil | AU150: 1 | AV150: 1 | AW150: 1 | AX150: 1 | AY150: 1 | AZ150: 1
W151: White Edge | X151: =IF(X145=Results!E55,"40 mil",IF(X145=Results!E61,"90 mil","Tape")) -> Tape | Y151: =IF(Y145=Results!F55,"40 mil",IF(Y145=Results!F61,"90 mil","Tape")) -> Tape | Z151: =IF(Z145=Results!G55,"40 mil",IF(Z145=Results!G61,"90 mil","Tape")) -> Tape | AA151: =IF(AA145=Results!H55,"40 mil",IF(AA145=Results!H61,"90 mil","Tape")) -> Tape | AB151: =IF(AB145=Results!I55,"40 mil",IF(AB145=Results!I61,"90 mil","Tape")) -> 40 mil | AC151: =IF(AC145=Results!J55,"40 mil",IF(AC145=Results!J61,"90 mil","Tape")) -> 40 mil | AE151: 1 | AF151: 1 | AG151: 1 | AH151: 1 | AI151: 1 | AJ151: 1 | AM151: White Edge | AN151: =IF(AN145=Results!L55,"40 mil",IF(AN145=Results!L61,"90 mil","Tape")) -> Tape | AO151: =IF(AO145=Results!M55,"40 mil",IF(AO145=Results!M61,"90 mil","Tape")) -> Tape | AP151: =IF(AP145=Results!N55,"40 mil",IF(AP145=Results!N61,"90 mil","Tape")) -> Tape | AQ151: =IF(AQ145=Results!O55,"40 mil",IF(AQ145=Results!O61,"90 mil","Tape")) -> Tape | AR151: =IF(AR145=Results!P55,"40 mil",IF(AR145=Results!P61,"90 mil","Tape")) -> Tape | AS151: =IF(AS145=Results!Q55,"40 mil",IF(AS145=Results!Q61,"90 mil","Tape")) -> 40 mil | AU151: 1 | AV151: 1 | AW151: 1 | AX151: 1 | AY151: 1 | AZ151: 1
W152: White Lane | X152: =IF(X146=Results!E56,"40 mil",IF(X146=Results!E62,"90 mil","Tape")) -> Tape | Y152: =IF(Y146=Results!F56,"40 mil",IF(Y146=Results!F62,"90 mil","Tape")) -> Tape | Z152: =IF(Z146=Results!G56,"40 mil",IF(Z146=Results!G62,"90 mil","Tape")) -> Tape | AA152: =IF(AA146=Results!H56,"40 mil",IF(AA146=Results!H62,"90 mil","Tape")) -> Tape | AB152: =IF(AB146=Results!I56,"40 mil",IF(AB146=Results!I62,"90 mil","Tape")) -> 40 mil | AC152: =IF(AC146=Results!J56,"40 mil",IF(AC146=Results!J62,"90 mil","Tape")) -> 40 mil | AE152: =X122/(X128+(X128-X122)*L128/($H122+$I122)) -> 1 | AF152: =Y122/(Y128+(Y128-Y122)*M128/($H122+$I122)) -> 1 | AG152: =Z122/(Z128+(Z128-Z122)*N128/($H122+$I122)) -> 1 | AH152: =AA122/(AA128+(AA128-AA122)*O128/($H122+$I122)) -> 1 | AI152: =AB122/(AB128+(AB128-AB122)*P128/($H122+$I122)) -> 1 | AJ152: =AC122/(AC128+(AC128-AC122)*Q128/($H122+$I122)) ->  | AM152: White Lane | AN152: =IF(AN146=Results!L56,"40 mil",IF(AN146=Results!L62,"90 mil","Tape")) -> Tape | AO152: =IF(AO146=Results!M56,"40 mil",IF(AO146=Results!M62,"90 mil","Tape")) -> Tape | AP152: =IF(AP146=Results!N56,"40 mil",IF(AP146=Results!N62,"90 mil","Tape")) -> Tape | AQ152: =IF(AQ146=Results!O56,"40 mil",IF(AQ146=Results!O62,"90 mil","Tape")) -> Tape | AR152: =IF(AR146=Results!P56,"40 mil",IF(AR146=Results!P62,"90 mil","Tape")) -> Tape | AS152: =IF(AS146=Results!Q56,"40 mil",IF(AS146=Results!Q62,"90 mil","Tape")) -> 40 mil | AU152: =X122/(X128+(X128-X122)*R128/($J122+$K122)) -> 1 | AV152: =Y122/(Y128+(Y128-Y122)*S128/($J122+$K122)) -> 1 | AW152: 1 | AX152: 1 | AY152: 1
AE153: =X123/(X129+(X129-X123)*L129/($H123+$I123)) -> 1 | AF153: 1 | AG153: 1 | AH153: 1 | AI153: 1 | AU153: 1 | AV153: =Y123/(Y129+(Y129-Y123)*S129/($J123+$K123)) -> 1 | AW153: 1 | AX153: 1 | AY153: 1
AE154: 1 | AF154: 1 | AG154: 1 | AH154: 1 | AI154: 1 | AU154: 1 | AV154: =Y124/(Y130+(Y130-Y124)*S130/($J124+$K124)) -> 1 | AW154: 1 | AX154: 1 | AY154: 1
AE155: 1 | AF155: 1 | AG155: 1 | AH155: 1 | AI155: 1 | AU155: 1 | AV155: =Y125/(Y131+(Y131-Y125)*S131/($J125+$K125)) -> 1 | AW155: 1 | AX155: 1 | AY155: 1
AE156: 1 | AF156: 1 | AG156: 1 | AH156: 1 | AI156: 1 | AU156: 1 | AV156: =Y126/(Y132+(Y132-Y126)*S132/($J126+$K126)) -> 1 | AW156: 1 | AX156: 1 | AY156: 1
AE157: 1 | AF157: 1 | AG157: 1 | AH157: 1 | AI157: 1 | AU157: 1 | AV157: =Y127/(Y133+(Y133-Y127)*S133/($J127+$K127)) -> 1 | AW157: 1 | AX157: 1 | AY157: 1
AE158: =X122/(X134+(X134-X122)*L134/($H122+$I122)) -> 1 | AF158: =Y122/(Y134+(Y134-Y122)*M134/($H122+$I122)) -> 1 | AG158: =Z122/(Z134+(Z134-Z122)*N134/($H122+$I122)) -> 1 | AH158: =AA122/(AA134+(AA134-AA122)*O134/($H122+$I122)) -> 1 | AI158: =AB122/(AB134+(AB134-AB122)*P134/($H122+$I122)) -> 1 | AJ158: =AC122/(AC134+(AC134-AC122)*Q134/($H122+$I122)) ->  | AU158: =X122/(X134+(X134-X122)*R134/($J122+$K122)) -> 1 | AV158: =Y122/(Y134+(Y134-Y122)*S134/($J122+$K122)) -> 1 | AW158: 1 | AX158: 1 | AY158: 1
AE159: =X123/(X135+(X135-X123)*L135/($H123+$I123)) -> 1 | AF159: 1 | AG159: 1 | AH159: -3.14970888 | AI159: -0.06457800394 | AU159: =X123/(X135+(X135-X123)*R135/($J123+$K123)) -> 1 | AV159: =Y123/(Y135+(Y135-Y123)*S135/($J123+$K123)) -> 1 | AW159: 1 | AX159: 1.241949329 | AY159: 3.29679237
AE160: 1 | AF160: 1 | AG160: 1 | AH160: -0.3871285136 | AI160: -0.02108174163 | AU160: =X124/(X136+(X136-X124)*R136/($J124+$K124)) -> 1 | AV160: =Y124/(Y136+(Y136-Y124)*S136/($J124+$K124)) -> 1 | AW160: 1 | AX160: 1.258615318 | AY160: 15.08631889
AD164: tape | AE164: =X128/(X116+(X116-X128)*L116/($H128+$I128)) -> 1 | AF164: =Y128/(Y116+(Y116-Y128)*M116/($H128+$I128)) -> 1.006138174 | AG164: =Z128/(Z116+(Z116-Z128)*N116/($H128+$I128)) -> 1.040619917 | AH164: =AA128/(AA116+(AA116-AA128)*O116/($H128+$I128)) -> 1.188276445 | AI164: =AB128/(AB116+(AB116-AB128)*P116/($H128+$I128)) -> 5.395682354 | AJ164: =AC128/(AC116+(AC116-AC128)*Q116/($H128+$I128)) ->  | AT164: tape | AU164: =X128/(X116+(X116-X128)*R116/($J128+$K128)) -> 1 | AV164: =Y128/(Y116+(Y116-Y128)*S116/($J128+$K128)) -> 1.006051616 | AW164: 1.029067766 | AX164: 1.060419739 | AY164: 1.10214985
AE165: =X129/(X117+(X117-X129)*L117/($H129+$I129)) -> 1 | AF165: 1 | AG165: 1 | AH165: 1 | AI165: 1 | AU165: 1 | AV165: =Y129/(Y117+(Y117-Y129)*S117/($J129+$K129)) -> 1 | AW165: 1 | AX165: 1 | AY165: 1
AE166: 1 | AF166: 1 | AG166: 1 | AH166: 1 | AI166: 1 | AU166: 1 | AV166: =Y130/(Y118+(Y118-Y130)*S118/($J130+$K130)) -> 1 | AW166: 1 | AX166: 1 | AY166: 1
AE167: 1 | AF167: 1.130945816 | AG167: 2.599384377 | AH167: -0.9979553837 | AI167: -0.1289507601 | AU167: 1 | AV167: =Y131/(Y119+(Y119-Y131)*S119/($J131+$K131)) -> 1.128873852 | AW167: 1.802611161 | AX167: 3.570682379 | AY167: 251.284745
AE168: 1 | AF168: 1 | AG168: 1 | AH168: 1.101770469 | AI168: -0.4136446611 | AU168: 1 | AV168: =Y132/(Y120+(Y120-Y132)*S120/($J132+$K132)) -> 1 | AW168: 1 | AX168: 1.034357688 | AY168: 1.636134616
AE169: 1 | AF169: 1 | AG169: 1 | AH169: 1.187288734 | AI169: -0.173191323 | AU169: 1 | AV169: =Y133/(Y121+(Y121-Y133)*S121/($J133+$K133)) -> 1 | AW169: 1 | AX169: 1.034686946 | AY169: 1.705627633
AE170: =X128/(X122+(X122-X128)*L122/($H128+$I128)) -> 1 | AF170: =Y128/(Y122+(Y122-Y128)*M122/($H128+$I128)) -> 1 | AG170: =Z128/(Z122+(Z122-Z128)*N122/($H128+$I128)) -> 1 | AH170: =AA128/(AA122+(AA122-AA128)*O122/($H128+$I128)) -> 1 | AI170: =AB128/(AB122+(AB122-AB128)*P122/($H128+$I128)) -> 1 | AJ170: =AC128/(AC122+(AC122-AC128)*Q122/($H128+$I128)) ->  | AU170: =X128/(X122+(X122-X128)*R122/($J128+$K128)) -> 1 | AV170: =Y128/(Y122+(Y122-Y128)*S122/($J128+$K128)) -> 1 | AW170: 1 | AX170: 1 | AY170: 1
AE171: =X129/(X123+(X123-X129)*L123/($H129+$I129)) -> 1 | AF171: 1 | AG171: 1 | AH171: 1 | AI171: 1 | AU171: 1 | AV171: =Y129/(Y123+(Y123-Y129)*S123/($J129+$K129)) -> 1 | AW171: 1 | AX171: 1 | AY171: 1
AE172: 1 | AF172: 1 | AG172: 1 | AH172: 1 | AI172: 1 | AU172: 1 | AV172: =Y130/(Y124+(Y124-Y130)*S124/($J130+$K130)) -> 1 | AW172: 1 | AX172: 1 | AY172: 1
AE173: 1 | AF173: 1 | AG173: 1 | AH173: 1 | AI173: 1 | AU173: 1 | AV173: =Y131/(Y125+(Y125-Y131)*S125/($J131+$K131)) -> 1 | AW173: 1 | AX173: 1 | AY173: 1
AE174: 1 | AF174: 1 | AG174: 1 | AH174: 1 | AI174: 1 | AU174: 1 | AV174: =Y132/(Y126+(Y126-Y132)*S126/($J132+$K132)) -> 1 | AW174: 1 | AX174: 1 | AY174: 1
AE175: 1 | AF175: 1 | AG175: 1 | AH175: 1 | AI175: 1 | AU175: 1 | AV175: =Y133/(Y127+(Y127-Y133)*S127/($J133+$K133)) -> 1 | AW175: 1 | AX175: 1 | AY175: 1
AE176: 1 | AF176: 1 | AG176: 1 | AH176: 1 | AI176: 1 | AJ176: 1 | AU176: 1 | AV176: 1 | AW176: 1 | AX176: 1 | AY176: 1 | AZ176: 1
AE177: 1 | AF177: 1 | AG177: 1 | AH177: 1 | AI177: 1 | AJ177: 1 | AU177: 1 | AV177: 1 | AW177: 1 | AX177: 1 | AY177: 1 | AZ177: 1
AE178: 1 | AF178: 1 | AG178: 1 | AH178: 1 | AI178: 1 | AJ178: 1 | AU178: 1 | AV178: 1 | AW178: 1 | AX178: 1 | AY178: 1 | AZ178: 1
AE179: 1 | AF179: 1 | AG179: 1 | AH179: 1 | AI179: 1 | AJ179: 1 | AU179: 1 | AV179: 1 | AW179: 1 | AX179: 1 | AY179: 1 | AZ179: 1
AE180: 1 | AF180: 1 | AG180: 1 | AH180: 1 | AI180: 1 | AJ180: 1 | AU180: 1 | AV180: 1 | AW180: 1 | AX180: 1 | AY180: 1 | AZ180: 1
AE181: 1 | AF181: 1 | AG181: 1 | AH181: 1 | AI181: 1 | AJ181: 1 | AU181: 1 | AV181: 1 | AW181: 1 | AX181: 1 | AY181: 1 | AZ181: 1
AE182: =X128/(X134+(X134-X128)*L134/($H128+$I128)) -> 1 | AF182: =Y128/(Y134+(Y134-Y128)*M134/($H128+$I128)) -> 1 | AG182: =Z128/(Z134+(Z134-Z128)*N134/($H128+$I128)) -> 1 | AH182: =AA128/(AA134+(AA134-AA128)*O134/($H128+$I128)) -> 1 | AI182: =AB128/(AB134+(AB134-AB128)*P134/($H128+$I128)) -> 1 | AJ182: =AC128/(AC134+(AC134-AC128)*Q134/($H128+$I128)) ->  | AU182: =X128/(X134+(X134-X128)*R134/($J128+$K128)) -> 1 | AV182: =Y128/(Y134+(Y134-Y128)*S134/($J128+$K128)) -> 1 | AW182: 1 | AX182: 1 | AY182: 1
AE183: =X129/(X135+(X135-X129)*L135/($H129+$I129)) -> 1 | AF183: 1 | AG183: 1 | AH183: 2.134301074 | AI183: -0.2272298776 | AU183: =X129/(X135+(X135-X129)*R135/($J129+$K129)) -> 1 | AV183: =Y129/(Y135+(Y135-Y129)*S135/($J129+$K129)) -> 1 | AW183: 1 | AX183: 1.236269966 | AY183: 2.593612596
AE184: 1 | AF184: 1 | AG184: 1 | AH184: 10.82320414 | AI184: -0.103038704 | AU184: =X130/(X136+(X136-X130)*R136/($J130+$K130)) -> 1 | AV184: =Y130/(Y136+(Y136-Y130)*S136/($J130+$K130)) -> 1 | AW184: 1 | AX184: 1.238981258 | AY184: 2.888429542
X188: =($H134*X116+(X116-X134)*L116)/X134/$H116 -> 5.072184793 | Y188: =($H134*Y116+(Y116-Y134)*M116)/Y134/$H116 -> 5.040937238 | Z188: 4.84423977 | AA188: 3.990055604 | AB188: -1.04677586 | AD188: Inverted | AE188: =X134/(X116+(X116-X134)*L116/($H134+$I134)) -> 1 | AF188: =Y134/(Y116+(Y116-Y134)*M116/($H134+$I134)) -> 1.006198759 | AG188: =Z134/(Z116+(Z116-Z134)*N116/($H134+$I134)) -> 1.04705486 | AH188: =AA134/(AA116+(AA116-AA134)*O116/($H134+$I134)) -> 1.271206544 | AI188: =AB134/(AB116+(AB116-AB134)*P116/($H134+$I134)) -> -4.845530916 | AJ188: =AC134/(AC116+(AC116-AC134)*Q116/($H134+$I134)) ->  | AT188: Inverted | AU188: =X134/(X116+(X116-X134)*R116/($J134+$K134)) -> 1 | AV188: =Y134/(Y116+(Y116-Y134)*S116/($J134+$K134)) -> 1.006065579 | AW188: 1.029169965 | AX188: 1.06071034 | AY188: 1.105691445
X189: =($H135*X117+(X117-X135)*L117)/X135/$H117 -> 5.072184793 | Y189: =($H135*Y117+(Y117-Y135)*M117)/Y135/$H117 -> 5.072184793 | Z189: 5.072184793 | AA189: 9.550590651 | AB189: 101.3499535 | AE189: =X135/(X117+(X117-X135)*L117/($H135+$I135)) -> 1 | AF189: 1 | AG189: 1 | AH189: 0.5310859797 | AI189: 0.05004624686 | AU189: =X135/(X117+(X117-X135)*R117/($J135+$K135)) -> 1 | AV189: =Y135/(Y117+(Y117-Y135)*S117/($J135+$K135)) -> 1 | AW189: 1 | AX189: 0.8084923532 | AY189: 0.3993574832
X190: =($H136*X118+(X118-X136)*L118)/X136/$H118 -> 6.406649616 | Y190: =($H136*Y118+(Y118-Y136)*M118)/Y136/$H118 -> 6.406649616 | Z190: 6.406649616 | AA190: 16.65361682 | AB190: 252.5324761 | AE190: 1 | AF190: 1 | AG190: 1 | AH190: 0.3847001937 | AI190: 0.02536960677 | AU190: =X136/(X118+(X118-X136)*R118/($J136+$K136)) -> 1 | AV190: =Y136/(Y118+(Y118-Y136)*S118/($J136+$K136)) -> 1 | AW190: 1 | AX190: 0.8062943614 | AY190: 0.3776120011
W191: =($H136*X118) -> 5323125000
W192: =(X118-X136) -> 0
W193: =L118 -> 70.52690376
W194: =X136 -> 2500000 | AE194: =X134/(X122+(X122-X134)*L122/($H134+$I134)) -> 1 | AF194: =Y134/(Y122+(Y122-Y134)*M122/($H134+$I134)) -> 1 | AG194: =Z134/(Z122+(Z122-Z134)*N122/($H134+$I134)) -> 1 | AH194: =AA134/(AA122+(AA122-AA134)*O122/($H134+$I134)) -> 1 | AI194: =AB134/(AB122+(AB122-AB134)*P122/($H134+$I134)) -> 1 | AJ194: =AC134/(AC122+(AC122-AC134)*Q122/($H134+$I134)) ->  | AU194: =X134/(X122+(X122-X134)*R122/($J134+$K134)) -> 1 | AV194: =Y134/(Y122+(Y122-Y134)*S122/($J134+$K134)) -> 1 | AW194: 1 | AX194: 1 | AY194: 1
W195: =$H118 -> 332.35 | AE195: =X135/(X123+(X123-X135)*L123/($H135+$I135)) -> 1 | AF195: 1 | AG195: 1 | AH195: 0.5310859797 | AI195: 0.05004624686 | AU195: =X135/(X123+(X123-X135)*R123/($J135+$K135)) -> 1 | AV195: =Y135/(Y123+(Y123-Y135)*S123/($J135+$K135)) -> 1 | AW195: 1 | AX195: 0.8084923532 | AY195: 0.3993574832
AE196: 1 | AF196: 1 | AG196: 1 | AH196: 0.3847001937 | AI196: 0.02536960677 | AU196: =X136/(X124+(X124-X136)*R124/($J136+$K136)) -> 1 | AV196: =Y136/(Y124+(Y124-Y136)*S124/($J136+$K136)) -> 1 | AW196: 1 | AX196: 0.8062943614 | AY196: 0.3776120011
W198: test cal. | X198: 40/inverted | AL198: tape/inverted
AK199: test cal.
W200: b diff | X200: =X201-X202 -> 0 | Y200: =Y201-Y202 -> 0 | Z200: =Z201-Z202 -> 0 | AA200: =AA201-AA202 -> 1895059.657 | AB200: 7233255.925 | AE200: =X134/(X128+(X128-X134)*L128/($H134+$I134)) -> 1 | AF200: =Y134/(Y128+(Y128-Y134)*M128/($H134+$I134)) -> 1 | AG200: =Z134/(Z128+(Z128-Z134)*N128/($H134+$I134)) -> 1 | AH200: =AA134/(AA128+(AA128-AA134)*O128/($H134+$I134)) -> 1 | AI200: =AB134/(AB128+(AB128-AB134)*P128/($H134+$I134)) -> 1 | AJ200: =AC134/(AC128+(AC128-AC134)*Q128/($H134+$I134)) ->  | AU200: =X134/(X128+(X128-X134)*R128/($J134+$K134)) -> 1 | AV200: =Y134/(Y128+(Y128-Y134)*S128/($J134+$K134)) -> 1 | AW200: 1 | AX200: 1 | AY200: 1
W201: b90 | X201: =X118 -> 2500000 | Y201: =Y118 -> 5000000 | Z201: 7500000 | AA201: 10000000 | AB201: 12500000 | AE201: =X135/(X129+(X129-X135)*L129/($H135+$I135)) -> 1 | AF201: 1 | AG201: 1 | AH201: 0.5310859797 | AI201: 0.05004624686 | AK201: b diff | AL201: =AL202-AL203 -> 0 | AM201: =AM202-AM203 -> 0 | AN201: 0 | AO201: 1895059.657 | AP201: 7233255.925 | AU201: =X135/(X129+(X129-X135)*R129/($J135+$K135)) -> 1 | AV201: =Y135/(Y129+(Y129-Y135)*S129/($J135+$K135)) -> 1 | AW201: 1 | AX201: 0.8084923532 | AY201: 0.3993574832
W202: b40 | X202: =X136 -> 2500000 | Y202: =Y136 -> 5000000 | Z202: 7500000 | AA202: 8104940.343 | AB202: 5266744.075 | AE202: 1 | AF202: 1 | AG202: 1 | AH202: 0.3847001937 | AI202: 0.02536960677 | AK202: b90 | AL202: =X129 -> 2500000 | AM202: =Y129 -> 5000000 | AN202: 7500000 | AO202: 10000000 | AP202: 12500000 | AU202: =X136/(X130+(X130-X136)*R130/($J136+$K136)) -> 1 | AV202: =Y136/(Y130+(Y130-Y136)*S130/($J136+$K136)) -> 1 | AW202: 1 | AX202: 0.8062943614 | AY202: 0.3776120011
W203: c40 | X203: =H136 -> 2129.25 | Y203: =X203 -> 2129.25 | Z203: =Y203 -> 2129.25 | AA203: 2129.25 | AB203: 2129.25 | AK203: b40 | AL203: =X135 -> 2500000 | AM203: =Y135 -> 5000000 | AN203: 7500000 | AO203: 8104940.343 | AP203: 5266744.075
W204: cu | X204: =L118 -> 70.52690376 | Y204: =M118 -> 127.867459 | Z204: 2692.837721 | AA204: 12436.00075 | AB204: 57431.65041 | AK204: c40 | AL204: =J135 -> 6060.5 | AM204: =AL204 -> 6060.5 | AN204: =AM204 -> 6060.5 | AO204: =AN204 -> 6060.5 | AP204: =AO204 -> 6060.5
W205: c90 | X205: =H118 -> 332.35 | Y205: =X205 -> 332.35 | Z205: 332.35 | AA205: 332.35 | AB205: 332.35 | AK205: cu | AL205: =R135 -> 20.228 | AM205: =S135 -> 39.878 | AN205: 59.528 | AO205: 79.178 | AP205: 576.4887808
W206: factor | X206: =(X201*X203+X200*X204)/X202/X205 -> 6.406649616 | Y206: =(Y201*Y203+Y200*Y204)/Y202/Y205 -> 6.406649616 | Z206: =(Z201*Z203+Z200*Z204)/Z202/Z205 -> 6.406649616 | AA206: =(AA201*AA203+AA200*AA204)/AA202/AA205 -> 16.65361682 | AB206: 252.5324761 | AE206: 1 | AF206: 1 | AG206: 1 | AH206: 1 | AI206: 1 | AJ206: 1 | AK206: c90 | AL206: =J129 -> 9324.2 | AM206: =AL206 -> 9324.2 | AN206: =AM206 -> 9324.2 | AO206: =AN206 -> 9324.2 | AP206: =AO206 -> 9324.2 | AU206: 1 | AV206: 1 | AW206: 1 | AX206: 1 | AY206: 1 | AZ206: 1
AE207: 1 | AF207: 1 | AG207: 1 | AH207: 1 | AI207: 1 | AJ207: 1 | AK207: factor | AL207: =(AL202*AL204+AL201*AL205)/AL203/AL206 -> 0.649975333 | AM207: =(AM202*AM204+AM201*AM205)/AM203/AM206 -> 0.649975333 | AN207: =(AN202*AN204+AN201*AN205)/AN203/AN206 -> 0.649975333 | AO207: =(AO202*AO204+AO201*AO205)/AO203/AO206 -> 0.8039350408 | AP207: 1.627552657 | AU207: 1 | AV207: 1 | AW207: 1 | AX207: 1 | AY207: 1 | AZ207: 1
AE208: 1 | AF208: 1 | AG208: 1 | AH208: 1 | AI208: 1 | AJ208: 1 | AU208: 1 | AV208: 1 | AW208: 1 | AX208: 1 | AY208: 1 | AZ208: 1
AK209: recal | AL209: =(X129*J135+(X129-X135)*R129)/X135/J129 -> 0.649975333

Sheet Factors for Restripe-PCC (hidden)
A1: Equivalent Cost Factors for Restripe-PCC | E1: Yellow Edge Line | P1: Bidding Factors for Restripe-PCC: Yellow Edge Line
A2: Reference Material | B2: Material | C2: Off-Peak Application | I2: Night Time Application | P2: Material | Q2: Off-Peak Application | W2: Night Time Application
C3: ADT per Lane | H3: User ADT | I3: ADT per Lane | N3: User ADT | Q3: ADT per Lane | V3: User ADT | W3: ADT per Lane | AB3: User ADT
C4: 5000 | D4: 10000 | E4: 15000 | F4: 20000 | G4: 25000 | H4: =IF(Input!$B$33="No","",Input!$B$33) ->  | I4: 5000 | J4: 10000 | K4: 15000 | L4: 20000 | M4: 25000 | N4: =IF(Input!$B$33="No","",Input!$B$33) ->  | Q4: 5000 | R4: 10000 | S4: 15000 | T4: 20000 | U4: 25000 | V4: =IF(Input!$B$33="No","",Input!$B$33) ->  | W4: 5000 | X4: 10000 | Y4: 15000 | Z4: 20000 | AA4: 25000 | AB4: =IF(Input!$B$33="No","",Input!$B$33) -> 
A5: 40 mil | B5: 40 mil | C5: 1 | D5: 1 | E5: 1 | F5: 1 | G5: 1 | H5: =IF(Input!$B$33="No","",1) ->  | I5: 1 | J5: 1 | K5: 1 | L5: 1 | M5: 1 | N5: =IF(Input!$B$33="No","",1) ->  | P5: 40 mil | Q5: =IF(MIN(Results!E6,Results!E12)=Results!E6,1,'Factor Results'!AE30) -> 1 | R5: =IF(MIN(Results!F6,Results!F12)=Results!F6,1,'Factor Results'!AF30) -> 1.006144012 | S5: =IF(MIN(Results!G6,Results!G12)=Results!G6,1,'Factor Results'!AG30) -> 1.04123657 | T5: =IF(MIN(Results!H6,Results!H12)=Results!H6,1,'Factor Results'!AH30) -> 1.195793866 | U5: =IF(MIN(Results!I6,Results!I12)=Results!I6,1,'Factor Results'!AI30) -> 1 | V5: =IF(MIN(Results!J6,Results!J12)=Results!J6,1,'Factor Results'!AJ30) -> 1 | W5: =IF(MIN(Results!L6,Results!L12)=Results!L6,1,'Factor Results'!AU30) -> 1 | X5: =IF(MIN(Results!M6,Results!M12)=Results!M6,1,'Factor Results'!AV30) -> 1.006052962 | Y5: =IF(MIN(Results!N6,Results!N12)=Results!N6,1,'Factor Results'!AW30) -> 1.029077614 | Z5: =IF(MIN(Results!O6,Results!O12)=Results!O6,1,'Factor Results'!AX30) -> 1.060447736 | AA5: =IF(MIN(Results!P6,Results!P12)=Results!P6,1,'Factor Results'!AY30) -> 1.102490146 | AB5: =IF(MIN(Results!Q6,Results!Q12)=Results!Q6,1,'Factor Results'!AZ30) -> 1
B6: 90 mil | C6: =Q6/Q5 -> 1 | D6: =R6/R5 -> 0.9938935068 | E6: 0.9603965407 | F6: 0.8362645339 | G6: 0.4710139005 | H6: =IF(Input!$B$33="No","",V6/V5) ->  | I6: =W6/W5 -> 1 | J6: =X6/X5 -> 0.9939834563 | K6: =Y6/Y5 -> 0.971744003 | L6: =Z6/Z5 -> 0.9429979116 | M6: =AA6/AA5 -> 0.9070375856 | N6: =IF(Input!$B$33="No","",AB6/AB5) ->  | P6: 90 mil | Q6: =IF(MIN(Results!E6,Results!E12)=Results!E6,'Factor Results'!AE12,1) -> 1 | R6: =IF(MIN(Results!F6,Results!F12)=Results!F6,'Factor Results'!AF12,1) -> 1 | S6: =IF(MIN(Results!G6,Results!G12)=Results!G6,'Factor Results'!AG12,1) -> 1 | T6: =IF(MIN(Results!H6,Results!H12)=Results!H6,'Factor Results'!AH12,1) -> 1 | U6: =IF(MIN(Results!I6,Results!I12)=Results!I6,'Factor Results'!AI12,1) -> 0.4710139005 | V6: =IF(MIN(Results!J6,Results!J12)=Results!J6,'Factor Results'!AJ12,1) ->  | W6: =IF(MIN(Results!L6,Results!L12)=Results!L6,'Factor Results'!AU12,1) -> 1 | X6: =IF(MIN(Results!M6,Results!M12)=Results!M6,'Factor Results'!AV12,1) -> 1 | Y6: =IF(MIN(Results!N6,Results!N12)=Results!N6,'Factor Results'!AW12,1) -> 1 | Z6: =IF(MIN(Results!O6,Results!O12)=Results!O6,'Factor Results'!AX12,1) -> 1 | AA6: =IF(MIN(Results!P6,Results!P12)=Results!P6,'Factor Results'!AY12,1) -> 1 | AB6: =IF(MIN(Results!Q6,Results!Q12)=Results!Q6,'Factor Results'!AZ12,1) -> 
B7: Tape | C7: =Q8/Q7 -> 1 | D7: =R8/R7 -> 0.9939429497 | E7: 0.9652758732 | F7: 0.8816227372 | G7: 0.471210726 | H7: =IF(Input!$B$33="No","",V8/V7) ->  | I7: =W8/W7 -> 1 | J7: =X8/X7 -> 0.9939948535 | K7: =Y8/Y7 -> 0.9718237277 | L7: =Z8/Z7 -> 0.9432113639 | M7: =AA8/AA7 -> 0.9094386377 | N7: =IF(Input!$B$33="No","",AB8/AB7) ->  | P7: 40 mil | Q7: =IF(MIN(Results!E6,Results!E18)=Results!E6,1,'Factor Results'!AE54) -> 1 | R7: =IF(MIN(Results!F6,Results!F18)=Results!F6,1,'Factor Results'!AF54) -> 1.006093962 | S7: =IF(MIN(Results!G6,Results!G18)=Results!G6,1,'Factor Results'!AG54) -> 1.035973267 | T7: =IF(MIN(Results!H6,Results!H18)=Results!H6,1,'Factor Results'!AH54) -> 1.134272017 | U7: =IF(MIN(Results!I6,Results!I18)=Results!I6,1,'Factor Results'!AI54) -> 2.122192779 | V7: =IF(MIN(Results!J6,Results!J18)=Results!J6,1,'Factor Results'!AJ54) -> 1 | W7: =IF(MIN(Results!L6,Results!L18)=Results!L6,1,'Factor Results'!AU54) -> 1 | X7: =IF(MIN(Results!M6,Results!M18)=Results!M6,1,'Factor Results'!AV54) -> 1.006041426 | Y7: =IF(MIN(Results!N6,Results!N18)=Results!N6,1,'Factor Results'!AW54) -> 1.028993192 | Z7: =IF(MIN(Results!O6,Results!O18)=Results!O6,1,'Factor Results'!AX54) -> 1.060207752 | AA7: =IF(MIN(Results!P6,Results!P18)=Results!P6,1,'Factor Results'!AY54) -> 1.099579409 | AB7: =IF(MIN(Results!Q6,Results!Q18)=Results!Q6,1,'Factor Results'!AZ54) -> 1
B8: Inverted | C8: =Q10/Q9 -> 1 | D8: =R10/R9 -> 0.9939247529 | E8: 0.9634801048 | F8: 0.8649293005 | G8: 0.4710139005 | H8: =IF(Input!$B$33="No","",V10/V9) ->  | I8: =W10/W9 -> 1 | J8: =X10/X9 -> 0.9939906589 | K8: =Y10/Y9 -> 0.9717943862 | L8: =Z10/Z9 -> 0.9431328058 | M8: =AA10/AA9 -> 0.9085549649 | N8: =IF(Input!$B$33="No","",AB10/AB9) ->  | P8: Tape | Q8: =IF(MIN(Results!E6,Results!E18)=Results!E6,'Factor Results'!AE18,1) -> 1 | R8: =IF(MIN(Results!F6,Results!F18)=Results!F6,'Factor Results'!AF18,1) -> 1 | S8: =IF(MIN(Results!G6,Results!G18)=Results!G6,'Factor Results'!AG18,1) -> 1 | T8: =IF(MIN(Results!H6,Results!H18)=Results!H6,'Factor Results'!AH18,1) -> 1 | U8: =IF(MIN(Results!I6,Results!I18)=Results!I6,'Factor Results'!AI18,1) -> 1 | V8: =IF(MIN(Results!J6,Results!J18)=Results!J6,'Factor Results'!AJ18,1) ->  | W8: =IF(MIN(Results!L6,Results!L18)=Results!L6,'Factor Results'!AU18,1) -> 1 | X8: =IF(MIN(Results!M6,Results!M18)=Results!M6,'Factor Results'!AV18,1) -> 1 | Y8: =IF(MIN(Results!N6,Results!N18)=Results!N6,'Factor Results'!AW18,1) -> 1 | Z8: =IF(MIN(Results!O6,Results!O18)=Results!O6,'Factor Results'!AX18,1) -> 1 | AA8: =IF(MIN(Results!P6,Results!P18)=Results!P6,'Factor Results'!AY18,1) -> 1 | AB8: =IF(MIN(Results!Q6,Results!Q18)=Results!Q6,'Factor Results'!AZ18,1) -> 
A9: 90 mil | B9: 40 mil | C9: =Q5/Q6 -> 1 | D9: =R5/R6 -> 1.006144012 | E9: =S5/S6 -> 1.04123657 | F9: =T5/T6 -> 1.195793866 | G9: =U5/U6 -> 2.123079593 | H9: =IF(Input!$B$33="No","",V5/V6) ->  | I9: =W5/W6 -> 1 | J9: =X5/X6 -> 1.006052962 | K9: =Y5/Y6 -> 1.029077614 | L9: =Z5/Z6 -> 1.060447736 | M9: =AA5/AA6 -> 1.102490146 | N9: =IF(Input!$B$33="No","",AB5/AB6) ->  | P9: 40 mil | Q9: =IF(MIN(Results!E6,Results!E24)=Results!E6,1,'Factor Results'!AE78) -> 1 | R9: =IF(MIN(Results!F6,Results!F24)=Results!F6,1,'Factor Results'!AF78) -> 1.006112381 | S9: =IF(MIN(Results!G6,Results!G24)=Results!G6,1,'Factor Results'!AG78) -> 1.037904151 | T9: =IF(MIN(Results!H6,Results!H24)=Results!H6,1,'Factor Results'!AH78) -> 1.156163861 | U9: =IF(MIN(Results!I6,Results!I24)=Results!I6,1,'Factor Results'!AI78) -> 1 | V9: =IF(MIN(Results!J6,Results!J24)=Results!J6,1,'Factor Results'!AJ78) -> 1 | W9: =IF(MIN(Results!L6,Results!L24)=Results!L6,1,'Factor Results'!AU78) -> 1 | X9: =IF(MIN(Results!M6,Results!M24)=Results!M6,1,'Factor Results'!AV78) -> 1.006045672 | Y9: =IF(MIN(Results!N6,Results!N24)=Results!N6,1,'Factor Results'!AW78) -> 1.029024261 | Z9: =IF(MIN(Results!O6,Results!O24)=Results!O6,1,'Factor Results'!AX78) -> 1.060296062 | AA9: =IF(MIN(Results!P6,Results!P24)=Results!P6,1,'Factor Results'!AY78) -> 1.100648875 | AB9: =IF(MIN(Results!Q6,Results!Q24)=Results!Q6,1,'Factor Results'!AZ78) -> 1
B10: 90 mil | C10: 1 | D10: 1 | E10: 1 | F10: 1 | G10: 1 | H10: =IF(Input!$B$33="No","",1) ->  | I10: 1 | J10: 1 | K10: 1 | L10: 1 | M10: 1 | N10: =IF(Input!$B$33="No","",1) ->  | P10: Inverted | Q10: =IF(MIN(Results!E6,Results!E24)=Results!E6,'Factor Results'!AE24,1) -> 1 | R10: =IF(MIN(Results!F6,Results!F24)=Results!F6,'Factor Results'!AF24,1) -> 1 | S10: =IF(MIN(Results!G6,Results!G24)=Results!G6,'Factor Results'!AG24,1) -> 1 | T10: =IF(MIN(Results!H6,Results!H24)=Results!H6,'Factor Results'!AH24,1) -> 1 | U10: =IF(MIN(Results!I6,Results!I24)=Results!I6,'Factor Results'!AI24,1) -> 0.4710139005 | V10: =IF(MIN(Results!J6,Results!J24)=Results!J6,'Factor Results'!AJ24,1) ->  | W10: =IF(MIN(Results!L6,Results!L24)=Results!L6,'Factor Results'!AU24,1) -> 1 | X10: =IF(MIN(Results!M6,Results!M24)=Results!M6,'Factor Results'!AV24,1) -> 1 | Y10: =IF(MIN(Results!N6,Results!N24)=Results!N6,'Factor Results'!AW24,1) -> 1 | Z10: =IF(MIN(Results!O6,Results!O24)=Results!O6,'Factor Results'!AX24,1) -> 1 | AA10: =IF(MIN(Results!P6,Results!P24)=Results!P6,'Factor Results'!AY24,1) -> 1 | AB10: =IF(MIN(Results!Q6,Results!Q24)=Results!Q6,'Factor Results'!AZ24,1) -> 
B11: Tape | C11: =Q12/Q11 -> 1 | D11: =R12/R11 -> 1 | E11: 1 | F11: 1 | G11: 1 | H11: =IF(Input!$B$33="No","",V12/V11) ->  | I11: =W12/W11 -> 1 | J11: =X12/X11 -> 1 | K11: =Y12/Y11 -> 1 | L11: =Z12/Z11 -> 1 | M11: =AA12/AA11 -> 1 | N11: =IF(Input!$B$33="No","",AB12/AB11) ->  | P11: 90 mil | Q11: =IF(MIN(Results!E12,Results!E18)=Results!E12,1,'Factor Results'!AE60) -> 1 | R11: =IF(MIN(Results!F12,Results!F18)=Results!F12,1,'Factor Results'!AF60) -> 1 | S11: =IF(MIN(Results!G12,Results!G18)=Results!G12,1,'Factor Results'!AG60) -> 1 | T11: =IF(MIN(Results!H12,Results!H18)=Results!H12,1,'Factor Results'!AH60) -> 1 | U11: =IF(MIN(Results!I12,Results!I18)=Results!I12,1,'Factor Results'!AI60) -> 1 | V11: =IF(MIN(Results!J12,Results!J18)=Results!J12,1,'Factor Results'!AJ60) -> 1 | W11: =IF(MIN(Results!L12,Results!L18)=Results!L12,1,'Factor Results'!AU60) -> 1 | X11: =IF(MIN(Results!M12,Results!M18)=Results!M12,1,'Factor Results'!AV60) -> 1 | Y11: =IF(MIN(Results!N12,Results!N18)=Results!N12,1,'Factor Results'!AW60) -> 1 | Z11: =IF(MIN(Results!O12,Results!O18)=Results!O12,1,'Factor Results'!AX60) -> 1 | AA11: =IF(MIN(Results!P12,Results!P18)=Results!P12,1,'Factor Results'!AY60) -> 1 | AB11: =IF(MIN(Results!Q12,Results!Q18)=Results!Q12,1,'Factor Results'!AZ60) -> 1
B12: Inverted | C12: =Q14/Q13 -> 1 | D12: =R14/R13 -> 1 | E12: 1 | F12: 1 | G12: 1 | H12: =IF(Input!$B$33="No","",V14/V13) ->  | I12: =W14/W13 -> 1 | J12: =X14/X13 -> 1 | K12: =Y14/Y13 -> 1 | L12: =Z14/Z13 -> 1 | M12: =AA14/AA13 -> 1 | N12: =IF(Input!$B$33="No","",AB14/AB13) ->  | P12: Tape | Q12: =IF(MIN(Results!E12,Results!E18)=Results!E12,'Factor Results'!AE42,1) -> 1 | R12: =IF(MIN(Results!F12,Results!F18)=Results!F12,'Factor Results'!AF42,1) -> 1 | S12: =IF(MIN(Results!G12,Results!G18)=Results!G12,'Factor Results'!AG42,1) -> 1 | T12: =IF(MIN(Results!H12,Results!H18)=Results!H12,'Factor Results'!AH42,1) -> 1 | U12: =IF(MIN(Results!I12,Results!I18)=Results!I12,'Factor Results'!AI42,1) -> 1 | V12: =IF(MIN(Results!J12,Results!J18)=Results!J12,'Factor Results'!AJ42,1) ->  | W12: =IF(MIN(Results!L12,Results!L18)=Results!L12,'Factor Results'!AU42,1) -> 1 | X12: =IF(MIN(Results!M12,Results!M18)=Results!M12,'Factor Results'!AV42,1) -> 1 | Y12: =IF(MIN(Results!N12,Results!N18)=Results!N12,'Factor Results'!AW42,1) -> 1 | Z12: =IF(MIN(Results!O12,Results!O18)=Results!O12,'Factor Results'!AX42,1) -> 1 | AA12: =IF(MIN(Results!P12,Results!P18)=Results!P12,'Factor Results'!AY42,1) -> 1 | AB12: =IF(MIN(Results!Q12,Results!Q18)=Results!Q12,'Factor Results'!AZ42,1) -> 
A13: Tape | B13: 40 mil | C13: =Q7/Q8 -> 1 | D13: =R7/R8 -> 1.006093962 | E13: =S7/S8 -> 1.035973267 | F13: =T7/T8 -> 1.134272017 | G13: =U7/U8 -> 2.122192779 | H13: =IF(Input!$B$33="No","",V7/V8) ->  | I13: =W7/W8 -> 1 | J13: =X7/X8 -> 1.006041426 | K13: =Y7/Y8 -> 1.028993192 | L13: =Z7/Z8 -> 1.060207752 | M13: =AA7/AA8 -> 1.099579409 | N13: =IF(Input!$B$33="No","",AB7/AB8) ->  | P13: 90 mil | Q13: =IF(MIN(Results!E12,Results!E24)=Results!E12,1,'Factor Results'!AE84) -> 1 | R13: =IF(MIN(Results!F12,Results!F24)=Results!F12,1,'Factor Results'!AF84) -> 1 | S13: =IF(MIN(Results!G12,Results!G24)=Results!G12,1,'Factor Results'!AG84) -> 1 | T13: =IF(MIN(Results!H12,Results!H24)=Results!H12,1,'Factor Results'!AH84) -> 1 | U13: =IF(MIN(Results!I12,Results!I24)=Results!I12,1,'Factor Results'!AI84) -> 1 | V13: =IF(MIN(Results!J12,Results!J24)=Results!J12,1,'Factor Results'!AJ84) -> 1 | W13: =IF(MIN(Results!L12,Results!L24)=Results!L12,1,'Factor Results'!AU84) -> 1 | X13: =IF(MIN(Results!M12,Results!M24)=Results!M12,1,'Factor Results'!AV84) -> 1 | Y13: =IF(MIN(Results!N12,Results!N24)=Results!N12,1,'Factor Results'!AW84) -> 1 | Z13: =IF(MIN(Results!O12,Results!O24)=Results!O12,1,'Factor Results'!AX84) -> 1 | AA13: =IF(MIN(Results!P12,Results!P24)=Results!P12,1,'Factor Results'!AY84) -> 1 | AB13: =IF(MIN(Results!Q12,Results!Q24)=Results!Q12,1,'Factor Results'!AZ84) -> 1
B14: 90 mil | C14: =Q11/Q12 -> 1 | D14: =R11/R12 -> 1 | E14: =S11/S12 -> 1 | F14: =T11/T12 -> 1 | G14: =U11/U12 -> 1 | H14: =IF(Input!$B$33="No","",V11/V12) ->  | I14: =W11/W12 -> 1 | J14: =X11/X12 -> 1 | K14: =Y11/Y12 -> 1 | L14: =Z11/Z12 -> 1 | M14: =AA11/AA12 -> 1 | N14: =IF(Input!$B$33="No","",AB11/AB12) ->  | P14: Inverted | Q14: =IF(MIN(Results!E12,Results!E24)=Results!E12,'Factor Results'!AE48,1) -> 1 | R14: =IF(MIN(Results!F12,Results!F24)=Results!F12,'Factor Results'!AF48,1) -> 1 | S14: =IF(MIN(Results!G12,Results!G24)=Results!G12,'Factor Results'!AG48,1) -> 1 | T14: =IF(MIN(Results!H12,Results!H24)=Results!H12,'Factor Results'!AH48,1) -> 1 | U14: =IF(MIN(Results!I12,Results!I24)=Results!I12,'Factor Results'!AI48,1) -> 1 | V14: =IF(MIN(Results!J12,Results!J24)=Results!J12,'Factor Results'!AJ48,1) ->  | W14: =IF(MIN(Results!L12,Results!L24)=Results!L12,'Factor Results'!AU48,1) -> 1 | X14: =IF(MIN(Results!M12,Results!M24)=Results!M12,'Factor Results'!AV48,1) -> 1 | Y14: =IF(MIN(Results!N12,Results!N24)=Results!N12,'Factor Results'!AW48,1) -> 1 | Z14: =IF(MIN(Results!O12,Results!O24)=Results!O12,'Factor Results'!AX48,1) -> 1 | AA14: =IF(MIN(Results!P12,Results!P24)=Results!P12,'Factor Results'!AY48,1) -> 1 | AB14: =IF(MIN(Results!Q12,Results!Q24)=Results!Q12,'Factor Results'!AZ48,1) -> 
B15: Tape | C15: 1 | D15: 1 | E15: 1 | F15: 1 | G15: 1 | H15: =IF(Input!$B$33="No","",1) ->  | I15: 1 | J15: 1 | K15: 1 | L15: 1 | M15: 1 | N15: =IF(Input!$B$33="No","",1) ->  | P15: Tape | Q15: =IF(MIN(Results!E18,Results!E24)=Results!E18,1,'Factor Results'!AE90) -> 1 | R15: =IF(MIN(Results!F18,Results!F24)=Results!F18,1,'Factor Results'!AF90) -> 1 | S15: =IF(MIN(Results!G18,Results!G24)=Results!G18,1,'Factor Results'!AG90) -> 1 | T15: =IF(MIN(Results!H18,Results!H24)=Results!H18,1,'Factor Results'!AH90) -> 1 | U15: =IF(MIN(Results!I18,Results!I24)=Results!I18,1,'Factor Results'!AI90) -> 1 | V15: =IF(MIN(Results!J18,Results!J24)=Results!J18,1,'Factor Results'!AJ90) -> 1 | W15: =IF(MIN(Results!L18,Results!L24)=Results!L18,1,'Factor Results'!AU90) -> 1 | X15: =IF(MIN(Results!M18,Results!M24)=Results!M18,1,'Factor Results'!AV90) -> 1 | Y15: =IF(MIN(Results!N18,Results!N24)=Results!N18,1,'Factor Results'!AW90) -> 1 | Z15: =IF(MIN(Results!O18,Results!O24)=Results!O18,1,'Factor Results'!AX90) -> 1 | AA15: =IF(MIN(Results!P18,Results!P24)=Results!P18,1,'Factor Results'!AY90) -> 1 | AB15: =IF(MIN(Results!Q18,Results!Q24)=Results!Q18,1,'Factor Results'!AZ90) -> 1
B16: Inverted | C16: =Q16/Q15 -> 1 | D16: =R16/R15 -> 1 | E16: 1 | F16: 1 | G16: 1 | H16: =IF(Input!$B$33="No","",V16/V15) ->  | I16: =W16/W15 -> 1 | J16: =X16/X15 -> 1 | K16: =Y16/Y15 -> 1 | L16: =Z16/Z15 -> 1 | M16: =AA16/AA15 -> 1 | N16: =IF(Input!$B$33="No","",AB16/AB15) ->  | P16: Inverted | Q16: =IF(MIN(Results!E18,Results!E24)=Results!E18,'Factor Results'!AE72,1) -> 1 | R16: =IF(MIN(Results!F18,Results!F24)=Results!F18,'Factor Results'!AF72,1) -> 1 | S16: =IF(MIN(Results!G18,Results!G24)=Results!G18,'Factor Results'!AG72,1) -> 1 | T16: =IF(MIN(Results!H18,Results!H24)=Results!H18,'Factor Results'!AH72,1) -> 1 | U16: =IF(MIN(Results!I18,Results!I24)=Results!I18,'Factor Results'!AI72,1) -> 1 | V16: =IF(MIN(Results!J18,Results!J24)=Results!J18,'Factor Results'!AJ72,1) ->  | W16: =IF(MIN(Results!L18,Results!L24)=Results!L18,'Factor Results'!AU72,1) -> 1 | X16: =IF(MIN(Results!M18,Results!M24)=Results!M18,'Factor Results'!AV72,1) -> 1 | Y16: =IF(MIN(Results!N18,Results!N24)=Results!N18,'Factor Results'!AW72,1) -> 1 | Z16: =IF(MIN(Results!O18,Results!O24)=Results!O18,'Factor Results'!AX72,1) -> 1 | AA16: =IF(MIN(Results!P18,Results!P24)=Results!P18,'Factor Results'!AY72,1) -> 1 | AB16: =IF(MIN(Results!Q18,Results!Q24)=Results!Q18,'Factor Results'!AZ72,1) -> 
A17: Inverted | B17: 40 mil | C17: =Q9/Q10 -> 1 | D17: =R9/R10 -> 1.006112381 | E17: =S9/S10 -> 1.037904151 | F17: =T9/T10 -> 1.156163861 | G17: =U9/U10 -> 2.123079593 | H17: =IF(Input!$B$33="No","",V9/V10) ->  | I17: =W9/W10 -> 1 | J17: =X9/X10 -> 1.006045672 | K17: =Y9/Y10 -> 1.029024261 | L17: =Z9/Z10 -> 1.060296062 | M17: =AA9/AA10 -> 1.100648875 | N17: =IF(Input!$B$33="No","",AB9/AB10) -> 
B18: 90 mil | C18: =Q13/Q14 -> 1 | D18: =R13/R14 -> 1 | E18: =S13/S14 -> 1 | F18: =T13/T14 -> 1 | G18: =U13/U14 -> 1 | H18: =IF(Input!$B$33="No","",V13/V14) ->  | I18: =W13/W14 -> 1 | J18: =X13/X14 -> 1 | K18: =Y13/Y14 -> 1 | L18: =Z13/Z14 -> 1 | M18: =AA13/AA14 -> 1 | N18: =IF(Input!$B$33="No","",AB13/AB14) -> 
B19: Tape | C19: =Q15/Q16 -> 1 | D19: =R15/R16 -> 1 | E19: =S15/S16 -> 1 | F19: =T15/T16 -> 1 | G19: =U15/U16 -> 1 | H19: =IF(Input!$B$33="No","",V15/V16) ->  | I19: =W15/W16 -> 1 | J19: =X15/X16 -> 1 | K19: =Y15/Y16 -> 1 | L19: =Z15/Z16 -> 1 | M19: =AA15/AA16 -> 1 | N19: =IF(Input!$B$33="No","",AB15/AB16) -> 
B20: Inverted | C20: 1 | D20: 1 | E20: 1 | F20: 1 | G20: 1 | H20: =IF(Input!$B$33="No","",1) ->  | I20: 1 | J20: 1 | K20: 1 | L20: 1 | M20: 1 | N20: =IF(Input!$B$33="No","",1) -> 
A22: Bidding Factors for Restripe-PCC: White Edge Line | P22: Bidding Factors for Restripe-PCC: White Edge Line
A23: Reference Material | B23: Material | C23: Off-Peak Application | I23: Night Time Application | P23: Material | Q23: Off-Peak Application | W23: Night Time Application
C24: ADT per Lane | H24: User ADT | I24: ADT per Lane | N24: User ADT | Q24: ADT per Lane | V24: User ADT | W24: ADT per Lane | AB24: User ADT
C25: 5000 | D25: 10000 | E25: 15000 | F25: 20000 | G25: 25000 | H25: =IF(Input!$B$33="No","",Input!$B$33) ->  | I25: 5000 | J25: 10000 | K25: 15000 | L25: 20000 | M25: 25000 | N25: =IF(Input!$B$33="No","",Input!$B$33) ->  | Q25: 5000 | R25: 10000 | S25: 15000 | T25: 20000 | U25: 25000 | V25: =IF(Input!$B$33="No","",Input!$B$33) ->  | W25: 5000 | X25: 10000 | Y25: 15000 | Z25: 20000 | AA25: 25000 | AB25: =IF(Input!$B$33="No","",Input!$B$33) -> 
A26: 40 mil | B26: 40 mil | C26: 1 | D26: 1 | E26: 1 | F26: 1 | G26: 1 | H26: =IF(Input!$B$33="No","",1) ->  | I26: 1 | J26: 1 | K26: 1 | L26: 1 | M26: 1 | N26: =IF(Input!$B$33="No","",1) ->  | P26: 40 mil | Q26: =IF(MIN(Results!E7,Results!E13)=Results!E7,1,'Factor Results'!AE31) -> 1 | R26: =IF(MIN(Results!F7,Results!F13)=Results!F7,1,'Factor Results'!AF31) -> 1 | S26: =IF(MIN(Results!G7,Results!G13)=Results!G7,1,'Factor Results'!AG31) -> 1 | T26: =IF(MIN(Results!H7,Results!H13)=Results!H7,1,'Factor Results'!AH31) -> 1 | U26: =IF(MIN(Results!I7,Results!I13)=Results!I7,1,'Factor Results'!AI31) -> 1 | V26: =IF(MIN(Results!J7,Results!J13)=Results!J7,1,'Factor Results'!AJ31) -> 1 | W26: =IF(MIN(Results!L7,Results!L13)=Results!L7,1,'Factor Results'!AU31) -> 1 | X26: =IF(MIN(Results!M7,Results!M13)=Results!M7,1,'Factor Results'!AV31) -> 1 | Y26: =IF(MIN(Results!N7,Results!N13)=Results!N7,1,'Factor Results'!AW31) -> 1 | Z26: =IF(MIN(Results!O7,Results!O13)=Results!O7,1,'Factor Results'!AX31) -> 1 | AA26: =IF(MIN(Results!P7,Results!P13)=Results!P7,1,'Factor Results'!AY31) -> 1 | AB26: =IF(MIN(Results!Q7,Results!Q13)=Results!Q7,1,'Factor Results'!AZ31) -> 1
B27: 90 mil | C27: =Q27/Q26 -> 1 | D27: =R27/R26 -> 1 | E27: =S27/S26 -> 1 | F27: =T27/T26 -> 1 | G27: =U27/U26 -> 1 | H27: =IF(Input!$B$33="No","",V27/V26) ->  | I27: =W27/W26 -> 1 | J27: =X27/X26 -> 1 | K27: =Y27/Y26 -> 1 | L27: =Z27/Z26 -> 1 | M27: =AA27/AA26 -> 1 | N27: =IF(Input!$B$33="No","",AB27/AB26) ->  | P27: 90 mil | Q27: =IF(MIN(Results!E7,Results!E13)=Results!E7,'Factor Results'!AE13,1) -> 1 | R27: =IF(MIN(Results!F7,Results!F13)=Results!F7,'Factor Results'!AF13,1) -> 1 | S27: =IF(MIN(Results!G7,Results!G13)=Results!G7,'Factor Results'!AG13,1) -> 1 | T27: =IF(MIN(Results!H7,Results!H13)=Results!H7,'Factor Results'!AH13,1) -> 1 | U27: =IF(MIN(Results!I7,Results!I13)=Results!I7,'Factor Results'!AI13,1) -> 1 | V27: =IF(MIN(Results!J7,Results!J13)=Results!J7,'Factor Results'!AJ13,1) ->  | W27: =IF(MIN(Results!L7,Results!L13)=Results!L7,'Factor Results'!AU13,1) -> 1 | X27: =IF(MIN(Results!M7,Results!M13)=Results!M7,'Factor Results'!AV13,1) -> 1 | Y27: =IF(MIN(Results!N7,Results!N13)=Results!N7,'Factor Results'!AW13,1) -> 1 | Z27: =IF(MIN(Results!O7,Results!O13)=Results!O7,'Factor Results'!AX13,1) -> 1 | AA27: =IF(MIN(Results!P7,Results!P13)=Results!P7,'Factor Results'!AY13,1) -> 1 | AB27: =IF(MIN(Results!Q7,Results!Q13)=Results!Q7,'Factor Results'!AZ13,1) -> 
B28: Tape | C28: =Q29/Q28 -> 1 | D28: =R29/R28 -> 1 | E28: =S29/S28 -> 1 | F28: =T29/T28 -> 1 | G28: =U29/U28 -> 1 | H28: =IF(Input!$B$33="No","",V29/V28) ->  | I28: =W29/W28 -> 1 | J28: =X29/X28 -> 1 | K28: =Y29/Y28 -> 1 | L28: =Z29/Z28 -> 1 | M28: =AA29/AA28 -> 1 | N28: =IF(Input!$B$33="No","",AB29/AB28) ->  | P28: 40 mil | Q28: =IF(MIN(Results!E7,Results!E19)=Results!E7,1,'Factor Results'!AE55) -> 1 | R28: =IF(MIN(Results!F7,Results!F19)=Results!F7,1,'Factor Results'!AF55) -> 1 | S28: =IF(MIN(Results!G7,Results!G19)=Results!G7,1,'Factor Results'!AG55) -> 1 | T28: =IF(MIN(Results!H7,Results!H19)=Results!H7,1,'Factor Results'!AH55) -> 1 | U28: =IF(MIN(Results!I7,Results!I19)=Results!I7,1,'Factor Results'!AI55) -> 1 | V28: =IF(MIN(Results!J7,Results!J19)=Results!J7,1,'Factor Results'!AJ55) -> 1 | W28: =IF(MIN(Results!L7,Results!L19)=Results!L7,1,'Factor Results'!AU55) -> 1 | X28: =IF(MIN(Results!M7,Results!M19)=Results!M7,1,'Factor Results'!AV55) -> 1 | Y28: =IF(MIN(Results!N7,Results!N19)=Results!N7,1,'Factor Results'!AW55) -> 1 | Z28: =IF(MIN(Results!O7,Results!O19)=Results!O7,1,'Factor Results'!AX55) -> 1 | AA28: =IF(MIN(Results!P7,Results!P19)=Results!P7,1,'Factor Results'!AY55) -> 1 | AB28: =IF(MIN(Results!Q7,Results!Q19)=Results!Q7,1,'Factor Results'!AZ55) -> 1
B29: Inverted | C29: =Q31/Q30 -> 1 | D29: =R31/R30 -> 1 | E29: =S31/S30 -> 1 | F29: =T31/T30 -> 1.558991863 | G29: =U31/U30 -> 11.19418837 | H29: =IF(Input!$B$33="No","",V31/V30) ->  | I29: =W31/W30 -> 1 | J29: =X31/X30 -> 1 | K29: =Y31/Y30 -> 1 | L29: =Z31/Z30 -> 1.23534563 | M29: =AA31/AA30 -> 2.438826696 | N29: =IF(Input!$B$33="No","",AB31/AB30) ->  | P29: Tape | Q29: =IF(MIN(Results!E7,Results!E19)=Results!E7,'Factor Results'!AE19,1) -> 1 | R29: =IF(MIN(Results!F7,Results!F19)=Results!F7,'Factor Results'!AF19,1) -> 1 | S29: =IF(MIN(Results!G7,Results!G19)=Results!G7,'Factor Results'!AG19,1) -> 1 | T29: =IF(MIN(Results!H7,Results!H19)=Results!H7,'Factor Results'!AH19,1) -> 1 | U29: =IF(MIN(Results!I7,Results!I19)=Results!I7,'Factor Results'!AI19,1) -> 1 | V29: =IF(MIN(Results!J7,Results!J19)=Results!J7,'Factor Results'!AJ19,1) ->  | W29: =IF(MIN(Results!L7,Results!L19)=Results!L7,'Factor Results'!AU19,1) -> 1 | X29: =IF(MIN(Results!M7,Results!M19)=Results!M7,'Factor Results'!AV19,1) -> 1 | Y29: =IF(MIN(Results!N7,Results!N19)=Results!N7,'Factor Results'!AW19,1) -> 1 | Z29: =IF(MIN(Results!O7,Results!O19)=Results!O7,'Factor Results'!AX19,1) -> 1 | AA29: =IF(MIN(Results!P7,Results!P19)=Results!P7,'Factor Results'!AY19,1) -> 1 | AB29: =IF(MIN(Results!Q7,Results!Q19)=Results!Q7,'Factor Results'!AZ19,1) -> 
A30: 90 mil | B30: 40 mil | C30: =Q26/Q27 -> 1 | D30: =R26/R27 -> 1 | E30: =S26/S27 -> 1 | F30: =T26/T27 -> 1 | G30: =U26/U27 -> 1 | H30: =IF(Input!$B$33="No","",V26/V27) ->  | I30: =W26/W27 -> 1 | J30: =X26/X27 -> 1 | K30: =Y26/Y27 -> 1 | L30: =Z26/Z27 -> 1 | M30: =AA26/AA27 -> 1 | N30: =IF(Input!$B$33="No","",AB26/AB27) ->  | P30: 40 mil | Q30: =IF(MIN(Results!E7,Results!E25)=Results!E7,1,'Factor Results'!AE79) -> 1 | R30: =IF(MIN(Results!F7,Results!F25)=Results!F7,1,'Factor Results'!AF79) -> 1 | S30: =IF(MIN(Results!G7,Results!G25)=Results!G7,1,'Factor Results'!AG79) -> 1 | T30: =IF(MIN(Results!H7,Results!H25)=Results!H7,1,'Factor Results'!AH79) -> 0.6414401663 | U30: =IF(MIN(Results!I7,Results!I25)=Results!I7,1,'Factor Results'!AI79) -> 0.08933206833 | V30: =IF(MIN(Results!J7,Results!J25)=Results!J7,1,'Factor Results'!AJ79) -> 1 | W30: =IF(MIN(Results!L7,Results!L25)=Results!L7,1,'Factor Results'!AU79) -> 1 | X30: =IF(MIN(Results!M7,Results!M25)=Results!M7,1,'Factor Results'!AV79) -> 1 | Y30: =IF(MIN(Results!N7,Results!N25)=Results!N7,1,'Factor Results'!AW79) -> 1 | Z30: =IF(MIN(Results!O7,Results!O25)=Results!O7,1,'Factor Results'!AX79) -> 0.8094900536 | AA30: =IF(MIN(Results!P7,Results!P25)=Results!P7,1,'Factor Results'!AY79) -> 0.4100332351 | AB30: =IF(MIN(Results!Q7,Results!Q25)=Results!Q7,1,'Factor Results'!AZ79) -> 1
B31: 90 mil | C31: 1 | D31: 1 | E31: 1 | F31: 1 | G31: 1 | H31: =IF(Input!$B$33="No","",1) ->  | I31: 1 | J31: 1 | K31: 1 | L31: 1 | M31: 1 | N31: =IF(Input!$B$33="No","",1) ->  | P31: Inverted | Q31: =IF(MIN(Results!E7,Results!E25)=Results!E7,'Factor Results'!AE25,1) -> 1 | R31: =IF(MIN(Results!F7,Results!F25)=Results!F7,'Factor Results'!AF25,1) -> 1 | S31: =IF(MIN(Results!G7,Results!G25)=Results!G7,'Factor Results'!AG25,1) -> 1 | T31: =IF(MIN(Results!H7,Results!H25)=Results!H7,'Factor Results'!AH25,1) -> 1 | U31: =IF(MIN(Results!I7,Results!I25)=Results!I7,'Factor Results'!AI25,1) -> 1 | V31: =IF(MIN(Results!J7,Results!J25)=Results!J7,'Factor Results'!AJ25,1) ->  | W31: =IF(MIN(Results!L7,Results!L25)=Results!L7,'Factor Results'!AU25,1) -> 1 | X31: =IF(MIN(Results!M7,Results!M25)=Results!M7,'Factor Results'!AV25,1) -> 1 | Y31: =IF(MIN(Results!N7,Results!N25)=Results!N7,'Factor Results'!AW25,1) -> 1 | Z31: =IF(MIN(Results!O7,Results!O25)=Results!O7,'Factor Results'!AX25,1) -> 1 | AA31: =IF(MIN(Results!P7,Results!P25)=Results!P7,'Factor Results'!AY25,1) -> 1 | AB31: =IF(MIN(Results!Q7,Results!Q25)=Results!Q7,'Factor Results'!AZ25,1) -> 
B32: Tape | C32: =Q33/Q32 -> 1 | D32: =R33/R32 -> 1 | E32: =S33/S32 -> 1 | F32: =T33/T32 -> 1 | G32: =U33/U32 -> 1 | H32: =IF(Input!$B$33="No","",V33/V32) ->  | I32: =W33/W32 -> 1 | J32: =X33/X32 -> 1 | K32: =Y33/Y32 -> 1 | L32: =Z33/Z32 -> 1 | M32: =AA33/AA32 -> 1 | N32: =IF(Input!$B$33="No","",AB33/AB32) ->  | P32: 90 mil | Q32: =IF(MIN(Results!E13,Results!E19)=Results!E13,1,'Factor Results'!AE61) -> 1 | R32: =IF(MIN(Results!F13,Results!F19)=Results!F13,1,'Factor Results'!AF61) -> 1 | S32: =IF(MIN(Results!G13,Results!G19)=Results!G13,1,'Factor Results'!AG61) -> 1 | T32: =IF(MIN(Results!H13,Results!H19)=Results!H13,1,'Factor Results'!AH61) -> 1 | U32: =IF(MIN(Results!I13,Results!I19)=Results!I13,1,'Factor Results'!AI61) -> 1 | V32: =IF(MIN(Results!J13,Results!J19)=Results!J13,1,'Factor Results'!AJ61) -> 1 | W32: =IF(MIN(Results!L13,Results!L19)=Results!L13,1,'Factor Results'!AU61) -> 1 | X32: =IF(MIN(Results!M13,Results!M19)=Results!M13,1,'Factor Results'!AV61) -> 1 | Y32: =IF(MIN(Results!N13,Results!N19)=Results!N13,1,'Factor Results'!AW61) -> 1 | Z32: =IF(MIN(Results!O13,Results!O19)=Results!O13,1,'Factor Results'!AX61) -> 1 | AA32: =IF(MIN(Results!P13,Results!P19)=Results!P13,1,'Factor Results'!AY61) -> 1 | AB32: =IF(MIN(Results!Q13,Results!Q19)=Results!Q13,1,'Factor Results'!AZ61) -> 1
B33: Inverted | C33: =Q35/Q34 -> 1 | D33: =R35/R34 -> 1 | E33: =S35/S34 -> 1 | F33: =T35/T34 -> 1.558991863 | G33: =U35/U34 -> 11.19418837 | H33: =IF(Input!$B$33="No","",V35/V34) ->  | I33: =W35/W34 -> 1 | J33: =X35/X34 -> 1 | K33: =Y35/Y34 -> 1 | L33: =Z35/Z34 -> 1.23534563 | M33: =AA35/AA34 -> 2.438826696 | N33: =IF(Input!$B$33="No","",AB35/AB34) ->  | P33: Tape | Q33: =IF(MIN(Results!E13,Results!E19)=Results!E13,'Factor Results'!AE43,1) -> 1 | R33: =IF(MIN(Results!F13,Results!F19)=Results!F13,'Factor Results'!AF43,1) -> 1 | S33: =IF(MIN(Results!G13,Results!G19)=Results!G13,'Factor Results'!AG43,1) -> 1 | T33: =IF(MIN(Results!H13,Results!H19)=Results!H13,'Factor Results'!AH43,1) -> 1 | U33: =IF(MIN(Results!I13,Results!I19)=Results!I13,'Factor Results'!AI43,1) -> 1 | V33: =IF(MIN(Results!J13,Results!J19)=Results!J13,'Factor Results'!AJ43,1) ->  | W33: =IF(MIN(Results!L13,Results!L19)=Results!L13,'Factor Results'!AU43,1) -> 1 | X33: =IF(MIN(Results!M13,Results!M19)=Results!M13,'Factor Results'!AV43,1) -> 1 | Y33: =IF(MIN(Results!N13,Results!N19)=Results!N13,'Factor Results'!AW43,1) -> 1 | Z33: =IF(MIN(Results!O13,Results!O19)=Results!O13,'Factor Results'!AX43,1) -> 1 | AA33: =IF(MIN(Results!P13,Results!P19)=Results!P13,'Factor Results'!AY43,1) -> 1 | AB33: =IF(MIN(Results!Q13,Results!Q19)=Results!Q13,'Factor Results'!AZ43,1) -> 
A34: Tape | B34: 40 mil | C34: =Q28/Q29 -> 1 | D34: =R28/R29 -> 1 | E34: =S28/S29 -> 1 | F34: =T28/T29 -> 1 | G34: =U28/U29 -> 1 | H34: =IF(Input!$B$33="No","",V28/V29) ->  | I34: =W28/W29 -> 1 | J34: =X28/X29 -> 1 | K34: =Y28/Y29 -> 1 | L34: =Z28/Z29 -> 1 | M34: =AA28/AA29 -> 1 | N34: =IF(Input!$B$33="No","",AB28/AB29) ->  | P34: 90 mil | Q34: =IF(MIN(Results!E13,Results!E25)=Results!E13,1,'Factor Results'!AE85) -> 1 | R34: =IF(MIN(Results!F13,Results!F25)=Results!F13,1,'Factor Results'!AF85) -> 1 | S34: =IF(MIN(Results!G13,Results!G25)=Results!G13,1,'Factor Results'!AG85) -> 1 | T34: =IF(MIN(Results!H13,Results!H25)=Results!H13,1,'Factor Results'!AH85) -> 0.6414401663 | U34: =IF(MIN(Results!I13,Results!I25)=Results!I13,1,'Factor Results'!AI85) -> 0.08933206833 | V34: =IF(MIN(Results!J13,Results!J25)=Results!J13,1,'Factor Results'!AJ85) -> 1 | W34: =IF(MIN(Results!L13,Results!L25)=Results!L13,1,'Factor Results'!AU85) -> 1 | X34: =IF(MIN(Results!M13,Results!M25)=Results!M13,1,'Factor Results'!AV85) -> 1 | Y34: =IF(MIN(Results!N13,Results!N25)=Results!N13,1,'Factor Results'!AW85) -> 1 | Z34: =IF(MIN(Results!O13,Results!O25)=Results!O13,1,'Factor Results'!AX85) -> 0.8094900536 | AA34: =IF(MIN(Results!P13,Results!P25)=Results!P13,1,'Factor Results'!AY85) -> 0.4100332351 | AB34: =IF(MIN(Results!Q13,Results!Q25)=Results!Q13,1,'Factor Results'!AZ85) -> 1
B35: 90 mil | C35: =Q32/Q33 -> 1 | D35: =R32/R33 -> 1 | E35: =S32/S33 -> 1 | F35: =T32/T33 -> 1 | G35: =U32/U33 -> 1 | H35: =IF(Input!$B$33="No","",V32/V33) ->  | I35: =W32/W33 -> 1 | J35: =X32/X33 -> 1 | K35: =Y32/Y33 -> 1 | L35: =Z32/Z33 -> 1 | M35: =AA32/AA33 -> 1 | N35: =IF(Input!$B$33="No","",AB32/AB33) ->  | P35: Inverted | Q35: =IF(MIN(Results!E13,Results!E25)=Results!E13,'Factor Results'!AE49,1) -> 1 | R35: =IF(MIN(Results!F13,Results!F25)=Results!F13,'Factor Results'!AF49,1) -> 1 | S35: =IF(MIN(Results!G13,Results!G25)=Results!G13,'Factor Results'!AG49,1) -> 1 | T35: =IF(MIN(Results!H13,Results!H25)=Results!H13,'Factor Results'!AH49,1) -> 1 | U35: =IF(MIN(Results!I13,Results!I25)=Results!I13,'Factor Results'!AI49,1) -> 1 | V35: =IF(MIN(Results!J13,Results!J25)=Results!J13,'Factor Results'!AJ49,1) ->  | W35: =IF(MIN(Results!L13,Results!L25)=Results!L13,'Factor Results'!AU49,1) -> 1 | X35: =IF(MIN(Results!M13,Results!M25)=Results!M13,'Factor Results'!AV49,1) -> 1 | Y35: =IF(MIN(Results!N13,Results!N25)=Results!N13,'Factor Results'!AW49,1) -> 1 | Z35: =IF(MIN(Results!O13,Results!O25)=Results!O13,'Factor Results'!AX49,1) -> 1 | AA35: =IF(MIN(Results!P13,Results!P25)=Results!P13,'Factor Results'!AY49,1) -> 1 | AB35: =IF(MIN(Results!Q13,Results!Q25)=Results!Q13,'Factor Results'!AZ49,1) -> 
B36: Tape | C36: 1 | D36: 1 | E36: 1 | F36: 1 | G36: 1 | H36: =IF(Input!$B$33="No","",1) ->  | I36: 1 | J36: 1 | K36: 1 | L36: 1 | M36: 1 | N36: =IF(Input!$B$33="No","",1) ->  | P36: Tape | Q36: =IF(MIN(Results!E19,Results!E25)=Results!E19,1,'Factor Results'!AE91) -> 1 | R36: =IF(MIN(Results!F19,Results!F25)=Results!F19,1,'Factor Results'!AF91) -> 1 | S36: =IF(MIN(Results!G19,Results!G25)=Results!G19,1,'Factor Results'!AG91) -> 1 | T36: =IF(MIN(Results!H19,Results!H25)=Results!H19,1,'Factor Results'!AH91) -> 0.6414401663 | U36: =IF(MIN(Results!I19,Results!I25)=Results!I19,1,'Factor Results'!AI91) -> 0.08933206833 | V36: =IF(MIN(Results!J19,Results!J25)=Results!J19,1,'Factor Results'!AJ91) -> 1 | W36: =IF(MIN(Results!L19,Results!L25)=Results!L19,1,'Factor Results'!AU91) -> 1 | X36: =IF(MIN(Results!M19,Results!M25)=Results!M19,1,'Factor Results'!AV91) -> 1 | Y36: =IF(MIN(Results!N19,Results!N25)=Results!N19,1,'Factor Results'!AW91) -> 1 | Z36: =IF(MIN(Results!O19,Results!O25)=Results!O19,1,'Factor Results'!AX91) -> 1 | AA36: =IF(MIN(Results!P19,Results!P25)=Results!P19,1,'Factor Results'!AY91) -> 0.4100332351 | AB36: =IF(MIN(Results!Q19,Results!Q25)=Results!Q19,1,'Factor Results'!AZ91) -> 1
B37: Inverted | C37: =Q37/Q36 -> 1 | D37: =R37/R36 -> 1 | E37: =S37/S36 -> 1 | F37: =T37/T36 -> 1.558991863 | G37: =U37/U36 -> 11.19418837 | H37: =IF(Input!$B$33="No","",V37/V36) ->  | I37: =W37/W36 -> 1 | J37: =X37/X36 -> 1 | K37: =Y37/Y36 -> 1 | L37: =Z37/Z36 -> 1.235304091 | M37: =AA37/AA36 -> 2.438826696 | N37: =IF(Input!$B$33="No","",AB37/AB36) ->  | P37: Inverted | Q37: =IF(MIN(Results!E19,Results!E25)=Results!E19,'Factor Results'!AE73,1) -> 1 | R37: =IF(MIN(Results!F19,Results!F25)=Results!F19,'Factor Results'!AF73,1) -> 1 | S37: =IF(MIN(Results!G19,Results!G25)=Results!G19,'Factor Results'!AG73,1) -> 1 | T37: =IF(MIN(Results!H19,Results!H25)=Results!H19,'Factor Results'!AH73,1) -> 1 | U37: =IF(MIN(Results!I19,Results!I25)=Results!I19,'Factor Results'!AI73,1) -> 1 | V37: =IF(MIN(Results!J19,Results!J25)=Results!J19,'Factor Results'!AJ73,1) ->  | W37: =IF(MIN(Results!L19,Results!L25)=Results!L19,'Factor Results'!AU73,1) -> 1 | X37: =IF(MIN(Results!M19,Results!M25)=Results!M19,'Factor Results'!AV73,1) -> 1 | Y37: =IF(MIN(Results!N19,Results!N25)=Results!N19,'Factor Results'!AW73,1) -> 1 | Z37: =IF(MIN(Results!O19,Results!O25)=Results!O19,'Factor Results'!AX73,1) -> 1.235304091 | AA37: =IF(MIN(Results!P19,Results!P25)=Results!P19,'Factor Results'!AY73,1) -> 1 | AB37: =IF(MIN(Results!Q19,Results!Q25)=Results!Q19,'Factor Results'!AZ73,1) -> 
A38: Inverted | B38: 40 mil | C38: =Q30/Q31 -> 1 | D38: =R30/R31 -> 1 | E38: =S30/S31 -> 1 | F38: =T30/T31 -> 0.6414401663 | G38: =U30/U31 -> 0.08933206833 | H38: =IF(Input!$B$33="No","",V30/V31) ->  | I38: =W30/W31 -> 1 | J38: =X30/X31 -> 1 | K38: =Y30/Y31 -> 1 | L38: =Z30/Z31 -> 0.8094900536 | M38: =AA30/AA31 -> 0.4100332351 | N38: =IF(Input!$B$33="No","",AB30/AB31) -> 
B39: 90 mil | C39: =Q34/Q35 -> 1 | D39: =R34/R35 -> 1 | E39: =S34/S35 -> 1 | F39: =T34/T35 -> 0.6414401663 | G39: =U34/U35 -> 0.08933206833 | H39: =IF(Input!$B$33="No","",V34/V35) ->  | I39: =W34/W35 -> 1 | J39: =X34/X35 -> 1 | K39: =Y34/Y35 -> 1 | L39: =Z34/Z35 -> 0.8094900536 | M39: =AA34/AA35 -> 0.4100332351 | N39: =IF(Input!$B$33="No","",AB34/AB35) -> 
B40: Tape | C40: =Q36/Q37 -> 1 | D40: =R36/R37 -> 1 | E40: =S36/S37 -> 1 | F40: =T36/T37 -> 0.6414401663 | G40: =U36/U37 -> 0.08933206833 | H40: =IF(Input!$B$33="No","",V36/V37) ->  | I40: =W36/W37 -> 1 | J40: =X36/X37 -> 1 | K40: =Y36/Y37 -> 1 | L40: =Z36/Z37 -> 0.8095172737 | M40: =AA36/AA37 -> 0.4100332351 | N40: =IF(Input!$B$33="No","",AB36/AB37) -> 
B41: Inverted | C41: 1 | D41: 1 | E41: 1 | F41: 1 | G41: 1 | H41: =IF(Input!$B$33="No","",1) ->  | I41: 1 | J41: 1 | K41: 1 | L41: 1 | M41: 1 | N41: =IF(Input!$B$33="No","",1) -> 
A43: Bidding Factors for Restripe-PCC: White Edge Line | P43: Bidding Factors for Restripe-PCC: White Lane Line
A44: Reference Material | B44: Material | C44: Off-Peak Application | I44: Night Time Application | P44: Material | Q44: Off-Peak Application | W44: Night Time Application
C45: ADT per Lane | H45: User ADT | I45: ADT per Lane | N45: User ADT | Q45: ADT per Lane | V45: User ADT | W45: ADT per Lane | AB45: User ADT
C46: 5000 | D46: 10000 | E46: 15000 | F46: 20000 | G46: 25000 | H46: =IF(Input!$B$33="No","",Input!$B$33) ->  | I46: 5000 | J46: 10000 | K46: 15000 | L46: 20000 | M46: 25000 | N46: =IF(Input!$B$33="No","",Input!$B$33) ->  | Q46: 5000 | R46: 10000 | S46: 15000 | T46: 20000 | U46: 25000 | W46: 5000 | X46: 10000 | Y46: 15000 | Z46: 20000 | AA46: 25000 | AB46: =IF(Input!$B$33="No","",Input!$B$33) -> 
A47: 40 mil | B47: 40 mil | C47: 1 | D47: 1 | E47: 1 | F47: 1 | G47: 1 | H47: =IF(Input!$B$33="No","",1) ->  | I47: 1 | J47: 1 | K47: 1 | L47: 1 | M47: 1 | N47: =IF(Input!$B$33="No","",1) ->  | P47: 40 mil | Q47: =IF(MIN(Results!E8,Results!E14)=Results!E8,1,'Factor Results'!AE32) -> 1 | R47: =IF(MIN(Results!F8,Results!F14)=Results!F8,1,'Factor Results'!AF32) -> 1 | S47: =IF(MIN(Results!G8,Results!G14)=Results!G8,1,'Factor Results'!AG32) -> 1 | T47: =IF(MIN(Results!H8,Results!H14)=Results!H8,1,'Factor Results'!AH32) -> 1 | U47: =IF(MIN(Results!I8,Results!I14)=Results!I8,1,'Factor Results'!AI32) -> 1 | V47: =IF(MIN(Results!J8,Results!J14)=Results!J8,1,'Factor Results'!AJ32) -> 1 | W47: =IF(MIN(Results!L8,Results!L14)=Results!L8,1,'Factor Results'!AU32) -> 1 | X47: =IF(MIN(Results!M8,Results!M14)=Results!M8,1,'Factor Results'!AV32) -> 1 | Y47: =IF(MIN(Results!N8,Results!N14)=Results!N8,1,'Factor Results'!AW32) -> 1 | Z47: =IF(MIN(Results!O8,Results!O14)=Results!O8,1,'Factor Results'!AX32) -> 1 | AA47: =IF(MIN(Results!P8,Results!P14)=Results!P8,1,'Factor Results'!AY32) -> 1 | AB47: =IF(MIN(Results!Q8,Results!Q14)=Results!Q8,1,'Factor Results'!AZ32) -> 1
B48: 90 mil | C48: =Q48/Q47 -> 1 | D48: =R48/R47 -> 1 | E48: =S48/S47 -> 1 | F48: =T48/T47 -> 1 | G48: =U48/U47 -> 1 | H48: =IF(Input!$B$33="No","",V48/V47) ->  | I48: =W48/W47 -> 1 | J48: =X48/X47 -> 1 | K48: =Y48/Y47 -> 1 | L48: =Z48/Z47 -> 1 | M48: =AA48/AA47 -> 1 | N48: =IF(Input!$B$33="No","",AB48/AB47) ->  | P48: 90 mil | Q48: =IF(MIN(Results!E8,Results!E14)=Results!E8,'Factor Results'!AE14,1) -> 1 | R48: =IF(MIN(Results!F8,Results!F14)=Results!F8,'Factor Results'!AF14,1) -> 1 | S48: =IF(MIN(Results!G8,Results!G14)=Results!G8,'Factor Results'!AG14,1) -> 1 | T48: =IF(MIN(Results!H8,Results!H14)=Results!H8,'Factor Results'!AH14,1) -> 1 | U48: =IF(MIN(Results!I8,Results!I14)=Results!I8,'Factor Results'!AI14,1) -> 1 | V48: =IF(MIN(Results!J8,Results!J14)=Results!J8,'Factor Results'!AJ14,1) ->  | W48: =IF(MIN(Results!L8,Results!L14)=Results!L8,'Factor Results'!AU14,1) -> 1 | X48: =IF(MIN(Results!M8,Results!M14)=Results!M8,'Factor Results'!AV14,1) -> 1 | Y48: =IF(MIN(Results!N8,Results!N14)=Results!N8,'Factor Results'!AW14,1) -> 1 | Z48: =IF(MIN(Results!O8,Results!O14)=Results!O8,'Factor Results'!AX14,1) -> 1 | AA48: =IF(MIN(Results!P8,Results!P14)=Results!P8,'Factor Results'!AY14,1) -> 1 | AB48: =IF(MIN(Results!Q8,Results!Q14)=Results!Q8,'Factor Results'!AZ14,1) -> 
B49: Tape | C49: =Q50/Q49 -> 1 | D49: =R50/R49 -> 1 | E49: =S50/S49 -> 1 | F49: =T50/T49 -> 1 | G49: =U50/U49 -> 1 | H49: =IF(Input!$B$33="No","",V50/V49) ->  | I49: =W50/W49 -> 1 | J49: =X50/X49 -> 1 | K49: =Y50/Y49 -> 1 | L49: =Z50/Z49 -> 1 | M49: =AA50/AA49 -> 1 | N49: =IF(Input!$B$33="No","",AB50/AB49) ->  | P49: 40 mil | Q49: =IF(MIN(Results!E8,Results!E20)=Results!E8,1,'Factor Results'!AE56) -> 1 | R49: =IF(MIN(Results!F8,Results!F20)=Results!F8,1,'Factor Results'!AF56) -> 1 | S49: =IF(MIN(Results!G8,Results!G20)=Results!G8,1,'Factor Results'!AG56) -> 1 | T49: =IF(MIN(Results!H8,Results!H20)=Results!H8,1,'Factor Results'!AH56) -> 1 | U49: =IF(MIN(Results!I8,Results!I20)=Results!I8,1,'Factor Results'!AI56) -> 1 | V49: =IF(MIN(Results!J8,Results!J20)=Results!J8,1,'Factor Results'!AJ56) -> 1 | W49: =IF(MIN(Results!L8,Results!L20)=Results!L8,1,'Factor Results'!AU56) -> 1 | X49: =IF(MIN(Results!M8,Results!M20)=Results!M8,1,'Factor Results'!AV56) -> 1 | Y49: =IF(MIN(Results!N8,Results!N20)=Results!N8,1,'Factor Results'!AW56) -> 1 | Z49: =IF(MIN(Results!O8,Results!O20)=Results!O8,1,'Factor Results'!AX56) -> 1 | AA49: =IF(MIN(Results!P8,Results!P20)=Results!P8,1,'Factor Results'!AY56) -> 1 | AB49: =IF(MIN(Results!Q8,Results!Q20)=Results!Q8,1,'Factor Results'!AZ56) -> 1
B50: Inverted | C50: =Q52/Q51 -> 1 | D50: =R52/R51 -> 1 | E50: =S52/S51 -> 1 | F50: =T52/T51 -> 1.674931643 | G50: =U52/U51 -> 14.33919511 | H50: =IF(Input!$B$33="No","",V52/V51) ->  | I50: =W52/W51 -> 1 | J50: =X52/X51 -> 1 | K50: =Y52/Y51 -> 1 | L50: =Z52/Z51 -> 1.235891233 | M50: =AA52/AA51 -> 2.462160322 | N50: =IF(Input!$B$33="No","",AB52/AB51) ->  | P50: Tape | Q50: =IF(MIN(Results!E8,Results!E20)=Results!E8,'Factor Results'!AE20,1) -> 1 | R50: =IF(MIN(Results!F8,Results!F20)=Results!F8,'Factor Results'!AF20,1) -> 1 | S50: =IF(MIN(Results!G8,Results!G20)=Results!G8,'Factor Results'!AG20,1) -> 1 | T50: =IF(MIN(Results!H8,Results!H20)=Results!H8,'Factor Results'!AH20,1) -> 1 | U50: =IF(MIN(Results!I8,Results!I20)=Results!I8,'Factor Results'!AI20,1) -> 1 | V50: =IF(MIN(Results!J8,Results!J20)=Results!J8,'Factor Results'!AJ20,1) ->  | W50: =IF(MIN(Results!L8,Results!L20)=Results!L8,'Factor Results'!AU20,1) -> 1 | X50: =IF(MIN(Results!M8,Results!M20)=Results!M8,'Factor Results'!AV20,1) -> 1 | Y50: =IF(MIN(Results!N8,Results!N20)=Results!N8,'Factor Results'!AW20,1) -> 1 | Z50: =IF(MIN(Results!O8,Results!O20)=Results!O8,'Factor Results'!AX20,1) -> 1 | AA50: =IF(MIN(Results!P8,Results!P20)=Results!P8,'Factor Results'!AY20,1) -> 1 | AB50: =IF(MIN(Results!Q8,Results!Q20)=Results!Q8,'Factor Results'!AZ20,1) -> 
A51: 90 mil | B51: 40 mil | C51: =Q47/Q48 -> 1 | D51: =R47/R48 -> 1 | E51: =S47/S48 -> 1 | F51: =T47/T48 -> 1 | G51: =U47/U48 -> 1 | H51: =IF(Input!$B$33="No","",V47/V48) ->  | I51: =W47/W48 -> 1 | J51: =X47/X48 -> 1 | K51: =Y47/Y48 -> 1 | L51: =Z47/Z48 -> 1 | M51: =AA47/AA48 -> 1 | N51: =IF(Input!$B$33="No","",AB47/AB48) ->  | P51: 40 mil | Q51: =IF(MIN(Results!E8,Results!E26)=Results!E8,1,'Factor Results'!AE80) -> 1 | R51: =IF(MIN(Results!F8,Results!F26)=Results!F8,1,'Factor Results'!AF80) -> 1 | S51: =IF(MIN(Results!G8,Results!G26)=Results!G8,1,'Factor Results'!AG80) -> 1 | T51: =IF(MIN(Results!H8,Results!H26)=Results!H8,1,'Factor Results'!AH80) -> 0.5970392907 | U51: =IF(MIN(Results!I8,Results!I26)=Results!I8,1,'Factor Results'!AI80) -> 0.06973892136 | V51: =IF(MIN(Results!J8,Results!J26)=Results!J8,1,'Factor Results'!AJ80) -> 1 | W51: =IF(MIN(Results!L8,Results!L26)=Results!L8,1,'Factor Results'!AU80) -> 1 | X51: =IF(MIN(Results!M8,Results!M26)=Results!M8,1,'Factor Results'!AV80) -> 1 | Y51: =IF(MIN(Results!N8,Results!N26)=Results!N8,1,'Factor Results'!AW80) -> 1 | Z51: =IF(MIN(Results!O8,Results!O26)=Results!O8,1,'Factor Results'!AX80) -> 0.8091326914 | AA51: =IF(MIN(Results!P8,Results!P26)=Results!P8,1,'Factor Results'!AY80) -> 0.4061473946 | AB51: =IF(MIN(Results!Q8,Results!Q26)=Results!Q8,1,'Factor Results'!AZ80) -> 1
B52: 90 mil | C52: 1 | D52: 1 | E52: 1 | F52: 1 | G52: 1 | H52: =IF(Input!$B$33="No","",1) ->  | I52: 1 | J52: 1 | K52: 1 | L52: 1 | M52: 1 | N52: =IF(Input!$B$33="No","",1) ->  | P52: Inverted | Q52: =IF(MIN(Results!E8,Results!E26)=Results!E8,'Factor Results'!AE26,1) -> 1 | R52: =IF(MIN(Results!F8,Results!F26)=Results!F8,'Factor Results'!AF26,1) -> 1 | S52: =IF(MIN(Results!G8,Results!G26)=Results!G8,'Factor Results'!AG26,1) -> 1 | T52: =IF(MIN(Results!H8,Results!H26)=Results!H8,'Factor Results'!AH26,1) -> 1 | U52: =IF(MIN(Results!I8,Results!I26)=Results!I8,'Factor Results'!AI26,1) -> 1 | V52: =IF(MIN(Results!J8,Results!J26)=Results!J8,'Factor Results'!AJ26,1) ->  | W52: =IF(MIN(Results!L8,Results!L26)=Results!L8,'Factor Results'!AU26,1) -> 1 | X52: =IF(MIN(Results!M8,Results!M26)=Results!M8,'Factor Results'!AV26,1) -> 1 | Y52: =IF(MIN(Results!N8,Results!N26)=Results!N8,'Factor Results'!AW26,1) -> 1 | Z52: =IF(MIN(Results!O8,Results!O26)=Results!O8,'Factor Results'!AX26,1) -> 1 | AA52: =IF(MIN(Results!P8,Results!P26)=Results!P8,'Factor Results'!AY26,1) -> 1 | AB52: =IF(MIN(Results!Q8,Results!Q26)=Results!Q8,'Factor Results'!AZ26,1) -> 
B53: Tape | C53: =Q54/Q53 -> 1 | D53: =R54/R53 -> 1 | E53: =S54/S53 -> 1 | F53: =T54/T53 -> 1 | G53: =U54/U53 -> 1 | H53: =IF(Input!$B$33="No","",V54/V53) ->  | I53: =W54/W53 -> 1 | J53: =X54/X53 -> 1 | K53: =Y54/Y53 -> 1 | L53: =Z54/Z53 -> 1 | M53: =AA54/AA53 -> 1 | N53: =IF(Input!$B$33="No","",AB54/AB53) ->  | P53: 90 mil | Q53: =IF(MIN(Results!E14,Results!E20)=Results!E14,1,'Factor Results'!AE62) -> 1 | R53: =IF(MIN(Results!F14,Results!F20)=Results!F14,1,'Factor Results'!AF62) -> 1 | S53: =IF(MIN(Results!G14,Results!G20)=Results!G14,1,'Factor Results'!AG62) -> 1 | T53: =IF(MIN(Results!H14,Results!H20)=Results!H14,1,'Factor Results'!AH62) -> 1 | U53: =IF(MIN(Results!I14,Results!I20)=Results!I14,1,'Factor Results'!AI62) -> 1 | V53: =IF(MIN(Results!J14,Results!J20)=Results!J14,1,'Factor Results'!AJ62) -> 1 | W53: =IF(MIN(Results!L14,Results!L20)=Results!L14,1,'Factor Results'!AU62) -> 1 | X53: =IF(MIN(Results!M14,Results!M20)=Results!M14,1,'Factor Results'!AV62) -> 1 | Y53: =IF(MIN(Results!N14,Results!N20)=Results!N14,1,'Factor Results'!AW62) -> 1 | Z53: =IF(MIN(Results!O14,Results!O20)=Results!O14,1,'Factor Results'!AX62) -> 1 | AA53: =IF(MIN(Results!P14,Results!P20)=Results!P14,1,'Factor Results'!AY62) -> 1 | AB53: =IF(MIN(Results!Q14,Results!Q20)=Results!Q14,1,'Factor Results'!AZ62) -> 1
B54: Inverted | C54: =Q56/Q55 -> 1 | D54: =R56/R55 -> 1 | E54: =S56/S55 -> 1 | F54: =T56/T55 -> 1.674931643 | G54: =U56/U55 -> 14.33919511 | H54: =IF(Input!$B$33="No","",V56/V55) ->  | I54: =W56/W55 -> 1 | J54: =X56/X55 -> 1 | K54: =Y56/Y55 -> 1 | L54: =Z56/Z55 -> 1.235891233 | M54: =AA56/AA55 -> 2.462160322 | N54: =IF(Input!$B$33="No","",AB56/AB55) ->  | P54: Tape | Q54: =IF(MIN(Results!E14,Results!E20)=Results!E14,'Factor Results'!AE44,1) -> 1 | R54: =IF(MIN(Results!F14,Results!F20)=Results!F14,'Factor Results'!AF44,1) -> 1 | S54: =IF(MIN(Results!G14,Results!G20)=Results!G14,'Factor Results'!AG44,1) -> 1 | T54: =IF(MIN(Results!H14,Results!H20)=Results!H14,'Factor Results'!AH44,1) -> 1 | U54: =IF(MIN(Results!I14,Results!I20)=Results!I14,'Factor Results'!AI44,1) -> 1 | V54: =IF(MIN(Results!J14,Results!J20)=Results!J14,'Factor Results'!AJ44,1) ->  | W54: =IF(MIN(Results!L14,Results!L20)=Results!L14,'Factor Results'!AU44,1) -> 1 | X54: =IF(MIN(Results!M14,Results!M20)=Results!M14,'Factor Results'!AV44,1) -> 1 | Y54: =IF(MIN(Results!N14,Results!N20)=Results!N14,'Factor Results'!AW44,1) -> 1 | Z54: =IF(MIN(Results!O14,Results!O20)=Results!O14,'Factor Results'!AX44,1) -> 1 | AA54: =IF(MIN(Results!P14,Results!P20)=Results!P14,'Factor Results'!AY44,1) -> 1 | AB54: =IF(MIN(Results!Q14,Results!Q20)=Results!Q14,'Factor Results'!AZ44,1) -> 
A55: Tape | B55: 40 mil | C55: =Q49/Q50 -> 1 | D55: =R49/R50 -> 1 | E55: =S49/S50 -> 1 | F55: =T49/T50 -> 1 | G55: =U49/U50 -> 1 | H55: =IF(Input!$B$33="No","",V49/V50) ->  | I55: =W49/W50 -> 1 | J55: =X49/X50 -> 1 | K55: =Y49/Y50 -> 1 | L55: =Z49/Z50 -> 1 | M55: =AA49/AA50 -> 1 | N55: =IF(Input!$B$33="No","",AB49/AB50) ->  | P55: 90 mil | Q55: =IF(MIN(Results!E14,Results!E26)=Results!E14,1,'Factor Results'!AE86) -> 1 | R55: =IF(MIN(Results!F14,Results!F26)=Results!F14,1,'Factor Results'!AF86) -> 1 | S55: =IF(MIN(Results!G14,Results!G26)=Results!G14,1,'Factor Results'!AG86) -> 1 | T55: =IF(MIN(Results!H14,Results!H26)=Results!H14,1,'Factor Results'!AH86) -> 0.5970392907 | U55: =IF(MIN(Results!I14,Results!I26)=Results!I14,1,'Factor Results'!AI86) -> 0.06973892136 | V55: =IF(MIN(Results!J14,Results!J26)=Results!J14,1,'Factor Results'!AJ86) -> 1 | W55: =IF(MIN(Results!L14,Results!L26)=Results!L14,1,'Factor Results'!AU86) -> 1 | X55: =IF(MIN(Results!M14,Results!M26)=Results!M14,1,'Factor Results'!AV86) -> 1 | Y55: =IF(MIN(Results!N14,Results!N26)=Results!N14,1,'Factor Results'!AW86) -> 1 | Z55: =IF(MIN(Results!O14,Results!O26)=Results!O14,1,'Factor Results'!AX86) -> 0.8091326914 | AA55: =IF(MIN(Results!P14,Results!P26)=Results!P14,1,'Factor Results'!AY86) -> 0.4061473946 | AB55: =IF(MIN(Results!Q14,Results!Q26)=Results!Q14,1,'Factor Results'!AZ86) -> 1
B56: 90 mil | C56: =Q53/Q54 -> 1 | D56: =R53/R54 -> 1 | E56: =S53/S54 -> 1 | F56: =T53/T54 -> 1 | G56: =U53/U54 -> 1 | H56: =IF(Input!$B$33="No","",V53/V54) ->  | I56: =W53/W54 -> 1 | J56: =X53/X54 -> 1 | K56: =Y53/Y54 -> 1 | L56: =Z53/Z54 -> 1 | M56: =AA53/AA54 -> 1 | N56: =IF(Input!$B$33="No","",AB53/AB54) ->  | P56: Inverted | Q56: =IF(MIN(Results!E14,Results!E26)=Results!E14,'Factor Results'!AE50,1) -> 1 | R56: =IF(MIN(Results!F14,Results!F26)=Results!F14,'Factor Results'!AF50,1) -> 1 | S56: =IF(MIN(Results!G14,Results!G26)=Results!G14,'Factor Results'!AG50,1) -> 1 | T56: =IF(MIN(Results!H14,Results!H26)=Results!H14,'Factor Results'!AH50,1) -> 1 | U56: =IF(MIN(Results!I14,Results!I26)=Results!I14,'Factor Results'!AI50,1) -> 1 | V56: =IF(MIN(Results!J14,Results!J26)=Results!J14,'Factor Results'!AJ50,1) ->  | W56: =IF(MIN(Results!L14,Results!L26)=Results!L14,'Factor Results'!AU50,1) -> 1 | X56: =IF(MIN(Results!M14,Results!M26)=Results!M14,'Factor Results'!AV50,1) -> 1 | Y56: =IF(MIN(Results!N14,Results!N26)=Results!N14,'Factor Results'!AW50,1) -> 1 | Z56: =IF(MIN(Results!O14,Results!O26)=Results!O14,'Factor Results'!AX50,1) -> 1 | AA56: =IF(MIN(Results!P14,Results!P26)=Results!P14,'Factor Results'!AY50,1) -> 1 | AB56: =IF(MIN(Results!Q14,Results!Q26)=Results!Q14,'Factor Results'!AZ50,1) -> 
B57: Tape | C57: 1 | D57: 1 | E57: 1 | F57: 1 | G57: 1 | H57: =IF(Input!$B$33="No","",1) ->  | I57: 1 | J57: 1 | K57: 1 | L57: 1 | M57: 1 | N57: =IF(Input!$B$33="No","",1) ->  | P57: Tape | Q57: =IF(MIN(Results!E20,Results!E26)=Results!E20,1,'Factor Results'!AE92) -> 1 | R57: =IF(MIN(Results!F20,Results!F26)=Results!F20,1,'Factor Results'!AF92) -> 1 | S57: =IF(MIN(Results!G20,Results!G26)=Results!G20,1,'Factor Results'!AG92) -> 1 | T57: =IF(MIN(Results!H20,Results!H26)=Results!H20,1,'Factor Results'!AH92) -> 0.5970392907 | U57: =IF(MIN(Results!I20,Results!I26)=Results!I20,1,'Factor Results'!AI92) -> 0.06973892136 | V57: =IF(MIN(Results!J20,Results!J26)=Results!J20,1,'Factor Results'!AJ92) -> 1 | W57: =IF(MIN(Results!L20,Results!L26)=Results!L20,1,'Factor Results'!AU92) -> 1 | X57: =IF(MIN(Results!M20,Results!M26)=Results!M20,1,'Factor Results'!AV92) -> 1 | Y57: =IF(MIN(Results!N20,Results!N26)=Results!N20,1,'Factor Results'!AW92) -> 1 | Z57: =IF(MIN(Results!O20,Results!O26)=Results!O20,1,'Factor Results'!AX92) -> 0.8091326914 | AA57: =IF(MIN(Results!P20,Results!P26)=Results!P20,1,'Factor Results'!AY92) -> 0.4061473946 | AB57: =IF(MIN(Results!Q20,Results!Q26)=Results!Q20,1,'Factor Results'!AZ92) -> 1
B58: Inverted | C58: =Q58/Q57 -> 1 | D58: =R58/R57 -> 1 | E58: =S58/S57 -> 1 | F58: =T58/T57 -> 1.674931643 | G58: =U58/U57 -> 14.33919511 | H58: =IF(Input!$B$33="No","",V58/V57) ->  | I58: =W58/W57 -> 1 | J58: =X58/X57 -> 1 | K58: =Y58/Y57 -> 1 | L58: =Z58/Z57 -> 1.235891233 | M58: =AA58/AA57 -> 2.462160322 | N58: =IF(Input!$B$33="No","",AB58/AB57) ->  | P58: Inverted | Q58: =IF(MIN(Results!E20,Results!E26)=Results!E20,'Factor Results'!AE74,1) -> 1 | R58: =IF(MIN(Results!F20,Results!F26)=Results!F20,'Factor Results'!AF74,1) -> 1 | S58: =IF(MIN(Results!G20,Results!G26)=Results!G20,'Factor Results'!AG74,1) -> 1 | T58: =IF(MIN(Results!H20,Results!H26)=Results!H20,'Factor Results'!AH74,1) -> 1 | U58: =IF(MIN(Results!I20,Results!I26)=Results!I20,'Factor Results'!AI74,1) -> 1 | V58: =IF(MIN(Results!J20,Results!J26)=Results!J20,'Factor Results'!AJ74,1) ->  | W58: =IF(MIN(Results!L20,Results!L26)=Results!L20,'Factor Results'!AU74,1) -> 1 | X58: =IF(MIN(Results!M20,Results!M26)=Results!M20,'Factor Results'!AV74,1) -> 1 | Y58: =IF(MIN(Results!N20,Results!N26)=Results!N20,'Factor Results'!AW74,1) -> 1 | Z58: =IF(MIN(Results!O20,Results!O26)=Results!O20,'Factor Results'!AX74,1) -> 1 | AA58: =IF(MIN(Results!P20,Results!P26)=Results!P20,'Factor Results'!AY74,1) -> 1 | AB58: =IF(MIN(Results!Q20,Results!Q26)=Results!Q20,'Factor Results'!AZ74,1) -> 
A59: Inverted | B59: 40 mil | C59: =Q51/Q52 -> 1 | D59: =R51/R52 -> 1 | E59: =S51/S52 -> 1 | F59: =T51/T52 -> 0.5970392907 | G59: =U51/U52 -> 0.06973892136 | H59: =IF(Input!$B$33="No","",V51/V52) ->  | I59: =W51/W52 -> 1 | J59: =X51/X52 -> 1 | K59: =Y51/Y52 -> 1 | L59: =Z51/Z52 -> 0.8091326914 | M59: =AA51/AA52 -> 0.4061473946 | N59: =IF(Input!$B$33="No","",AB51/AB52) -> 
B60: 90 mil | C60: =Q55/Q56 -> 1 | D60: =R55/R56 -> 1 | E60: =S55/S56 -> 1 | F60: =T55/T56 -> 0.5970392907 | G60: =U55/U56 -> 0.06973892136 | H60: =IF(Input!$B$33="No","",V55/V56) ->  | I60: =W55/W56 -> 1 | J60: =X55/X56 -> 1 | K60: =Y55/Y56 -> 1 | L60: =Z55/Z56 -> 0.8091326914 | M60: =AA55/AA56 -> 0.4061473946 | N60: =IF(Input!$B$33="No","",AB55/AB56) -> 
B61: Tape | C61: =Q57/Q58 -> 1 | D61: =R57/R58 -> 1 | E61: =S57/S58 -> 1 | F61: =T57/T58 -> 0.5970392907 | G61: =U57/U58 -> 0.06973892136 | H61: =IF(Input!$B$33="No","",V57/V58) ->  | I61: =W57/W58 -> 1 | J61: =X57/X58 -> 1 | K61: =Y57/Y58 -> 1 | L61: =Z57/Z58 -> 0.8091326914 | M61: =AA57/AA58 -> 0.4061473946 | N61: =IF(Input!$B$33="No","",AB57/AB58) -> 
B62: Inverted | C62: 1 | D62: 1 | E62: 1 | F62: 1 | G62: 1 | H62: =IF(Input!$B$33="No","",1) ->  | I62: 1 | J62: 1 | K62: 1 | L62: 1 | M62: 1 | N62: =IF(Input!$B$33="No","",1) -> 
H64: Number of lanes in one direction= | I64: =Input!B26 -> 2

Sheet Intermediate Factor Output (hidden)
A1: Equivalent Cost Factors for Restripe-PCC | E1: Yellow Edge Line
A2: Reference Material | B2: Material | C2: Off-Peak Application | I2: Night Time Application
C3: ADT per Lane | H3: User ADT | I3: ADT per Lane | N3: User ADT
C4: 5000 | D4: 10000 | E4: 15000 | F4: 20000 | G4: 25000 | I4: 5000 | J4: 10000 | K4: 15000 | L4: 20000 | M4: 25000
A5: 40 mil | B5: 40 mil | C5: 1 | D5: 1 | E5: 1 | F5: 1 | G5: 1 | I5: 1 | J5: 1 | K5: 1 | L5: 1 | M5: 1
B6: 90 mil | C6: 1 | D6: 0.9938935068 | E6: 0.9603965407 | F6: 0.8362645339 | G6: 0.4710139005 | I6: 1 | J6: 0.9939834563 | K6: 0.971744003 | L6: 0.9429979116 | M6: 0.9070375856
B7: Tape | C7: 1 | D7: 0.9939429497 | E7: 0.9652758732 | F7: 0.8816227372 | G7: 0.471210726 | I7: 1 | J7: 0.9939948535 | K7: 0.9718237277 | L7: 0.9432113639 | M7: 0.9094386377
B8: Inverted | C8: 1 | D8: 0.9939247529 | E8: 0.9634801048 | F8: 0.8649293005 | G8: 0.4710139005 | I8: 1 | J8: 0.9939906589 | K8: 0.9717943862 | L8: 0.9431328058 | M8: 0.9085549649
A9: 90 mil | B9: 40 mil | C9: 1 | D9: 1.006144012 | E9: 1.04123657 | F9: 1.195793866 | G9: 2.123079593 | I9: 1 | J9: 1.006052962 | K9: 1.029077614 | L9: 1.060447736 | M9: 1.102490146
B10: 90 mil | C10: 1 | D10: 1 | E10: 1 | F10: 1 | G10: 1 | I10: 1 | J10: 1 | K10: 1 | L10: 1 | M10: 1
B11: Tape | C11: 1 | D11: 1 | E11: 1 | F11: 1 | G11: 1 | I11: 1 | J11: 1 | K11: 1 | L11: 1 | M11: 1
B12: Inverted | C12: 1 | D12: 1 | E12: 1 | F12: 1 | G12: 1 | I12: 1 | J12: 1 | K12: 1 | L12: 1 | M12: 1
A13: Tape | B13: 40 mil | C13: 1 | D13: 1.006093962 | E13: 1.035973267 | F13: 1.134272017 | G13: 2.122192779 | I13: 1 | J13: 1.006041426 | K13: 1.028993192 | L13: 1.060207752 | M13: 1.099579409
B14: 90 mil | C14: 1 | D14: 1 | E14: 1 | F14: 1 | G14: 1 | I14: 1 | J14: 1 | K14: 1 | L14: 1 | M14: 1
B15: Tape | C15: 1 | D15: 1 | E15: 1 | F15: 1 | G15: 1 | I15: 1 | J15: 1 | K15: 1 | L15: 1 | M15: 1
B16: Inverted | C16: 1 | D16: 1 | E16: 1 | F16: 1 | G16: 1 | I16: 1 | J16: 1 | K16: 1 | L16: 1 | M16: 1
A17: Inverted | B17: 40 mil | C17: 1 | D17: 1.006112381 | E17: 1.037904151 | F17: 1.156163861 | G17: 2.123079593 | I17: 1 | J17: 1.006045672 | K17: 1.029024261 | L17: 1.060296062 | M17: 1.100648875
B18: 90 mil | C18: 1 | D18: 1 | E18: 1 | F18: 1 | G18: 1 | I18: 1 | J18: 1 | K18: 1 | L18: 1 | M18: 1
B19: Tape | C19: 1 | D19: 1 | E19: 1 | F19: 1 | G19: 1 | I19: 1 | J19: 1 | K19: 1 | L19: 1 | M19: 1
B20: Inverted | C20: 1 | D20: 1 | E20: 1 | F20: 1 | G20: 1 | I20: 1 | J20: 1 | K20: 1 | L20: 1 | M20: 1
A22: Bidding Factors for Restripe-PCC: White Edge Line
A23: Reference Material | B23: Material | C23: Off-Peak Application | I23: Night Time Application
C24: ADT per Lane | H24: User ADT | I24: ADT per Lane | N24: User ADT
C25: 5000 | D25: 10000 | E25: 15000 | F25: 20000 | G25: 25000 | I25: 5000 | J25: 10000 | K25: 15000 | L25: 20000 | M25: 25000
A26: 40 mil | B26: 40 mil | C26: 1 | D26: 1 | E26: 1 | F26: 1 | G26: 1 | I26: 1 | J26: 1 | K26: 1 | L26: 1 | M26: 1
B27: 90 mil | C27: 1 | D27: 1 | E27: 1 | F27: 1 | G27: 1 | I27: 1 | J27: 1 | K27: 1 | L27: 1 | M27: 1
B28: Tape | C28: 1 | D28: 1 | E28: 1 | F28: 1 | G28: 1 | I28: 1 | J28: 1 | K28: 1 | L28: 1 | M28: 1
B29: Inverted | C29: 1 | D29: 1 | E29: 1 | F29: 1.558991863 | G29: 11.19418837 | I29: 1 | J29: 1 | K29: 1 | L29: 1.23534563 | M29: 2.438826696
A30: 90 mil | B30: 40 mil | C30: 1 | D30: 1 | E30: 1 | F30: 1 | G30: 1 | I30: 1 | J30: 1 | K30: 1 | L30: 1 | M30: 1
B31: 90 mil | C31: 1 | D31: 1 | E31: 1 | F31: 1 | G31: 1 | I31: 1 | J31: 1 | K31: 1 | L31: 1 | M31: 1
B32: Tape | C32: 1 | D32: 1 | E32: 1 | F32: 1 | G32: 1 | I32: 1 | J32: 1 | K32: 1 | L32: 1 | M32: 1
B33: Inverted | C33: 1 | D33: 1 | E33: 1 | F33: 1.558991863 | G33: 11.19418837 | I33: 1 | J33: 1 | K33: 1 | L33: 1.23534563 | M33: 2.438826696
A34: Tape | B34: 40 mil | C34: 1 | D34: 1 | E34: 1 | F34: 1 | G34: 1 | I34: 1 | J34: 1 | K34: 1 | L34: 1 | M34: 1
B35: 90 mil | C35: 1 | D35: 1 | E35: 1 | F35: 1 | G35: 1 | I35: 1 | J35: 1 | K35: 1 | L35: 1 | M35: 1
B36: Tape | C36: 1 | D36: 1 | E36: 1 | F36: 1 | G36: 1 | I36: 1 | J36: 1 | K36: 1 | L36: 1 | M36: 1
B37: Inverted | C37: 1 | D37: 1 | E37: 1 | F37: 1.558991863 | G37: 11.19418837 | I37: 1 | J37: 1 | K37: 1 | L37: 1.235304091 | M37: 2.438826696
A38: Inverted | B38: 40 mil | C38: 1 | D38: 1 | E38: 1 | F38: 0.6414401663 | G38: 0.08933206833 | I38: 1 | J38: 1 | K38: 1 | L38: 0.8094900536 | M38: 0.4100332351
B39: 90 mil | C39: 1 | D39: 1 | E39: 1 | F39: 0.6414401663 | G39: 0.08933206833 | I39: 1 | J39: 1 | K39: 1 | L39: 0.8094900536 | M39: 0.4100332351
B40: Tape | C40: 1 | D40: 1 | E40: 1 | F40: 0.6414401663 | G40: 0.08933206833 | I40: 1 | J40: 1 | K40: 1 | L40: 0.8095172737 | M40: 0.4100332351
B41: Inverted | C41: 1 | D41: 1 | E41: 1 | F41: 1 | G41: 1 | I41: 1 | J41: 1 | K41: 1 | L41: 1 | M41: 1
A43: Bidding Factors for Restripe-PCC: White Edge Line
A44: Reference Material | B44: Material | C44: Off-Peak Application | I44: Night Time Application
C45: ADT per Lane | H45: User ADT | I45: ADT per Lane | N45: User ADT
C46: 5000 | D46: 10000 | E46: 15000 | F46: 20000 | G46: 25000 | I46: 5000 | J46: 10000 | K46: 15000 | L46: 20000 | M46: 25000
A47: 40 mil | B47: 40 mil | C47: 1 | D47: 1 | E47: 1 | F47: 1 | G47: 1 | I47: 1 | J47: 1 | K47: 1 | L47: 1 | M47: 1
B48: 90 mil | C48: 1 | D48: 1 | E48: 1 | F48: 1 | G48: 1 | I48: 1 | J48: 1 | K48: 1 | L48: 1 | M48: 1
B49: Tape | C49: 1 | D49: 1 | E49: 1 | F49: 1 | G49: 1 | I49: 1 | J49: 1 | K49: 1 | L49: 1 | M49: 1
B50: Inverted | C50: 1 | D50: 1 | E50: 1 | F50: 1.674931643 | G50: 14.33919511 | I50: 1 | J50: 1 | K50: 1 | L50: 1.235891233 | M50: 2.462160322
A51: 90 mil | B51: 40 mil | C51: 1 | D51: 1 | E51: 1 | F51: 1 | G51: 1 | I51: 1 | J51: 1 | K51: 1 | L51: 1 | M51: 1
B52: 90 mil | C52: 1 | D52: 1 | E52: 1 | F52: 1 | G52: 1 | I52: 1 | J52: 1 | K52: 1 | L52: 1 | M52: 1
B53: Tape | C53: 1 | D53: 1 | E53: 1 | F53: 1 | G53: 1 | I53: 1 | J53: 1 | K53: 1 | L53: 1 | M53: 1
B54: Inverted | C54: 1 | D54: 1 | E54: 1 | F54: 1.674931643 | G54: 14.33919511 | I54: 1 | J54: 1 | K54: 1 | L54: 1.235891233 | M54: 2.462160322
A55: Tape | B55: 40 mil | C55: 1 | D55: 1 | E55: 1 | F55: 1 | G55: 1 | I55: 1 | J55: 1 | K55: 1 | L55: 1 | M55: 1
B56: 90 mil | C56: 1 | D56: 1 | E56: 1 | F56: 1 | G56: 1 | I56: 1 | J56: 1 | K56: 1 | L56: 1 | M56: 1
B57: Tape | C57: 1 | D57: 1 | E57: 1 | F57: 1 | G57: 1 | I57: 1 | J57: 1 | K57: 1 | L57: 1 | M57: 1
B58: Inverted | C58: 1 | D58: 1 | E58: 1 | F58: 1.674931643 | G58: 14.33919511 | I58: 1 | J58: 1 | K58: 1 | L58: 1.235891233 | M58: 2.462160322
A59: Inverted | B59: 40 mil | C59: 1 | D59: 1 | E59: 1 | F59: 0.5970392907 | G59: 0.06973892136 | I59: 1 | J59: 1 | K59: 1 | L59: 0.8091326914 | M59: 0.4061473946
B60: 90 mil | C60: 1 | D60: 1 | E60: 1 | F60: 0.5970392907 | G60: 0.06973892136 | I60: 1 | J60: 1 | K60: 1 | L60: 0.8091326914 | M60: 0.4061473946
B61: Tape | C61: 1 | D61: 1 | E61: 1 | F61: 0.5970392907 | G61: 0.06973892136 | I61: 1 | J61: 1 | K61: 1 | L61: 0.8091326914 | M61: 0.4061473946
B62: Inverted | C62: 1 | D62: 1 | E62: 1 | F62: 1 | G62: 1 | I62: 1 | J62: 1 | K62: 1 | L62: 1 | M62: 1
H64: Number of lanes in one direction= | I64: 2

Sheet Factors for New Stripe-PCC (hidden)
A1: Equivalent Cost Factors for New Stripe-PCC | E1: Yellow Edge Line | P1: Bidding Factors for New Stripe-PCC: Yellow Edge Line
A2: Reference Material | B2: Material | C2: Off-Peak Application | I2: Night Time Application | P2: Material | Q2: Off-Peak Application | W2: Night Time Application
C3: ADT per Lane | H3: User ADT | I3: ADT per Lane | N3: User ADT | Q3: ADT per Lane | V3: User ADT | W3: ADT per Lane | AB3: User ADT
C4: 5000 | D4: 10000 | E4: 15000 | F4: 20000 | G4: 25000 | H4: =IF(Input!$B$33="No","",Input!$B$33) ->  | I4: 5000 | J4: 10000 | K4: 15000 | L4: 20000 | M4: 25000 | N4: =IF(Input!$B$33="No","",Input!$B$33) ->  | Q4: 5000 | R4: 10000 | S4: 15000 | T4: 20000 | U4: 25000 | W4: 5000 | X4: 10000 | Y4: 15000 | Z4: 20000 | AA4: 25000 | AB4: =IF(Input!$B$33="No","",Input!$B$33) -> 
A5: 40 mil | B5: 40 mil | C5: 1 | D5: 1 | E5: 1 | F5: 1 | G5: 1 | H5: =IF(Input!$B$33="No","",1) ->  | I5: 1 | J5: 1 | K5: 1 | L5: 1 | M5: 1 | N5: =IF(Input!$B$33="No","",1) ->  | P5: 40 mil | Q5: =IF(MIN(Results!E51,Results!E57)=Results!E51,1,'Factor Results'!AE140) -> 1 | R5: =IF(MIN(Results!F51,Results!F57)=Results!F51,1,'Factor Results'!AF140) -> 1.006396827 | S5: =IF(MIN(Results!G51,Results!G57)=Results!G51,1,'Factor Results'!AG140) -> 1.068653392 | T5: =IF(MIN(Results!H51,Results!H57)=Results!H51,1,'Factor Results'!AH140) -> 1.646858627 | U5: =IF(MIN(Results!I51,Results!I57)=Results!I51,1,'Factor Results'!AI140) -> 1 | V5: =IF(MIN(Results!J51,Results!J57)=Results!J51,1,'Factor Results'!AJ140) -> 1 | W5: =IF(MIN(Results!L51,Results!L57)=Results!L51,1,'Factor Results'!AU140) -> 1 | X5: =IF(MIN(Results!M51,Results!M57)=Results!M51,1,'Factor Results'!AV140) -> 1.006111217 | Y5: =IF(MIN(Results!N51,Results!N57)=Results!N51,1,'Factor Results'!AW140) -> 1.029504134 | Z5: =IF(MIN(Results!O51,Results!O57)=Results!O51,1,'Factor Results'!AX140) -> 1.061661254 | AA5: =IF(MIN(Results!P51,Results!P57)=Results!P51,1,'Factor Results'!AY140) -> 1.117427235 | AB5: =IF(MIN(Results!Q51,Results!Q57)=Results!Q51,1,'Factor Results'!AZ140) -> 1
B6: 90 mil | C6: =Q6/Q5 -> 1 | D6: =R6/R5 -> 0.9936438321 | E6: 0.9357571007 | F6: 0.607216663 | G6: 0.1367110018 | H6: =IF(Input!$B$33="No","",V6/V5) ->  | I6: =W6/W5 -> 1 | J6: =X6/X5 -> 0.9939259031 | K6: 0.971341413 | L6: 0.9419200298 | M6: 0.8949128578 | N6: =IF(Input!$B$33="No","",AB6/AB5) ->  | P6: 90 mil | Q6: =IF(MIN(Results!E51,Results!E57)=Results!E51,'Factor Results'!AE122,1) -> 1 | R6: =IF(MIN(Results!F51,Results!F57)=Results!F51,'Factor Results'!AF122,1) -> 1 | S6: =IF(MIN(Results!G51,Results!G57)=Results!G51,'Factor Results'!AG122,1) -> 1 | T6: =IF(MIN(Results!H51,Results!H57)=Results!H51,'Factor Results'!AH122,1) -> 1 | U6: =IF(MIN(Results!I51,Results!I57)=Results!I51,'Factor Results'!AI122,1) -> 0.1367110018 | V6: =IF(MIN(Results!J51,Results!J57)=Results!J51,'Factor Results'!AJ122,1) ->  | W6: =IF(MIN(Results!L51,Results!L57)=Results!L51,'Factor Results'!AU122,1) -> 1 | X6: =IF(MIN(Results!M51,Results!M57)=Results!M51,'Factor Results'!AV122,1) -> 1 | Y6: =IF(MIN(Results!N51,Results!N57)=Results!N51,'Factor Results'!AW122,1) -> 1 | Z6: =IF(MIN(Results!O51,Results!O57)=Results!O51,'Factor Results'!AX122,1) -> 1 | AA6: =IF(MIN(Results!P51,Results!P57)=Results!P51,'Factor Results'!AY122,1) -> 1 | AB6: =IF(MIN(Results!Q51,Results!Q57)=Results!Q51,'Factor Results'!AZ122,1) -> 
B7: Tape | C7: =Q8/Q7 -> 1 | D7: =R8/R7 -> 0.9938992737 | E7: 0.9609656552 | F7: 0.841555014 | G7: 0.1853333711 | H7: =IF(Input!$B$33="No","",V8/V7) ->  | I7: =W8/W7 -> 1 | J7: =X8/X7 -> 0.9939847856 | K7: 0.9717533019 | L7: 0.9430228082 | M7: 0.907317639 | N7: =IF(Input!$B$33="No","",AB8/AB7) ->  | P7: 40 mil | Q7: =IF(MIN(Results!E51,Results!E63)=Results!E51,1,'Factor Results'!AE164) -> 1 | R7: =IF(MIN(Results!F51,Results!F63)=Results!F51,1,'Factor Results'!AF164) -> 1.006138174 | S7: =IF(MIN(Results!G51,Results!G63)=Results!G51,1,'Factor Results'!AG164) -> 1.040619917 | T7: =IF(MIN(Results!H51,Results!H63)=Results!H51,1,'Factor Results'!AH164) -> 1.188276445 | U7: =IF(MIN(Results!I51,Results!I63)=Results!I51,1,'Factor Results'!AI164) -> 5.395682354 | V7: =IF(MIN(Results!J51,Results!J63)=Results!J51,1,'Factor Results'!AJ164) -> 1 | W7: =IF(MIN(Results!L51,Results!L63)=Results!L51,1,'Factor Results'!AU164) -> 1 | X7: =IF(MIN(Results!M51,Results!M63)=Results!M51,1,'Factor Results'!AV164) -> 1.006051616 | Y7: =IF(MIN(Results!N51,Results!N63)=Results!N51,1,'Factor Results'!AW164) -> 1.029067766 | Z7: =IF(MIN(Results!O51,Results!O63)=Results!O51,1,'Factor Results'!AX164) -> 1.060419739 | AA7: =IF(MIN(Results!P51,Results!P63)=Results!P51,1,'Factor Results'!AY164) -> 1.10214985 | AB7: =IF(MIN(Results!Q51,Results!Q63)=Results!Q51,1,'Factor Results'!AZ164) -> 1
B8: Inverted | C8: =Q10/Q9 -> 1 | D8: =R10/R9 -> 0.9938394288 | E8: 0.9550597952 | F8: 0.7866542262 | G8: 0.1367110018 | H8: =IF(Input!$B$33="No","",V10/V9) ->  | I8: =W10/W9 -> 1 | J8: =X10/X9 -> 0.9939709906 | K8: 0.9716568046 | L8: 0.9427644493 | M8: 0.9044114469 | N8: =IF(Input!$B$33="No","",AB10/AB9) ->  | P8: Tape | Q8: =IF(MIN(Results!E51,Results!E63)=Results!E51,'Factor Results'!AE128,1) -> 1 | R8: =IF(MIN(Results!F51,Results!F63)=Results!F51,'Factor Results'!AF128,1) -> 1 | S8: =IF(MIN(Results!G51,Results!G63)=Results!G51,'Factor Results'!AG128,1) -> 1 | T8: =IF(MIN(Results!H51,Results!H63)=Results!H51,'Factor Results'!AH128,1) -> 1 | U8: =IF(MIN(Results!I51,Results!I63)=Results!I51,'Factor Results'!AI128,1) -> 1 | V8: =IF(MIN(Results!J51,Results!J63)=Results!J51,'Factor Results'!AJ128,1) ->  | W8: =IF(MIN(Results!L51,Results!L63)=Results!L51,'Factor Results'!AU128,1) -> 1 | X8: =IF(MIN(Results!M51,Results!M63)=Results!M51,'Factor Results'!AV128,1) -> 1 | Y8: =IF(MIN(Results!N51,Results!N63)=Results!N51,'Factor Results'!AW128,1) -> 1 | Z8: =IF(MIN(Results!O51,Results!O63)=Results!O51,'Factor Results'!AX128,1) -> 1 | AA8: =IF(MIN(Results!P51,Results!P63)=Results!P51,'Factor Results'!AY128,1) -> 1 | AB8: =IF(MIN(Results!Q51,Results!Q63)=Results!Q51,'Factor Results'!AZ128,1) -> 
A9: 90 mil | B9: 40 mil | C9: =Q5/Q6 -> 1 | D9: =R5/R6 -> 1.006396827 | E9: =S5/S6 -> 1.068653392 | F9: =T5/T6 -> 1.646858627 | G9: =U5/U6 -> 7.314700258 | H9: =IF(Input!$B$33="No","",V5/V6) ->  | I9: =W5/W6 -> 1 | J9: =X5/X6 -> 1.006111217 | K9: =Y5/Y6 -> 1.029504134 | L9: =Z5/Z6 -> 1.061661254 | M9: =AA5/AA6 -> 1.117427235 | N9: =IF(Input!$B$33="No","",AB5/AB6) ->  | P9: 40 mil | Q9: =IF(MIN(Results!E51,Results!E69)=Results!E51,1,'Factor Results'!AE188) -> 1 | R9: =IF(MIN(Results!F51,Results!F69)=Results!F51,1,'Factor Results'!AF188) -> 1.006198759 | S9: =IF(MIN(Results!G51,Results!G69)=Results!G51,1,'Factor Results'!AG188) -> 1.04705486 | T9: =IF(MIN(Results!H51,Results!H69)=Results!H51,1,'Factor Results'!AH188) -> 1.271206544 | U9: =IF(MIN(Results!I51,Results!I69)=Results!I51,1,'Factor Results'!AI188) -> 1 | V9: =IF(MIN(Results!J51,Results!J69)=Results!J51,1,'Factor Results'!AJ188) -> 1 | W9: =IF(MIN(Results!L51,Results!L69)=Results!L51,1,'Factor Results'!AU188) -> 1 | X9: =IF(MIN(Results!M51,Results!M69)=Results!M51,1,'Factor Results'!AV188) -> 1.006065579 | Y9: =IF(MIN(Results!N51,Results!N69)=Results!N51,1,'Factor Results'!AW188) -> 1.029169965 | Z9: =IF(MIN(Results!O51,Results!O69)=Results!O51,1,'Factor Results'!AX188) -> 1.06071034 | AA9: =IF(MIN(Results!P51,Results!P69)=Results!P51,1,'Factor Results'!AY188) -> 1.105691445 | AB9: =IF(MIN(Results!Q51,Results!Q69)=Results!Q51,1,'Factor Results'!AZ188) -> 1
B10: 90 mil | C10: 1 | D10: 1 | E10: 1 | F10: 1 | G10: 1 | H10: =IF(Input!$B$33="No","",1) ->  | I10: 1 | J10: 1 | K10: 1 | L10: 1 | M10: 1 | N10: =IF(Input!$B$33="No","",1) ->  | P10: Inverted | Q10: =IF(MIN(Results!E51,Results!E69)=Results!E51,'Factor Results'!AE134,1) -> 1 | R10: =IF(MIN(Results!F51,Results!F69)=Results!F51,'Factor Results'!AF134,1) -> 1 | S10: =IF(MIN(Results!G51,Results!G69)=Results!G51,'Factor Results'!AG134,1) -> 1 | T10: =IF(MIN(Results!H51,Results!H69)=Results!H51,'Factor Results'!AH134,1) -> 1 | U10: =IF(MIN(Results!I51,Results!I69)=Results!I51,'Factor Results'!AI134,1) -> 0.1367110018 | V10: =IF(MIN(Results!J51,Results!J69)=Results!J51,'Factor Results'!AJ134,1) ->  | W10: =IF(MIN(Results!L51,Results!L69)=Results!L51,'Factor Results'!AU134,1) -> 1 | X10: =IF(MIN(Results!M51,Results!M69)=Results!M51,'Factor Results'!AV134,1) -> 1 | Y10: =IF(MIN(Results!N51,Results!N69)=Results!N51,'Factor Results'!AW134,1) -> 1 | Z10: =IF(MIN(Results!O51,Results!O69)=Results!O51,'Factor Results'!AX134,1) -> 1 | AA10: =IF(MIN(Results!P51,Results!P69)=Results!P51,'Factor Results'!AY134,1) -> 1 | AB10: =IF(MIN(Results!Q51,Results!Q69)=Results!Q51,'Factor Results'!AZ134,1) -> 
B11: Tape | C11: =Q12/Q11 -> 1 | D11: =R12/R11 -> 1 | E11: 1 | F11: 1 | G11: 1 | H11: =IF(Input!$B$33="No","",V12/V11) ->  | I11: =W12/W11 -> 1 | J11: =X12/X11 -> 1 | K11: 1 | L11: 1 | M11: 1 | N11: =IF(Input!$B$33="No","",AB12/AB11) ->  | P11: 90 mil | Q11: =IF(MIN(Results!E57,Results!E63)=Results!E57,1,'Factor Results'!AE170) -> 1 | R11: =IF(MIN(Results!F57,Results!F63)=Results!F57,1,'Factor Results'!AF170) -> 1 | S11: =IF(MIN(Results!G57,Results!G63)=Results!G57,1,'Factor Results'!AG170) -> 1 | T11: =IF(MIN(Results!H57,Results!H63)=Results!H57,1,'Factor Results'!AH170) -> 1 | U11: =IF(MIN(Results!I57,Results!I63)=Results!I57,1,'Factor Results'!AI170) -> 1 | V11: =IF(MIN(Results!J57,Results!J63)=Results!J57,1,'Factor Results'!AJ170) -> 1 | W11: =IF(MIN(Results!L57,Results!L63)=Results!L57,1,'Factor Results'!AU170) -> 1 | X11: =IF(MIN(Results!M57,Results!M63)=Results!M57,1,'Factor Results'!AV170) -> 1 | Y11: =IF(MIN(Results!N57,Results!N63)=Results!N57,1,'Factor Results'!AW170) -> 1 | Z11: =IF(MIN(Results!O57,Results!O63)=Results!O57,1,'Factor Results'!AX170) -> 1 | AA11: =IF(MIN(Results!P57,Results!P63)=Results!P57,1,'Factor Results'!AY170) -> 1 | AB11: =IF(MIN(Results!Q57,Results!Q63)=Results!Q57,1,'Factor Results'!AZ170) -> 1
B12: Inverted | C12: =Q14/Q13 -> 1 | D12: =R14/R13 -> 1 | E12: 1 | F12: 1 | G12: 1 | H12: =IF(Input!$B$33="No","",V14/V13) ->  | I12: =W14/W13 -> 1 | J12: =X14/X13 -> 1 | K12: 1 | L12: 1 | M12: 1 | N12: =IF(Input!$B$33="No","",AB14/AB13) ->  | P12: Tape | Q12: =IF(MIN(Results!E57,Results!E63)=Results!E57,'Factor Results'!AE152,1) -> 1 | R12: =IF(MIN(Results!F57,Results!F63)=Results!F57,'Factor Results'!AF152,1) -> 1 | S12: =IF(MIN(Results!G57,Results!G63)=Results!G57,'Factor Results'!AG152,1) -> 1 | T12: =IF(MIN(Results!H57,Results!H63)=Results!H57,'Factor Results'!AH152,1) -> 1 | U12: =IF(MIN(Results!I57,Results!I63)=Results!I57,'Factor Results'!AI152,1) -> 1 | V12: =IF(MIN(Results!J57,Results!J63)=Results!J57,'Factor Results'!AJ152,1) ->  | W12: =IF(MIN(Results!L57,Results!L63)=Results!L57,'Factor Results'!AU152,1) -> 1 | X12: =IF(MIN(Results!M57,Results!M63)=Results!M57,'Factor Results'!AV152,1) -> 1 | Y12: =IF(MIN(Results!N57,Results!N63)=Results!N57,'Factor Results'!AW152,1) -> 1 | Z12: =IF(MIN(Results!O57,Results!O63)=Results!O57,'Factor Results'!AX152,1) -> 1 | AA12: =IF(MIN(Results!P57,Results!P63)=Results!P57,'Factor Results'!AY152,1) -> 1 | AB12: =IF(MIN(Results!Q57,Results!Q63)=Results!Q57,'Factor Results'!AZ152,1) -> 
A13: Tape | B13: 40 mil | C13: =Q7/Q8 -> 1 | D13: =R7/R8 -> 1.006138174 | E13: =S7/S8 -> 1.040619917 | F13: =T7/T8 -> 1.188276445 | G13: =U7/U8 -> 5.395682354 | H13: =IF(Input!$B$33="No","",V7/V8) ->  | I13: =W7/W8 -> 1 | J13: =X7/X8 -> 1.006051616 | K13: =Y7/Y8 -> 1.029067766 | L13: =Z7/Z8 -> 1.060419739 | M13: =AA7/AA8 -> 1.10214985 | N13: =IF(Input!$B$33="No","",AB7/AB8) ->  | P13: 90 mil | Q13: =IF(MIN(Results!E57,Results!E69)=Results!E57,1,'Factor Results'!AE194) -> 1 | R13: =IF(MIN(Results!F57,Results!F69)=Results!F57,1,'Factor Results'!AF194) -> 1 | S13: =IF(MIN(Results!G57,Results!G69)=Results!G57,1,'Factor Results'!AG194) -> 1 | T13: =IF(MIN(Results!H57,Results!H69)=Results!H57,1,'Factor Results'!AH194) -> 1 | U13: =IF(MIN(Results!I57,Results!I69)=Results!I57,1,'Factor Results'!AI194) -> 1 | V13: =IF(MIN(Results!J57,Results!J69)=Results!J57,1,'Factor Results'!AJ194) -> 1 | W13: =IF(MIN(Results!L57,Results!L69)=Results!L57,1,'Factor Results'!AU194) -> 1 | X13: =IF(MIN(Results!M57,Results!M69)=Results!M57,1,'Factor Results'!AV194) -> 1 | Y13: =IF(MIN(Results!N57,Results!N69)=Results!N57,1,'Factor Results'!AW194) -> 1 | Z13: =IF(MIN(Results!O57,Results!O69)=Results!O57,1,'Factor Results'!AX194) -> 1 | AA13: =IF(MIN(Results!P57,Results!P69)=Results!P57,1,'Factor Results'!AY194) -> 1 | AB13: =IF(MIN(Results!Q57,Results!Q69)=Results!Q57,1,'Factor Results'!AZ194) -> 1
B14: 90 mil | C14: =Q11/Q12 -> 1 | D14: =R11/R12 -> 1 | E14: =S11/S12 -> 1 | F14: =T11/T12 -> 1 | G14: =U11/U12 -> 1 | H14: =IF(Input!$B$33="No","",V11/V12) ->  | I14: =W11/W12 -> 1 | J14: =X11/X12 -> 1 | K14: =Y11/Y12 -> 1 | L14: =Z11/Z12 -> 1 | M14: =AA11/AA12 -> 1 | N14: =IF(Input!$B$33="No","",AB11/AB12) ->  | P14: Inverted | Q14: =IF(MIN(Results!E57,Results!E69)=Results!E57,'Factor Results'!AE158,1) -> 1 | R14: =IF(MIN(Results!F57,Results!F69)=Results!F57,'Factor Results'!AF158,1) -> 1 | S14: =IF(MIN(Results!G57,Results!G69)=Results!G57,'Factor Results'!AG158,1) -> 1 | T14: =IF(MIN(Results!H57,Results!H69)=Results!H57,'Factor Results'!AH158,1) -> 1 | U14: =IF(MIN(Results!I57,Results!I69)=Results!I57,'Factor Results'!AI158,1) -> 1 | V14: =IF(MIN(Results!J57,Results!J69)=Results!J57,'Factor Results'!AJ158,1) ->  | W14: =IF(MIN(Results!L57,Results!L69)=Results!L57,'Factor Results'!AU158,1) -> 1 | X14: =IF(MIN(Results!M57,Results!M69)=Results!M57,'Factor Results'!AV158,1) -> 1 | Y14: =IF(MIN(Results!N57,Results!N69)=Results!N57,'Factor Results'!AW158,1) -> 1 | Z14: =IF(MIN(Results!O57,Results!O69)=Results!O57,'Factor Results'!AX158,1) -> 1 | AA14: =IF(MIN(Results!P57,Results!P69)=Results!P57,'Factor Results'!AY158,1) -> 1 | AB14: =IF(MIN(Results!Q57,Results!Q69)=Results!Q57,'Factor Results'!AZ158,1) -> 
B15: Tape | C15: 1 | D15: 1 | E15: 1 | F15: 1 | G15: 1 | H15: =IF(Input!$B$33="No","",1) ->  | I15: 1 | J15: 1 | K15: 1 | L15: 1 | M15: 1 | N15: =IF(Input!$B$33="No","",1) ->  | P15: Tape | Q15: =IF(MIN(Results!E63,Results!E69)=Results!E63,1,'Factor Results'!AE200) -> 1 | R15: =IF(MIN(Results!F63,Results!F69)=Results!F63,1,'Factor Results'!AF200) -> 1 | S15: =IF(MIN(Results!G63,Results!G69)=Results!G63,1,'Factor Results'!AG200) -> 1 | T15: =IF(MIN(Results!H63,Results!H69)=Results!H63,1,'Factor Results'!AH200) -> 1 | U15: =IF(MIN(Results!I63,Results!I69)=Results!I63,1,'Factor Results'!AI200) -> 1 | V15: =IF(MIN(Results!J63,Results!J69)=Results!J63,1,'Factor Results'!AJ200) -> 1 | W15: =IF(MIN(Results!L63,Results!L69)=Results!L63,1,'Factor Results'!AU200) -> 1 | X15: =IF(MIN(Results!M63,Results!M69)=Results!M63,1,'Factor Results'!AV200) -> 1 | Y15: =IF(MIN(Results!N63,Results!N69)=Results!N63,1,'Factor Results'!AW200) -> 1 | Z15: =IF(MIN(Results!O63,Results!O69)=Results!O63,1,'Factor Results'!AX200) -> 1 | AA15: =IF(MIN(Results!P63,Results!P69)=Results!P63,1,'Factor Results'!AY200) -> 1 | AB15: =IF(MIN(Results!Q63,Results!Q69)=Results!Q63,1,'Factor Results'!AZ200) -> 1
B16: Inverted | C16: =Q16/Q15 -> 1 | D16: =R16/R15 -> 1 | E16: 1 | F16: 1 | G16: 1 | H16: =IF(Input!$B$33="No","",V16/V15) ->  | I16: =W16/W15 -> 1 | J16: =X16/X15 -> 1 | K16: 1 | L16: 1 | M16: 1 | N16: =IF(Input!$B$33="No","",AB16/AB15) ->  | P16: Inverted | Q16: =IF(MIN(Results!E63,Results!E69)=Results!E63,'Factor Results'!AE182,1) -> 1 | R16: =IF(MIN(Results!F63,Results!F69)=Results!F63,'Factor Results'!AF182,1) -> 1 | S16: =IF(MIN(Results!G63,Results!G69)=Results!G63,'Factor Results'!AG182,1) -> 1 | T16: =IF(MIN(Results!H63,Results!H69)=Results!H63,'Factor Results'!AH182,1) -> 1 | U16: =IF(MIN(Results!I63,Results!I69)=Results!I63,'Factor Results'!AI182,1) -> 1 | V16: =IF(MIN(Results!J63,Results!J69)=Results!J63,'Factor Results'!AJ182,1) ->  | W16: =IF(MIN(Results!L63,Results!L69)=Results!L63,'Factor Results'!AU182,1) -> 1 | X16: =IF(MIN(Results!M63,Results!M69)=Results!M63,'Factor Results'!AV182,1) -> 1 | Y16: =IF(MIN(Results!N63,Results!N69)=Results!N63,'Factor Results'!AW182,1) -> 1 | Z16: =IF(MIN(Results!O63,Results!O69)=Results!O63,'Factor Results'!AX182,1) -> 1 | AA16: =IF(MIN(Results!P63,Results!P69)=Results!P63,'Factor Results'!AY182,1) -> 1 | AB16: =IF(MIN(Results!Q63,Results!Q69)=Results!Q63,'Factor Results'!AZ182,1) -> 
A17: Inverted | B17: 40 mil | C17: =Q9/Q10 -> 1 | D17: =R9/R10 -> 1.006198759 | E17: =S9/S10 -> 1.04705486 | F17: =T9/T10 -> 1.271206544 | G17: =U9/U10 -> 7.314700258 | H17: =IF(Input!$B$33="No","",V9/V10) ->  | I17: =W9/W10 -> 1 | J17: =X9/X10 -> 1.006065579 | K17: =Y9/Y10 -> 1.029169965 | L17: =Z9/Z10 -> 1.06071034 | M17: =AA9/AA10 -> 1.105691445 | N17: =IF(Input!$B$33="No","",AB9/AB10) -> 
B18: 90 mil | C18: =Q13/Q14 -> 1 | D18: =R13/R14 -> 1 | E18: =S13/S14 -> 1 | F18: =T13/T14 -> 1 | G18: =U13/U14 -> 1 | H18: =IF(Input!$B$33="No","",V13/V14) ->  | I18: =W13/W14 -> 1 | J18: =X13/X14 -> 1 | K18: =Y13/Y14 -> 1 | L18: =Z13/Z14 -> 1 | M18: =AA13/AA14 -> 1 | N18: =IF(Input!$B$33="No","",AB13/AB14) -> 
B19: Tape | C19: =Q15/Q16 -> 1 | D19: =R15/R16 -> 1 | E19: =S15/S16 -> 1 | F19: =T15/T16 -> 1 | G19: =U15/U16 -> 1 | H19: =IF(Input!$B$33="No","",V15/V16) ->  | I19: =W15/W16 -> 1 | J19: =X15/X16 -> 1 | K19: =Y15/Y16 -> 1 | L19: =Z15/Z16 -> 1 | M19: =AA15/AA16 -> 1 | N19: =IF(Input!$B$33="No","",AB15/AB16) -> 
B20: Inverted | C20: 1 | D20: 1 | E20: 1 | F20: 1 | G20: 1 | H20: =IF(Input!$B$33="No","",1) ->  | I20: 1 | J20: 1 | K20: 1 | L20: 1 | M20: 1 | N20: =IF(Input!$B$33="No","",1) -> 
A22: Bidding Factors for New Stripe-PCC: White Edge Line | P22: Bidding Factors for New Stripe-PCC: White Edge Line
A23: Reference Material | B23: Material | C23: Off-Peak Application | I23: Night Time Application | P23: Material | Q23: Off-Peak Application | W23: Night Time Application
C24: ADT per Lane | H24: User ADT | I24: ADT per Lane | N24: User ADT | Q24: ADT per Lane | V24: User ADT | W24: ADT per Lane | AB24: User ADT
C25: 5000 | D25: 10000 | E25: 15000 | F25: 20000 | G25: 25000 | H25: =IF(Input!$B$33="No","",Input!$B$33) ->  | I25: 5000 | J25: 10000 | K25: 15000 | L25: 20000 | M25: 25000 | N25: =IF(Input!$B$33="No","",Input!$B$33) ->  | Q25: 5000 | R25: 10000 | S25: 15000 | T25: 20000 | U25: 25000 | W25: 5000 | X25: 10000 | Y25: 15000 | Z25: 20000 | AA25: 25000 | AB25: =IF(Input!$B$33="No","",Input!$B$33) -> 
A26: 40 mil | B26: 40 mil | C26: 1 | D26: 1 | E26: 1 | F26: 1 | G26: 1 | H26: =IF(Input!$B$33="No","",1) ->  | I26: 1 | J26: 1 | K26: 1 | L26: 1 | M26: 1 | N26: =IF(Input!$B$33="No","",1) ->  | P26: 40 mil | Q26: =IF(MIN(Results!E52,Results!E58)=Results!E52,1,'Factor Results'!AE141) -> 1 | R26: =IF(MIN(Results!F52,Results!F58)=Results!F52,1,'Factor Results'!AF141) -> 1 | S26: =IF(MIN(Results!G52,Results!G58)=Results!G52,1,'Factor Results'!AG141) -> 1 | T26: =IF(MIN(Results!H52,Results!H58)=Results!H52,1,'Factor Results'!AH141) -> 1 | U26: =IF(MIN(Results!I52,Results!I58)=Results!I52,1,'Factor Results'!AI141) -> 1 | V26: =IF(MIN(Results!J52,Results!J58)=Results!J52,1,'Factor Results'!AJ141) -> 1 | W26: =IF(MIN(Results!L52,Results!L58)=Results!L52,1,'Factor Results'!AU141) -> 1 | X26: =IF(MIN(Results!M52,Results!M58)=Results!M52,1,'Factor Results'!AV141) -> 1 | Y26: =IF(MIN(Results!N52,Results!N58)=Results!N52,1,'Factor Results'!AW141) -> 1 | Z26: =IF(MIN(Results!O52,Results!O58)=Results!O52,1,'Factor Results'!AX141) -> 1 | AA26: =IF(MIN(Results!P52,Results!P58)=Results!P52,1,'Factor Results'!AY141) -> 1 | AB26: =IF(MIN(Results!Q52,Results!Q58)=Results!Q52,1,'Factor Results'!AZ141) -> 1
B27: 90 mil | C27: =Q27/Q26 -> 1 | D27: =R27/R26 -> 1 | E27: =S27/S26 -> 1 | F27: =T27/T26 -> 1 | G27: =U27/U26 -> 1 | H27: =IF(Input!$B$33="No","",V27/V26) ->  | I27: =W27/W26 -> 1 | J27: =X27/X26 -> 1 | K27: =Y27/Y26 -> 1 | L27: =Z27/Z26 -> 1 | M27: =AA27/AA26 -> 1 | N27: =IF(Input!$B$33="No","",AB27/AB26) ->  | P27: 90 mil | Q27: =IF(MIN(Results!E52,Results!E58)=Results!E52,'Factor Results'!AE123,1) -> 1 | R27: =IF(MIN(Results!F52,Results!F58)=Results!F52,'Factor Results'!AF123,1) -> 1 | S27: =IF(MIN(Results!G52,Results!G58)=Results!G52,'Factor Results'!AG123,1) -> 1 | T27: =IF(MIN(Results!H52,Results!H58)=Results!H52,'Factor Results'!AH123,1) -> 1 | U27: =IF(MIN(Results!I52,Results!I58)=Results!I52,'Factor Results'!AI123,1) -> 1 | V27: =IF(MIN(Results!J52,Results!J58)=Results!J52,'Factor Results'!AJ123,1) ->  | W27: =IF(MIN(Results!L52,Results!L58)=Results!L52,'Factor Results'!AU123,1) -> 1 | X27: =IF(MIN(Results!M52,Results!M58)=Results!M52,'Factor Results'!AV123,1) -> 1 | Y27: =IF(MIN(Results!N52,Results!N58)=Results!N52,'Factor Results'!AW123,1) -> 1 | Z27: =IF(MIN(Results!O52,Results!O58)=Results!O52,'Factor Results'!AX123,1) -> 1 | AA27: =IF(MIN(Results!P52,Results!P58)=Results!P52,'Factor Results'!AY123,1) -> 1 | AB27: =IF(MIN(Results!Q52,Results!Q58)=Results!Q52,'Factor Results'!AZ123,1) -> 
B28: Tape | C28: =Q29/Q28 -> 1 | D28: =R29/R28 -> 1 | E28: =S29/S28 -> 1 | F28: =T29/T28 -> 1 | G28: =U29/U28 -> 1 | H28: =IF(Input!$B$33="No","",V29/V28) ->  | I28: =W29/W28 -> 1 | J28: =X29/X28 -> 1 | K28: =Y29/Y28 -> 1 | L28: =Z29/Z28 -> 1 | M28: =AA29/AA28 -> 1 | N28: =IF(Input!$B$33="No","",AB29/AB28) ->  | P28: 40 mil | Q28: =IF(MIN(Results!E52,Results!E64)=Results!E52,1,'Factor Results'!AE165) -> 1 | R28: =IF(MIN(Results!F52,Results!F64)=Results!F52,1,'Factor Results'!AF165) -> 1 | S28: =IF(MIN(Results!G52,Results!G64)=Results!G52,1,'Factor Results'!AG165) -> 1 | T28: =IF(MIN(Results!H52,Results!H64)=Results!H52,1,'Factor Results'!AH165) -> 1 | U28: =IF(MIN(Results!I52,Results!I64)=Results!I52,1,'Factor Results'!AI165) -> 1 | V28: =IF(MIN(Results!J52,Results!J64)=Results!J52,1,'Factor Results'!AJ165) -> 1 | W28: =IF(MIN(Results!L52,Results!L64)=Results!L52,1,'Factor Results'!AU165) -> 1 | X28: =IF(MIN(Results!M52,Results!M64)=Results!M52,1,'Factor Results'!AV165) -> 1 | Y28: =IF(MIN(Results!N52,Results!N64)=Results!N52,1,'Factor Results'!AW165) -> 1 | Z28: =IF(MIN(Results!O52,Results!O64)=Results!O52,1,'Factor Results'!AX165) -> 1 | AA28: =IF(MIN(Results!P52,Results!P64)=Results!P52,1,'Factor Results'!AY165) -> 1 | AB28: =IF(MIN(Results!Q52,Results!Q64)=Results!Q52,1,'Factor Results'!AZ165) -> 1
B29: Inverted | C29: =Q31/Q30 -> 1 | D29: =R31/R30 -> 1 | E29: =S31/S30 -> 1 | F29: =T31/T30 -> 1.882934286 | G29: =U31/U30 -> 19.98151835 | H29: =IF(Input!$B$33="No","",V31/V30) ->  | I29: =W31/W30 -> 1 | J29: =X31/X30 -> 1 | K29: =Y31/Y30 -> 1 | L29: =Z31/Z30 -> 1.236870078 | M29: =AA31/AA30 -> 2.504022191 | N29: =IF(Input!$B$33="No","",AB31/AB30) ->  | P29: Tape | Q29: =IF(MIN(Results!E52,Results!E64)=Results!E52,'Factor Results'!AE129,1) -> 1 | R29: =IF(MIN(Results!F52,Results!F64)=Results!F52,'Factor Results'!AF129,1) -> 1 | S29: =IF(MIN(Results!G52,Results!G64)=Results!G52,'Factor Results'!AG129,1) -> 1 | T29: =IF(MIN(Results!H52,Results!H64)=Results!H52,'Factor Results'!AH129,1) -> 1 | U29: =IF(MIN(Results!I52,Results!I64)=Results!I52,'Factor Results'!AI129,1) -> 1 | V29: =IF(MIN(Results!J52,Results!J64)=Results!J52,'Factor Results'!AJ129,1) ->  | W29: =IF(MIN(Results!L52,Results!L64)=Results!L52,'Factor Results'!AU129,1) -> 1 | X29: =IF(MIN(Results!M52,Results!M64)=Results!M52,'Factor Results'!AV129,1) -> 1 | Y29: =IF(MIN(Results!N52,Results!N64)=Results!N52,'Factor Results'!AW129,1) -> 1 | Z29: =IF(MIN(Results!O52,Results!O64)=Results!O52,'Factor Results'!AX129,1) -> 1 | AA29: =IF(MIN(Results!P52,Results!P64)=Results!P52,'Factor Results'!AY129,1) -> 1 | AB29: =IF(MIN(Results!Q52,Results!Q64)=Results!Q52,'Factor Results'!AZ129,1) -> 
A30: 90 mil | B30: 40 mil | C30: =Q26/Q27 -> 1 | D30: =R26/R27 -> 1 | E30: =S26/S27 -> 1 | F30: =T26/T27 -> 1 | G30: =U26/U27 -> 1 | H30: =IF(Input!$B$33="No","",V26/V27) ->  | I30: =W26/W27 -> 1 | J30: =X26/X27 -> 1 | K30: =Y26/Y27 -> 1 | L30: =Z26/Z27 -> 1 | M30: =AA26/AA27 -> 1 | N30: =IF(Input!$B$33="No","",AB26/AB27) ->  | P30: 40 mil | Q30: =IF(MIN(Results!E52,Results!E70)=Results!E52,1,'Factor Results'!AE189) -> 1 | R30: =IF(MIN(Results!F52,Results!F70)=Results!F52,1,'Factor Results'!AF189) -> 1 | S30: =IF(MIN(Results!G52,Results!G70)=Results!G52,1,'Factor Results'!AG189) -> 1 | T30: =IF(MIN(Results!H52,Results!H70)=Results!H52,1,'Factor Results'!AH189) -> 0.5310859797 | U30: =IF(MIN(Results!I52,Results!I70)=Results!I52,1,'Factor Results'!AI189) -> 0.05004624686 | V30: =IF(MIN(Results!J52,Results!J70)=Results!J52,1,'Factor Results'!AJ189) -> 1 | W30: =IF(MIN(Results!L52,Results!L70)=Results!L52,1,'Factor Results'!AU189) -> 1 | X30: =IF(MIN(Results!M52,Results!M70)=Results!M52,1,'Factor Results'!AV189) -> 1 | Y30: =IF(MIN(Results!N52,Results!N70)=Results!N52,1,'Factor Results'!AW189) -> 1 | Z30: =IF(MIN(Results!O52,Results!O70)=Results!O52,1,'Factor Results'!AX189) -> 0.8084923532 | AA30: =IF(MIN(Results!P52,Results!P70)=Results!P52,1,'Factor Results'!AY189) -> 0.3993574832 | AB30: =IF(MIN(Results!Q52,Results!Q70)=Results!Q52,1,'Factor Results'!AZ189) -> 1
B31: 90 mil | C31: 1 | D31: 1 | E31: 1 | F31: 1 | G31: 1 | H31: =IF(Input!$B$33="No","",1) ->  | I31: 1 | J31: 1 | K31: 1 | L31: 1 | M31: 1 | N31: =IF(Input!$B$33="No","",1) ->  | P31: Inverted | Q31: =IF(MIN(Results!E52,Results!E70)=Results!E52,'Factor Results'!AE135,1) -> 1 | R31: =IF(MIN(Results!F52,Results!F70)=Results!F52,'Factor Results'!AF135,1) -> 1 | S31: =IF(MIN(Results!G52,Results!G70)=Results!G52,'Factor Results'!AG135,1) -> 1 | T31: =IF(MIN(Results!H52,Results!H70)=Results!H52,'Factor Results'!AH135,1) -> 1 | U31: =IF(MIN(Results!I52,Results!I70)=Results!I52,'Factor Results'!AI135,1) -> 1 | V31: =IF(MIN(Results!J52,Results!J70)=Results!J52,'Factor Results'!AJ135,1) ->  | W31: =IF(MIN(Results!L52,Results!L70)=Results!L52,'Factor Results'!AU135,1) -> 1 | X31: =IF(MIN(Results!M52,Results!M70)=Results!M52,'Factor Results'!AV135,1) -> 1 | Y31: =IF(MIN(Results!N52,Results!N70)=Results!N52,'Factor Results'!AW135,1) -> 1 | Z31: =IF(MIN(Results!O52,Results!O70)=Results!O52,'Factor Results'!AX135,1) -> 1 | AA31: =IF(MIN(Results!P52,Results!P70)=Results!P52,'Factor Results'!AY135,1) -> 1 | AB31: =IF(MIN(Results!Q52,Results!Q70)=Results!Q52,'Factor Results'!AZ135,1) -> 
B32: Tape | C32: =Q33/Q32 -> 1 | D32: =R33/R32 -> 1 | E32: =S33/S32 -> 1 | F32: =T33/T32 -> 1 | G32: =U33/U32 -> 1 | H32: =IF(Input!$B$33="No","",V33/V32) ->  | I32: =W33/W32 -> 1 | J32: =X33/X32 -> 1 | K32: =Y33/Y32 -> 1 | L32: =Z33/Z32 -> 1 | M32: =AA33/AA32 -> 1 | N32: =IF(Input!$B$33="No","",AB33/AB32) ->  | P32: 90 mil | Q32: =IF(MIN(Results!E58,Results!E64)=Results!E58,1,'Factor Results'!AE171) -> 1 | R32: =IF(MIN(Results!F58,Results!F64)=Results!F58,1,'Factor Results'!AF171) -> 1 | S32: =IF(MIN(Results!G58,Results!G64)=Results!G58,1,'Factor Results'!AG171) -> 1 | T32: =IF(MIN(Results!H58,Results!H64)=Results!H58,1,'Factor Results'!AH171) -> 1 | U32: =IF(MIN(Results!I58,Results!I64)=Results!I58,1,'Factor Results'!AI171) -> 1 | V32: =IF(MIN(Results!J58,Results!J64)=Results!J48,1,'Factor Results'!AJ171) -> 1 | W32: =IF(MIN(Results!L58,Results!L64)=Results!L58,1,'Factor Results'!AU171) -> 1 | X32: =IF(MIN(Results!M58,Results!M64)=Results!M58,1,'Factor Results'!AV171) -> 1 | Y32: =IF(MIN(Results!N58,Results!N64)=Results!N58,1,'Factor Results'!AW171) -> 1 | Z32: =IF(MIN(Results!O58,Results!O64)=Results!O58,1,'Factor Results'!AX171) -> 1 | AA32: =IF(MIN(Results!P58,Results!P64)=Results!P58,1,'Factor Results'!AY171) -> 1 | AB32: =IF(MIN(Results!Q58,Results!Q64)=Results!Q58,1,'Factor Results'!AZ171) -> 1
B33: Inverted | C33: =Q35/Q34 -> 1 | D33: =R35/R34 -> 1 | E33: =S35/S34 -> 1 | F33: =T35/T34 -> 1.882934286 | G33: =U35/U34 -> 19.98151835 | H33: =IF(Input!$B$33="No","",V35/V34) ->  | I33: =W35/W34 -> 1 | J33: =X35/X34 -> 1 | K33: =Y35/Y34 -> 1 | L33: =Z35/Z34 -> 1.236870078 | M33: =AA35/AA34 -> 2.504022191 | N33: =IF(Input!$B$33="No","",AB35/AB34) ->  | P33: Tape | Q33: =IF(MIN(Results!E58,Results!E64)=Results!E58,'Factor Results'!AE153,1) -> 1 | R33: =IF(MIN(Results!F58,Results!F64)=Results!F58,'Factor Results'!AF153,1) -> 1 | S33: =IF(MIN(Results!G58,Results!G64)=Results!G58,'Factor Results'!AG153,1) -> 1 | T33: =IF(MIN(Results!H58,Results!H64)=Results!H58,'Factor Results'!AH153,1) -> 1 | U33: =IF(MIN(Results!I58,Results!I64)=Results!I58,'Factor Results'!AI153,1) -> 1 | V33: =IF(MIN(Results!J58,Results!J64)=Results!J48,'Factor Results'!AJ153,1) ->  | W33: =IF(MIN(Results!L58,Results!L64)=Results!L58,'Factor Results'!AU153,1) -> 1 | X33: =IF(MIN(Results!M58,Results!M64)=Results!M58,'Factor Results'!AV153,1) -> 1 | Y33: =IF(MIN(Results!N58,Results!N64)=Results!N58,'Factor Results'!AW153,1) -> 1 | Z33: =IF(MIN(Results!O58,Results!O64)=Results!O58,'Factor Results'!AX153,1) -> 1 | AA33: =IF(MIN(Results!P58,Results!P64)=Results!P58,'Factor Results'!AY153,1) -> 1 | AB33: =IF(MIN(Results!Q58,Results!Q64)=Results!Q58,'Factor Results'!AZ153,1) -> 
A34: Tape | B34: 40 mil | C34: =Q28/Q29 -> 1 | D34: =R28/R29 -> 1 | E34: =S28/S29 -> 1 | F34: =T28/T29 -> 1 | G34: =U28/U29 -> 1 | H34: =IF(Input!$B$33="No","",V28/V29) ->  | I34: =W28/W29 -> 1 | J34: =X28/X29 -> 1 | K34: =Y28/Y29 -> 1 | L34: =Z28/Z29 -> 1 | M34: =AA28/AA29 -> 1 | N34: =IF(Input!$B$33="No","",AB28/AB29) ->  | P34: 90 mil | Q34: =IF(MIN(Results!E58,Results!E70)=Results!E58,1,'Factor Results'!AE195) -> 1 | R34: =IF(MIN(Results!F58,Results!F70)=Results!F58,1,'Factor Results'!AF195) -> 1 | S34: =IF(MIN(Results!G58,Results!G70)=Results!G58,1,'Factor Results'!AG195) -> 1 | T34: =IF(MIN(Results!H58,Results!H70)=Results!H58,1,'Factor Results'!AH195) -> 0.5310859797 | U34: =IF(MIN(Results!I58,Results!I70)=Results!I58,1,'Factor Results'!AI195) -> 0.05004624686 | V34: =IF(MIN(Results!J58,Results!J70)=Results!J48,1,'Factor Results'!AJ195) -> 1 | W34: =IF(MIN(Results!L58,Results!L70)=Results!L58,1,'Factor Results'!AU195) -> 1 | X34: =IF(MIN(Results!M58,Results!M70)=Results!M58,1,'Factor Results'!AV195) -> 1 | Y34: =IF(MIN(Results!N58,Results!N70)=Results!N58,1,'Factor Results'!AW195) -> 1 | Z34: =IF(MIN(Results!O58,Results!O70)=Results!O58,1,'Factor Results'!AX195) -> 0.8084923532 | AA34: =IF(MIN(Results!P58,Results!P70)=Results!P58,1,'Factor Results'!AY195) -> 0.3993574832 | AB34: =IF(MIN(Results!Q58,Results!Q70)=Results!Q58,1,'Factor Results'!AZ195) -> 1
